Workbook

Sheet FICHA
B1: SEGUIMIENTO AL CUMPLIMIENTO DE REGLAS FISCALES DE LOS GOBIERNOS REGIONALES Y GOBIERNOS LOCALES 3T2019 1/
B3: DEPARTAMENTO
B4: PROVINCIA
B5: ENTIDAD
B7: R1: Regla Fiscal de Saldo de Deuda Total | D7: =IFERROR( VLOOKUP($C$19,REGLAS!$A$1:$S$1901,14,FALSE)," ") -> Cumple | E7: R2: Regla Fiscal de Ahorro en Cuenta Corriente | G7: =IFERROR( VLOOKUP($C$19,REGLAS!$A$1:$S$1901,19,FALSE)," ") -> Cumple
B8: Saldo de Deuda Total | C8: =IFERROR( VLOOKUP($C$19,REGLAS!$A$1:$S$1901,6,FALSE), " ") -> 455186.7412 | D8: Miles | E8: Ingreso Corriente Total - ICT | F8: =IFERROR( VLOOKUP($C$19,REGLAS!$A$1:$S$1901,16,FALSE), " " ) -> 484837.7254 | G8: Miles
B9: Prom. ICT | C9: =IFERROR( VLOOKUP($C$19,REGLAS!$A$1:$S$1901,8,FALSE), " ") -> 595415.8652 | D9: Miles | E9: Gasto Corriente Total - GCT | F9: =IFERROR( VLOOKUP($C$19,REGLAS!$A$1:$S$1901,17,FALSE), " " ) -> 475128.5694 | G9: Miles
B10: Límite Ley N° 29230 2/ | C10: =IFERROR( VLOOKUP($C$19,REGLAS!$A$1:$S$1901,9,FALSE), " ") -> 4.55137 | D10: Miles | E10: Ahorro en Cuenta Corriente - ACC | F10: =IFERROR( VLOOKUP($C$19,REGLAS!$A$1:$S$1901,18,FALSE), " ") -> 9709.15593 | G10: Miles
B12: SDT/Prom. ICT | C12: =IFERROR( VLOOKUP($C$19,REGLAS!$A$1:$S$1901,12,FALSE), " ") -> 76.44854089 | D12: Porcentaje
C19: 010000 : GOBIERNO REGIONAL DE AMAZONAS
L20: Zona de riesgo
L21: limite1 | M21: limite2 | N21: valor | P21: ICT | Q21: =IFERROR( VLOOKUP($C$19,REGLAS!$A$1:$S$1901,15,FALSE), " " ) -> 0
L22: 0.8 | M22: 0.8 | N22: 0.8 | P22: GCT | Q22: =IFERROR( VLOOKUP($C$19,REGLAS!$A$1:$S$1901,16,FALSE), " " ) -> 484837.7254
L23: 1 | M23: 1 | N23: 1 | P23: ACC | Q23: =IFERROR( VLOOKUP($C$19,REGLAS!$A$1:$S$1901,17,FALSE), " ") -> 475128.5694
M24: =C12/100 -> 0.7644854089
P25: ICT | Q25: GCT | R25: ACC
P26: 0 | Q26: 0 | R26: 0 | S26: 0
P27: 0 | Q27: 0 | R27: 0
P28: =IFERROR( VLOOKUP($C$19,REGLAS!$A$1:$S$1901,16,FALSE), " " ) -> 484837.7254 | Q28: =IFERROR( VLOOKUP($C$19,REGLAS!$A$1:$S$1901,17,FALSE), " " ) -> 475128.5694 | R28: =IFERROR( VLOOKUP($C$19,REGLAS!$A$1:$S$1901,18,FALSE), " ") -> 9709.15593
B30: 1/ El Decreto Legislativo 1275, que aprueba el Marco de la Responsabilidad y Transparencia Fiscal de los Gobiernos Regionales y Gobiernos Locales, deroga la Ley N° 30099, dejando sin efecto las reglas fiscales establecidas en el literal a) y b) del artículo 7°, así como las medidas correctivas establecidas en el numeral 8.4 del artículo 8° de la LFRTF y las metas de convergencia en adelante se aplicará lo establecido en el artículo 6° de dicho Decreto Legislativo.
B31: 2/ Corresponde a la suma de los flujos transferidos por concepto de Recursos Determinados provenientes de Canon, Sobrecanon, Regalías, Renta de Aduanas y Participaciones de los años 2017 y 2018, más el tope presupuestal por el mismo concepto incluido en el Presupuesto Institucional de Apertura 2019, aprobado mediante Ley N° 30879 - Ley de Presupuesto del Sector Público para el año fiscal 2019, informado a través de Memorando N° 194-2019-EF/50.03 por la Dirección General de Presupuesto Público del Ministerio de Economía y Finanzas.
B33: Nota: El Saldo de Deuda Total comprende el Saldo de Pasivos, la Deuda Exigible y la Deuda Real. La información del Saldo de Deuda Total comprende el Saldo de Pasivos, la Deuda Exigible y la Deuda Real. La información disponible del Saldo de Pasivos y Deuda Exigible a setiembre de 2019 y la deuda real a julio de 2019.
B34: Fuente: SICON-MEF, SIAF-MEF, SUNAT, SBS y AFP.

Sheet Anexo_GR
B1: Anexo N° 4: Seguimiento al Cumplimiento de las Reglas Fiscales Subnacionales 3T2019
B3: Gobiernos Regionales
B5: N° | C5: UBIGEO | D5: Gobiernos Regional | E5: R1: Regla Fiscal de Saldo de Deuda Total | K5: R2: Regla Fiscal de Ahorro en Cuenta Corriente
E6: 3T2019 | K6: 3T2019
E7: S/ Miles | H7: SDT/ICT Prom % | I7: Cumple R1 | K7: S/ Miles | N7: Cumple R2
E8: Saldo de Deuda Total 1/ | F8: ICT Prom 2/ | G8: Límite Ley N° 29230 3/ | K8: Ingreso Corriente Total | L8: Gasto Corriente Total | M8: Ahorro en Cuenta Corriente
B9: 1 | C9: 010000 | D9: AMAZONAS | E9: 455186.7412 | F9: 595415.8652 | G9: 4.55137 | H9: 76.44854089 | I9: Cumple | K9: 484837.7254 | L9: 475128.5694 | M9: 9709.15593 | N9: Cumple
B10: 2 | C10: 020000 | D10: ANCASH | E10: 663038.9658 | F10: 1436917.975 | G10: 665127.2772 | H10: 46.14313255 | I10: Cumple | K10: 1279820.077 | L10: 1019581.154 | M10: 260238.9233 | N10: Cumple
B11: 3 | C11: 030000 | D11: APURIMAC | E11: 670947.6118 | F11: 743562.3958 | G11: 91172.58127 | H11: 90.23420436 | I11: Cumple | K11: 595471.4142 | L11: 564892.8722 | M11: 30578.54197 | N11: Cumple
B12: 4 | C12: 040000 | D12: AREQUIPA | E12: 1499939.3 | F12: 1338747.341 | G12: 364337.1967 | H12: 112.0405064 | I12: No Cumple | K12: 1118648.904 | L12: 960636.3389 | M12: 158012.565 | N12: Cumple
B13: 5 | C13: 050000 | D13: AYACUCHO | E13: 622899.9934 | F13: 1035495.75 | G13: 94241.11614 | H13: 60.15476098 | I13: Cumple | K13: 831018.4124 | L13: 771794.4009 | M13: 59224.01152 | N13: Cumple
B14: 6 | C14: 060000 | D14: CAJAMARCA | E14: 1606979.818 | F14: 1645085.256 | G14: 98257.12283 | H14: 97.68368003 | I14: Cumple | K14: 1331928.528 | L14: 1259212.967 | M14: 72715.56041 | N14: Cumple
B15: 7 | C15: 070000 | D15: CALLAO | E15: 530175.6393 | F15: 943384.9548 | G15: 738139.6223 | H15: 56.19928923 | I15: Cumple | K15: 750682.3663 | L15: 591568.6681 | M15: 159113.6983 | N15: Cumple
B16: 8 | C16: 080000 | D16: CUSCO | E16: 1257456.27 | F16: 1677868.883 | G16: 1048855.853 | H16: 74.94365513 | I16: Cumple | K16: 1360534.813 | L16: 1070739.958 | M16: 289794.8557 | N16: Cumple
B17: 9 | C17: 090000 | D17: HUANCAVELICA | E17: 268977.848 | F17: 774067.9111 | G17: 100172.3325 | H17: 34.74861109 | I17: Cumple | K17: 615293.2134 | L17: 578944.012 | M17: 36349.20135 | N17: Cumple
B18: 10 | C18: 100000 | D18: HUANUCO | E18: 239152.4412 | F18: 863755.2539 | G18: 8913.31518 | H18: 27.68752377 | I18: Cumple | K18: 695988.378 | L18: 678560.7446 | M18: 17427.63338 | N18: Cumple
B19: 11 | C19: 110000 | D19: ICA | E19: 212937.7774 | F19: 869148.9735 | G19: 149449.598 | H19: 24.49957187 | I19: Cumple | K19: 698504.2481 | L19: 658269.8465 | M19: 40234.40164 | N19: Cumple
B20: 12 | C20: 120000 | D20: JUNIN | E20: 919647.8305 | F20: 1352224.622 | G20: 78099.8244 | H20: 68.00999002 | I20: Cumple | K20: 1076142.413 | L20: 1025796.165 | M20: 50346.24737 | N20: Cumple
B21: 13 | C21: 130000 | D21: LA LIBERTAD | E21: 1486745.674 | F21: 1636621.63 | G21: 168697.9254 | H21: 90.84235763 | I21: Cumple | K21: 1350136.319 | L21: 1197412.218 | M21: 152724.1007 | N21: Cumple
B22: 14 | C22: 140000 | D22: LAMBAYEQUE | E22: 635119.4502 | F22: 966302.4973 | G22: 8.48685 | H22: 65.72677313 | I22: Cumple | K22: 764109.7103 | L22: 728810.2543 | M22: 35299.45603 | N22: Cumple
B23: 15 | C23: 150000 | D23: LIMA | E23: 165112.7534 | F23: 1059933.777 | G23: 160029.9418 | H23: 15.57764805 | I23: Cumple | K23: 808000.1004 | L23: 761523.2176 | M23: 46476.88283 | N23: Cumple
B24: 16 | C24: 160000 | D24: LORETO | E24: 547364.6087 | F24: 1375994.387 | G24: 126394.0461 | H24: 39.77956695 | I24: Cumple | K24: 1286602.339 | L24: 1101461.554 | M24: 185140.7851 | N24: Cumple
B25: 17 | C25: 170000 | D25: MADRE DE DIOS | E25: 116074.9833 | F25: 218456.7926 | G25: 693.60523 | H25: 53.13406921 | I25: Cumple | K25: 177654.0454 | L25: 168076.1022 | M25: 9577.94323 | N25: Cumple
B26: 18 | C26: 180000 | D26: MOQUEGUA | E26: 452045.7992 | F26: 320844.4715 | G26: 101432.0401 | H26: 140.8925007 | I26: No Cumple | K26: 272697.1013 | L26: 229171.5269 | M26: 43525.57444 | N26: Cumple
B27: 19 | C27: 190000 | D27: PASCO | E27: 328098.2816 | F27: 382835.922 | G27: 52919.46352 | H27: 85.70206262 | I27: Cumple | K27: 293771.9477 | L27: 278394.7791 | M27: 15377.16863 | N27: Cumple
B28: 20 | C28: 200000 | D28: PIURA | E28: 1818097.608 | F28: 1582430.994 | G28: 230531.5838 | H28: 114.8926945 | I28: No Cumple | K28: 1273818.189 | L28: 1179836.58 | M28: 93981.6087 | N28: Cumple
B29: 21 | C29: 210000 | D29: PUNO | E29: 1605672.373 | F29: 1409809.711 | G29: 66996.53091 | H29: 113.8928438 | I29: No Cumple | K29: 1125489.227 | L29: 1085074.064 | M29: 40415.16214 | N29: Cumple
B30: 22 | C30: 220000 | D30: SAN MARTIN | E30: 545683.5752 | F30: 980259.2487 | G30: 1249.76851 | H30: 55.66727128 | I30: Cumple | K30: 822745.4073 | L30: 754874.331 | M30: 67871.07632 | N30: Cumple
B31: 23 | C31: 230000 | D31: TACNA | E31: 372826.0846 | F31: 449229.3108 | G31: 101443.2034 | H31: 82.99237732 | I31: Cumple | K31: 380278.788 | L31: 320533.4977 | M31: 59745.2903 | N31: Cumple
B32: 24 | C32: 240000 | D32: TUMBES | E32: 187419.0246 | F32: 381403.0097 | G32: 84428.61776 | H32: 49.13936698 | I32: Cumple | K32: 291923.3505 | L32: 267213.8292 | M32: 24709.52137 | N32: Cumple
B33: 25 | C33: 250000 | D33: UCAYALI | E33: 338766.2541 | F33: 597691.9837 | G33: 67540.57868 | H33: 56.67906938 | I33: Cumple | K33: 518637.958 | L33: 489357.47 | M33: 29280.48805 | N33: Cumple
B34: 26 | C34: 260000 | D34: REGIÓN LIMA METROPOLITANA | E34: 3460.33747 | F34: 23081.38916 | G34: 9108.2166 | H34: 14.99189432 | I34: Cumple | K34: 16848.44646 | L34: 13590.4402 | M34: 3258.00626 | N34: Cumple
B36: TOTAL | E36: =+SUM(E9:E34) -> 17549827.04 | F36: =+SUM(F9:F34) -> 24660570.31 | G36: =+SUM(G9:G34) -> 4608244.399 | K36: =+SUM(K9:K34) -> 20221583.42 | L36: =+SUM(L9:L34) -> 18230455.56 | M36: =+SUM(M9:M34) -> 1991127.86
B38: 1/ El Saldo de Deuda Total comprende el Saldo de Pasivos, la Deuda Exigible y la Deuda Real. La información disponible del Saldo de Pasivos y Deuda Exigible a setiembre de 2019 y de la Deuda Real a julio de 2019.
B39: 2/ Promedio anual del Ingreso Corriente Total calculado a partir de los últimos 16 trimestres entre el 4T2015 y el 3T2019.
B40: 3/ Corresponde a la suma de los flujos transferidos por concepto de Recursos Determinados provenientes de Canon, Sobrecanon, Regalías, Renta de Aduanas y Participaciones de los años 2017 y 2018, más el tope presupuestal por el mismo concepto incluido en el Presupuesto Institucional de Apertura 2019, aprobado mediante Ley N° 30879 - Ley de Presupuesto del Sector Público para el año fiscal 2019, informado a través de Memorando N° 194-2019-EF/50.03 por la Dirección General de Presupuesto Público del Ministerio de Economía y Finanzas.
B41: Fuente: SICON-MEF, SIAF-MEF, SUNAT, SBS y AFP.

Sheet REGLAS (hidden)
A1: BUSQUEDA | B1: NRO | C1: Ubigeo | D1: Departamento | E1: Entidad | F1: SDT | G1: B01 | H1: PROM_ICT | I1: LIMITE_LEY | J1: Espacio Total | K1: B02 | L1: STD_PROM_ICT | M1: B03 | N1: Cumple_R1 | O1: B04 | P1: ICT | Q1: GCT | R1: ACC | S1: Cumple_R2
A2: 010000 : GOBIERNO REGIONAL DE AMAZONAS | B2: 1 | C2: 010000 | D2: AMAZONAS | E2: GOBIERNO REGIONAL AMAZONAS | F2: =VLOOKUP(C2,'Anexo_GR '!$C$9:$E$34,3,FALSE) -> 455186.7412 | H2: =VLOOKUP(C2,'Anexo_GR '!$C$9:$I$34,4,FALSE) -> 595415.8652 | I2: =VLOOKUP(C2,'Anexo_GR '!$C$9:$I$34,5,FALSE) -> 4.55137 | L2: =VLOOKUP(C2,'Anexo_GR '!$C$9:$I$34,6,FALSE) -> 76.44854089 | N2: =VLOOKUP(C2,'Anexo_GR '!$C$9:$I$34,7,FALSE) -> Cumple | P2: =VLOOKUP(C2,'Anexo_GR '!$C$9:$N$34,9,FALSE) -> 484837.7254 | Q2: =VLOOKUP(C2,'Anexo_GR '!$C$9:$N$34,10,FALSE) -> 475128.5694 | R2: =VLOOKUP(C2,'Anexo_GR '!$C$9:$N$34,11,FALSE) -> 9709.15593 | S2: =VLOOKUP(C2,'Anexo_GR '!$C$9:$N$34,12,FALSE) -> Cumple
A3: 020000 : GOBIERNO REGIONAL DE ANCASH | B3: 2 | C3: 020000 | D3: ANCASH | E3: GOBIERNO REGIONAL ANCASH | F3: =VLOOKUP(C3,'Anexo_GR '!$C$9:$E$34,3,FALSE) -> 663038.9658 | H3: =VLOOKUP(C3,'Anexo_GR '!$C$9:$I$34,4,FALSE) -> 1436917.975 | I3: =VLOOKUP(C3,'Anexo_GR '!$C$9:$I$34,5,FALSE) -> 665127.2772 | L3: =VLOOKUP(C3,'Anexo_GR '!$C$9:$I$34,6,FALSE) -> 46.14313255 | N3: =VLOOKUP(C3,'Anexo_GR '!$C$9:$I$34,7,FALSE) -> Cumple | P3: =VLOOKUP(C3,'Anexo_GR '!$C$9:$N$34,9,FALSE) -> 1279820.077 | Q3: =VLOOKUP(C3,'Anexo_GR '!$C$9:$N$34,10,FALSE) -> 1019581.154 | R3: =VLOOKUP(C3,'Anexo_GR '!$C$9:$N$34,11,FALSE) -> 260238.9233 | S3: =VLOOKUP(C3,'Anexo_GR '!$C$9:$N$34,12,FALSE) -> Cumple
A4: 030000 : GOBIERNO REGIONAL DE APURIMAC | B4: 3 | C4: 030000 | D4: APURIMAC | E4: GOBIERNO REGIONAL APURIMAC | F4: =VLOOKUP(C4,'Anexo_GR '!$C$9:$E$34,3,FALSE) -> 670947.6118 | H4: =VLOOKUP(C4,'Anexo_GR '!$C$9:$I$34,4,FALSE) -> 743562.3958 | I4: =VLOOKUP(C4,'Anexo_GR '!$C$9:$I$34,5,FALSE) -> 91172.58127 | L4: =VLOOKUP(C4,'Anexo_GR '!$C$9:$I$34,6,FALSE) -> 90.23420436 | N4: =VLOOKUP(C4,'Anexo_GR '!$C$9:$I$34,7,FALSE) -> Cumple | P4: =VLOOKUP(C4,'Anexo_GR '!$C$9:$N$34,9,FALSE) -> 595471.4142 | Q4: =VLOOKUP(C4,'Anexo_GR '!$C$9:$N$34,10,FALSE) -> 564892.8722 | R4: =VLOOKUP(C4,'Anexo_GR '!$C$9:$N$34,11,FALSE) -> 30578.54197 | S4: =VLOOKUP(C4,'Anexo_GR '!$C$9:$N$34,12,FALSE) -> Cumple
A5: 040000 : GOBIERNO REGIONAL DE AREQUIPA | B5: 4 | C5: 040000 | D5: AREQUIPA | E5: GOBIERNO REGIONAL AREQUIPA | F5: =VLOOKUP(C5,'Anexo_GR '!$C$9:$E$34,3,FALSE) -> 1499939.3 | H5: =VLOOKUP(C5,'Anexo_GR '!$C$9:$I$34,4,FALSE) -> 1338747.341 | I5: =VLOOKUP(C5,'Anexo_GR '!$C$9:$I$34,5,FALSE) -> 364337.1967 | L5: =VLOOKUP(C5,'Anexo_GR '!$C$9:$I$34,6,FALSE) -> 112.0405064 | N5: =VLOOKUP(C5,'Anexo_GR '!$C$9:$I$34,7,FALSE) -> No Cumple | P5: =VLOOKUP(C5,'Anexo_GR '!$C$9:$N$34,9,FALSE) -> 1118648.904 | Q5: =VLOOKUP(C5,'Anexo_GR '!$C$9:$N$34,10,FALSE) -> 960636.3389 | R5: =VLOOKUP(C5,'Anexo_GR '!$C$9:$N$34,11,FALSE) -> 158012.565 | S5: =VLOOKUP(C5,'Anexo_GR '!$C$9:$N$34,12,FALSE) -> Cumple
A6: 050000 : GOBIERNO REGIONAL DE AYACUCHO | B6: 5 | C6: 050000 | D6: AYACUCHO | E6: GOBIERNO REGIONAL AYACUCHO | F6: =VLOOKUP(C6,'Anexo_GR '!$C$9:$E$34,3,FALSE) -> 622899.9934 | H6: =VLOOKUP(C6,'Anexo_GR '!$C$9:$I$34,4,FALSE) -> 1035495.75 | I6: =VLOOKUP(C6,'Anexo_GR '!$C$9:$I$34,5,FALSE) -> 94241.11614 | L6: =VLOOKUP(C6,'Anexo_GR '!$C$9:$I$34,6,FALSE) -> 60.15476098 | N6: =VLOOKUP(C6,'Anexo_GR '!$C$9:$I$34,7,FALSE) -> Cumple | P6: =VLOOKUP(C6,'Anexo_GR '!$C$9:$N$34,9,FALSE) -> 831018.4124 | Q6: =VLOOKUP(C6,'Anexo_GR '!$C$9:$N$34,10,FALSE) -> 771794.4009 | R6: =VLOOKUP(C6,'Anexo_GR '!$C$9:$N$34,11,FALSE) -> 59224.01152 | S6: =VLOOKUP(C6,'Anexo_GR '!$C$9:$N$34,12,FALSE) -> Cumple
A7: 060000 : GOBIERNO REGIONAL DE CAJAMARCA | B7: 6 | C7: 060000 | D7: CAJAMARCA | E7: GOBIERNO REGIONAL CAJAMARCA | F7: =VLOOKUP(C7,'Anexo_GR '!$C$9:$E$34,3,FALSE) -> 1606979.818 | H7: =VLOOKUP(C7,'Anexo_GR '!$C$9:$I$34,4,FALSE) -> 1645085.256 | I7: =VLOOKUP(C7,'Anexo_GR '!$C$9:$I$34,5,FALSE) -> 98257.12283 | L7: =VLOOKUP(C7,'Anexo_GR '!$C$9:$I$34,6,FALSE) -> 97.68368003 | N7: =VLOOKUP(C7,'Anexo_GR '!$C$9:$I$34,7,FALSE) -> Cumple | P7: =VLOOKUP(C7,'Anexo_GR '!$C$9:$N$34,9,FALSE) -> 1331928.528 | Q7: =VLOOKUP(C7,'Anexo_GR '!$C$9:$N$34,10,FALSE) -> 1259212.967 | R7: =VLOOKUP(C7,'Anexo_GR '!$C$9:$N$34,11,FALSE) -> 72715.56041 | S7: =VLOOKUP(C7,'Anexo_GR '!$C$9:$N$34,12,FALSE) -> Cumple
A8: 070000 : GOBIERNO REGIONAL DEL CALLAO | B8: 7 | C8: 070000 | D8: CALLAO | E8: GOBIERNO REGIONAL CALLAO | F8: =VLOOKUP(C8,'Anexo_GR '!$C$9:$E$34,3,FALSE) -> 530175.6393 | H8: =VLOOKUP(C8,'Anexo_GR '!$C$9:$I$34,4,FALSE) -> 943384.9548 | I8: =VLOOKUP(C8,'Anexo_GR '!$C$9:$I$34,5,FALSE) -> 738139.6223 | L8: =VLOOKUP(C8,'Anexo_GR '!$C$9:$I$34,6,FALSE) -> 56.19928923 | N8: =VLOOKUP(C8,'Anexo_GR '!$C$9:$I$34,7,FALSE) -> Cumple | P8: =VLOOKUP(C8,'Anexo_GR '!$C$9:$N$34,9,FALSE) -> 750682.3663 | Q8: =VLOOKUP(C8,'Anexo_GR '!$C$9:$N$34,10,FALSE) -> 591568.6681 | R8: =VLOOKUP(C8,'Anexo_GR '!$C$9:$N$34,11,FALSE) -> 159113.6983 | S8: =VLOOKUP(C8,'Anexo_GR '!$C$9:$N$34,12,FALSE) -> Cumple
A9: 080000 : GOBIERNO REGIONAL DE CUSCO | B9: 8 | C9: 080000 | D9: CUSCO | E9: GOBIERNO REGIONAL CUSCO | F9: =VLOOKUP(C9,'Anexo_GR '!$C$9:$E$34,3,FALSE) -> 1257456.27 | H9: =VLOOKUP(C9,'Anexo_GR '!$C$9:$I$34,4,FALSE) -> 1677868.883 | I9: =VLOOKUP(C9,'Anexo_GR '!$C$9:$I$34,5,FALSE) -> 1048855.853 | L9: =VLOOKUP(C9,'Anexo_GR '!$C$9:$I$34,6,FALSE) -> 74.94365513 | N9: =VLOOKUP(C9,'Anexo_GR '!$C$9:$I$34,7,FALSE) -> Cumple | P9: =VLOOKUP(C9,'Anexo_GR '!$C$9:$N$34,9,FALSE) -> 1360534.813 | Q9: =VLOOKUP(C9,'Anexo_GR '!$C$9:$N$34,10,FALSE) -> 1070739.958 | R9: =VLOOKUP(C9,'Anexo_GR '!$C$9:$N$34,11,FALSE) -> 289794.8557 | S9: =VLOOKUP(C9,'Anexo_GR '!$C$9:$N$34,12,FALSE) -> Cumple
A10: 090000 : GOBIERNO REGIONAL DE HUANCAVELICA | B10: 9 | C10: 090000 | D10: HUANCAVELICA | E10: GOBIERNO REGIONAL HUANCAVELICA | F10: =VLOOKUP(C10,'Anexo_GR '!$C$9:$E$34,3,FALSE) -> 268977.848 | H10: =VLOOKUP(C10,'Anexo_GR '!$C$9:$I$34,4,FALSE) -> 774067.9111 | I10: =VLOOKUP(C10,'Anexo_GR '!$C$9:$I$34,5,FALSE) -> 100172.3325 | L10: =VLOOKUP(C10,'Anexo_GR '!$C$9:$I$34,6,FALSE) -> 34.74861109 | N10: =VLOOKUP(C10,'Anexo_GR '!$C$9:$I$34,7,FALSE) -> Cumple | P10: =VLOOKUP(C10,'Anexo_GR '!$C$9:$N$34,9,FALSE) -> 615293.2134 | Q10: =VLOOKUP(C10,'Anexo_GR '!$C$9:$N$34,10,FALSE) -> 578944.012 | R10: =VLOOKUP(C10,'Anexo_GR '!$C$9:$N$34,11,FALSE) -> 36349.20135 | S10: =VLOOKUP(C10,'Anexo_GR '!$C$9:$N$34,12,FALSE) -> Cumple
A11: 100000 : GOBIERNO REGIONAL DE HUANUCO | B11: 10 | C11: 100000 | D11: HUANUCO | E11: GOBIERNO REGIONAL HUANUCO | F11: =VLOOKUP(C11,'Anexo_GR '!$C$9:$E$34,3,FALSE) -> 239152.4412 | H11: =VLOOKUP(C11,'Anexo_GR '!$C$9:$I$34,4,FALSE) -> 863755.2539 | I11: =VLOOKUP(C11,'Anexo_GR '!$C$9:$I$34,5,FALSE) -> 8913.31518 | L11: =VLOOKUP(C11,'Anexo_GR '!$C$9:$I$34,6,FALSE) -> 27.68752377 | N11: =VLOOKUP(C11,'Anexo_GR '!$C$9:$I$34,7,FALSE) -> Cumple | P11: =VLOOKUP(C11,'Anexo_GR '!$C$9:$N$34,9,FALSE) -> 695988.378 | Q11: =VLOOKUP(C11,'Anexo_GR '!$C$9:$N$34,10,FALSE) -> 678560.7446 | R11: =VLOOKUP(C11,'Anexo_GR '!$C$9:$N$34,11,FALSE) -> 17427.63338 | S11: =VLOOKUP(C11,'Anexo_GR '!$C$9:$N$34,12,FALSE) -> Cumple
A12: 110000 : GOBIERNO REGIONAL DE ICA | B12: 11 | C12: 110000 | D12: ICA | E12: GOBIERNO REGIONAL ICA | F12: =VLOOKUP(C12,'Anexo_GR '!$C$9:$E$34,3,FALSE) -> 212937.7774 | H12: =VLOOKUP(C12,'Anexo_GR '!$C$9:$I$34,4,FALSE) -> 869148.9735 | I12: =VLOOKUP(C12,'Anexo_GR '!$C$9:$I$34,5,FALSE) -> 149449.598 | L12: =VLOOKUP(C12,'Anexo_GR '!$C$9:$I$34,6,FALSE) -> 24.49957187 | N12: =VLOOKUP(C12,'Anexo_GR '!$C$9:$I$34,7,FALSE) -> Cumple | P12: =VLOOKUP(C12,'Anexo_GR '!$C$9:$N$34,9,FALSE) -> 698504.2481 | Q12: =VLOOKUP(C12,'Anexo_GR '!$C$9:$N$34,10,FALSE) -> 658269.8465 | R12: =VLOOKUP(C12,'Anexo_GR '!$C$9:$N$34,11,FALSE) -> 40234.40164 | S12: =VLOOKUP(C12,'Anexo_GR '!$C$9:$N$34,12,FALSE) -> Cumple
A13: 120000 : GOBIERNO REGIONAL DE JUNIN | B13: 12 | C13: 120000 | D13: JUNIN | E13: GOBIERNO REGIONAL JUNIN | F13: =VLOOKUP(C13,'Anexo_GR '!$C$9:$E$34,3,FALSE) -> 919647.8305 | H13: =VLOOKUP(C13,'Anexo_GR '!$C$9:$I$34,4,FALSE) -> 1352224.622 | I13: =VLOOKUP(C13,'Anexo_GR '!$C$9:$I$34,5,FALSE) -> 78099.8244 | L13: =VLOOKUP(C13,'Anexo_GR '!$C$9:$I$34,6,FALSE) -> 68.00999002 | N13: =VLOOKUP(C13,'Anexo_GR '!$C$9:$I$34,7,FALSE) -> Cumple | P13: =VLOOKUP(C13,'Anexo_GR '!$C$9:$N$34,9,FALSE) -> 1076142.413 | Q13: =VLOOKUP(C13,'Anexo_GR '!$C$9:$N$34,10,FALSE) -> 1025796.165 | R13: =VLOOKUP(C13,'Anexo_GR '!$C$9:$N$34,11,FALSE) -> 50346.24737 | S13: =VLOOKUP(C13,'Anexo_GR '!$C$9:$N$34,12,FALSE) -> Cumple
A14: 130000 : GOBIERNO REGIONAL DE LA LIBERTAD | B14: 13 | C14: 130000 | D14: LA LIBERTAD | E14: GOBIERNO REGIONAL LA LIBERTAD | F14: =VLOOKUP(C14,'Anexo_GR '!$C$9:$E$34,3,FALSE) -> 1486745.674 | H14: =VLOOKUP(C14,'Anexo_GR '!$C$9:$I$34,4,FALSE) -> 1636621.63 | I14: =VLOOKUP(C14,'Anexo_GR '!$C$9:$I$34,5,FALSE) -> 168697.9254 | L14: =VLOOKUP(C14,'Anexo_GR '!$C$9:$I$34,6,FALSE) -> 90.84235763 | N14: =VLOOKUP(C14,'Anexo_GR '!$C$9:$I$34,7,FALSE) -> Cumple | P14: =VLOOKUP(C14,'Anexo_GR '!$C$9:$N$34,9,FALSE) -> 1350136.319 | Q14: =VLOOKUP(C14,'Anexo_GR '!$C$9:$N$34,10,FALSE) -> 1197412.218 | R14: =VLOOKUP(C14,'Anexo_GR '!$C$9:$N$34,11,FALSE) -> 152724.1007 | S14: =VLOOKUP(C14,'Anexo_GR '!$C$9:$N$34,12,FALSE) -> Cumple
A15: 140000 : GOBIERNO REGIONAL DE LAMBAYEQUE | B15: 14 | C15: 140000 | D15: LAMBAYEQUE | E15: GOBIERNO REGIONAL LAMBAYEQUE | F15: =VLOOKUP(C15,'Anexo_GR '!$C$9:$E$34,3,FALSE) -> 635119.4502 | H15: =VLOOKUP(C15,'Anexo_GR '!$C$9:$I$34,4,FALSE) -> 966302.4973 | I15: =VLOOKUP(C15,'Anexo_GR '!$C$9:$I$34,5,FALSE) -> 8.48685 | L15: =VLOOKUP(C15,'Anexo_GR '!$C$9:$I$34,6,FALSE) -> 65.72677313 | N15: =VLOOKUP(C15,'Anexo_GR '!$C$9:$I$34,7,FALSE) -> Cumple | P15: =VLOOKUP(C15,'Anexo_GR '!$C$9:$N$34,9,FALSE) -> 764109.7103 | Q15: =VLOOKUP(C15,'Anexo_GR '!$C$9:$N$34,10,FALSE) -> 728810.2543 | R15: =VLOOKUP(C15,'Anexo_GR '!$C$9:$N$34,11,FALSE) -> 35299.45603 | S15: =VLOOKUP(C15,'Anexo_GR '!$C$9:$N$34,12,FALSE) -> Cumple
A16: 150000 : GOBIERNO REGIONAL DE LIMA | B16: 15 | C16: 150000 | D16: LIMA | E16: GOBIERNO REGIONAL LIMA | F16: =VLOOKUP(C16,'Anexo_GR '!$C$9:$E$34,3,FALSE) -> 165112.7534 | H16: =VLOOKUP(C16,'Anexo_GR '!$C$9:$I$34,4,FALSE) -> 1059933.777 | I16: =VLOOKUP(C16,'Anexo_GR '!$C$9:$I$34,5,FALSE) -> 160029.9418 | L16: =VLOOKUP(C16,'Anexo_GR '!$C$9:$I$34,6,FALSE) -> 15.57764805 | N16: =VLOOKUP(C16,'Anexo_GR '!$C$9:$I$34,7,FALSE) -> Cumple | P16: =VLOOKUP(C16,'Anexo_GR '!$C$9:$N$34,9,FALSE) -> 808000.1004 | Q16: =VLOOKUP(C16,'Anexo_GR '!$C$9:$N$34,10,FALSE) -> 761523.2176 | R16: =VLOOKUP(C16,'Anexo_GR '!$C$9:$N$34,11,FALSE) -> 46476.88283 | S16: =VLOOKUP(C16,'Anexo_GR '!$C$9:$N$34,12,FALSE) -> Cumple
A17: 160000 : GOBIERNO REGIONAL DE LORETO | B17: 16 | C17: 160000 | D17: LORETO | E17: GOBIERNO REGIONAL LORETO | F17: =VLOOKUP(C17,'Anexo_GR '!$C$9:$E$34,3,FALSE) -> 547364.6087 | H17: =VLOOKUP(C17,'Anexo_GR '!$C$9:$I$34,4,FALSE) -> 1375994.387 | I17: =VLOOKUP(C17,'Anexo_GR '!$C$9:$I$34,5,FALSE) -> 126394.0461 | L17: =VLOOKUP(C17,'Anexo_GR '!$C$9:$I$34,6,FALSE) -> 39.77956695 | N17: =VLOOKUP(C17,'Anexo_GR '!$C$9:$I$34,7,FALSE) -> Cumple | P17: =VLOOKUP(C17,'Anexo_GR '!$C$9:$N$34,9,FALSE) -> 1286602.339 | Q17: =VLOOKUP(C17,'Anexo_GR '!$C$9:$N$34,10,FALSE) -> 1101461.554 | R17: =VLOOKUP(C17,'Anexo_GR '!$C$9:$N$34,11,FALSE) -> 185140.7851 | S17: =VLOOKUP(C17,'Anexo_GR '!$C$9:$N$34,12,FALSE) -> Cumple
A18: 170000 : GOBIERNO REGIONAL DE MADRE DE DIOS | B18: 17 | C18: 170000 | D18: MADRE DE DIOS | E18: GOBIERNO REGIONAL MADRE DE DIOS | F18: =VLOOKUP(C18,'Anexo_GR '!$C$9:$E$34,3,FALSE) -> 116074.9833 | H18: =VLOOKUP(C18,'Anexo_GR '!$C$9:$I$34,4,FALSE) -> 218456.7926 | I18: =VLOOKUP(C18,'Anexo_GR '!$C$9:$I$34,5,FALSE) -> 693.60523 | L18: =VLOOKUP(C18,'Anexo_GR '!$C$9:$I$34,6,FALSE) -> 53.13406921 | N18: =VLOOKUP(C18,'Anexo_GR '!$C$9:$I$34,7,FALSE) -> Cumple | P18: =VLOOKUP(C18,'Anexo_GR '!$C$9:$N$34,9,FALSE) -> 177654.0454 | Q18: =VLOOKUP(C18,'Anexo_GR '!$C$9:$N$34,10,FALSE) -> 168076.1022 | R18: =VLOOKUP(C18,'Anexo_GR '!$C$9:$N$34,11,FALSE) -> 9577.94323 | S18: =VLOOKUP(C18,'Anexo_GR '!$C$9:$N$34,12,FALSE) -> Cumple
A19: 180000 : GOBIERNO REGIONAL DE MOQUEGUA | B19: 18 | C19: 180000 | D19: MOQUEGUA | E19: GOBIERNO REGIONAL MOQUEGUA | F19: =VLOOKUP(C19,'Anexo_GR '!$C$9:$E$34,3,FALSE) -> 452045.7992 | H19: =VLOOKUP(C19,'Anexo_GR '!$C$9:$I$34,4,FALSE) -> 320844.4715 | I19: =VLOOKUP(C19,'Anexo_GR '!$C$9:$I$34,5,FALSE) -> 101432.0401 | L19: =VLOOKUP(C19,'Anexo_GR '!$C$9:$I$34,6,FALSE) -> 140.8925007 | N19: =VLOOKUP(C19,'Anexo_GR '!$C$9:$I$34,7,FALSE) -> No Cumple | P19: =VLOOKUP(C19,'Anexo_GR '!$C$9:$N$34,9,FALSE) -> 272697.1013 | Q19: =VLOOKUP(C19,'Anexo_GR '!$C$9:$N$34,10,FALSE) -> 229171.5269 | R19: =VLOOKUP(C19,'Anexo_GR '!$C$9:$N$34,11,FALSE) -> 43525.57444 | S19: =VLOOKUP(C19,'Anexo_GR '!$C$9:$N$34,12,FALSE) -> Cumple
A20: 190000 : GOBIERNO REGIONAL DE PASCO | B20: 19 | C20: 190000 | D20: PASCO | E20: GOBIERNO REGIONAL PASCO | F20: =VLOOKUP(C20,'Anexo_GR '!$C$9:$E$34,3,FALSE) -> 328098.2816 | H20: =VLOOKUP(C20,'Anexo_GR '!$C$9:$I$34,4,FALSE) -> 382835.922 | I20: =VLOOKUP(C20,'Anexo_GR '!$C$9:$I$34,5,FALSE) -> 52919.46352 | L20: =VLOOKUP(C20,'Anexo_GR '!$C$9:$I$34,6,FALSE) -> 85.70206262 | N20: =VLOOKUP(C20,'Anexo_GR '!$C$9:$I$34,7,FALSE) -> Cumple | P20: =VLOOKUP(C20,'Anexo_GR '!$C$9:$N$34,9,FALSE) -> 293771.9477 | Q20: =VLOOKUP(C20,'Anexo_GR '!$C$9:$N$34,10,FALSE) -> 278394.7791 | R20: =VLOOKUP(C20,'Anexo_GR '!$C$9:$N$34,11,FALSE) -> 15377.16863 | S20: =VLOOKUP(C20,'Anexo_GR '!$C$9:$N$34,12,FALSE) -> Cumple
A21: 200000 : GOBIERNO REGIONAL DE PIURA | B21: 20 | C21: 200000 | D21: PIURA | E21: GOBIERNO REGIONAL PIURA | F21: =VLOOKUP(C21,'Anexo_GR '!$C$9:$E$34,3,FALSE) -> 1818097.608 | H21: =VLOOKUP(C21,'Anexo_GR '!$C$9:$I$34,4,FALSE) -> 1582430.994 | I21: =VLOOKUP(C21,'Anexo_GR '!$C$9:$I$34,5,FALSE) -> 230531.5838 | L21: =VLOOKUP(C21,'Anexo_GR '!$C$9:$I$34,6,FALSE) -> 114.8926945 | N21: =VLOOKUP(C21,'Anexo_GR '!$C$9:$I$34,7,FALSE) -> No Cumple | P21: =VLOOKUP(C21,'Anexo_GR '!$C$9:$N$34,9,FALSE) -> 1273818.189 | Q21: =VLOOKUP(C21,'Anexo_GR '!$C$9:$N$34,10,FALSE) -> 1179836.58 | R21: =VLOOKUP(C21,'Anexo_GR '!$C$9:$N$34,11,FALSE) -> 93981.6087 | S21: =VLOOKUP(C21,'Anexo_GR '!$C$9:$N$34,12,FALSE) -> Cumple
A22: 210000 : GOBIERNO REGIONAL DE PUNO | B22: 21 | C22: 210000 | D22: PUNO | E22: GOBIERNO REGIONAL PUNO | F22: =VLOOKUP(C22,'Anexo_GR '!$C$9:$E$34,3,FALSE) -> 1605672.373 | H22: =VLOOKUP(C22,'Anexo_GR '!$C$9:$I$34,4,FALSE) -> 1409809.711 | I22: =VLOOKUP(C22,'Anexo_GR '!$C$9:$I$34,5,FALSE) -> 66996.53091 | L22: =VLOOKUP(C22,'Anexo_GR '!$C$9:$I$34,6,FALSE) -> 113.8928438 | N22: =VLOOKUP(C22,'Anexo_GR '!$C$9:$I$34,7,FALSE) -> No Cumple | P22: =VLOOKUP(C22,'Anexo_GR '!$C$9:$N$34,9,FALSE) -> 1125489.227 | Q22: =VLOOKUP(C22,'Anexo_GR '!$C$9:$N$34,10,FALSE) -> 1085074.064 | R22: =VLOOKUP(C22,'Anexo_GR '!$C$9:$N$34,11,FALSE) -> 40415.16214 | S22: =VLOOKUP(C22,'Anexo_GR '!$C$9:$N$34,12,FALSE) -> Cumple
A23: 220000 : GOBIERNO REGIONAL DE SAN MARTIN | B23: 22 | C23: 220000 | D23: SAN MARTIN | E23: GOBIERNO REGIONAL SAN MARTIN | F23: =VLOOKUP(C23,'Anexo_GR '!$C$9:$E$34,3,FALSE) -> 545683.5752 | H23: =VLOOKUP(C23,'Anexo_GR '!$C$9:$I$34,4,FALSE) -> 980259.2487 | I23: =VLOOKUP(C23,'Anexo_GR '!$C$9:$I$34,5,FALSE) -> 1249.76851 | L23: =VLOOKUP(C23,'Anexo_GR '!$C$9:$I$34,6,FALSE) -> 55.66727128 | N23: =VLOOKUP(C23,'Anexo_GR '!$C$9:$I$34,7,FALSE) -> Cumple | P23: =VLOOKUP(C23,'Anexo_GR '!$C$9:$N$34,9,FALSE) -> 822745.4073 | Q23: =VLOOKUP(C23,'Anexo_GR '!$C$9:$N$34,10,FALSE) -> 754874.331 | R23: =VLOOKUP(C23,'Anexo_GR '!$C$9:$N$34,11,FALSE) -> 67871.07632 | S23: =VLOOKUP(C23,'Anexo_GR '!$C$9:$N$34,12,FALSE) -> Cumple
A24: 230000 : GOBIERNO REGIONAL DE TACNA | B24: 23 | C24: 230000 | D24: TACNA | E24: GOBIERNO REGIONAL TACNA | F24: =VLOOKUP(C24,'Anexo_GR '!$C$9:$E$34,3,FALSE) -> 372826.0846 | H24: =VLOOKUP(C24,'Anexo_GR '!$C$9:$I$34,4,FALSE) -> 449229.3108 | I24: =VLOOKUP(C24,'Anexo_GR '!$C$9:$I$34,5,FALSE) -> 101443.2034 | L24: =VLOOKUP(C24,'Anexo_GR '!$C$9:$I$34,6,FALSE) -> 82.99237732 | N24: =VLOOKUP(C24,'Anexo_GR '!$C$9:$I$34,7,FALSE) -> Cumple | P24: =VLOOKUP(C24,'Anexo_GR '!$C$9:$N$34,9,FALSE) -> 380278.788 | Q24: =VLOOKUP(C24,'Anexo_GR '!$C$9:$N$34,10,FALSE) -> 320533.4977 | R24: =VLOOKUP(C24,'Anexo_GR '!$C$9:$N$34,11,FALSE) -> 59745.2903 | S24: =VLOOKUP(C24,'Anexo_GR '!$C$9:$N$34,12,FALSE) -> Cumple
A25: 240000 : GOBIERNO REGIONAL DE TUMBES | B25: 24 | C25: 240000 | D25: TUMBES | E25: GOBIERNO REGIONAL TUMBES | F25: =VLOOKUP(C25,'Anexo_GR '!$C$9:$E$34,3,FALSE) -> 187419.0246 | H25: =VLOOKUP(C25,'Anexo_GR '!$C$9:$I$34,4,FALSE) -> 381403.0097 | I25: =VLOOKUP(C25,'Anexo_GR '!$C$9:$I$34,5,FALSE) -> 84428.61776 | L25: =VLOOKUP(C25,'Anexo_GR '!$C$9:$I$34,6,FALSE) -> 49.13936698 | N25: =VLOOKUP(C25,'Anexo_GR '!$C$9:$I$34,7,FALSE) -> Cumple | P25: =VLOOKUP(C25,'Anexo_GR '!$C$9:$N$34,9,FALSE) -> 291923.3505 | Q25: =VLOOKUP(C25,'Anexo_GR '!$C$9:$N$34,10,FALSE) -> 267213.8292 | R25: =VLOOKUP(C25,'Anexo_GR '!$C$9:$N$34,11,FALSE) -> 24709.52137 | S25: =VLOOKUP(C25,'Anexo_GR '!$C$9:$N$34,12,FALSE) -> Cumple
A26: 250000 : GOBIERNO REGIONAL DE UCAYALI | B26: 25 | C26: 250000 | D26: UCAYALI | E26: GOBIERNO REGIONAL UCAYALI | F26: =VLOOKUP(C26,'Anexo_GR '!$C$9:$E$34,3,FALSE) -> 338766.2541 | H26: =VLOOKUP(C26,'Anexo_GR '!$C$9:$I$34,4,FALSE) -> 597691.9837 | I26: =VLOOKUP(C26,'Anexo_GR '!$C$9:$I$34,5,FALSE) -> 67540.57868 | L26: =VLOOKUP(C26,'Anexo_GR '!$C$9:$I$34,6,FALSE) -> 56.67906938 | N26: =VLOOKUP(C26,'Anexo_GR '!$C$9:$I$34,7,FALSE) -> Cumple | P26: =VLOOKUP(C26,'Anexo_GR '!$C$9:$N$34,9,FALSE) -> 518637.958 | Q26: =VLOOKUP(C26,'Anexo_GR '!$C$9:$N$34,10,FALSE) -> 489357.47 | R26: =VLOOKUP(C26,'Anexo_GR '!$C$9:$N$34,11,FALSE) -> 29280.48805 | S26: =VLOOKUP(C26,'Anexo_GR '!$C$9:$N$34,12,FALSE) -> Cumple
A27: 260000 : REGION LIMA METROPOLITANA | B27: 26 | C27: 260000 | D27: MM LIMA | E27: REGION LIMA METROPOLITANA | F27: =VLOOKUP(C27,'Anexo_GR '!$C$9:$E$34,3,FALSE) -> 3460.33747 | H27: =VLOOKUP(C27,'Anexo_GR '!$C$9:$I$34,4,FALSE) -> 23081.38916 | I27: =VLOOKUP(C27,'Anexo_GR '!$C$9:$I$34,5,FALSE) -> 9108.2166 | L27: =VLOOKUP(C27,'Anexo_GR '!$C$9:$I$34,6,FALSE) -> 14.99189432 | N27: =VLOOKUP(C27,'Anexo_GR '!$C$9:$I$34,7,FALSE) -> Cumple | P27: =VLOOKUP(C27,'Anexo_GR '!$C$9:$N$34,9,FALSE) -> 16848.44646 | Q27: =VLOOKUP(C27,'Anexo_GR '!$C$9:$N$34,10,FALSE) -> 13590.4402 | R27: =VLOOKUP(C27,'Anexo_GR '!$C$9:$N$34,11,FALSE) -> 3258.00626 | S27: =VLOOKUP(C27,'Anexo_GR '!$C$9:$N$34,12,FALSE) -> Cumple
A28: 010101 : MP DE CHACHAPOYAS | B28: 1 | C28: 010101 | D28: AMAZONAS | E28: MP DE CHACHAPOYAS | F28: =VLOOKUP(C28,'Anexo_GL '!$B$9:$N$1882,4,FALSE) -> 8881.07804 | H28: =VLOOKUP(C28,'Anexo_GL '!$B$9:$N$1882,5,FALSE) -> 14315.91974 | I28: =VLOOKUP(C28,'Anexo_GL '!$B$9:$N$1882,6,FALSE) -> 0.92616 | L28: =VLOOKUP(C28,'Anexo_GL '!$B$9:$N$1882,7,FALSE) -> 62.03637771 | N28: =VLOOKUP(C28,'Anexo_GL '!$B$9:$N$1882,8,FALSE) -> Cumple | P28: =VLOOKUP(C28,'Anexo_GL '!$B$9:$N$1882,10,FALSE) -> 10679.94795 | Q28: =VLOOKUP(C28,'Anexo_GL '!$B$9:$N$1882,11,FALSE) -> 8578.79803 | R28: =VLOOKUP(C28,'Anexo_GL '!$B$9:$N$1882,12,FALSE) -> 2101.14992 | S28: =VLOOKUP(C28,'Anexo_GL '!$B$9:$N$1882,13,FALSE) -> Cumple
A29: 010102 : MD DE ASUNCION | B29: 2 | C29: 010102 | D29: AMAZONAS | E29: MD DE ASUNCION | F29: =VLOOKUP(C29,'Anexo_GL '!$B$9:$N$1882,4,FALSE) -> 859.67131 | H29: =VLOOKUP(C29,'Anexo_GL '!$B$9:$N$1882,5,FALSE) -> 755.750665 | I29: =VLOOKUP(C29,'Anexo_GL '!$B$9:$N$1882,6,FALSE) -> 0.00021 | L29: =VLOOKUP(C29,'Anexo_GL '!$B$9:$N$1882,7,FALSE) -> 113.7506521 | N29: =VLOOKUP(C29,'Anexo_GL '!$B$9:$N$1882,8,FALSE) -> No Cumple | P29: =VLOOKUP(C29,'Anexo_GL '!$B$9:$N$1882,10,FALSE) -> 552.01666 | Q29: =VLOOKUP(C29,'Anexo_GL '!$B$9:$N$1882,11,FALSE) -> 373.84662 | R29: =VLOOKUP(C29,'Anexo_GL '!$B$9:$N$1882,12,FALSE) -> 178.17004 | S29: =VLOOKUP(C29,'Anexo_GL '!$B$9:$N$1882,13,FALSE) -> Cumple
A30: 010103 : MD DE BALSAS | B30: 3 | C30: 010103 | D30: AMAZONAS | E30: MD DE BALSAS | F30: =VLOOKUP(C30,'Anexo_GL '!$B$9:$N$1882,4,FALSE) -> 10.80835 | H30: =VLOOKUP(C30,'Anexo_GL '!$B$9:$N$1882,5,FALSE) -> 663.6127575 | I30: =VLOOKUP(C30,'Anexo_GL '!$B$9:$N$1882,6,FALSE) -> 0.01755 | L30: =VLOOKUP(C30,'Anexo_GL '!$B$9:$N$1882,7,FALSE) -> 1.628713414 | N30: =VLOOKUP(C30,'Anexo_GL '!$B$9:$N$1882,8,FALSE) -> Cumple | P30: =VLOOKUP(C30,'Anexo_GL '!$B$9:$N$1882,10,FALSE) -> 460.53888 | Q30: =VLOOKUP(C30,'Anexo_GL '!$B$9:$N$1882,11,FALSE) -> 262.83054 | R30: =VLOOKUP(C30,'Anexo_GL '!$B$9:$N$1882,12,FALSE) -> 197.70834 | S30: =VLOOKUP(C30,'Anexo_GL '!$B$9:$N$1882,13,FALSE) -> Cumple
A31: 010104 : MD DE CHETO | B31: 4 | C31: 010104 | D31: AMAZONAS | E31: MD DE CHETO | F31: =VLOOKUP(C31,'Anexo_GL '!$B$9:$N$1882,4,FALSE) -> 20.87745 | H31: =VLOOKUP(C31,'Anexo_GL '!$B$9:$N$1882,5,FALSE) -> 491.7585075 | I31: =VLOOKUP(C31,'Anexo_GL '!$B$9:$N$1882,6,FALSE) -> 0.00038 | L31: =VLOOKUP(C31,'Anexo_GL '!$B$9:$N$1882,7,FALSE) -> 4.245467985 | N31: =VLOOKUP(C31,'Anexo_GL '!$B$9:$N$1882,8,FALSE) -> Cumple | P31: =VLOOKUP(C31,'Anexo_GL '!$B$9:$N$1882,10,FALSE) -> 443.51555 | Q31: =VLOOKUP(C31,'Anexo_GL '!$B$9:$N$1882,11,FALSE) -> 316.30755 | R31: =VLOOKUP(C31,'Anexo_GL '!$B$9:$N$1882,12,FALSE) -> 127.208 | S31: =VLOOKUP(C31,'Anexo_GL '!$B$9:$N$1882,13,FALSE) -> Cumple
A32: 010105 : MD DE CHILIQUIN | B32: 5 | C32: 010105 | D32: AMAZONAS | E32: MD DE CHILIQUIN | F32: =VLOOKUP(C32,'Anexo_GL '!$B$9:$N$1882,4,FALSE) -> 71.36902 | H32: =VLOOKUP(C32,'Anexo_GL '!$B$9:$N$1882,5,FALSE) -> 832.0691925 | I32: =VLOOKUP(C32,'Anexo_GL '!$B$9:$N$1882,6,FALSE) -> 0.00042 | L32: =VLOOKUP(C32,'Anexo_GL '!$B$9:$N$1882,7,FALSE) -> 8.577293889 | N32: =VLOOKUP(C32,'Anexo_GL '!$B$9:$N$1882,8,FALSE) -> Cumple | P32: =VLOOKUP(C32,'Anexo_GL '!$B$9:$N$1882,10,FALSE) -> 452.9465 | Q32: =VLOOKUP(C32,'Anexo_GL '!$B$9:$N$1882,11,FALSE) -> 307.56418 | R32: =VLOOKUP(C32,'Anexo_GL '!$B$9:$N$1882,12,FALSE) -> 145.38232 | S32: =VLOOKUP(C32,'Anexo_GL '!$B$9:$N$1882,13,FALSE) -> Cumple
A33: 010106 : MD DE CHUQUIBAMBA | B33: 6 | C33: 010106 | D33: AMAZONAS | E33: MD DE CHUQUIBAMBA | F33: =VLOOKUP(C33,'Anexo_GL '!$B$9:$N$1882,4,FALSE) -> 117.41751 | H33: =VLOOKUP(C33,'Anexo_GL '!$B$9:$N$1882,5,FALSE) -> 644.362495 | I33: =VLOOKUP(C33,'Anexo_GL '!$B$9:$N$1882,6,FALSE) -> 0.00077 | L33: =VLOOKUP(C33,'Anexo_GL '!$B$9:$N$1882,7,FALSE) -> 18.22227565 | N33: =VLOOKUP(C33,'Anexo_GL '!$B$9:$N$1882,8,FALSE) -> Cumple | P33: =VLOOKUP(C33,'Anexo_GL '!$B$9:$N$1882,10,FALSE) -> 495.86216 | Q33: =VLOOKUP(C33,'Anexo_GL '!$B$9:$N$1882,11,FALSE) -> 309.94677 | R33: =VLOOKUP(C33,'Anexo_GL '!$B$9:$N$1882,12,FALSE) -> 185.91539 | S33: =VLOOKUP(C33,'Anexo_GL '!$B$9:$N$1882,13,FALSE) -> Cumple
A34: 010107 : MD DE GRANADA | B34: 7 | C34: 010107 | D34: AMAZONAS | E34: MD DE GRANADA | F34: =VLOOKUP(C34,'Anexo_GL '!$B$9:$N$1882,4,FALSE) -> 195.81798 | H34: =VLOOKUP(C34,'Anexo_GL '!$B$9:$N$1882,5,FALSE) -> 581.79072 | I34: =VLOOKUP(C34,'Anexo_GL '!$B$9:$N$1882,6,FALSE) -> 0.00024 | L34: =VLOOKUP(C34,'Anexo_GL '!$B$9:$N$1882,7,FALSE) -> 33.65780396 | N34: =VLOOKUP(C34,'Anexo_GL '!$B$9:$N$1882,8,FALSE) -> Cumple | P34: =VLOOKUP(C34,'Anexo_GL '!$B$9:$N$1882,10,FALSE) -> 440.72981 | Q34: =VLOOKUP(C34,'Anexo_GL '!$B$9:$N$1882,11,FALSE) -> 290.79839 | R34: =VLOOKUP(C34,'Anexo_GL '!$B$9:$N$1882,12,FALSE) -> 149.93142 | S34: =VLOOKUP(C34,'Anexo_GL '!$B$9:$N$1882,13,FALSE) -> Cumple
A35: 010108 : MD DE HUANCAS | B35: 8 | C35: 010108 | D35: AMAZONAS | E35: MD DE HUANCAS | F35: =VLOOKUP(C35,'Anexo_GL '!$B$9:$N$1882,4,FALSE) -> 115.20023 | H35: =VLOOKUP(C35,'Anexo_GL '!$B$9:$N$1882,5,FALSE) -> 749.589145 | I35: =VLOOKUP(C35,'Anexo_GL '!$B$9:$N$1882,6,FALSE) -> 0.0009 | L35: =VLOOKUP(C35,'Anexo_GL '!$B$9:$N$1882,7,FALSE) -> 15.36844961 | N35: =VLOOKUP(C35,'Anexo_GL '!$B$9:$N$1882,8,FALSE) -> Cumple | P35: =VLOOKUP(C35,'Anexo_GL '!$B$9:$N$1882,10,FALSE) -> 546.83198 | Q35: =VLOOKUP(C35,'Anexo_GL '!$B$9:$N$1882,11,FALSE) -> 406.84704 | R35: =VLOOKUP(C35,'Anexo_GL '!$B$9:$N$1882,12,FALSE) -> 139.98494 | S35: =VLOOKUP(C35,'Anexo_GL '!$B$9:$N$1882,13,FALSE) -> Cumple
A36: 010109 : MD DE JALCA GRANDE | B36: 9 | C36: 010109 | D36: AMAZONAS | E36: MD DE JALCA GRANDE | F36: =VLOOKUP(C36,'Anexo_GL '!$B$9:$N$1882,4,FALSE) -> 221.65152 | H36: =VLOOKUP(C36,'Anexo_GL '!$B$9:$N$1882,5,FALSE) -> 1252.685532 | I36: =VLOOKUP(C36,'Anexo_GL '!$B$9:$N$1882,6,FALSE) -> 0.97539 | L36: =VLOOKUP(C36,'Anexo_GL '!$B$9:$N$1882,7,FALSE) -> 17.69410712 | N36: =VLOOKUP(C36,'Anexo_GL '!$B$9:$N$1882,8,FALSE) -> Cumple | P36: =VLOOKUP(C36,'Anexo_GL '!$B$9:$N$1882,10,FALSE) -> 860.5932 | Q36: =VLOOKUP(C36,'Anexo_GL '!$B$9:$N$1882,11,FALSE) -> 484.50039 | R36: =VLOOKUP(C36,'Anexo_GL '!$B$9:$N$1882,12,FALSE) -> 376.09281 | S36: =VLOOKUP(C36,'Anexo_GL '!$B$9:$N$1882,13,FALSE) -> Cumple
A37: 010110 : MD DE LEIMEBAMBA | B37: 10 | C37: 010110 | D37: AMAZONAS | E37: MD DE LEIMEBAMBA | F37: =VLOOKUP(C37,'Anexo_GL '!$B$9:$N$1882,4,FALSE) -> 123.44224 | H37: =VLOOKUP(C37,'Anexo_GL '!$B$9:$N$1882,5,FALSE) -> 950.98154 | I37: =VLOOKUP(C37,'Anexo_GL '!$B$9:$N$1882,6,FALSE) -> 0.00114 | L37: =VLOOKUP(C37,'Anexo_GL '!$B$9:$N$1882,7,FALSE) -> 12.98050854 | N37: =VLOOKUP(C37,'Anexo_GL '!$B$9:$N$1882,8,FALSE) -> Cumple | P37: =VLOOKUP(C37,'Anexo_GL '!$B$9:$N$1882,10,FALSE) -> 622.86797 | Q37: =VLOOKUP(C37,'Anexo_GL '!$B$9:$N$1882,11,FALSE) -> 489.74553 | R37: =VLOOKUP(C37,'Anexo_GL '!$B$9:$N$1882,12,FALSE) -> 133.12244 | S37: =VLOOKUP(C37,'Anexo_GL '!$B$9:$N$1882,13,FALSE) -> Cumple
A38: 010111 : MD DE LEVANTO | B38: 11 | C38: 010111 | D38: AMAZONAS | E38: MD DE LEVANTO | F38: =VLOOKUP(C38,'Anexo_GL '!$B$9:$N$1882,4,FALSE) -> 24.45803 | H38: =VLOOKUP(C38,'Anexo_GL '!$B$9:$N$1882,5,FALSE) -> 628.910165 | I38: =VLOOKUP(C38,'Anexo_GL '!$B$9:$N$1882,6,FALSE) -> 0.00058 | L38: =VLOOKUP(C38,'Anexo_GL '!$B$9:$N$1882,7,FALSE) -> 3.888954474 | N38: =VLOOKUP(C38,'Anexo_GL '!$B$9:$N$1882,8,FALSE) -> Cumple | P38: =VLOOKUP(C38,'Anexo_GL '!$B$9:$N$1882,10,FALSE) -> 446.65879 | Q38: =VLOOKUP(C38,'Anexo_GL '!$B$9:$N$1882,11,FALSE) -> 363.96246 | R38: =VLOOKUP(C38,'Anexo_GL '!$B$9:$N$1882,12,FALSE) -> 82.69633 | S38: =VLOOKUP(C38,'Anexo_GL '!$B$9:$N$1882,13,FALSE) -> Cumple
A39: 010112 : MD DE MAGDALENA | B39: 12 | C39: 010112 | D39: AMAZONAS | E39: MD DE MAGDALENA | F39: =VLOOKUP(C39,'Anexo_GL '!$B$9:$N$1882,4,FALSE) -> 2320.46346 | H39: =VLOOKUP(C39,'Anexo_GL '!$B$9:$N$1882,5,FALSE) -> 692.1768225 | I39: =VLOOKUP(C39,'Anexo_GL '!$B$9:$N$1882,6,FALSE) -> 0.0005 | L39: =VLOOKUP(C39,'Anexo_GL '!$B$9:$N$1882,7,FALSE) -> 335.2414274 | N39: =VLOOKUP(C39,'Anexo_GL '!$B$9:$N$1882,8,FALSE) -> No Cumple | P39: =VLOOKUP(C39,'Anexo_GL '!$B$9:$N$1882,10,FALSE) -> 450.6138 | Q39: =VLOOKUP(C39,'Anexo_GL '!$B$9:$N$1882,11,FALSE) -> 292.42146 | R39: =VLOOKUP(C39,'Anexo_GL '!$B$9:$N$1882,12,FALSE) -> 158.19234 | S39: =VLOOKUP(C39,'Anexo_GL '!$B$9:$N$1882,13,FALSE) -> Cumple
A40: 010113 : MD DE MARISCAL CASTILLA | B40: 13 | C40: 010113 | D40: AMAZONAS | E40: MD DE MARISCAL CASTILLA | F40: =VLOOKUP(C40,'Anexo_GL '!$B$9:$N$1882,4,FALSE) -> 17.11081 | H40: =VLOOKUP(C40,'Anexo_GL '!$B$9:$N$1882,5,FALSE) -> 594.098455 | I40: =VLOOKUP(C40,'Anexo_GL '!$B$9:$N$1882,6,FALSE) -> 0.00026 | L40: =VLOOKUP(C40,'Anexo_GL '!$B$9:$N$1882,7,FALSE) -> 2.880130365 | N40: =VLOOKUP(C40,'Anexo_GL '!$B$9:$N$1882,8,FALSE) -> Cumple | P40: =VLOOKUP(C40,'Anexo_GL '!$B$9:$N$1882,10,FALSE) -> 442.65948 | Q40: =VLOOKUP(C40,'Anexo_GL '!$B$9:$N$1882,11,FALSE) -> 301.31416 | R40: =VLOOKUP(C40,'Anexo_GL '!$B$9:$N$1882,12,FALSE) -> 141.34532 | S40: =VLOOKUP(C40,'Anexo_GL '!$B$9:$N$1882,13,FALSE) -> Cumple
A41: 010114 : MD DE MOLINOPAMPA | B41: 14 | C41: 010114 | D41: AMAZONAS | E41: MD DE MOLINOPAMPA | F41: =VLOOKUP(C41,'Anexo_GL '!$B$9:$N$1882,4,FALSE) -> 33.80678 | H41: =VLOOKUP(C41,'Anexo_GL '!$B$9:$N$1882,5,FALSE) -> 1018.67929 | I41: =VLOOKUP(C41,'Anexo_GL '!$B$9:$N$1882,6,FALSE) -> 0.00127 | L41: =VLOOKUP(C41,'Anexo_GL '!$B$9:$N$1882,7,FALSE) -> 3.318687278 | N41: =VLOOKUP(C41,'Anexo_GL '!$B$9:$N$1882,8,FALSE) -> Cumple | P41: =VLOOKUP(C41,'Anexo_GL '!$B$9:$N$1882,10,FALSE) -> 690.65025 | Q41: =VLOOKUP(C41,'Anexo_GL '!$B$9:$N$1882,11,FALSE) -> 512.78209 | R41: =VLOOKUP(C41,'Anexo_GL '!$B$9:$N$1882,12,FALSE) -> 177.86816 | S41: =VLOOKUP(C41,'Anexo_GL '!$B$9:$N$1882,13,FALSE) -> Cumple
A42: 010115 : MD DE MONTEVIDEO | B42: 15 | C42: 010115 | D42: AMAZONAS | E42: MD DE MONTEVIDEO | F42: =VLOOKUP(C42,'Anexo_GL '!$B$9:$N$1882,4,FALSE) -> 37.56068 | H42: =VLOOKUP(C42,'Anexo_GL '!$B$9:$N$1882,5,FALSE) -> 543.45308 | I42: =VLOOKUP(C42,'Anexo_GL '!$B$9:$N$1882,6,FALSE) -> 0.00037 | L42: =VLOOKUP(C42,'Anexo_GL '!$B$9:$N$1882,7,FALSE) -> 6.911485348 | N42: =VLOOKUP(C42,'Anexo_GL '!$B$9:$N$1882,8,FALSE) -> Cumple | P42: =VLOOKUP(C42,'Anexo_GL '!$B$9:$N$1882,10,FALSE) -> 326.00834 | Q42: =VLOOKUP(C42,'Anexo_GL '!$B$9:$N$1882,11,FALSE) -> 322.40126 | R42: =VLOOKUP(C42,'Anexo_GL '!$B$9:$N$1882,12,FALSE) -> 3.60708 | S42: =VLOOKUP(C42,'Anexo_GL '!$B$9:$N$1882,13,FALSE) -> Cumple
A43: 010116 : MD DE OLLEROS | B43: 16 | C43: 010116 | D43: AMAZONAS | E43: MD DE OLLEROS | F43: =VLOOKUP(C43,'Anexo_GL '!$B$9:$N$1882,4,FALSE) -> 90.73567 | H43: =VLOOKUP(C43,'Anexo_GL '!$B$9:$N$1882,5,FALSE) -> 534.8442675 | I43: =VLOOKUP(C43,'Anexo_GL '!$B$9:$N$1882,6,FALSE) -> 0.00024 | L43: =VLOOKUP(C43,'Anexo_GL '!$B$9:$N$1882,7,FALSE) -> 16.9648766 | N43: =VLOOKUP(C43,'Anexo_GL '!$B$9:$N$1882,8,FALSE) -> Cumple | P43: =VLOOKUP(C43,'Anexo_GL '!$B$9:$N$1882,10,FALSE) -> 327.9094 | Q43: =VLOOKUP(C43,'Anexo_GL '!$B$9:$N$1882,11,FALSE) -> 234.09196 | R43: =VLOOKUP(C43,'Anexo_GL '!$B$9:$N$1882,12,FALSE) -> 93.81744 | S43: =VLOOKUP(C43,'Anexo_GL '!$B$9:$N$1882,13,FALSE) -> Cumple
A44: 010117 : MD DE QUINJALCA | B44: 17 | C44: 010117 | D44: AMAZONAS | E44: MD DE QUINJALCA | F44: =VLOOKUP(C44,'Anexo_GL '!$B$9:$N$1882,4,FALSE) -> 434.46328 | H44: =VLOOKUP(C44,'Anexo_GL '!$B$9:$N$1882,5,FALSE) -> 588.252265 | I44: =VLOOKUP(C44,'Anexo_GL '!$B$9:$N$1882,6,FALSE) -> 0.00045 | L44: =VLOOKUP(C44,'Anexo_GL '!$B$9:$N$1882,7,FALSE) -> 73.8566268 | N44: =VLOOKUP(C44,'Anexo_GL '!$B$9:$N$1882,8,FALSE) -> Cumple | P44: =VLOOKUP(C44,'Anexo_GL '!$B$9:$N$1882,10,FALSE) -> 447.0509 | Q44: =VLOOKUP(C44,'Anexo_GL '!$B$9:$N$1882,11,FALSE) -> 281.79862 | R44: =VLOOKUP(C44,'Anexo_GL '!$B$9:$N$1882,12,FALSE) -> 165.25228 | S44: =VLOOKUP(C44,'Anexo_GL '!$B$9:$N$1882,13,FALSE) -> Cumple
A45: 010118 : MD DE SAN FRANCISCO DE DAGUAS | B45: 18 | C45: 010118 | D45: AMAZONAS | E45: MD DE SAN FRANCISCO DE DAGUAS | F45: =VLOOKUP(C45,'Anexo_GL '!$B$9:$N$1882,4,FALSE) -> 107.22236 | H45: =VLOOKUP(C45,'Anexo_GL '!$B$9:$N$1882,5,FALSE) -> 582.5899225 | I45: =VLOOKUP(C45,'Anexo_GL '!$B$9:$N$1882,6,FALSE) -> 0.00023 | L45: =VLOOKUP(C45,'Anexo_GL '!$B$9:$N$1882,7,FALSE) -> 18.40443095 | N45: =VLOOKUP(C45,'Anexo_GL '!$B$9:$N$1882,8,FALSE) -> Cumple | P45: =VLOOKUP(C45,'Anexo_GL '!$B$9:$N$1882,10,FALSE) -> 485.83504 | Q45: =VLOOKUP(C45,'Anexo_GL '!$B$9:$N$1882,11,FALSE) -> 271.17655 | R45: =VLOOKUP(C45,'Anexo_GL '!$B$9:$N$1882,12,FALSE) -> 214.65849 | S45: =VLOOKUP(C45,'Anexo_GL '!$B$9:$N$1882,13,FALSE) -> Cumple
A46: 010119 : MD DE SAN ISIDRO DE MAYNO | B46: 19 | C46: 010119 | D46: AMAZONAS | E46: MD DE SAN ISIDRO DE MAYNO | F46: =VLOOKUP(C46,'Anexo_GL '!$B$9:$N$1882,4,FALSE) -> 412.99927 | H46: =VLOOKUP(C46,'Anexo_GL '!$B$9:$N$1882,5,FALSE) -> 692.44479 | I46: =VLOOKUP(C46,'Anexo_GL '!$B$9:$N$1882,6,FALSE) -> 0.00045 | L46: =VLOOKUP(C46,'Anexo_GL '!$B$9:$N$1882,7,FALSE) -> 59.64363888 | N46: =VLOOKUP(C46,'Anexo_GL '!$B$9:$N$1882,8,FALSE) -> Cumple | P46: =VLOOKUP(C46,'Anexo_GL '!$B$9:$N$1882,10,FALSE) -> 444.41139 | Q46: =VLOOKUP(C46,'Anexo_GL '!$B$9:$N$1882,11,FALSE) -> 273.9179 | R46: =VLOOKUP(C46,'Anexo_GL '!$B$9:$N$1882,12,FALSE) -> 170.49349 | S46: =VLOOKUP(C46,'Anexo_GL '!$B$9:$N$1882,13,FALSE) -> Cumple
A47: 010120 : MD DE SOLOCO | B47: 20 | C47: 010120 | D47: AMAZONAS | E47: MD DE SOLOCO | F47: =VLOOKUP(C47,'Anexo_GL '!$B$9:$N$1882,4,FALSE) -> 1048.0936 | H47: =VLOOKUP(C47,'Anexo_GL '!$B$9:$N$1882,5,FALSE) -> 1093.116985 | I47: =VLOOKUP(C47,'Anexo_GL '!$B$9:$N$1882,6,FALSE) -> 0.00044 | L47: =VLOOKUP(C47,'Anexo_GL '!$B$9:$N$1882,7,FALSE) -> 95.88119244 | N47: =VLOOKUP(C47,'Anexo_GL '!$B$9:$N$1882,8,FALSE) -> Cumple | P47: =VLOOKUP(C47,'Anexo_GL '!$B$9:$N$1882,10,FALSE) -> 1330.42071 | Q47: =VLOOKUP(C47,'Anexo_GL '!$B$9:$N$1882,11,FALSE) -> 394.43447 | R47: =VLOOKUP(C47,'Anexo_GL '!$B$9:$N$1882,12,FALSE) -> 935.98624 | S47: =VLOOKUP(C47,'Anexo_GL '!$B$9:$N$1882,13,FALSE) -> Cumple
A48: 010121 : MD DE SONCHE | B48: 21 | C48: 010121 | D48: AMAZONAS | E48: MD DE SONCHE | F48: =VLOOKUP(C48,'Anexo_GL '!$B$9:$N$1882,4,FALSE) -> 35.97191 | H48: =VLOOKUP(C48,'Anexo_GL '!$B$9:$N$1882,5,FALSE) -> 493.4427325 | I48: =VLOOKUP(C48,'Anexo_GL '!$B$9:$N$1882,6,FALSE) -> 0.00013 | L48: =VLOOKUP(C48,'Anexo_GL '!$B$9:$N$1882,7,FALSE) -> 7.289986787 | N48: =VLOOKUP(C48,'Anexo_GL '!$B$9:$N$1882,8,FALSE) -> Cumple | P48: =VLOOKUP(C48,'Anexo_GL '!$B$9:$N$1882,10,FALSE) -> 426.30894 | Q48: =VLOOKUP(C48,'Anexo_GL '!$B$9:$N$1882,11,FALSE) -> 317.37527 | R48: =VLOOKUP(C48,'Anexo_GL '!$B$9:$N$1882,12,FALSE) -> 108.93367 | S48: =VLOOKUP(C48,'Anexo_GL '!$B$9:$N$1882,13,FALSE) -> Cumple
A49: 010201 : MP DE BAGUA - LA PECA | B49: 22 | C49: 010201 | D49: AMAZONAS | E49: MP DE BAGUA - LA PECA | F49: =VLOOKUP(C49,'Anexo_GL '!$B$9:$N$1882,4,FALSE) -> 1514.10172 | H49: =VLOOKUP(C49,'Anexo_GL '!$B$9:$N$1882,5,FALSE) -> 12553.17458 | I49: =VLOOKUP(C49,'Anexo_GL '!$B$9:$N$1882,6,FALSE) -> 0.79812 | L49: =VLOOKUP(C49,'Anexo_GL '!$B$9:$N$1882,7,FALSE) -> 12.06150452 | N49: =VLOOKUP(C49,'Anexo_GL '!$B$9:$N$1882,8,FALSE) -> Cumple | P49: =VLOOKUP(C49,'Anexo_GL '!$B$9:$N$1882,10,FALSE) -> 9516.29639 | Q49: =VLOOKUP(C49,'Anexo_GL '!$B$9:$N$1882,11,FALSE) -> 7751.74562 | R49: =VLOOKUP(C49,'Anexo_GL '!$B$9:$N$1882,12,FALSE) -> 1764.55077 | S49: =VLOOKUP(C49,'Anexo_GL '!$B$9:$N$1882,13,FALSE) -> Cumple
A50: 010202 : MD DE ARAMANGO | B50: 23 | C50: 010202 | D50: AMAZONAS | E50: MD DE ARAMANGO | F50: =VLOOKUP(C50,'Anexo_GL '!$B$9:$N$1882,4,FALSE) -> 212.08149 | H50: =VLOOKUP(C50,'Anexo_GL '!$B$9:$N$1882,5,FALSE) -> 3812.628195 | I50: =VLOOKUP(C50,'Anexo_GL '!$B$9:$N$1882,6,FALSE) -> 1.10488 | L50: =VLOOKUP(C50,'Anexo_GL '!$B$9:$N$1882,7,FALSE) -> 5.562606138 | N50: =VLOOKUP(C50,'Anexo_GL '!$B$9:$N$1882,8,FALSE) -> Cumple | P50: =VLOOKUP(C50,'Anexo_GL '!$B$9:$N$1882,10,FALSE) -> 2618.2741 | Q50: =VLOOKUP(C50,'Anexo_GL '!$B$9:$N$1882,11,FALSE) -> 1696.30876 | R50: =VLOOKUP(C50,'Anexo_GL '!$B$9:$N$1882,12,FALSE) -> 921.96534 | S50: =VLOOKUP(C50,'Anexo_GL '!$B$9:$N$1882,13,FALSE) -> Cumple
A51: 010203 : MD DE COPALLIN | B51: 24 | C51: 010203 | D51: AMAZONAS | E51: MD DE COPALLIN | F51: =VLOOKUP(C51,'Anexo_GL '!$B$9:$N$1882,4,FALSE) -> 529.92719 | H51: =VLOOKUP(C51,'Anexo_GL '!$B$9:$N$1882,5,FALSE) -> 2227.309395 | I51: =VLOOKUP(C51,'Anexo_GL '!$B$9:$N$1882,6,FALSE) -> 0.00045 | L51: =VLOOKUP(C51,'Anexo_GL '!$B$9:$N$1882,7,FALSE) -> 23.79225765 | N51: =VLOOKUP(C51,'Anexo_GL '!$B$9:$N$1882,8,FALSE) -> Cumple | P51: =VLOOKUP(C51,'Anexo_GL '!$B$9:$N$1882,10,FALSE) -> 1048.22987 | Q51: =VLOOKUP(C51,'Anexo_GL '!$B$9:$N$1882,11,FALSE) -> 1168.13926 | R51: =VLOOKUP(C51,'Anexo_GL '!$B$9:$N$1882,12,FALSE) -> -119.90939 | S51: =VLOOKUP(C51,'Anexo_GL '!$B$9:$N$1882,13,FALSE) -> No Cumple
A52: 010204 : MD DE EL PARCO | B52: 25 | C52: 010204 | D52: AMAZONAS | E52: MD DE EL PARCO | F52: =VLOOKUP(C52,'Anexo_GL '!$B$9:$N$1882,4,FALSE) -> 244.96628 | H52: =VLOOKUP(C52,'Anexo_GL '!$B$9:$N$1882,5,FALSE) -> 1987.799118 | I52: =VLOOKUP(C52,'Anexo_GL '!$B$9:$N$1882,6,FALSE) -> 0.00013 | L52: =VLOOKUP(C52,'Anexo_GL '!$B$9:$N$1882,7,FALSE) -> 12.32349274 | N52: =VLOOKUP(C52,'Anexo_GL '!$B$9:$N$1882,8,FALSE) -> Cumple | P52: =VLOOKUP(C52,'Anexo_GL '!$B$9:$N$1882,10,FALSE) -> 432.16593 | Q52: =VLOOKUP(C52,'Anexo_GL '!$B$9:$N$1882,11,FALSE) -> 411.85978 | R52: =VLOOKUP(C52,'Anexo_GL '!$B$9:$N$1882,12,FALSE) -> 20.30615 | S52: =VLOOKUP(C52,'Anexo_GL '!$B$9:$N$1882,13,FALSE) -> Cumple
A53: 010205 : MD DE IMAZA | B53: 26 | C53: 010205 | D53: AMAZONAS | E53: MD DE IMAZA | F53: =VLOOKUP(C53,'Anexo_GL '!$B$9:$N$1882,4,FALSE) -> 7138.9296 | H53: =VLOOKUP(C53,'Anexo_GL '!$B$9:$N$1882,5,FALSE) -> 8701.580585 | I53: =VLOOKUP(C53,'Anexo_GL '!$B$9:$N$1882,6,FALSE) -> 2.19136 | L53: =VLOOKUP(C53,'Anexo_GL '!$B$9:$N$1882,7,FALSE) -> 82.04175701 | N53: =VLOOKUP(C53,'Anexo_GL '!$B$9:$N$1882,8,FALSE) -> Cumple | P53: =VLOOKUP(C53,'Anexo_GL '!$B$9:$N$1882,10,FALSE) -> 6944.76865 | Q53: =VLOOKUP(C53,'Anexo_GL '!$B$9:$N$1882,11,FALSE) -> 5357.82524 | R53: =VLOOKUP(C53,'Anexo_GL '!$B$9:$N$1882,12,FALSE) -> 1586.94341 | S53: =VLOOKUP(C53,'Anexo_GL '!$B$9:$N$1882,13,FALSE) -> Cumple
A54: 010206 : MD DE LA PECA | B54: 27 | C54: 010206 | D54: AMAZONAS | E54: MD DE LA PECA | F54: =VLOOKUP(C54,'Anexo_GL '!$B$9:$N$1882,4,FALSE) -> 150.67404 | H54: =VLOOKUP(C54,'Anexo_GL '!$B$9:$N$1882,5,FALSE) -> 2259.188523 | I54: =VLOOKUP(C54,'Anexo_GL '!$B$9:$N$1882,6,FALSE) -> 0.0007 | L54: =VLOOKUP(C54,'Anexo_GL '!$B$9:$N$1882,7,FALSE) -> 6.669387636 | N54: =VLOOKUP(C54,'Anexo_GL '!$B$9:$N$1882,8,FALSE) -> Cumple | P54: =VLOOKUP(C54,'Anexo_GL '!$B$9:$N$1882,10,FALSE) -> 1756.56303 | Q54: =VLOOKUP(C54,'Anexo_GL '!$B$9:$N$1882,11,FALSE) -> 1104.55611 | R54: =VLOOKUP(C54,'Anexo_GL '!$B$9:$N$1882,12,FALSE) -> 652.00692 | S54: =VLOOKUP(C54,'Anexo_GL '!$B$9:$N$1882,13,FALSE) -> Cumple
A55: 010301 : MP DE BONGARA - JUMBILLA | B55: 28 | C55: 010301 | D55: AMAZONAS | E55: MP DE BONGARA - JUMBILLA | F55: =VLOOKUP(C55,'Anexo_GL '!$B$9:$N$1882,4,FALSE) -> 1986.03827 | H55: =VLOOKUP(C55,'Anexo_GL '!$B$9:$N$1882,5,FALSE) -> 3307.338563 | I55: =VLOOKUP(C55,'Anexo_GL '!$B$9:$N$1882,6,FALSE) -> 0.00019 | L55: =VLOOKUP(C55,'Anexo_GL '!$B$9:$N$1882,7,FALSE) -> 60.04943953 | N55: =VLOOKUP(C55,'Anexo_GL '!$B$9:$N$1882,8,FALSE) -> Cumple | P55: =VLOOKUP(C55,'Anexo_GL '!$B$9:$N$1882,10,FALSE) -> 2227.79539 | Q55: =VLOOKUP(C55,'Anexo_GL '!$B$9:$N$1882,11,FALSE) -> 1341.40866 | R55: =VLOOKUP(C55,'Anexo_GL '!$B$9:$N$1882,12,FALSE) -> 886.38673 | S55: =VLOOKUP(C55,'Anexo_GL '!$B$9:$N$1882,13,FALSE) -> Cumple
A56: 010302 : MD DE CHISQUILLA | B56: 29 | C56: 010302 | D56: AMAZONAS | E56: MD DE CHISQUILLA | F56: =VLOOKUP(C56,'Anexo_GL '!$B$9:$N$1882,4,FALSE) -> 552.84823 | H56: =VLOOKUP(C56,'Anexo_GL '!$B$9:$N$1882,5,FALSE) -> 999.51835 | I56: =VLOOKUP(C56,'Anexo_GL '!$B$9:$N$1882,6,FALSE) -> 1e-06 | L56: =VLOOKUP(C56,'Anexo_GL '!$B$9:$N$1882,7,FALSE) -> 55.31146377 | N56: =VLOOKUP(C56,'Anexo_GL '!$B$9:$N$1882,8,FALSE) -> Cumple | P56: =VLOOKUP(C56,'Anexo_GL '!$B$9:$N$1882,10,FALSE) -> 337.11877 | Q56: =VLOOKUP(C56,'Anexo_GL '!$B$9:$N$1882,11,FALSE) -> 297.61982 | R56: =VLOOKUP(C56,'Anexo_GL '!$B$9:$N$1882,12,FALSE) -> 39.49895 | S56: =VLOOKUP(C56,'Anexo_GL '!$B$9:$N$1882,13,FALSE) -> Cumple
A57: 010303 : MD DE CHURUJA | B57: 30 | C57: 010303 | D57: AMAZONAS | E57: MD DE CHURUJA | F57: =VLOOKUP(C57,'Anexo_GL '!$B$9:$N$1882,4,FALSE) -> 10.49957 | H57: =VLOOKUP(C57,'Anexo_GL '!$B$9:$N$1882,5,FALSE) -> 381.3571775 | I57: =VLOOKUP(C57,'Anexo_GL '!$B$9:$N$1882,6,FALSE) -> 1e-06 | L57: =VLOOKUP(C57,'Anexo_GL '!$B$9:$N$1882,7,FALSE) -> 2.753211587 | N57: =VLOOKUP(C57,'Anexo_GL '!$B$9:$N$1882,8,FALSE) -> Cumple | P57: =VLOOKUP(C57,'Anexo_GL '!$B$9:$N$1882,10,FALSE) -> 325.6734 | Q57: =VLOOKUP(C57,'Anexo_GL '!$B$9:$N$1882,11,FALSE) -> 263.51253 | R57: =VLOOKUP(C57,'Anexo_GL '!$B$9:$N$1882,12,FALSE) -> 62.16087 | S57: =VLOOKUP(C57,'Anexo_GL '!$B$9:$N$1882,13,FALSE) -> Cumple
A58: 010304 : MD DE COROSHA | B58: 31 | C58: 010304 | D58: AMAZONAS | E58: MD DE COROSHA | F58: =VLOOKUP(C58,'Anexo_GL '!$B$9:$N$1882,4,FALSE) -> 44.79162 | H58: =VLOOKUP(C58,'Anexo_GL '!$B$9:$N$1882,5,FALSE) -> 522.390735 | I58: =VLOOKUP(C58,'Anexo_GL '!$B$9:$N$1882,6,FALSE) -> 0.00011 | L58: =VLOOKUP(C58,'Anexo_GL '!$B$9:$N$1882,7,FALSE) -> 8.574351917 | N58: =VLOOKUP(C58,'Anexo_GL '!$B$9:$N$1882,8,FALSE) -> Cumple | P58: =VLOOKUP(C58,'Anexo_GL '!$B$9:$N$1882,10,FALSE) -> 430.47914 | Q58: =VLOOKUP(C58,'Anexo_GL '!$B$9:$N$1882,11,FALSE) -> 395.92353 | R58: =VLOOKUP(C58,'Anexo_GL '!$B$9:$N$1882,12,FALSE) -> 34.55561 | S58: =VLOOKUP(C58,'Anexo_GL '!$B$9:$N$1882,13,FALSE) -> Cumple
A59: 010305 : MD DE CUISPES | B59: 32 | C59: 010305 | D59: AMAZONAS | E59: MD DE CUISPES | F59: =VLOOKUP(C59,'Anexo_GL '!$B$9:$N$1882,4,FALSE) -> 77.52623 | H59: =VLOOKUP(C59,'Anexo_GL '!$B$9:$N$1882,5,FALSE) -> 508.8186575 | I59: =VLOOKUP(C59,'Anexo_GL '!$B$9:$N$1882,6,FALSE) -> 7e-05 | L59: =VLOOKUP(C59,'Anexo_GL '!$B$9:$N$1882,7,FALSE) -> 15.23651479 | N59: =VLOOKUP(C59,'Anexo_GL '!$B$9:$N$1882,8,FALSE) -> Cumple | P59: =VLOOKUP(C59,'Anexo_GL '!$B$9:$N$1882,10,FALSE) -> 281.17572 | Q59: =VLOOKUP(C59,'Anexo_GL '!$B$9:$N$1882,11,FALSE) -> 271.97868 | R59: =VLOOKUP(C59,'Anexo_GL '!$B$9:$N$1882,12,FALSE) -> 9.19704 | S59: =VLOOKUP(C59,'Anexo_GL '!$B$9:$N$1882,13,FALSE) -> Cumple
A60: 010306 : MD DE FLORIDA | B60: 33 | C60: 010306 | D60: AMAZONAS | E60: MD DE FLORIDA | F60: =VLOOKUP(C60,'Anexo_GL '!$B$9:$N$1882,4,FALSE) -> 123.55597 | H60: =VLOOKUP(C60,'Anexo_GL '!$B$9:$N$1882,5,FALSE) -> 1961.93016 | I60: =VLOOKUP(C60,'Anexo_GL '!$B$9:$N$1882,6,FALSE) -> 0.00068 | L60: =VLOOKUP(C60,'Anexo_GL '!$B$9:$N$1882,7,FALSE) -> 6.297674225 | N60: =VLOOKUP(C60,'Anexo_GL '!$B$9:$N$1882,8,FALSE) -> Cumple | P60: =VLOOKUP(C60,'Anexo_GL '!$B$9:$N$1882,10,FALSE) -> 1799.71947 | Q60: =VLOOKUP(C60,'Anexo_GL '!$B$9:$N$1882,11,FALSE) -> 957.70189 | R60: =VLOOKUP(C60,'Anexo_GL '!$B$9:$N$1882,12,FALSE) -> 842.01758 | S60: =VLOOKUP(C60,'Anexo_GL '!$B$9:$N$1882,13,FALSE) -> Cumple
A61: 010307 : MD DE JAZAN | B61: 34 | C61: 010307 | D61: AMAZONAS | E61: MD DE JAZAN | F61: =VLOOKUP(C61,'Anexo_GL '!$B$9:$N$1882,4,FALSE) -> 1350.22379 | H61: =VLOOKUP(C61,'Anexo_GL '!$B$9:$N$1882,5,FALSE) -> 3133.435577 | I61: =VLOOKUP(C61,'Anexo_GL '!$B$9:$N$1882,6,FALSE) -> 0.00038 | L61: =VLOOKUP(C61,'Anexo_GL '!$B$9:$N$1882,7,FALSE) -> 43.09084251 | N61: =VLOOKUP(C61,'Anexo_GL '!$B$9:$N$1882,8,FALSE) -> Cumple | P61: =VLOOKUP(C61,'Anexo_GL '!$B$9:$N$1882,10,FALSE) -> 4425.23624 | Q61: =VLOOKUP(C61,'Anexo_GL '!$B$9:$N$1882,11,FALSE) -> 1492.2153 | R61: =VLOOKUP(C61,'Anexo_GL '!$B$9:$N$1882,12,FALSE) -> 2933.02094 | S61: =VLOOKUP(C61,'Anexo_GL '!$B$9:$N$1882,13,FALSE) -> Cumple
A62: 010308 : MD DE RECTA | B62: 35 | C62: 010308 | D62: AMAZONAS | E62: MD DE RECTA | F62: =VLOOKUP(C62,'Anexo_GL '!$B$9:$N$1882,4,FALSE) -> 20.57613 | H62: =VLOOKUP(C62,'Anexo_GL '!$B$9:$N$1882,5,FALSE) -> 440.2698675 | I62: =VLOOKUP(C62,'Anexo_GL '!$B$9:$N$1882,6,FALSE) -> 1e-06 | L62: =VLOOKUP(C62,'Anexo_GL '!$B$9:$N$1882,7,FALSE) -> 4.673526743 | N62: =VLOOKUP(C62,'Anexo_GL '!$B$9:$N$1882,8,FALSE) -> Cumple | P62: =VLOOKUP(C62,'Anexo_GL '!$B$9:$N$1882,10,FALSE) -> 328.84402 | Q62: =VLOOKUP(C62,'Anexo_GL '!$B$9:$N$1882,11,FALSE) -> 377.18707 | R62: =VLOOKUP(C62,'Anexo_GL '!$B$9:$N$1882,12,FALSE) -> -48.34305 | S62: =VLOOKUP(C62,'Anexo_GL '!$B$9:$N$1882,13,FALSE) -> No Cumple
A63: 010309 : MD DE SAN CARLOS | B63: 36 | C63: 010309 | D63: AMAZONAS | E63: MD DE SAN CARLOS | F63: =VLOOKUP(C63,'Anexo_GL '!$B$9:$N$1882,4,FALSE) -> 72.14967 | H63: =VLOOKUP(C63,'Anexo_GL '!$B$9:$N$1882,5,FALSE) -> 503.8025625 | I63: =VLOOKUP(C63,'Anexo_GL '!$B$9:$N$1882,6,FALSE) -> 1e-06 | L63: =VLOOKUP(C63,'Anexo_GL '!$B$9:$N$1882,7,FALSE) -> 14.32102085 | N63: =VLOOKUP(C63,'Anexo_GL '!$B$9:$N$1882,8,FALSE) -> Cumple | P63: =VLOOKUP(C63,'Anexo_GL '!$B$9:$N$1882,10,FALSE) -> 342.83132 | Q63: =VLOOKUP(C63,'Anexo_GL '!$B$9:$N$1882,11,FALSE) -> 263.99149 | R63: =VLOOKUP(C63,'Anexo_GL '!$B$9:$N$1882,12,FALSE) -> 78.83983 | S63: =VLOOKUP(C63,'Anexo_GL '!$B$9:$N$1882,13,FALSE) -> Cumple
A64: 010310 : MD DE SHIPASBAMBA | B64: 37 | C64: 010310 | D64: AMAZONAS | E64: MD DE SHIPASBAMBA | F64: =VLOOKUP(C64,'Anexo_GL '!$B$9:$N$1882,4,FALSE) -> 20.91121 | H64: =VLOOKUP(C64,'Anexo_GL '!$B$9:$N$1882,5,FALSE) -> 786.65287 | I64: =VLOOKUP(C64,'Anexo_GL '!$B$9:$N$1882,6,FALSE) -> 0.00019 | L64: =VLOOKUP(C64,'Anexo_GL '!$B$9:$N$1882,7,FALSE) -> 2.658251282 | N64: =VLOOKUP(C64,'Anexo_GL '!$B$9:$N$1882,8,FALSE) -> Cumple | P64: =VLOOKUP(C64,'Anexo_GL '!$B$9:$N$1882,10,FALSE) -> 669.5591 | Q64: =VLOOKUP(C64,'Anexo_GL '!$B$9:$N$1882,11,FALSE) -> 303.79654 | R64: =VLOOKUP(C64,'Anexo_GL '!$B$9:$N$1882,12,FALSE) -> 365.76256 | S64: =VLOOKUP(C64,'Anexo_GL '!$B$9:$N$1882,13,FALSE) -> Cumple
A65: 010311 : MD DE VALERA | B65: 38 | C65: 010311 | D65: AMAZONAS | E65: MD DE VALERA | F65: =VLOOKUP(C65,'Anexo_GL '!$B$9:$N$1882,4,FALSE) -> 20.58923 | H65: =VLOOKUP(C65,'Anexo_GL '!$B$9:$N$1882,5,FALSE) -> 574.327885 | I65: =VLOOKUP(C65,'Anexo_GL '!$B$9:$N$1882,6,FALSE) -> 0.00013 | L65: =VLOOKUP(C65,'Anexo_GL '!$B$9:$N$1882,7,FALSE) -> 3.584926057 | N65: =VLOOKUP(C65,'Anexo_GL '!$B$9:$N$1882,8,FALSE) -> Cumple | P65: =VLOOKUP(C65,'Anexo_GL '!$B$9:$N$1882,10,FALSE) -> 373.76701 | Q65: =VLOOKUP(C65,'Anexo_GL '!$B$9:$N$1882,11,FALSE) -> 261.83559 | R65: =VLOOKUP(C65,'Anexo_GL '!$B$9:$N$1882,12,FALSE) -> 111.93142 | S65: =VLOOKUP(C65,'Anexo_GL '!$B$9:$N$1882,13,FALSE) -> Cumple
A66: 010312 : MD DE YAMBRASBAMBA | B66: 39 | C66: 010312 | D66: AMAZONAS | E66: MD DE YAMBRASBAMBA | F66: =VLOOKUP(C66,'Anexo_GL '!$B$9:$N$1882,4,FALSE) -> 416.43816 | H66: =VLOOKUP(C66,'Anexo_GL '!$B$9:$N$1882,5,FALSE) -> 2733.309845 | I66: =VLOOKUP(C66,'Anexo_GL '!$B$9:$N$1882,6,FALSE) -> 0.00081 | L66: =VLOOKUP(C66,'Anexo_GL '!$B$9:$N$1882,7,FALSE) -> 15.23567336 | N66: =VLOOKUP(C66,'Anexo_GL '!$B$9:$N$1882,8,FALSE) -> Cumple | P66: =VLOOKUP(C66,'Anexo_GL '!$B$9:$N$1882,10,FALSE) -> 2418.00046 | Q66: =VLOOKUP(C66,'Anexo_GL '!$B$9:$N$1882,11,FALSE) -> 955.76047 | R66: =VLOOKUP(C66,'Anexo_GL '!$B$9:$N$1882,12,FALSE) -> 1462.23999 | S66: =VLOOKUP(C66,'Anexo_GL '!$B$9:$N$1882,13,FALSE) -> Cumple
A67: 010401 : MP DE CONDORCANQUI - NIEVA | B67: 40 | C67: 010401 | D67: AMAZONAS | E67: MP DE CONDORCANQUI - NIEVA | F67: =VLOOKUP(C67,'Anexo_GL '!$B$9:$N$1882,4,FALSE) -> 1464.78294 | H67: =VLOOKUP(C67,'Anexo_GL '!$B$9:$N$1882,5,FALSE) -> 17590.59288 | I67: =VLOOKUP(C67,'Anexo_GL '!$B$9:$N$1882,6,FALSE) -> 2.38386 | L67: =VLOOKUP(C67,'Anexo_GL '!$B$9:$N$1882,7,FALSE) -> 8.327081126 | N67: =VLOOKUP(C67,'Anexo_GL '!$B$9:$N$1882,8,FALSE) -> Cumple | P67: =VLOOKUP(C67,'Anexo_GL '!$B$9:$N$1882,10,FALSE) -> 13466.55757 | Q67: =VLOOKUP(C67,'Anexo_GL '!$B$9:$N$1882,11,FALSE) -> 8502.51017 | R67: =VLOOKUP(C67,'Anexo_GL '!$B$9:$N$1882,12,FALSE) -> 4964.0474 | S67: =VLOOKUP(C67,'Anexo_GL '!$B$9:$N$1882,13,FALSE) -> Cumple
A68: 010402 : MD DE EL CENEPA | B68: 41 | C68: 010402 | D68: AMAZONAS | E68: MD DE EL CENEPA | F68: =VLOOKUP(C68,'Anexo_GL '!$B$9:$N$1882,4,FALSE) -> 57.01015 | H68: =VLOOKUP(C68,'Anexo_GL '!$B$9:$N$1882,5,FALSE) -> 3997.212705 | I68: =VLOOKUP(C68,'Anexo_GL '!$B$9:$N$1882,6,FALSE) -> 0.60395 | L68: =VLOOKUP(C68,'Anexo_GL '!$B$9:$N$1882,7,FALSE) -> 1.426247593 | N68: =VLOOKUP(C68,'Anexo_GL '!$B$9:$N$1882,8,FALSE) -> Cumple | P68: =VLOOKUP(C68,'Anexo_GL '!$B$9:$N$1882,10,FALSE) -> 2404.00139 | Q68: =VLOOKUP(C68,'Anexo_GL '!$B$9:$N$1882,11,FALSE) -> 2005.32921 | R68: =VLOOKUP(C68,'Anexo_GL '!$B$9:$N$1882,12,FALSE) -> 398.67218 | S68: =VLOOKUP(C68,'Anexo_GL '!$B$9:$N$1882,13,FALSE) -> Cumple
A69: 010403 : MD DE RIO SANTIAGO | B69: 42 | C69: 010403 | D69: AMAZONAS | E69: MD DE RIO SANTIAGO | F69: =VLOOKUP(C69,'Anexo_GL '!$B$9:$N$1882,4,FALSE) -> 2289.64735 | H69: =VLOOKUP(C69,'Anexo_GL '!$B$9:$N$1882,5,FALSE) -> 7175.544233 | I69: =VLOOKUP(C69,'Anexo_GL '!$B$9:$N$1882,6,FALSE) -> 1.03372 | L69: =VLOOKUP(C69,'Anexo_GL '!$B$9:$N$1882,7,FALSE) -> 31.90904098 | N69: =VLOOKUP(C69,'Anexo_GL '!$B$9:$N$1882,8,FALSE) -> Cumple | P69: =VLOOKUP(C69,'Anexo_GL '!$B$9:$N$1882,10,FALSE) -> 4886.49324 | Q69: =VLOOKUP(C69,'Anexo_GL '!$B$9:$N$1882,11,FALSE) -> 4013.27009 | R69: =VLOOKUP(C69,'Anexo_GL '!$B$9:$N$1882,12,FALSE) -> 873.22315 | S69: =VLOOKUP(C69,'Anexo_GL '!$B$9:$N$1882,13,FALSE) -> Cumple
A70: 010501 : MP DE LUYA - LAMUD | B70: 43 | C70: 010501 | D70: AMAZONAS | E70: MP DE LUYA - LAMUD | F70: =VLOOKUP(C70,'Anexo_GL '!$B$9:$N$1882,4,FALSE) -> 1516.9484 | H70: =VLOOKUP(C70,'Anexo_GL '!$B$9:$N$1882,5,FALSE) -> 5681.985727 | I70: =VLOOKUP(C70,'Anexo_GL '!$B$9:$N$1882,6,FALSE) -> 0.00013 | L70: =VLOOKUP(C70,'Anexo_GL '!$B$9:$N$1882,7,FALSE) -> 26.69750458 | N70: =VLOOKUP(C70,'Anexo_GL '!$B$9:$N$1882,8,FALSE) -> Cumple | P70: =VLOOKUP(C70,'Anexo_GL '!$B$9:$N$1882,10,FALSE) -> 3956.5345 | Q70: =VLOOKUP(C70,'Anexo_GL '!$B$9:$N$1882,11,FALSE) -> 2334.15058 | R70: =VLOOKUP(C70,'Anexo_GL '!$B$9:$N$1882,12,FALSE) -> 1622.38392 | S70: =VLOOKUP(C70,'Anexo_GL '!$B$9:$N$1882,13,FALSE) -> Cumple
A71: 010502 : MD DE CAMPORREDONDO | B71: 44 | C71: 010502 | D71: AMAZONAS | E71: MD DE CAMPORREDONDO | F71: =VLOOKUP(C71,'Anexo_GL '!$B$9:$N$1882,4,FALSE) -> 184.33435 | H71: =VLOOKUP(C71,'Anexo_GL '!$B$9:$N$1882,5,FALSE) -> 2025.90321 | I71: =VLOOKUP(C71,'Anexo_GL '!$B$9:$N$1882,6,FALSE) -> 0.0007 | L71: =VLOOKUP(C71,'Anexo_GL '!$B$9:$N$1882,7,FALSE) -> 9.098872497 | N71: =VLOOKUP(C71,'Anexo_GL '!$B$9:$N$1882,8,FALSE) -> Cumple | P71: =VLOOKUP(C71,'Anexo_GL '!$B$9:$N$1882,10,FALSE) -> 1396.02273 | Q71: =VLOOKUP(C71,'Anexo_GL '!$B$9:$N$1882,11,FALSE) -> 786.87913 | R71: =VLOOKUP(C71,'Anexo_GL '!$B$9:$N$1882,12,FALSE) -> 609.1436 | S71: =VLOOKUP(C71,'Anexo_GL '!$B$9:$N$1882,13,FALSE) -> Cumple
A72: 010503 : MD DE COCABAMBA | B72: 45 | C72: 010503 | D72: AMAZONAS | E72: MD DE COCABAMBA | F72: =VLOOKUP(C72,'Anexo_GL '!$B$9:$N$1882,4,FALSE) -> 1691.76161 | H72: =VLOOKUP(C72,'Anexo_GL '!$B$9:$N$1882,5,FALSE) -> 977.5951175 | I72: =VLOOKUP(C72,'Anexo_GL '!$B$9:$N$1882,6,FALSE) -> 0.00024 | L72: =VLOOKUP(C72,'Anexo_GL '!$B$9:$N$1882,7,FALSE) -> 173.0534021 | N72: =VLOOKUP(C72,'Anexo_GL '!$B$9:$N$1882,8,FALSE) -> No Cumple | P72: =VLOOKUP(C72,'Anexo_GL '!$B$9:$N$1882,10,FALSE) -> 755.35814 | Q72: =VLOOKUP(C72,'Anexo_GL '!$B$9:$N$1882,11,FALSE) -> 433.54548 | R72: =VLOOKUP(C72,'Anexo_GL '!$B$9:$N$1882,12,FALSE) -> 321.81266 | S72: =VLOOKUP(C72,'Anexo_GL '!$B$9:$N$1882,13,FALSE) -> Cumple
A73: 010504 : MD DE COLCAMAR | B73: 46 | C73: 010504 | D73: AMAZONAS | E73: MD DE COLCAMAR | F73: =VLOOKUP(C73,'Anexo_GL '!$B$9:$N$1882,4,FALSE) -> 351.98645 | H73: =VLOOKUP(C73,'Anexo_GL '!$B$9:$N$1882,5,FALSE) -> 721.052855 | I73: =VLOOKUP(C73,'Anexo_GL '!$B$9:$N$1882,6,FALSE) -> 0.00013 | L73: =VLOOKUP(C73,'Anexo_GL '!$B$9:$N$1882,7,FALSE) -> 48.81562393 | N73: =VLOOKUP(C73,'Anexo_GL '!$B$9:$N$1882,8,FALSE) -> Cumple | P73: =VLOOKUP(C73,'Anexo_GL '!$B$9:$N$1882,10,FALSE) -> 560.13831 | Q73: =VLOOKUP(C73,'Anexo_GL '!$B$9:$N$1882,11,FALSE) -> 439.0967 | R73: =VLOOKUP(C73,'Anexo_GL '!$B$9:$N$1882,12,FALSE) -> 121.04161 | S73: =VLOOKUP(C73,'Anexo_GL '!$B$9:$N$1882,13,FALSE) -> Cumple
A74: 010505 : MD DE CONILA | B74: 47 | C74: 010505 | D74: AMAZONAS | E74: MD DE CONILA | F74: =VLOOKUP(C74,'Anexo_GL '!$B$9:$N$1882,4,FALSE) -> 378.46947 | H74: =VLOOKUP(C74,'Anexo_GL '!$B$9:$N$1882,5,FALSE) -> 777.7720375 | I74: =VLOOKUP(C74,'Anexo_GL '!$B$9:$N$1882,6,FALSE) -> 0.00021 | L74: =VLOOKUP(C74,'Anexo_GL '!$B$9:$N$1882,7,FALSE) -> 48.66071956 | N74: =VLOOKUP(C74,'Anexo_GL '!$B$9:$N$1882,8,FALSE) -> Cumple | P74: =VLOOKUP(C74,'Anexo_GL '!$B$9:$N$1882,10,FALSE) -> 348.2983 | Q74: =VLOOKUP(C74,'Anexo_GL '!$B$9:$N$1882,11,FALSE) -> 319.78935 | R74: =VLOOKUP(C74,'Anexo_GL '!$B$9:$N$1882,12,FALSE) -> 28.50895 | S74: =VLOOKUP(C74,'Anexo_GL '!$B$9:$N$1882,13,FALSE) -> Cumple
A75: 010506 : MD DE INGUILPATA | B75: 48 | C75: 010506 | D75: AMAZONAS | E75: MD DE INGUILPATA | F75: =VLOOKUP(C75,'Anexo_GL '!$B$9:$N$1882,4,FALSE) -> 101.94683 | H75: =VLOOKUP(C75,'Anexo_GL '!$B$9:$N$1882,5,FALSE) -> 580.0500175 | I75: =VLOOKUP(C75,'Anexo_GL '!$B$9:$N$1882,6,FALSE) -> 1e-05 | L75: =VLOOKUP(C75,'Anexo_GL '!$B$9:$N$1882,7,FALSE) -> 17.57552399 | N75: =VLOOKUP(C75,'Anexo_GL '!$B$9:$N$1882,8,FALSE) -> Cumple | P75: =VLOOKUP(C75,'Anexo_GL '!$B$9:$N$1882,10,FALSE) -> 438.87295 | Q75: =VLOOKUP(C75,'Anexo_GL '!$B$9:$N$1882,11,FALSE) -> 326.00959 | R75: =VLOOKUP(C75,'Anexo_GL '!$B$9:$N$1882,12,FALSE) -> 112.86336 | S75: =VLOOKUP(C75,'Anexo_GL '!$B$9:$N$1882,13,FALSE) -> Cumple
A76: 010507 : MD DE LONGUITA | B76: 49 | C76: 010507 | D76: AMAZONAS | E76: MD DE LONGUITA | F76: =VLOOKUP(C76,'Anexo_GL '!$B$9:$N$1882,4,FALSE) -> 25.39889 | H76: =VLOOKUP(C76,'Anexo_GL '!$B$9:$N$1882,5,FALSE) -> 744.3674175 | I76: =VLOOKUP(C76,'Anexo_GL '!$B$9:$N$1882,6,FALSE) -> 0.00013 | L76: =VLOOKUP(C76,'Anexo_GL '!$B$9:$N$1882,7,FALSE) -> 3.412144245 | N76: =VLOOKUP(C76,'Anexo_GL '!$B$9:$N$1882,8,FALSE) -> Cumple | P76: =VLOOKUP(C76,'Anexo_GL '!$B$9:$N$1882,10,FALSE) -> 435.93782 | Q76: =VLOOKUP(C76,'Anexo_GL '!$B$9:$N$1882,11,FALSE) -> 351.87487 | R76: =VLOOKUP(C76,'Anexo_GL '!$B$9:$N$1882,12,FALSE) -> 84.06295 | S76: =VLOOKUP(C76,'Anexo_GL '!$B$9:$N$1882,13,FALSE) -> Cumple
A77: 010508 : MD DE LONYA CHICO | B77: 50 | C77: 010508 | D77: AMAZONAS | E77: MD DE LONYA CHICO | F77: =VLOOKUP(C77,'Anexo_GL '!$B$9:$N$1882,4,FALSE) -> 332.21761 | H77: =VLOOKUP(C77,'Anexo_GL '!$B$9:$N$1882,5,FALSE) -> 713.10272 | I77: =VLOOKUP(C77,'Anexo_GL '!$B$9:$N$1882,6,FALSE) -> 3e-05 | L77: =VLOOKUP(C77,'Anexo_GL '!$B$9:$N$1882,7,FALSE) -> 46.58762345 | N77: =VLOOKUP(C77,'Anexo_GL '!$B$9:$N$1882,8,FALSE) -> Cumple | P77: =VLOOKUP(C77,'Anexo_GL '!$B$9:$N$1882,10,FALSE) -> 556.74704 | Q77: =VLOOKUP(C77,'Anexo_GL '!$B$9:$N$1882,11,FALSE) -> 390.00096 | R77: =VLOOKUP(C77,'Anexo_GL '!$B$9:$N$1882,12,FALSE) -> 166.74608 | S77: =VLOOKUP(C77,'Anexo_GL '!$B$9:$N$1882,13,FALSE) -> Cumple
A78: 010509 : MD DE LUYA | B78: 51 | C78: 010509 | D78: AMAZONAS | E78: MD DE LUYA | F78: =VLOOKUP(C78,'Anexo_GL '!$B$9:$N$1882,4,FALSE) -> 736.03902 | H78: =VLOOKUP(C78,'Anexo_GL '!$B$9:$N$1882,5,FALSE) -> 1255.5532 | I78: =VLOOKUP(C78,'Anexo_GL '!$B$9:$N$1882,6,FALSE) -> 0.00024 | L78: =VLOOKUP(C78,'Anexo_GL '!$B$9:$N$1882,7,FALSE) -> 58.6226868 | N78: =VLOOKUP(C78,'Anexo_GL '!$B$9:$N$1882,8,FALSE) -> Cumple | P78: =VLOOKUP(C78,'Anexo_GL '!$B$9:$N$1882,10,FALSE) -> 1026.06284 | Q78: =VLOOKUP(C78,'Anexo_GL '!$B$9:$N$1882,11,FALSE) -> 562.79341 | R78: =VLOOKUP(C78,'Anexo_GL '!$B$9:$N$1882,12,FALSE) -> 463.26943 | S78: =VLOOKUP(C78,'Anexo_GL '!$B$9:$N$1882,13,FALSE) -> Cumple
A79: 010510 : MD DE LUYA VIEJO | B79: 52 | C79: 010510 | D79: AMAZONAS | E79: MD DE LUYA VIEJO | F79: =VLOOKUP(C79,'Anexo_GL '!$B$9:$N$1882,4,FALSE) -> 77.57959 | H79: =VLOOKUP(C79,'Anexo_GL '!$B$9:$N$1882,5,FALSE) -> 530.05322 | I79: =VLOOKUP(C79,'Anexo_GL '!$B$9:$N$1882,6,FALSE) -> 3e-05 | L79: =VLOOKUP(C79,'Anexo_GL '!$B$9:$N$1882,7,FALSE) -> 14.6361888 | N79: =VLOOKUP(C79,'Anexo_GL '!$B$9:$N$1882,8,FALSE) -> Cumple | P79: =VLOOKUP(C79,'Anexo_GL '!$B$9:$N$1882,10,FALSE) -> 429.7477 | Q79: =VLOOKUP(C79,'Anexo_GL '!$B$9:$N$1882,11,FALSE) -> 293.23742 | R79: =VLOOKUP(C79,'Anexo_GL '!$B$9:$N$1882,12,FALSE) -> 136.51028 | S79: =VLOOKUP(C79,'Anexo_GL '!$B$9:$N$1882,13,FALSE) -> Cumple
A80: 010511 : MD DE MARIA | B80: 53 | C80: 010511 | D80: AMAZONAS | E80: MD DE MARIA | F80: =VLOOKUP(C80,'Anexo_GL '!$B$9:$N$1882,4,FALSE) -> 74.92854 | H80: =VLOOKUP(C80,'Anexo_GL '!$B$9:$N$1882,5,FALSE) -> 784.6671225 | I80: =VLOOKUP(C80,'Anexo_GL '!$B$9:$N$1882,6,FALSE) -> 3e-05 | L80: =VLOOKUP(C80,'Anexo_GL '!$B$9:$N$1882,7,FALSE) -> 9.549086211 | N80: =VLOOKUP(C80,'Anexo_GL '!$B$9:$N$1882,8,FALSE) -> Cumple | P80: =VLOOKUP(C80,'Anexo_GL '!$B$9:$N$1882,10,FALSE) -> 1256.93617 | Q80: =VLOOKUP(C80,'Anexo_GL '!$B$9:$N$1882,11,FALSE) -> 242.10516 | R80: =VLOOKUP(C80,'Anexo_GL '!$B$9:$N$1882,12,FALSE) -> 1014.83101 | S80: =VLOOKUP(C80,'Anexo_GL '!$B$9:$N$1882,13,FALSE) -> Cumple
A81: 010512 : MD DE OCALLI | B81: 54 | C81: 010512 | D81: AMAZONAS | E81: MD DE OCALLI | F81: =VLOOKUP(C81,'Anexo_GL '!$B$9:$N$1882,4,FALSE) -> 121.28211 | H81: =VLOOKUP(C81,'Anexo_GL '!$B$9:$N$1882,5,FALSE) -> 1716.972207 | I81: =VLOOKUP(C81,'Anexo_GL '!$B$9:$N$1882,6,FALSE) -> 0.00044 | L81: =VLOOKUP(C81,'Anexo_GL '!$B$9:$N$1882,7,FALSE) -> 7.063720046 | N81: =VLOOKUP(C81,'Anexo_GL '!$B$9:$N$1882,8,FALSE) -> Cumple | P81: =VLOOKUP(C81,'Anexo_GL '!$B$9:$N$1882,10,FALSE) -> 2112.67908 | Q81: =VLOOKUP(C81,'Anexo_GL '!$B$9:$N$1882,11,FALSE) -> 736.36262 | R81: =VLOOKUP(C81,'Anexo_GL '!$B$9:$N$1882,12,FALSE) -> 1376.31646 | S81: =VLOOKUP(C81,'Anexo_GL '!$B$9:$N$1882,13,FALSE) -> Cumple
A82: 010513 : MD DE OCUMAL | B82: 55 | C82: 010513 | D82: AMAZONAS | E82: MD DE OCUMAL | F82: =VLOOKUP(C82,'Anexo_GL '!$B$9:$N$1882,4,FALSE) -> 742.57562 | H82: =VLOOKUP(C82,'Anexo_GL '!$B$9:$N$1882,5,FALSE) -> 1475.26392 | I82: =VLOOKUP(C82,'Anexo_GL '!$B$9:$N$1882,6,FALSE) -> 0.0004 | L82: =VLOOKUP(C82,'Anexo_GL '!$B$9:$N$1882,7,FALSE) -> 50.33510343 | N82: =VLOOKUP(C82,'Anexo_GL '!$B$9:$N$1882,8,FALSE) -> Cumple | P82: =VLOOKUP(C82,'Anexo_GL '!$B$9:$N$1882,10,FALSE) -> 1123.63328 | Q82: =VLOOKUP(C82,'Anexo_GL '!$B$9:$N$1882,11,FALSE) -> 589.66245 | R82: =VLOOKUP(C82,'Anexo_GL '!$B$9:$N$1882,12,FALSE) -> 533.97083 | S82: =VLOOKUP(C82,'Anexo_GL '!$B$9:$N$1882,13,FALSE) -> Cumple
A83: 010514 : MD DE PIZUQUIA | B83: 56 | C83: 010514 | D83: AMAZONAS | E83: MD DE PIZUQUIA | F83: =VLOOKUP(C83,'Anexo_GL '!$B$9:$N$1882,4,FALSE) -> 1271.94354 | H83: =VLOOKUP(C83,'Anexo_GL '!$B$9:$N$1882,5,FALSE) -> 2230.430285 | I83: =VLOOKUP(C83,'Anexo_GL '!$B$9:$N$1882,6,FALSE) -> 0.0005 | L83: =VLOOKUP(C83,'Anexo_GL '!$B$9:$N$1882,7,FALSE) -> 57.02682341 | N83: =VLOOKUP(C83,'Anexo_GL '!$B$9:$N$1882,8,FALSE) -> Cumple | P83: =VLOOKUP(C83,'Anexo_GL '!$B$9:$N$1882,10,FALSE) -> 1693.71267 | Q83: =VLOOKUP(C83,'Anexo_GL '!$B$9:$N$1882,11,FALSE) -> 1259.7478 | R83: =VLOOKUP(C83,'Anexo_GL '!$B$9:$N$1882,12,FALSE) -> 433.96487 | S83: =VLOOKUP(C83,'Anexo_GL '!$B$9:$N$1882,13,FALSE) -> Cumple
A84: 010515 : MD DE PROVIDENCIA | B84: 57 | C84: 010515 | D84: AMAZONAS | E84: MD DE PROVIDENCIA | F84: =VLOOKUP(C84,'Anexo_GL '!$B$9:$N$1882,4,FALSE) -> 66.34669 | H84: =VLOOKUP(C84,'Anexo_GL '!$B$9:$N$1882,5,FALSE) -> 560.5918575 | I84: =VLOOKUP(C84,'Anexo_GL '!$B$9:$N$1882,6,FALSE) -> 0.00013 | L84: =VLOOKUP(C84,'Anexo_GL '!$B$9:$N$1882,7,FALSE) -> 11.83511482 | N84: =VLOOKUP(C84,'Anexo_GL '!$B$9:$N$1882,8,FALSE) -> Cumple | P84: =VLOOKUP(C84,'Anexo_GL '!$B$9:$N$1882,10,FALSE) -> 502.84404 | Q84: =VLOOKUP(C84,'Anexo_GL '!$B$9:$N$1882,11,FALSE) -> 395.40969 | R84: =VLOOKUP(C84,'Anexo_GL '!$B$9:$N$1882,12,FALSE) -> 107.43435 | S84: =VLOOKUP(C84,'Anexo_GL '!$B$9:$N$1882,13,FALSE) -> Cumple
A85: 010516 : MD DE SAN CRISTOBAL DE OLTO | B85: 58 | C85: 010516 | D85: AMAZONAS | E85: MD DE SAN CRISTOBAL DE OLTO | F85: =VLOOKUP(C85,'Anexo_GL '!$B$9:$N$1882,4,FALSE) -> 51.70078 | H85: =VLOOKUP(C85,'Anexo_GL '!$B$9:$N$1882,5,FALSE) -> 527.3596475 | I85: =VLOOKUP(C85,'Anexo_GL '!$B$9:$N$1882,6,FALSE) -> 7e-05 | L85: =VLOOKUP(C85,'Anexo_GL '!$B$9:$N$1882,7,FALSE) -> 9.803704217 | N85: =VLOOKUP(C85,'Anexo_GL '!$B$9:$N$1882,8,FALSE) -> Cumple | P85: =VLOOKUP(C85,'Anexo_GL '!$B$9:$N$1882,10,FALSE) -> 336.05818 | Q85: =VLOOKUP(C85,'Anexo_GL '!$B$9:$N$1882,11,FALSE) -> 244.97915 | R85: =VLOOKUP(C85,'Anexo_GL '!$B$9:$N$1882,12,FALSE) -> 91.07903 | S85: =VLOOKUP(C85,'Anexo_GL '!$B$9:$N$1882,13,FALSE) -> Cumple
A86: 010517 : MD DE SAN FRANCISCO DE YESO | B86: 59 | C86: 010517 | D86: AMAZONAS | E86: MD DE SAN FRANCISCO DE YESO | F86: =VLOOKUP(C86,'Anexo_GL '!$B$9:$N$1882,4,FALSE) -> 19.43001 | H86: =VLOOKUP(C86,'Anexo_GL '!$B$9:$N$1882,5,FALSE) -> 517.285955 | I86: =VLOOKUP(C86,'Anexo_GL '!$B$9:$N$1882,6,FALSE) -> 9e-05 | L86: =VLOOKUP(C86,'Anexo_GL '!$B$9:$N$1882,7,FALSE) -> 3.756144897 | N86: =VLOOKUP(C86,'Anexo_GL '!$B$9:$N$1882,8,FALSE) -> Cumple | P86: =VLOOKUP(C86,'Anexo_GL '!$B$9:$N$1882,10,FALSE) -> 331.81196 | Q86: =VLOOKUP(C86,'Anexo_GL '!$B$9:$N$1882,11,FALSE) -> 195.9299 | R86: =VLOOKUP(C86,'Anexo_GL '!$B$9:$N$1882,12,FALSE) -> 135.88206 | S86: =VLOOKUP(C86,'Anexo_GL '!$B$9:$N$1882,13,FALSE) -> Cumple
A87: 010518 : MD DE SAN JERONIMO DE PACLAS | B87: 60 | C87: 010518 | D87: AMAZONAS | E87: MD DE SAN JERONIMO DE PACLAS | F87: =VLOOKUP(C87,'Anexo_GL '!$B$9:$N$1882,4,FALSE) -> 38.70638 | H87: =VLOOKUP(C87,'Anexo_GL '!$B$9:$N$1882,5,FALSE) -> 566.3590725 | I87: =VLOOKUP(C87,'Anexo_GL '!$B$9:$N$1882,6,FALSE) -> 9e-05 | L87: =VLOOKUP(C87,'Anexo_GL '!$B$9:$N$1882,7,FALSE) -> 6.834247367 | N87: =VLOOKUP(C87,'Anexo_GL '!$B$9:$N$1882,8,FALSE) -> Cumple | P87: =VLOOKUP(C87,'Anexo_GL '!$B$9:$N$1882,10,FALSE) -> 455.27226 | Q87: =VLOOKUP(C87,'Anexo_GL '!$B$9:$N$1882,11,FALSE) -> 273.54714 | R87: =VLOOKUP(C87,'Anexo_GL '!$B$9:$N$1882,12,FALSE) -> 181.72512 | S87: =VLOOKUP(C87,'Anexo_GL '!$B$9:$N$1882,13,FALSE) -> Cumple
A88: 010519 : MD DE SAN JUAN DE LOPECANCHA | B88: 61 | C88: 010519 | D88: AMAZONAS | E88: MD DE SAN JUAN DE LOPECANCHA | F88: =VLOOKUP(C88,'Anexo_GL '!$B$9:$N$1882,4,FALSE) -> 73.75648 | H88: =VLOOKUP(C88,'Anexo_GL '!$B$9:$N$1882,5,FALSE) -> 838.7826025 | I88: =VLOOKUP(C88,'Anexo_GL '!$B$9:$N$1882,6,FALSE) -> 3e-05 | L88: =VLOOKUP(C88,'Anexo_GL '!$B$9:$N$1882,7,FALSE) -> 8.793277278 | N88: =VLOOKUP(C88,'Anexo_GL '!$B$9:$N$1882,8,FALSE) -> Cumple | P88: =VLOOKUP(C88,'Anexo_GL '!$B$9:$N$1882,10,FALSE) -> 1182.22991 | Q88: =VLOOKUP(C88,'Anexo_GL '!$B$9:$N$1882,11,FALSE) -> 379.61593 | R88: =VLOOKUP(C88,'Anexo_GL '!$B$9:$N$1882,12,FALSE) -> 802.61398 | S88: =VLOOKUP(C88,'Anexo_GL '!$B$9:$N$1882,13,FALSE) -> Cumple
A89: 010520 : MD DE SANTA CATALINA | B89: 62 | C89: 010520 | D89: AMAZONAS | E89: MD DE SANTA CATALINA | F89: =VLOOKUP(C89,'Anexo_GL '!$B$9:$N$1882,4,FALSE) -> 82.23758 | H89: =VLOOKUP(C89,'Anexo_GL '!$B$9:$N$1882,5,FALSE) -> 687.8641875 | I89: =VLOOKUP(C89,'Anexo_GL '!$B$9:$N$1882,6,FALSE) -> 0.00013 | L89: =VLOOKUP(C89,'Anexo_GL '!$B$9:$N$1882,7,FALSE) -> 11.95549667 | N89: =VLOOKUP(C89,'Anexo_GL '!$B$9:$N$1882,8,FALSE) -> Cumple | P89: =VLOOKUP(C89,'Anexo_GL '!$B$9:$N$1882,10,FALSE) -> 485.36489 | Q89: =VLOOKUP(C89,'Anexo_GL '!$B$9:$N$1882,11,FALSE) -> 405.57429 | R89: =VLOOKUP(C89,'Anexo_GL '!$B$9:$N$1882,12,FALSE) -> 79.7906 | S89: =VLOOKUP(C89,'Anexo_GL '!$B$9:$N$1882,13,FALSE) -> Cumple
A90: 010521 : MD DE SANTO TOMAS | B90: 63 | C90: 010521 | D90: AMAZONAS | E90: MD DE SANTO TOMAS | F90: =VLOOKUP(C90,'Anexo_GL '!$B$9:$N$1882,4,FALSE) -> 124.26052 | H90: =VLOOKUP(C90,'Anexo_GL '!$B$9:$N$1882,5,FALSE) -> 1222.07439 | I90: =VLOOKUP(C90,'Anexo_GL '!$B$9:$N$1882,6,FALSE) -> 0.00035 | L90: =VLOOKUP(C90,'Anexo_GL '!$B$9:$N$1882,7,FALSE) -> 10.16799967 | N90: =VLOOKUP(C90,'Anexo_GL '!$B$9:$N$1882,8,FALSE) -> Cumple | P90: =VLOOKUP(C90,'Anexo_GL '!$B$9:$N$1882,10,FALSE) -> 922.41422 | Q90: =VLOOKUP(C90,'Anexo_GL '!$B$9:$N$1882,11,FALSE) -> 626.41247 | R90: =VLOOKUP(C90,'Anexo_GL '!$B$9:$N$1882,12,FALSE) -> 296.00175 | S90: =VLOOKUP(C90,'Anexo_GL '!$B$9:$N$1882,13,FALSE) -> Cumple
A91: 010522 : MD DE TINGO | B91: 64 | C91: 010522 | D91: AMAZONAS | E91: MD DE TINGO | F91: =VLOOKUP(C91,'Anexo_GL '!$B$9:$N$1882,4,FALSE) -> 3.80157 | H91: =VLOOKUP(C91,'Anexo_GL '!$B$9:$N$1882,5,FALSE) -> 579.517795 | I91: =VLOOKUP(C91,'Anexo_GL '!$B$9:$N$1882,6,FALSE) -> 9e-05 | L91: =VLOOKUP(C91,'Anexo_GL '!$B$9:$N$1882,7,FALSE) -> 0.6559884844 | N91: =VLOOKUP(C91,'Anexo_GL '!$B$9:$N$1882,8,FALSE) -> Cumple | P91: =VLOOKUP(C91,'Anexo_GL '!$B$9:$N$1882,10,FALSE) -> 349.80914 | Q91: =VLOOKUP(C91,'Anexo_GL '!$B$9:$N$1882,11,FALSE) -> 330.40301 | R91: =VLOOKUP(C91,'Anexo_GL '!$B$9:$N$1882,12,FALSE) -> 19.40613 | S91: =VLOOKUP(C91,'Anexo_GL '!$B$9:$N$1882,13,FALSE) -> Cumple
A92: 010523 : MD DE TRITA | B92: 65 | C92: 010523 | D92: AMAZONAS | E92: MD DE TRITA | F92: =VLOOKUP(C92,'Anexo_GL '!$B$9:$N$1882,4,FALSE) -> 13.54367 | H92: =VLOOKUP(C92,'Anexo_GL '!$B$9:$N$1882,5,FALSE) -> 508.3388325 | I92: =VLOOKUP(C92,'Anexo_GL '!$B$9:$N$1882,6,FALSE) -> 0.00013 | L92: =VLOOKUP(C92,'Anexo_GL '!$B$9:$N$1882,7,FALSE) -> 2.664299702 | N92: =VLOOKUP(C92,'Anexo_GL '!$B$9:$N$1882,8,FALSE) -> Cumple | P92: =VLOOKUP(C92,'Anexo_GL '!$B$9:$N$1882,10,FALSE) -> 339.82065 | Q92: =VLOOKUP(C92,'Anexo_GL '!$B$9:$N$1882,11,FALSE) -> 236.67097 | R92: =VLOOKUP(C92,'Anexo_GL '!$B$9:$N$1882,12,FALSE) -> 103.14968 | S92: =VLOOKUP(C92,'Anexo_GL '!$B$9:$N$1882,13,FALSE) -> Cumple
A93: 010601 : MP DE RODRIGUEZ DE MENDOZA - SAN NICOLAS | B93: 66 | C93: 010601 | D93: AMAZONAS | E93: MP DE RODRIGUEZ DE MENDOZA - SAN NICOLAS | F93: =VLOOKUP(C93,'Anexo_GL '!$B$9:$N$1882,4,FALSE) -> 7240.9863 | H93: =VLOOKUP(C93,'Anexo_GL '!$B$9:$N$1882,5,FALSE) -> 5681.835928 | I93: =VLOOKUP(C93,'Anexo_GL '!$B$9:$N$1882,6,FALSE) -> 0.00019 | L93: =VLOOKUP(C93,'Anexo_GL '!$B$9:$N$1882,7,FALSE) -> 127.4409609 | N93: =VLOOKUP(C93,'Anexo_GL '!$B$9:$N$1882,8,FALSE) -> No Cumple | P93: =VLOOKUP(C93,'Anexo_GL '!$B$9:$N$1882,10,FALSE) -> 2852.69204 | Q93: =VLOOKUP(C93,'Anexo_GL '!$B$9:$N$1882,11,FALSE) -> 2237.39372 | R93: =VLOOKUP(C93,'Anexo_GL '!$B$9:$N$1882,12,FALSE) -> 615.29832 | S93: =VLOOKUP(C93,'Anexo_GL '!$B$9:$N$1882,13,FALSE) -> Cumple
A94: 010602 : MD DE CHIRIMOTO | B94: 67 | C94: 010602 | D94: AMAZONAS | E94: MD DE CHIRIMOTO | F94: =VLOOKUP(C94,'Anexo_GL '!$B$9:$N$1882,4,FALSE) -> 28.82905 | H94: =VLOOKUP(C94,'Anexo_GL '!$B$9:$N$1882,5,FALSE) -> 1133.256742 | I94: =VLOOKUP(C94,'Anexo_GL '!$B$9:$N$1882,6,FALSE) -> 0.00021 | L94: =VLOOKUP(C94,'Anexo_GL '!$B$9:$N$1882,7,FALSE) -> 2.543911624 | N94: =VLOOKUP(C94,'Anexo_GL '!$B$9:$N$1882,8,FALSE) -> Cumple | P94: =VLOOKUP(C94,'Anexo_GL '!$B$9:$N$1882,10,FALSE) -> 570.78488 | Q94: =VLOOKUP(C94,'Anexo_GL '!$B$9:$N$1882,11,FALSE) -> 388.24218 | R94: =VLOOKUP(C94,'Anexo_GL '!$B$9:$N$1882,12,FALSE) -> 182.5427 | S94: =VLOOKUP(C94,'Anexo_GL '!$B$9:$N$1882,13,FALSE) -> Cumple
A95: 010603 : MD DE COCHAMAL | B95: 68 | C95: 010603 | D95: AMAZONAS | E95: MD DE COCHAMAL | F95: =VLOOKUP(C95,'Anexo_GL '!$B$9:$N$1882,4,FALSE) -> 2.48121 | H95: =VLOOKUP(C95,'Anexo_GL '!$B$9:$N$1882,5,FALSE) -> 438.211795 | I95: =VLOOKUP(C95,'Anexo_GL '!$B$9:$N$1882,6,FALSE) -> 3e-05 | L95: =VLOOKUP(C95,'Anexo_GL '!$B$9:$N$1882,7,FALSE) -> 0.5662125092 | N95: =VLOOKUP(C95,'Anexo_GL '!$B$9:$N$1882,8,FALSE) -> Cumple | P95: =VLOOKUP(C95,'Anexo_GL '!$B$9:$N$1882,10,FALSE) -> 215.34141 | Q95: =VLOOKUP(C95,'Anexo_GL '!$B$9:$N$1882,11,FALSE) -> 260.3296 | R95: =VLOOKUP(C95,'Anexo_GL '!$B$9:$N$1882,12,FALSE) -> -44.98819 | S95: =VLOOKUP(C95,'Anexo_GL '!$B$9:$N$1882,13,FALSE) -> No Cumple
A96: 010604 : MD DE HUAMBO | B96: 69 | C96: 010604 | D96: AMAZONAS | E96: MD DE HUAMBO | F96: =VLOOKUP(C96,'Anexo_GL '!$B$9:$N$1882,4,FALSE) -> 300.11937 | H96: =VLOOKUP(C96,'Anexo_GL '!$B$9:$N$1882,5,FALSE) -> 734.9587775 | I96: =VLOOKUP(C96,'Anexo_GL '!$B$9:$N$1882,6,FALSE) -> 0.00024 | L96: =VLOOKUP(C96,'Anexo_GL '!$B$9:$N$1882,7,FALSE) -> 40.83485757 | N96: =VLOOKUP(C96,'Anexo_GL '!$B$9:$N$1882,8,FALSE) -> Cumple | P96: =VLOOKUP(C96,'Anexo_GL '!$B$9:$N$1882,10,FALSE) -> 557.89783 | Q96: =VLOOKUP(C96,'Anexo_GL '!$B$9:$N$1882,11,FALSE) -> 641.80545 | R96: =VLOOKUP(C96,'Anexo_GL '!$B$9:$N$1882,12,FALSE) -> -83.90762 | S96: =VLOOKUP(C96,'Anexo_GL '!$B$9:$N$1882,13,FALSE) -> No Cumple
A97: 010605 : MD DE LIMABAMBA | B97: 70 | C97: 010605 | D97: AMAZONAS | E97: MD DE LIMABAMBA | F97: =VLOOKUP(C97,'Anexo_GL '!$B$9:$N$1882,4,FALSE) -> 2227.42267 | H97: =VLOOKUP(C97,'Anexo_GL '!$B$9:$N$1882,5,FALSE) -> 907.3037125 | I97: =VLOOKUP(C97,'Anexo_GL '!$B$9:$N$1882,6,FALSE) -> 0.00033 | L97: =VLOOKUP(C97,'Anexo_GL '!$B$9:$N$1882,7,FALSE) -> 245.4991244 | N97: =VLOOKUP(C97,'Anexo_GL '!$B$9:$N$1882,8,FALSE) -> No Cumple | P97: =VLOOKUP(C97,'Anexo_GL '!$B$9:$N$1882,10,FALSE) -> 799.75867 | Q97: =VLOOKUP(C97,'Anexo_GL '!$B$9:$N$1882,11,FALSE) -> 467.80724 | R97: =VLOOKUP(C97,'Anexo_GL '!$B$9:$N$1882,12,FALSE) -> 331.95143 | S97: =VLOOKUP(C97,'Anexo_GL '!$B$9:$N$1882,13,FALSE) -> Cumple
A98: 010606 : MD DE LONGAR | B98: 71 | C98: 010606 | D98: AMAZONAS | E98: MD DE LONGAR | F98: =VLOOKUP(C98,'Anexo_GL '!$B$9:$N$1882,4,FALSE) -> 2181.75704 | H98: =VLOOKUP(C98,'Anexo_GL '!$B$9:$N$1882,5,FALSE) -> 538.7946725 | I98: =VLOOKUP(C98,'Anexo_GL '!$B$9:$N$1882,6,FALSE) -> 0.00011 | L98: =VLOOKUP(C98,'Anexo_GL '!$B$9:$N$1882,7,FALSE) -> 404.9329274 | N98: =VLOOKUP(C98,'Anexo_GL '!$B$9:$N$1882,8,FALSE) -> No Cumple | P98: =VLOOKUP(C98,'Anexo_GL '!$B$9:$N$1882,10,FALSE) -> 341.4835 | Q98: =VLOOKUP(C98,'Anexo_GL '!$B$9:$N$1882,11,FALSE) -> 251.19574 | R98: =VLOOKUP(C98,'Anexo_GL '!$B$9:$N$1882,12,FALSE) -> 90.28776 | S98: =VLOOKUP(C98,'Anexo_GL '!$B$9:$N$1882,13,FALSE) -> Cumple
A99: 010607 : MD DE MARISCAL BENAVIDES | B99: 72 | C99: 010607 | D99: AMAZONAS | E99: MD DE MARISCAL BENAVIDES | F99: =VLOOKUP(C99,'Anexo_GL '!$B$9:$N$1882,4,FALSE) -> 770.30287 | H99: =VLOOKUP(C99,'Anexo_GL '!$B$9:$N$1882,5,FALSE) -> 1184.084905 | I99: =VLOOKUP(C99,'Anexo_GL '!$B$9:$N$1882,6,FALSE) -> 5e-05 | L99: =VLOOKUP(C99,'Anexo_GL '!$B$9:$N$1882,7,FALSE) -> 65.05469893 | N99: =VLOOKUP(C99,'Anexo_GL '!$B$9:$N$1882,8,FALSE) -> Cumple | P99: =VLOOKUP(C99,'Anexo_GL '!$B$9:$N$1882,10,FALSE) -> 1066.07751 | Q99: =VLOOKUP(C99,'Anexo_GL '!$B$9:$N$1882,11,FALSE) -> 612.86715 | R99: =VLOOKUP(C99,'Anexo_GL '!$B$9:$N$1882,12,FALSE) -> 453.21036 | S99: =VLOOKUP(C99,'Anexo_GL '!$B$9:$N$1882,13,FALSE) -> Cumple
A100: 010608 : MD DE MILPUC | B100: 73 | C100: 010608 | D100: AMAZONAS | E100: MD DE MILPUC | F100: =VLOOKUP(C100,'Anexo_GL '!$B$9:$N$1882,4,FALSE) -> 132.94749 | H100: =VLOOKUP(C100,'Anexo_GL '!$B$9:$N$1882,5,FALSE) -> 510.8472025 | I100: =VLOOKUP(C100,'Anexo_GL '!$B$9:$N$1882,6,FALSE) -> 7e-05 | L100: =VLOOKUP(C100,'Anexo_GL '!$B$9:$N$1882,7,FALSE) -> 26.02490321 | N100: =VLOOKUP(C100,'Anexo_GL '!$B$9:$N$1882,8,FALSE) -> Cumple | P100: =VLOOKUP(C100,'Anexo_GL '!$B$9:$N$1882,10,FALSE) -> 334.51496 | Q100: =VLOOKUP(C100,'Anexo_GL '!$B$9:$N$1882,11,FALSE) -> 345.34862 | R100: =VLOOKUP(C100,'Anexo_GL '!$B$9:$N$1882,12,FALSE) -> -10.83366 | S100: =VLOOKUP(C100,'Anexo_GL '!$B$9:$N$1882,13,FALSE) -> No Cumple
A101: 010609 : MD DE OMIA | B101: 74 | C101: 010609 | D101: AMAZONAS | E101: MD DE OMIA | F101: =VLOOKUP(C101,'Anexo_GL '!$B$9:$N$1882,4,FALSE) -> 57.06322 | H101: =VLOOKUP(C101,'Anexo_GL '!$B$9:$N$1882,5,FALSE) -> 3362.044083 | I101: =VLOOKUP(C101,'Anexo_GL '!$B$9:$N$1882,6,FALSE) -> 0.00083 | L101: =VLOOKUP(C101,'Anexo_GL '!$B$9:$N$1882,7,FALSE) -> 1.697277567 | N101: =VLOOKUP(C101,'Anexo_GL '!$B$9:$N$1882,8,FALSE) -> Cumple | P101: =VLOOKUP(C101,'Anexo_GL '!$B$9:$N$1882,10,FALSE) -> 1782.5867 | Q101: =VLOOKUP(C101,'Anexo_GL '!$B$9:$N$1882,11,FALSE) -> 1228.78344 | R101: =VLOOKUP(C101,'Anexo_GL '!$B$9:$N$1882,12,FALSE) -> 553.80326 | S101: =VLOOKUP(C101,'Anexo_GL '!$B$9:$N$1882,13,FALSE) -> Cumple
A102: 010610 : MD DE SANTA ROSA | B102: 75 | C102: 010610 | D102: AMAZONAS | E102: MD DE SANTA ROSA | F102: =VLOOKUP(C102,'Anexo_GL '!$B$9:$N$1882,4,FALSE) -> 1.40294 | H102: =VLOOKUP(C102,'Anexo_GL '!$B$9:$N$1882,5,FALSE) -> 515.1385825 | I102: =VLOOKUP(C102,'Anexo_GL '!$B$9:$N$1882,6,FALSE) -> 3e-05 | L102: =VLOOKUP(C102,'Anexo_GL '!$B$9:$N$1882,7,FALSE) -> 0.2723422488 | N102: =VLOOKUP(C102,'Anexo_GL '!$B$9:$N$1882,8,FALSE) -> Cumple | P102: =VLOOKUP(C102,'Anexo_GL '!$B$9:$N$1882,10,FALSE) -> 452.82693 | Q102: =VLOOKUP(C102,'Anexo_GL '!$B$9:$N$1882,11,FALSE) -> 333.63895 | R102: =VLOOKUP(C102,'Anexo_GL '!$B$9:$N$1882,12,FALSE) -> 119.18798 | S102: =VLOOKUP(C102,'Anexo_GL '!$B$9:$N$1882,13,FALSE) -> Cumple
A103: 010611 : MD DE TOTORA | B103: 76 | C103: 010611 | D103: AMAZONAS | E103: MD DE TOTORA | F103: =VLOOKUP(C103,'Anexo_GL '!$B$9:$N$1882,4,FALSE) -> 10.60623 | H103: =VLOOKUP(C103,'Anexo_GL '!$B$9:$N$1882,5,FALSE) -> 594.828075 | I103: =VLOOKUP(C103,'Anexo_GL '!$B$9:$N$1882,6,FALSE) -> 3e-05 | L103: =VLOOKUP(C103,'Anexo_GL '!$B$9:$N$1882,7,FALSE) -> 1.783074883 | N103: =VLOOKUP(C103,'Anexo_GL '!$B$9:$N$1882,8,FALSE) -> Cumple | P103: =VLOOKUP(C103,'Anexo_GL '!$B$9:$N$1882,10,FALSE) -> 451.31612 | Q103: =VLOOKUP(C103,'Anexo_GL '!$B$9:$N$1882,11,FALSE) -> 330.29791 | R103: =VLOOKUP(C103,'Anexo_GL '!$B$9:$N$1882,12,FALSE) -> 121.01821 | S103: =VLOOKUP(C103,'Anexo_GL '!$B$9:$N$1882,13,FALSE) -> Cumple
A104: 010612 : MD DE VISTA ALEGRE | B104: 77 | C104: 010612 | D104: AMAZONAS | E104: MD DE VISTA ALEGRE | F104: =VLOOKUP(C104,'Anexo_GL '!$B$9:$N$1882,4,FALSE) -> 50.34735 | H104: =VLOOKUP(C104,'Anexo_GL '!$B$9:$N$1882,5,FALSE) -> 1146.77845 | I104: =VLOOKUP(C104,'Anexo_GL '!$B$9:$N$1882,6,FALSE) -> 0.00038 | L104: =VLOOKUP(C104,'Anexo_GL '!$B$9:$N$1882,7,FALSE) -> 4.390329274 | N104: =VLOOKUP(C104,'Anexo_GL '!$B$9:$N$1882,8,FALSE) -> Cumple | P104: =VLOOKUP(C104,'Anexo_GL '!$B$9:$N$1882,10,FALSE) -> 800.66364 | Q104: =VLOOKUP(C104,'Anexo_GL '!$B$9:$N$1882,11,FALSE) -> 347.53487 | R104: =VLOOKUP(C104,'Anexo_GL '!$B$9:$N$1882,12,FALSE) -> 453.12877 | S104: =VLOOKUP(C104,'Anexo_GL '!$B$9:$N$1882,13,FALSE) -> Cumple
A105: 010701 : MUNICIPALIDAD PROVINCIA DE UTCUBAMBA - BAGUA GRANDE | B105: 78 | C105: 010701 | D105: AMAZONAS | E105: MUNICIPALIDAD PROVINCIA DE UTCUBAMBA - BAGUA GRANDE | F105: =VLOOKUP(C105,'Anexo_GL '!$B$9:$N$1882,4,FALSE) -> 3411.80873 | H105: =VLOOKUP(C105,'Anexo_GL '!$B$9:$N$1882,5,FALSE) -> 27025.97597 | I105: =VLOOKUP(C105,'Anexo_GL '!$B$9:$N$1882,6,FALSE) -> 0.98223 | L105: =VLOOKUP(C105,'Anexo_GL '!$B$9:$N$1882,7,FALSE) -> 12.62418324 | N105: =VLOOKUP(C105,'Anexo_GL '!$B$9:$N$1882,8,FALSE) -> Cumple | P105: =VLOOKUP(C105,'Anexo_GL '!$B$9:$N$1882,10,FALSE) -> 19822.12685 | Q105: =VLOOKUP(C105,'Anexo_GL '!$B$9:$N$1882,11,FALSE) -> 12381.03328 | R105: =VLOOKUP(C105,'Anexo_GL '!$B$9:$N$1882,12,FALSE) -> 7441.09357 | S105: =VLOOKUP(C105,'Anexo_GL '!$B$9:$N$1882,13,FALSE) -> Cumple
A106: 010702 : MD DE CAJARURO | B106: 79 | C106: 010702 | D106: AMAZONAS | E106: MD DE CAJARURO | F106: =VLOOKUP(C106,'Anexo_GL '!$B$9:$N$1882,4,FALSE) -> 1701.18142 | H106: =VLOOKUP(C106,'Anexo_GL '!$B$9:$N$1882,5,FALSE) -> 10493.43784 | I106: =VLOOKUP(C106,'Anexo_GL '!$B$9:$N$1882,6,FALSE) -> 0.79756 | L106: =VLOOKUP(C106,'Anexo_GL '!$B$9:$N$1882,7,FALSE) -> 16.21185969 | N106: =VLOOKUP(C106,'Anexo_GL '!$B$9:$N$1882,8,FALSE) -> Cumple | P106: =VLOOKUP(C106,'Anexo_GL '!$B$9:$N$1882,10,FALSE) -> 9841.50504 | Q106: =VLOOKUP(C106,'Anexo_GL '!$B$9:$N$1882,11,FALSE) -> 4273.71168 | R106: =VLOOKUP(C106,'Anexo_GL '!$B$9:$N$1882,12,FALSE) -> 5567.79336 | S106: =VLOOKUP(C106,'Anexo_GL '!$B$9:$N$1882,13,FALSE) -> Cumple
A107: 010703 : MD DE CUMBA | B107: 80 | C107: 010703 | D107: AMAZONAS | E107: MD DE CUMBA | F107: =VLOOKUP(C107,'Anexo_GL '!$B$9:$N$1882,4,FALSE) -> 155.15157 | H107: =VLOOKUP(C107,'Anexo_GL '!$B$9:$N$1882,5,FALSE) -> 3044.54525 | I107: =VLOOKUP(C107,'Anexo_GL '!$B$9:$N$1882,6,FALSE) -> 0.0009 | L107: =VLOOKUP(C107,'Anexo_GL '!$B$9:$N$1882,7,FALSE) -> 5.096050716 | N107: =VLOOKUP(C107,'Anexo_GL '!$B$9:$N$1882,8,FALSE) -> Cumple | P107: =VLOOKUP(C107,'Anexo_GL '!$B$9:$N$1882,10,FALSE) -> 2410.04631 | Q107: =VLOOKUP(C107,'Anexo_GL '!$B$9:$N$1882,11,FALSE) -> 1669.40982 | R107: =VLOOKUP(C107,'Anexo_GL '!$B$9:$N$1882,12,FALSE) -> 740.63649 | S107: =VLOOKUP(C107,'Anexo_GL '!$B$9:$N$1882,13,FALSE) -> Cumple
A108: 010704 : MD DE EL MILAGRO | B108: 81 | C108: 010704 | D108: AMAZONAS | E108: MD DE EL MILAGRO | F108: =VLOOKUP(C108,'Anexo_GL '!$B$9:$N$1882,4,FALSE) -> 106.84079 | H108: =VLOOKUP(C108,'Anexo_GL '!$B$9:$N$1882,5,FALSE) -> 2598.058347 | I108: =VLOOKUP(C108,'Anexo_GL '!$B$9:$N$1882,6,FALSE) -> 0.00045 | L108: =VLOOKUP(C108,'Anexo_GL '!$B$9:$N$1882,7,FALSE) -> 4.1123322 | N108: =VLOOKUP(C108,'Anexo_GL '!$B$9:$N$1882,8,FALSE) -> Cumple | P108: =VLOOKUP(C108,'Anexo_GL '!$B$9:$N$1882,10,FALSE) -> 1662.03342 | Q108: =VLOOKUP(C108,'Anexo_GL '!$B$9:$N$1882,11,FALSE) -> 1714.98461 | R108: =VLOOKUP(C108,'Anexo_GL '!$B$9:$N$1882,12,FALSE) -> -52.95119 | S108: =VLOOKUP(C108,'Anexo_GL '!$B$9:$N$1882,13,FALSE) -> No Cumple
A109: 010705 : MD DE JAMALCA | B109: 82 | C109: 010705 | D109: AMAZONAS | E109: MD DE JAMALCA | F109: =VLOOKUP(C109,'Anexo_GL '!$B$9:$N$1882,4,FALSE) -> 1121.69788 | H109: =VLOOKUP(C109,'Anexo_GL '!$B$9:$N$1882,5,FALSE) -> 3842.783017 | I109: =VLOOKUP(C109,'Anexo_GL '!$B$9:$N$1882,6,FALSE) -> 0.00077 | L109: =VLOOKUP(C109,'Anexo_GL '!$B$9:$N$1882,7,FALSE) -> 29.18972721 | N109: =VLOOKUP(C109,'Anexo_GL '!$B$9:$N$1882,8,FALSE) -> Cumple | P109: =VLOOKUP(C109,'Anexo_GL '!$B$9:$N$1882,10,FALSE) -> 4178.97729 | Q109: =VLOOKUP(C109,'Anexo_GL '!$B$9:$N$1882,11,FALSE) -> 1901.90518 | R109: =VLOOKUP(C109,'Anexo_GL '!$B$9:$N$1882,12,FALSE) -> 2277.07211 | S109: =VLOOKUP(C109,'Anexo_GL '!$B$9:$N$1882,13,FALSE) -> Cumple
A110: 010706 : MD DE LONYA GRANDE | B110: 83 | C110: 010706 | D110: AMAZONAS | E110: MD DE LONYA GRANDE | F110: =VLOOKUP(C110,'Anexo_GL '!$B$9:$N$1882,4,FALSE) -> 182.65343 | H110: =VLOOKUP(C110,'Anexo_GL '!$B$9:$N$1882,5,FALSE) -> 3455.39712 | I110: =VLOOKUP(C110,'Anexo_GL '!$B$9:$N$1882,6,FALSE) -> 0.00103 | L110: =VLOOKUP(C110,'Anexo_GL '!$B$9:$N$1882,7,FALSE) -> 5.286032941 | N110: =VLOOKUP(C110,'Anexo_GL '!$B$9:$N$1882,8,FALSE) -> Cumple | P110: =VLOOKUP(C110,'Anexo_GL '!$B$9:$N$1882,10,FALSE) -> 2570.74448 | Q110: =VLOOKUP(C110,'Anexo_GL '!$B$9:$N$1882,11,FALSE) -> 1585.16045 | R110: =VLOOKUP(C110,'Anexo_GL '!$B$9:$N$1882,12,FALSE) -> 985.58403 | S110: =VLOOKUP(C110,'Anexo_GL '!$B$9:$N$1882,13,FALSE) -> Cumple
A111: 010707 : MD DE YAMON | B111: 84 | C111: 010707 | D111: AMAZONAS | E111: MD DE YAMON | F111: =VLOOKUP(C111,'Anexo_GL '!$B$9:$N$1882,4,FALSE) -> 708.35626 | H111: =VLOOKUP(C111,'Anexo_GL '!$B$9:$N$1882,5,FALSE) -> 1679.14316 | I111: =VLOOKUP(C111,'Anexo_GL '!$B$9:$N$1882,6,FALSE) -> 0.00026 | L111: =VLOOKUP(C111,'Anexo_GL '!$B$9:$N$1882,7,FALSE) -> 42.18557874 | N111: =VLOOKUP(C111,'Anexo_GL '!$B$9:$N$1882,8,FALSE) -> Cumple | P111: =VLOOKUP(C111,'Anexo_GL '!$B$9:$N$1882,10,FALSE) -> 2028.68189 | Q111: =VLOOKUP(C111,'Anexo_GL '!$B$9:$N$1882,11,FALSE) -> 665.59855 | R111: =VLOOKUP(C111,'Anexo_GL '!$B$9:$N$1882,12,FALSE) -> 1363.08334 | S111: =VLOOKUP(C111,'Anexo_GL '!$B$9:$N$1882,13,FALSE) -> Cumple
A112: 020101 : MP DE HUARAZ | B112: 85 | C112: 020101 | D112: ANCASH | E112: MP DE HUARAZ | F112: =VLOOKUP(C112,'Anexo_GL '!$B$9:$N$1882,4,FALSE) -> 21781.41991 | H112: =VLOOKUP(C112,'Anexo_GL '!$B$9:$N$1882,5,FALSE) -> 41449.96989 | I112: =VLOOKUP(C112,'Anexo_GL '!$B$9:$N$1882,6,FALSE) -> 52459.04805 | L112: =VLOOKUP(C112,'Anexo_GL '!$B$9:$N$1882,7,FALSE) -> 41.52080665 | N112: =VLOOKUP(C112,'Anexo_GL '!$B$9:$N$1882,8,FALSE) -> Cumple | P112: =VLOOKUP(C112,'Anexo_GL '!$B$9:$N$1882,10,FALSE) -> 38655.17293 | Q112: =VLOOKUP(C112,'Anexo_GL '!$B$9:$N$1882,11,FALSE) -> 20284.67232 | R112: =VLOOKUP(C112,'Anexo_GL '!$B$9:$N$1882,12,FALSE) -> 18370.50061 | S112: =VLOOKUP(C112,'Anexo_GL '!$B$9:$N$1882,13,FALSE) -> Cumple
A113: 020102 : MD DE COCHABAMBA | B113: 86 | C113: 020102 | D113: ANCASH | E113: MD DE COCHABAMBA | F113: =VLOOKUP(C113,'Anexo_GL '!$B$9:$N$1882,4,FALSE) -> 133.70943 | H113: =VLOOKUP(C113,'Anexo_GL '!$B$9:$N$1882,5,FALSE) -> 2158.676 | I113: =VLOOKUP(C113,'Anexo_GL '!$B$9:$N$1882,6,FALSE) -> 4983.86124 | L113: =VLOOKUP(C113,'Anexo_GL '!$B$9:$N$1882,7,FALSE) -> 2.682848169 | N113: =VLOOKUP(C113,'Anexo_GL '!$B$9:$N$1882,8,FALSE) -> Cumple | P113: =VLOOKUP(C113,'Anexo_GL '!$B$9:$N$1882,10,FALSE) -> 2320.48726 | Q113: =VLOOKUP(C113,'Anexo_GL '!$B$9:$N$1882,11,FALSE) -> 1040.88997 | R113: =VLOOKUP(C113,'Anexo_GL '!$B$9:$N$1882,12,FALSE) -> 1279.59729 | S113: =VLOOKUP(C113,'Anexo_GL '!$B$9:$N$1882,13,FALSE) -> Cumple
A114: 020103 : MD DE COLCABAMBA | B114: 87 | C114: 020103 | D114: ANCASH | E114: MD DE COLCABAMBA | F114: =VLOOKUP(C114,'Anexo_GL '!$B$9:$N$1882,4,FALSE) -> 122.28323 | H114: =VLOOKUP(C114,'Anexo_GL '!$B$9:$N$1882,5,FALSE) -> 960.383675 | I114: =VLOOKUP(C114,'Anexo_GL '!$B$9:$N$1882,6,FALSE) -> 1531.06693 | L114: =VLOOKUP(C114,'Anexo_GL '!$B$9:$N$1882,7,FALSE) -> 7.986798461 | N114: =VLOOKUP(C114,'Anexo_GL '!$B$9:$N$1882,8,FALSE) -> Cumple | P114: =VLOOKUP(C114,'Anexo_GL '!$B$9:$N$1882,10,FALSE) -> 976.15159 | Q114: =VLOOKUP(C114,'Anexo_GL '!$B$9:$N$1882,11,FALSE) -> 509.92126 | R114: =VLOOKUP(C114,'Anexo_GL '!$B$9:$N$1882,12,FALSE) -> 466.23033 | S114: =VLOOKUP(C114,'Anexo_GL '!$B$9:$N$1882,13,FALSE) -> Cumple
A115: 020104 : MD DE HUANCHAY | B115: 88 | C115: 020104 | D115: ANCASH | E115: MD DE HUANCHAY | F115: =VLOOKUP(C115,'Anexo_GL '!$B$9:$N$1882,4,FALSE) -> 136.65558 | H115: =VLOOKUP(C115,'Anexo_GL '!$B$9:$N$1882,5,FALSE) -> 1964.563825 | I115: =VLOOKUP(C115,'Anexo_GL '!$B$9:$N$1882,6,FALSE) -> 4299.92623 | L115: =VLOOKUP(C115,'Anexo_GL '!$B$9:$N$1882,7,FALSE) -> 3.178091267 | N115: =VLOOKUP(C115,'Anexo_GL '!$B$9:$N$1882,8,FALSE) -> Cumple | P115: =VLOOKUP(C115,'Anexo_GL '!$B$9:$N$1882,10,FALSE) -> 2139.10731 | Q115: =VLOOKUP(C115,'Anexo_GL '!$B$9:$N$1882,11,FALSE) -> 799.62552 | R115: =VLOOKUP(C115,'Anexo_GL '!$B$9:$N$1882,12,FALSE) -> 1339.48179 | S115: =VLOOKUP(C115,'Anexo_GL '!$B$9:$N$1882,13,FALSE) -> Cumple
A116: 020105 : MD DE INDEPENDENCIA | B116: 89 | C116: 020105 | D116: ANCASH | E116: MD DE INDEPENDENCIA | F116: =VLOOKUP(C116,'Anexo_GL '!$B$9:$N$1882,4,FALSE) -> 10907.81441 | H116: =VLOOKUP(C116,'Anexo_GL '!$B$9:$N$1882,5,FALSE) -> 36012.48193 | I116: =VLOOKUP(C116,'Anexo_GL '!$B$9:$N$1882,6,FALSE) -> 75862.14813 | L116: =VLOOKUP(C116,'Anexo_GL '!$B$9:$N$1882,7,FALSE) -> 14.37846763 | N116: =VLOOKUP(C116,'Anexo_GL '!$B$9:$N$1882,8,FALSE) -> Cumple | P116: =VLOOKUP(C116,'Anexo_GL '!$B$9:$N$1882,10,FALSE) -> 38686.29618 | Q116: =VLOOKUP(C116,'Anexo_GL '!$B$9:$N$1882,11,FALSE) -> 11430.67276 | R116: =VLOOKUP(C116,'Anexo_GL '!$B$9:$N$1882,12,FALSE) -> 27255.62342 | S116: =VLOOKUP(C116,'Anexo_GL '!$B$9:$N$1882,13,FALSE) -> Cumple
A117: 020106 : MD DE JANGAS | B117: 90 | C117: 020106 | D117: ANCASH | E117: MD DE JANGAS | F117: =VLOOKUP(C117,'Anexo_GL '!$B$9:$N$1882,4,FALSE) -> 483.14146 | H117: =VLOOKUP(C117,'Anexo_GL '!$B$9:$N$1882,5,FALSE) -> 4313.898407 | I117: =VLOOKUP(C117,'Anexo_GL '!$B$9:$N$1882,6,FALSE) -> 10394.11077 | L117: =VLOOKUP(C117,'Anexo_GL '!$B$9:$N$1882,7,FALSE) -> 4.648223121 | N117: =VLOOKUP(C117,'Anexo_GL '!$B$9:$N$1882,8,FALSE) -> Cumple | P117: =VLOOKUP(C117,'Anexo_GL '!$B$9:$N$1882,10,FALSE) -> 4488.82134 | Q117: =VLOOKUP(C117,'Anexo_GL '!$B$9:$N$1882,11,FALSE) -> 1676.54373 | R117: =VLOOKUP(C117,'Anexo_GL '!$B$9:$N$1882,12,FALSE) -> 2812.27761 | S117: =VLOOKUP(C117,'Anexo_GL '!$B$9:$N$1882,13,FALSE) -> Cumple
A118: 020107 : MD DE LA LIBERTAD | B118: 91 | C118: 020107 | D118: ANCASH | E118: MD DE LA LIBERTAD | F118: =VLOOKUP(C118,'Anexo_GL '!$B$9:$N$1882,4,FALSE) -> 57.8867 | H118: =VLOOKUP(C118,'Anexo_GL '!$B$9:$N$1882,5,FALSE) -> 1609.485025 | I118: =VLOOKUP(C118,'Anexo_GL '!$B$9:$N$1882,6,FALSE) -> 2249.25278 | L118: =VLOOKUP(C118,'Anexo_GL '!$B$9:$N$1882,7,FALSE) -> 2.573596908 | N118: =VLOOKUP(C118,'Anexo_GL '!$B$9:$N$1882,8,FALSE) -> Cumple | P118: =VLOOKUP(C118,'Anexo_GL '!$B$9:$N$1882,10,FALSE) -> 1937.43919 | Q118: =VLOOKUP(C118,'Anexo_GL '!$B$9:$N$1882,11,FALSE) -> 580.08949 | R118: =VLOOKUP(C118,'Anexo_GL '!$B$9:$N$1882,12,FALSE) -> 1357.3497 | S118: =VLOOKUP(C118,'Anexo_GL '!$B$9:$N$1882,13,FALSE) -> Cumple
A119: 020108 : MD DE OLLEROS | B119: 92 | C119: 020108 | D119: ANCASH | E119: MD DE OLLEROS | F119: =VLOOKUP(C119,'Anexo_GL '!$B$9:$N$1882,4,FALSE) -> 967.06852 | H119: =VLOOKUP(C119,'Anexo_GL '!$B$9:$N$1882,5,FALSE) -> 1584.375387 | I119: =VLOOKUP(C119,'Anexo_GL '!$B$9:$N$1882,6,FALSE) -> 3315.44663 | L119: =VLOOKUP(C119,'Anexo_GL '!$B$9:$N$1882,7,FALSE) -> 29.16857449 | N119: =VLOOKUP(C119,'Anexo_GL '!$B$9:$N$1882,8,FALSE) -> Cumple | P119: =VLOOKUP(C119,'Anexo_GL '!$B$9:$N$1882,10,FALSE) -> 1604.23534 | Q119: =VLOOKUP(C119,'Anexo_GL '!$B$9:$N$1882,11,FALSE) -> 491.7418 | R119: =VLOOKUP(C119,'Anexo_GL '!$B$9:$N$1882,12,FALSE) -> 1112.49354 | S119: =VLOOKUP(C119,'Anexo_GL '!$B$9:$N$1882,13,FALSE) -> Cumple
A120: 020109 : MD DE PAMPAS | B120: 93 | C120: 020109 | D120: ANCASH | E120: MD DE PAMPAS | F120: =VLOOKUP(C120,'Anexo_GL '!$B$9:$N$1882,4,FALSE) -> 199.58024 | H120: =VLOOKUP(C120,'Anexo_GL '!$B$9:$N$1882,5,FALSE) -> 1474.952563 | I120: =VLOOKUP(C120,'Anexo_GL '!$B$9:$N$1882,6,FALSE) -> 2896.07807 | L120: =VLOOKUP(C120,'Anexo_GL '!$B$9:$N$1882,7,FALSE) -> 6.891397096 | N120: =VLOOKUP(C120,'Anexo_GL '!$B$9:$N$1882,8,FALSE) -> Cumple | P120: =VLOOKUP(C120,'Anexo_GL '!$B$9:$N$1882,10,FALSE) -> 1007.60572 | Q120: =VLOOKUP(C120,'Anexo_GL '!$B$9:$N$1882,11,FALSE) -> 560.20812 | R120: =VLOOKUP(C120,'Anexo_GL '!$B$9:$N$1882,12,FALSE) -> 447.3976 | S120: =VLOOKUP(C120,'Anexo_GL '!$B$9:$N$1882,13,FALSE) -> Cumple
A121: 020110 : MD DE PARIACOTO | B121: 94 | C121: 020110 | D121: ANCASH | E121: MD DE PARIACOTO | F121: =VLOOKUP(C121,'Anexo_GL '!$B$9:$N$1882,4,FALSE) -> 95.43733 | H121: =VLOOKUP(C121,'Anexo_GL '!$B$9:$N$1882,5,FALSE) -> 3502.746665 | I121: =VLOOKUP(C121,'Anexo_GL '!$B$9:$N$1882,6,FALSE) -> 7800.11679 | L121: =VLOOKUP(C121,'Anexo_GL '!$B$9:$N$1882,7,FALSE) -> 1.223537193 | N121: =VLOOKUP(C121,'Anexo_GL '!$B$9:$N$1882,8,FALSE) -> Cumple | P121: =VLOOKUP(C121,'Anexo_GL '!$B$9:$N$1882,10,FALSE) -> 3810.55455 | Q121: =VLOOKUP(C121,'Anexo_GL '!$B$9:$N$1882,11,FALSE) -> 1319.35257 | R121: =VLOOKUP(C121,'Anexo_GL '!$B$9:$N$1882,12,FALSE) -> 2491.20198 | S121: =VLOOKUP(C121,'Anexo_GL '!$B$9:$N$1882,13,FALSE) -> Cumple
A122: 020111 : MD DE PIRA | B122: 95 | C122: 020111 | D122: ANCASH | E122: MD DE PIRA | F122: =VLOOKUP(C122,'Anexo_GL '!$B$9:$N$1882,4,FALSE) -> 665.70426 | H122: =VLOOKUP(C122,'Anexo_GL '!$B$9:$N$1882,5,FALSE) -> 3558.75827 | I122: =VLOOKUP(C122,'Anexo_GL '!$B$9:$N$1882,6,FALSE) -> 9537.66747 | L122: =VLOOKUP(C122,'Anexo_GL '!$B$9:$N$1882,7,FALSE) -> 6.979738622 | N122: =VLOOKUP(C122,'Anexo_GL '!$B$9:$N$1882,8,FALSE) -> Cumple | P122: =VLOOKUP(C122,'Anexo_GL '!$B$9:$N$1882,10,FALSE) -> 2320.33889 | Q122: =VLOOKUP(C122,'Anexo_GL '!$B$9:$N$1882,11,FALSE) -> 1088.54719 | R122: =VLOOKUP(C122,'Anexo_GL '!$B$9:$N$1882,12,FALSE) -> 1231.7917 | S122: =VLOOKUP(C122,'Anexo_GL '!$B$9:$N$1882,13,FALSE) -> Cumple
A123: 020112 : MD DE TARICA | B123: 96 | C123: 020112 | D123: ANCASH | E123: MD DE TARICA | F123: =VLOOKUP(C123,'Anexo_GL '!$B$9:$N$1882,4,FALSE) -> 620.47043 | H123: =VLOOKUP(C123,'Anexo_GL '!$B$9:$N$1882,5,FALSE) -> 3735.006135 | I123: =VLOOKUP(C123,'Anexo_GL '!$B$9:$N$1882,6,FALSE) -> 8251.19978 | L123: =VLOOKUP(C123,'Anexo_GL '!$B$9:$N$1882,7,FALSE) -> 7.519760114 | N123: =VLOOKUP(C123,'Anexo_GL '!$B$9:$N$1882,8,FALSE) -> Cumple | P123: =VLOOKUP(C123,'Anexo_GL '!$B$9:$N$1882,10,FALSE) -> 3968.00605 | Q123: =VLOOKUP(C123,'Anexo_GL '!$B$9:$N$1882,11,FALSE) -> 1360.04157 | R123: =VLOOKUP(C123,'Anexo_GL '!$B$9:$N$1882,12,FALSE) -> 2607.96448 | S123: =VLOOKUP(C123,'Anexo_GL '!$B$9:$N$1882,13,FALSE) -> Cumple
A124: 020201 : MP DE AIJA | B124: 97 | C124: 020201 | D124: ANCASH | E124: MP DE AIJA | F124: =VLOOKUP(C124,'Anexo_GL '!$B$9:$N$1882,4,FALSE) -> 140.69667 | H124: =VLOOKUP(C124,'Anexo_GL '!$B$9:$N$1882,5,FALSE) -> 2889.689243 | I124: =VLOOKUP(C124,'Anexo_GL '!$B$9:$N$1882,6,FALSE) -> 3639.1468 | L124: =VLOOKUP(C124,'Anexo_GL '!$B$9:$N$1882,7,FALSE) -> 3.866199352 | N124: =VLOOKUP(C124,'Anexo_GL '!$B$9:$N$1882,8,FALSE) -> Cumple | P124: =VLOOKUP(C124,'Anexo_GL '!$B$9:$N$1882,10,FALSE) -> 2402.06664 | Q124: =VLOOKUP(C124,'Anexo_GL '!$B$9:$N$1882,11,FALSE) -> 1088.11405 | R124: =VLOOKUP(C124,'Anexo_GL '!$B$9:$N$1882,12,FALSE) -> 1313.95259 | S124: =VLOOKUP(C124,'Anexo_GL '!$B$9:$N$1882,13,FALSE) -> Cumple
A125: 020202 : MD DE CORIS | B125: 98 | C125: 020202 | D125: ANCASH | E125: MD DE CORIS | F125: =VLOOKUP(C125,'Anexo_GL '!$B$9:$N$1882,4,FALSE) -> 420.97565 | H125: =VLOOKUP(C125,'Anexo_GL '!$B$9:$N$1882,5,FALSE) -> 2361.90198 | I125: =VLOOKUP(C125,'Anexo_GL '!$B$9:$N$1882,6,FALSE) -> 5655.53011 | L125: =VLOOKUP(C125,'Anexo_GL '!$B$9:$N$1882,7,FALSE) -> 7.443610799 | N125: =VLOOKUP(C125,'Anexo_GL '!$B$9:$N$1882,8,FALSE) -> Cumple | P125: =VLOOKUP(C125,'Anexo_GL '!$B$9:$N$1882,10,FALSE) -> 2740.59461 | Q125: =VLOOKUP(C125,'Anexo_GL '!$B$9:$N$1882,11,FALSE) -> 927.11174 | R125: =VLOOKUP(C125,'Anexo_GL '!$B$9:$N$1882,12,FALSE) -> 1813.48287 | S125: =VLOOKUP(C125,'Anexo_GL '!$B$9:$N$1882,13,FALSE) -> Cumple
A126: 020203 : MD DE HUACLLAN | B126: 99 | C126: 020203 | D126: ANCASH | E126: MD DE HUACLLAN | F126: =VLOOKUP(C126,'Anexo_GL '!$B$9:$N$1882,4,FALSE) -> 128.21369 | H126: =VLOOKUP(C126,'Anexo_GL '!$B$9:$N$1882,5,FALSE) -> 960.539 | I126: =VLOOKUP(C126,'Anexo_GL '!$B$9:$N$1882,6,FALSE) -> 1673.67391 | L126: =VLOOKUP(C126,'Anexo_GL '!$B$9:$N$1882,7,FALSE) -> 7.66061353 | N126: =VLOOKUP(C126,'Anexo_GL '!$B$9:$N$1882,8,FALSE) -> Cumple | P126: =VLOOKUP(C126,'Anexo_GL '!$B$9:$N$1882,10,FALSE) -> 923.95606 | Q126: =VLOOKUP(C126,'Anexo_GL '!$B$9:$N$1882,11,FALSE) -> 304.5965 | R126: =VLOOKUP(C126,'Anexo_GL '!$B$9:$N$1882,12,FALSE) -> 619.35956 | S126: =VLOOKUP(C126,'Anexo_GL '!$B$9:$N$1882,13,FALSE) -> Cumple
A127: 020204 : MD DE LA MERCED | B127: 100 | C127: 020204 | D127: ANCASH | E127: MD DE LA MERCED | F127: =VLOOKUP(C127,'Anexo_GL '!$B$9:$N$1882,4,FALSE) -> 111.66667 | H127: =VLOOKUP(C127,'Anexo_GL '!$B$9:$N$1882,5,FALSE) -> 2725.38196 | I127: =VLOOKUP(C127,'Anexo_GL '!$B$9:$N$1882,6,FALSE) -> 6048.68282 | L127: =VLOOKUP(C127,'Anexo_GL '!$B$9:$N$1882,7,FALSE) -> 1.846132015 | N127: =VLOOKUP(C127,'Anexo_GL '!$B$9:$N$1882,8,FALSE) -> Cumple | P127: =VLOOKUP(C127,'Anexo_GL '!$B$9:$N$1882,10,FALSE) -> 2933.01105 | Q127: =VLOOKUP(C127,'Anexo_GL '!$B$9:$N$1882,11,FALSE) -> 875.26849 | R127: =VLOOKUP(C127,'Anexo_GL '!$B$9:$N$1882,12,FALSE) -> 2057.74256 | S127: =VLOOKUP(C127,'Anexo_GL '!$B$9:$N$1882,13,FALSE) -> Cumple
A128: 020205 : MD DE SUCCHA | B128: 101 | C128: 020205 | D128: ANCASH | E128: MD DE SUCCHA | F128: =VLOOKUP(C128,'Anexo_GL '!$B$9:$N$1882,4,FALSE) -> 183.05521 | H128: =VLOOKUP(C128,'Anexo_GL '!$B$9:$N$1882,5,FALSE) -> 1088.701882 | I128: =VLOOKUP(C128,'Anexo_GL '!$B$9:$N$1882,6,FALSE) -> 1692.76448 | L128: =VLOOKUP(C128,'Anexo_GL '!$B$9:$N$1882,7,FALSE) -> 10.81397986 | N128: =VLOOKUP(C128,'Anexo_GL '!$B$9:$N$1882,8,FALSE) -> Cumple | P128: =VLOOKUP(C128,'Anexo_GL '!$B$9:$N$1882,10,FALSE) -> 1055.46717 | Q128: =VLOOKUP(C128,'Anexo_GL '!$B$9:$N$1882,11,FALSE) -> 551.6079 | R128: =VLOOKUP(C128,'Anexo_GL '!$B$9:$N$1882,12,FALSE) -> 503.85927 | S128: =VLOOKUP(C128,'Anexo_GL '!$B$9:$N$1882,13,FALSE) -> Cumple
A129: 020301 : MP DE ANTONIO RAYMONDI - LLAMELLIN | B129: 102 | C129: 020301 | D129: ANCASH | E129: MP DE ANTONIO RAYMONDI - LLAMELLIN | F129: =VLOOKUP(C129,'Anexo_GL '!$B$9:$N$1882,4,FALSE) -> 438.12891 | H129: =VLOOKUP(C129,'Anexo_GL '!$B$9:$N$1882,5,FALSE) -> 4067.059915 | I129: =VLOOKUP(C129,'Anexo_GL '!$B$9:$N$1882,6,FALSE) -> 5096.49261 | L129: =VLOOKUP(C129,'Anexo_GL '!$B$9:$N$1882,7,FALSE) -> 8.596675077 | N129: =VLOOKUP(C129,'Anexo_GL '!$B$9:$N$1882,8,FALSE) -> Cumple | P129: =VLOOKUP(C129,'Anexo_GL '!$B$9:$N$1882,10,FALSE) -> 2874.46912 | Q129: =VLOOKUP(C129,'Anexo_GL '!$B$9:$N$1882,11,FALSE) -> 1834.96968 | R129: =VLOOKUP(C129,'Anexo_GL '!$B$9:$N$1882,12,FALSE) -> 1039.49944 | S129: =VLOOKUP(C129,'Anexo_GL '!$B$9:$N$1882,13,FALSE) -> Cumple
A130: 020302 : MD DE ACSO | B130: 103 | C130: 020302 | D130: ANCASH | E130: MD DE ACSO | F130: =VLOOKUP(C130,'Anexo_GL '!$B$9:$N$1882,4,FALSE) -> 59.00116 | H130: =VLOOKUP(C130,'Anexo_GL '!$B$9:$N$1882,5,FALSE) -> 1454.871777 | I130: =VLOOKUP(C130,'Anexo_GL '!$B$9:$N$1882,6,FALSE) -> 3463.54458 | L130: =VLOOKUP(C130,'Anexo_GL '!$B$9:$N$1882,7,FALSE) -> 1.703490705 | N130: =VLOOKUP(C130,'Anexo_GL '!$B$9:$N$1882,8,FALSE) -> Cumple | P130: =VLOOKUP(C130,'Anexo_GL '!$B$9:$N$1882,10,FALSE) -> 920.42024 | Q130: =VLOOKUP(C130,'Anexo_GL '!$B$9:$N$1882,11,FALSE) -> 459.57599 | R130: =VLOOKUP(C130,'Anexo_GL '!$B$9:$N$1882,12,FALSE) -> 460.84425 | S130: =VLOOKUP(C130,'Anexo_GL '!$B$9:$N$1882,13,FALSE) -> Cumple
A131: 020303 : MD DE CHACCHO | B131: 104 | C131: 020303 | D131: ANCASH | E131: MD DE CHACCHO | F131: =VLOOKUP(C131,'Anexo_GL '!$B$9:$N$1882,4,FALSE) -> 400.23133 | H131: =VLOOKUP(C131,'Anexo_GL '!$B$9:$N$1882,5,FALSE) -> 1298.836055 | I131: =VLOOKUP(C131,'Anexo_GL '!$B$9:$N$1882,6,FALSE) -> 3175.04429 | L131: =VLOOKUP(C131,'Anexo_GL '!$B$9:$N$1882,7,FALSE) -> 12.60553534 | N131: =VLOOKUP(C131,'Anexo_GL '!$B$9:$N$1882,8,FALSE) -> Cumple | P131: =VLOOKUP(C131,'Anexo_GL '!$B$9:$N$1882,10,FALSE) -> 862.24205 | Q131: =VLOOKUP(C131,'Anexo_GL '!$B$9:$N$1882,11,FALSE) -> 553.54668 | R131: =VLOOKUP(C131,'Anexo_GL '!$B$9:$N$1882,12,FALSE) -> 308.69537 | S131: =VLOOKUP(C131,'Anexo_GL '!$B$9:$N$1882,13,FALSE) -> Cumple
A132: 020304 : MD DE CHINGAS | B132: 105 | C132: 020304 | D132: ANCASH | E132: MD DE CHINGAS | F132: =VLOOKUP(C132,'Anexo_GL '!$B$9:$N$1882,4,FALSE) -> 56.13138 | H132: =VLOOKUP(C132,'Anexo_GL '!$B$9:$N$1882,5,FALSE) -> 1417.84214 | I132: =VLOOKUP(C132,'Anexo_GL '!$B$9:$N$1882,6,FALSE) -> 3108.99792 | L132: =VLOOKUP(C132,'Anexo_GL '!$B$9:$N$1882,7,FALSE) -> 1.805449262 | N132: =VLOOKUP(C132,'Anexo_GL '!$B$9:$N$1882,8,FALSE) -> Cumple | P132: =VLOOKUP(C132,'Anexo_GL '!$B$9:$N$1882,10,FALSE) -> 1457.59269 | Q132: =VLOOKUP(C132,'Anexo_GL '!$B$9:$N$1882,11,FALSE) -> 576.17122 | R132: =VLOOKUP(C132,'Anexo_GL '!$B$9:$N$1882,12,FALSE) -> 881.42147 | S132: =VLOOKUP(C132,'Anexo_GL '!$B$9:$N$1882,13,FALSE) -> Cumple
A133: 020305 : MD DE MIRGAS | B133: 106 | C133: 020305 | D133: ANCASH | E133: MD DE MIRGAS | F133: =VLOOKUP(C133,'Anexo_GL '!$B$9:$N$1882,4,FALSE) -> 403.38867 | H133: =VLOOKUP(C133,'Anexo_GL '!$B$9:$N$1882,5,FALSE) -> 4255.970865 | I133: =VLOOKUP(C133,'Anexo_GL '!$B$9:$N$1882,6,FALSE) -> 10942.28809 | L133: =VLOOKUP(C133,'Anexo_GL '!$B$9:$N$1882,7,FALSE) -> 3.686511145 | N133: =VLOOKUP(C133,'Anexo_GL '!$B$9:$N$1882,8,FALSE) -> Cumple | P133: =VLOOKUP(C133,'Anexo_GL '!$B$9:$N$1882,10,FALSE) -> 4676.42504 | Q133: =VLOOKUP(C133,'Anexo_GL '!$B$9:$N$1882,11,FALSE) -> 1063.21556 | R133: =VLOOKUP(C133,'Anexo_GL '!$B$9:$N$1882,12,FALSE) -> 3613.20948 | S133: =VLOOKUP(C133,'Anexo_GL '!$B$9:$N$1882,13,FALSE) -> Cumple
A134: 020306 : MD DE SAN JUAN DE RONTOY | B134: 107 | C134: 020306 | D134: ANCASH | E134: MD DE SAN JUAN DE RONTOY | F134: =VLOOKUP(C134,'Anexo_GL '!$B$9:$N$1882,4,FALSE) -> 154.71198 | H134: =VLOOKUP(C134,'Anexo_GL '!$B$9:$N$1882,5,FALSE) -> 1393.953362 | I134: =VLOOKUP(C134,'Anexo_GL '!$B$9:$N$1882,6,FALSE) -> 3109.49274 | L134: =VLOOKUP(C134,'Anexo_GL '!$B$9:$N$1882,7,FALSE) -> 4.975473266 | N134: =VLOOKUP(C134,'Anexo_GL '!$B$9:$N$1882,8,FALSE) -> Cumple | P134: =VLOOKUP(C134,'Anexo_GL '!$B$9:$N$1882,10,FALSE) -> 1464.40283 | Q134: =VLOOKUP(C134,'Anexo_GL '!$B$9:$N$1882,11,FALSE) -> 498.12932 | R134: =VLOOKUP(C134,'Anexo_GL '!$B$9:$N$1882,12,FALSE) -> 966.27351 | S134: =VLOOKUP(C134,'Anexo_GL '!$B$9:$N$1882,13,FALSE) -> Cumple
A135: 020401 : MP DE ASUNCION - CHACAS | B135: 108 | C135: 020401 | D135: ANCASH | E135: MP DE ASUNCION - CHACAS | F135: =VLOOKUP(C135,'Anexo_GL '!$B$9:$N$1882,4,FALSE) -> 1443.26468 | H135: =VLOOKUP(C135,'Anexo_GL '!$B$9:$N$1882,5,FALSE) -> 4959.495865 | I135: =VLOOKUP(C135,'Anexo_GL '!$B$9:$N$1882,6,FALSE) -> 8031.3444 | L135: =VLOOKUP(C135,'Anexo_GL '!$B$9:$N$1882,7,FALSE) -> 17.97039958 | N135: =VLOOKUP(C135,'Anexo_GL '!$B$9:$N$1882,8,FALSE) -> Cumple | P135: =VLOOKUP(C135,'Anexo_GL '!$B$9:$N$1882,10,FALSE) -> 4427.66826 | Q135: =VLOOKUP(C135,'Anexo_GL '!$B$9:$N$1882,11,FALSE) -> 2026.77738 | R135: =VLOOKUP(C135,'Anexo_GL '!$B$9:$N$1882,12,FALSE) -> 2400.89088 | S135: =VLOOKUP(C135,'Anexo_GL '!$B$9:$N$1882,13,FALSE) -> Cumple
A136: 020402 : MD DE ACOCHACA | B136: 109 | C136: 020402 | D136: ANCASH | E136: MD DE ACOCHACA | F136: =VLOOKUP(C136,'Anexo_GL '!$B$9:$N$1882,4,FALSE) -> 267.32526 | H136: =VLOOKUP(C136,'Anexo_GL '!$B$9:$N$1882,5,FALSE) -> 2754.197928 | I136: =VLOOKUP(C136,'Anexo_GL '!$B$9:$N$1882,6,FALSE) -> 6323.82328 | L136: =VLOOKUP(C136,'Anexo_GL '!$B$9:$N$1882,7,FALSE) -> 4.227272777 | N136: =VLOOKUP(C136,'Anexo_GL '!$B$9:$N$1882,8,FALSE) -> Cumple | P136: =VLOOKUP(C136,'Anexo_GL '!$B$9:$N$1882,10,FALSE) -> 2927.17293 | Q136: =VLOOKUP(C136,'Anexo_GL '!$B$9:$N$1882,11,FALSE) -> 1221.10343 | R136: =VLOOKUP(C136,'Anexo_GL '!$B$9:$N$1882,12,FALSE) -> 1706.0695 | S136: =VLOOKUP(C136,'Anexo_GL '!$B$9:$N$1882,13,FALSE) -> Cumple
A137: 020501 : MP DE BOLOGNESI - CHIQUIAN | B137: 110 | C137: 020501 | D137: ANCASH | E137: MP DE BOLOGNESI - CHIQUIAN | F137: =VLOOKUP(C137,'Anexo_GL '!$B$9:$N$1882,4,FALSE) -> 1507.39138 | H137: =VLOOKUP(C137,'Anexo_GL '!$B$9:$N$1882,5,FALSE) -> 4610.294458 | I137: =VLOOKUP(C137,'Anexo_GL '!$B$9:$N$1882,6,FALSE) -> 4457.11427 | L137: =VLOOKUP(C137,'Anexo_GL '!$B$9:$N$1882,7,FALSE) -> 32.69620615 | N137: =VLOOKUP(C137,'Anexo_GL '!$B$9:$N$1882,8,FALSE) -> Cumple | P137: =VLOOKUP(C137,'Anexo_GL '!$B$9:$N$1882,10,FALSE) -> 3670.6267 | Q137: =VLOOKUP(C137,'Anexo_GL '!$B$9:$N$1882,11,FALSE) -> 1799.84052 | R137: =VLOOKUP(C137,'Anexo_GL '!$B$9:$N$1882,12,FALSE) -> 1870.78618 | S137: =VLOOKUP(C137,'Anexo_GL '!$B$9:$N$1882,13,FALSE) -> Cumple
A138: 020502 : MD DE ABELARDO PARDO LAZAMETA | B138: 111 | C138: 020502 | D138: ANCASH | E138: MD DE ABELARDO PARDO LAZAMETA | F138: =VLOOKUP(C138,'Anexo_GL '!$B$9:$N$1882,4,FALSE) -> 756.36301 | H138: =VLOOKUP(C138,'Anexo_GL '!$B$9:$N$1882,5,FALSE) -> 1732.62907 | I138: =VLOOKUP(C138,'Anexo_GL '!$B$9:$N$1882,6,FALSE) -> 3724.12385 | L138: =VLOOKUP(C138,'Anexo_GL '!$B$9:$N$1882,7,FALSE) -> 20.30982428 | N138: =VLOOKUP(C138,'Anexo_GL '!$B$9:$N$1882,8,FALSE) -> Cumple | P138: =VLOOKUP(C138,'Anexo_GL '!$B$9:$N$1882,10,FALSE) -> 1524.54049 | Q138: =VLOOKUP(C138,'Anexo_GL '!$B$9:$N$1882,11,FALSE) -> 594.71754 | R138: =VLOOKUP(C138,'Anexo_GL '!$B$9:$N$1882,12,FALSE) -> 929.82295 | S138: =VLOOKUP(C138,'Anexo_GL '!$B$9:$N$1882,13,FALSE) -> Cumple
A139: 020503 : MD DE ANTONIO RAYMONDI | B139: 112 | C139: 020503 | D139: ANCASH | E139: MD DE ANTONIO RAYMONDI | F139: =VLOOKUP(C139,'Anexo_GL '!$B$9:$N$1882,4,FALSE) -> 952.15788 | H139: =VLOOKUP(C139,'Anexo_GL '!$B$9:$N$1882,5,FALSE) -> 1660.876187 | I139: =VLOOKUP(C139,'Anexo_GL '!$B$9:$N$1882,6,FALSE) -> 2417.79665 | L139: =VLOOKUP(C139,'Anexo_GL '!$B$9:$N$1882,7,FALSE) -> 39.38122257 | N139: =VLOOKUP(C139,'Anexo_GL '!$B$9:$N$1882,8,FALSE) -> Cumple | P139: =VLOOKUP(C139,'Anexo_GL '!$B$9:$N$1882,10,FALSE) -> 2039.96997 | Q139: =VLOOKUP(C139,'Anexo_GL '!$B$9:$N$1882,11,FALSE) -> 537.72292 | R139: =VLOOKUP(C139,'Anexo_GL '!$B$9:$N$1882,12,FALSE) -> 1502.24705 | S139: =VLOOKUP(C139,'Anexo_GL '!$B$9:$N$1882,13,FALSE) -> Cumple
A140: 020504 : MD DE AQUIA | B140: 113 | C140: 020504 | D140: ANCASH | E140: MD DE AQUIA | F140: =VLOOKUP(C140,'Anexo_GL '!$B$9:$N$1882,4,FALSE) -> 281.03616 | H140: =VLOOKUP(C140,'Anexo_GL '!$B$9:$N$1882,5,FALSE) -> 2892.50856 | I140: =VLOOKUP(C140,'Anexo_GL '!$B$9:$N$1882,6,FALSE) -> 6224.78303 | L140: =VLOOKUP(C140,'Anexo_GL '!$B$9:$N$1882,7,FALSE) -> 4.51479447 | N140: =VLOOKUP(C140,'Anexo_GL '!$B$9:$N$1882,8,FALSE) -> Cumple | P140: =VLOOKUP(C140,'Anexo_GL '!$B$9:$N$1882,10,FALSE) -> 2875.20417 | Q140: =VLOOKUP(C140,'Anexo_GL '!$B$9:$N$1882,11,FALSE) -> 658.87977 | R140: =VLOOKUP(C140,'Anexo_GL '!$B$9:$N$1882,12,FALSE) -> 2216.3244 | S140: =VLOOKUP(C140,'Anexo_GL '!$B$9:$N$1882,13,FALSE) -> Cumple
A141: 020505 : MD DE CAJACAY | B141: 114 | C141: 020505 | D141: ANCASH | E141: MD DE CAJACAY | F141: =VLOOKUP(C141,'Anexo_GL '!$B$9:$N$1882,4,FALSE) -> 74.80686 | H141: =VLOOKUP(C141,'Anexo_GL '!$B$9:$N$1882,5,FALSE) -> 1698.830195 | I141: =VLOOKUP(C141,'Anexo_GL '!$B$9:$N$1882,6,FALSE) -> 3716.82307 | L141: =VLOOKUP(C141,'Anexo_GL '!$B$9:$N$1882,7,FALSE) -> 2.012655932 | N141: =VLOOKUP(C141,'Anexo_GL '!$B$9:$N$1882,8,FALSE) -> Cumple | P141: =VLOOKUP(C141,'Anexo_GL '!$B$9:$N$1882,10,FALSE) -> 1633.62856 | Q141: =VLOOKUP(C141,'Anexo_GL '!$B$9:$N$1882,11,FALSE) -> 758.68079 | R141: =VLOOKUP(C141,'Anexo_GL '!$B$9:$N$1882,12,FALSE) -> 874.94777 | S141: =VLOOKUP(C141,'Anexo_GL '!$B$9:$N$1882,13,FALSE) -> Cumple
A142: 020506 : MD DE CANIS | B142: 115 | C142: 020506 | D142: ANCASH | E142: MD DE CANIS | F142: =VLOOKUP(C142,'Anexo_GL '!$B$9:$N$1882,4,FALSE) -> 182.38486 | H142: =VLOOKUP(C142,'Anexo_GL '!$B$9:$N$1882,5,FALSE) -> 1516.805915 | I142: =VLOOKUP(C142,'Anexo_GL '!$B$9:$N$1882,6,FALSE) -> 3827.66807 | L142: =VLOOKUP(C142,'Anexo_GL '!$B$9:$N$1882,7,FALSE) -> 4.764907946 | N142: =VLOOKUP(C142,'Anexo_GL '!$B$9:$N$1882,8,FALSE) -> Cumple | P142: =VLOOKUP(C142,'Anexo_GL '!$B$9:$N$1882,10,FALSE) -> 1669.40307 | Q142: =VLOOKUP(C142,'Anexo_GL '!$B$9:$N$1882,11,FALSE) -> 390.23548 | R142: =VLOOKUP(C142,'Anexo_GL '!$B$9:$N$1882,12,FALSE) -> 1279.16759 | S142: =VLOOKUP(C142,'Anexo_GL '!$B$9:$N$1882,13,FALSE) -> Cumple
A143: 020507 : MD DE COLQUIOC | B143: 116 | C143: 020507 | D143: ANCASH | E143: MD DE COLQUIOC | F143: =VLOOKUP(C143,'Anexo_GL '!$B$9:$N$1882,4,FALSE) -> 6357.3549 | H143: =VLOOKUP(C143,'Anexo_GL '!$B$9:$N$1882,5,FALSE) -> 3013.40997 | I143: =VLOOKUP(C143,'Anexo_GL '!$B$9:$N$1882,6,FALSE) -> 7926.41156 | L143: =VLOOKUP(C143,'Anexo_GL '!$B$9:$N$1882,7,FALSE) -> 80.20470363 | N143: =VLOOKUP(C143,'Anexo_GL '!$B$9:$N$1882,8,FALSE) -> Cumple | P143: =VLOOKUP(C143,'Anexo_GL '!$B$9:$N$1882,10,FALSE) -> 3257.6041 | Q143: =VLOOKUP(C143,'Anexo_GL '!$B$9:$N$1882,11,FALSE) -> 723.52659 | R143: =VLOOKUP(C143,'Anexo_GL '!$B$9:$N$1882,12,FALSE) -> 2534.07751 | S143: =VLOOKUP(C143,'Anexo_GL '!$B$9:$N$1882,13,FALSE) -> Cumple
A144: 020508 : MD DE HUALLANCA | B144: 117 | C144: 020508 | D144: ANCASH | E144: MD DE HUALLANCA | F144: =VLOOKUP(C144,'Anexo_GL '!$B$9:$N$1882,4,FALSE) -> 1210.86401 | H144: =VLOOKUP(C144,'Anexo_GL '!$B$9:$N$1882,5,FALSE) -> 8653.820535 | I144: =VLOOKUP(C144,'Anexo_GL '!$B$9:$N$1882,6,FALSE) -> 23675.26487 | L144: =VLOOKUP(C144,'Anexo_GL '!$B$9:$N$1882,7,FALSE) -> 5.114468694 | N144: =VLOOKUP(C144,'Anexo_GL '!$B$9:$N$1882,8,FALSE) -> Cumple | P144: =VLOOKUP(C144,'Anexo_GL '!$B$9:$N$1882,10,FALSE) -> 8851.23973 | Q144: =VLOOKUP(C144,'Anexo_GL '!$B$9:$N$1882,11,FALSE) -> 3092.57103 | R144: =VLOOKUP(C144,'Anexo_GL '!$B$9:$N$1882,12,FALSE) -> 5758.6687 | S144: =VLOOKUP(C144,'Anexo_GL '!$B$9:$N$1882,13,FALSE) -> Cumple
A145: 020509 : MD DE HUASTA | B145: 118 | C145: 020509 | D145: ANCASH | E145: MD DE HUASTA | F145: =VLOOKUP(C145,'Anexo_GL '!$B$9:$N$1882,4,FALSE) -> 380.61821 | H145: =VLOOKUP(C145,'Anexo_GL '!$B$9:$N$1882,5,FALSE) -> 3314.222542 | I145: =VLOOKUP(C145,'Anexo_GL '!$B$9:$N$1882,6,FALSE) -> 7587.51998 | L145: =VLOOKUP(C145,'Anexo_GL '!$B$9:$N$1882,7,FALSE) -> 5.016371766 | N145: =VLOOKUP(C145,'Anexo_GL '!$B$9:$N$1882,8,FALSE) -> Cumple | P145: =VLOOKUP(C145,'Anexo_GL '!$B$9:$N$1882,10,FALSE) -> 3482.93481 | Q145: =VLOOKUP(C145,'Anexo_GL '!$B$9:$N$1882,11,FALSE) -> 677.29264 | R145: =VLOOKUP(C145,'Anexo_GL '!$B$9:$N$1882,12,FALSE) -> 2805.64217 | S145: =VLOOKUP(C145,'Anexo_GL '!$B$9:$N$1882,13,FALSE) -> Cumple
A146: 020510 : MD DE HUAYLLACAYAN | B146: 119 | C146: 020510 | D146: ANCASH | E146: MD DE HUAYLLACAYAN | F146: =VLOOKUP(C146,'Anexo_GL '!$B$9:$N$1882,4,FALSE) -> 1616.81872 | H146: =VLOOKUP(C146,'Anexo_GL '!$B$9:$N$1882,5,FALSE) -> 1261.291985 | I146: =VLOOKUP(C146,'Anexo_GL '!$B$9:$N$1882,6,FALSE) -> 2963.05389 | L146: =VLOOKUP(C146,'Anexo_GL '!$B$9:$N$1882,7,FALSE) -> 54.56595729 | N146: =VLOOKUP(C146,'Anexo_GL '!$B$9:$N$1882,8,FALSE) -> Cumple | P146: =VLOOKUP(C146,'Anexo_GL '!$B$9:$N$1882,10,FALSE) -> 897.8871 | Q146: =VLOOKUP(C146,'Anexo_GL '!$B$9:$N$1882,11,FALSE) -> 441.03197 | R146: =VLOOKUP(C146,'Anexo_GL '!$B$9:$N$1882,12,FALSE) -> 456.85513 | S146: =VLOOKUP(C146,'Anexo_GL '!$B$9:$N$1882,13,FALSE) -> Cumple
A147: 020511 : MD DE LA PRIMAVERA | B147: 120 | C147: 020511 | D147: ANCASH | E147: MD DE LA PRIMAVERA | F147: =VLOOKUP(C147,'Anexo_GL '!$B$9:$N$1882,4,FALSE) -> 224.72619 | H147: =VLOOKUP(C147,'Anexo_GL '!$B$9:$N$1882,5,FALSE) -> 1443.82113 | I147: =VLOOKUP(C147,'Anexo_GL '!$B$9:$N$1882,6,FALSE) -> 2044.43369 | L147: =VLOOKUP(C147,'Anexo_GL '!$B$9:$N$1882,7,FALSE) -> 10.99209972 | N147: =VLOOKUP(C147,'Anexo_GL '!$B$9:$N$1882,8,FALSE) -> Cumple | P147: =VLOOKUP(C147,'Anexo_GL '!$B$9:$N$1882,10,FALSE) -> 1874.6619 | Q147: =VLOOKUP(C147,'Anexo_GL '!$B$9:$N$1882,11,FALSE) -> 764.50832 | R147: =VLOOKUP(C147,'Anexo_GL '!$B$9:$N$1882,12,FALSE) -> 1110.15358 | S147: =VLOOKUP(C147,'Anexo_GL '!$B$9:$N$1882,13,FALSE) -> Cumple
A148: 020512 : MD DE MANGAS | B148: 121 | C148: 020512 | D148: ANCASH | E148: MD DE MANGAS | F148: =VLOOKUP(C148,'Anexo_GL '!$B$9:$N$1882,4,FALSE) -> 265.99533 | H148: =VLOOKUP(C148,'Anexo_GL '!$B$9:$N$1882,5,FALSE) -> 930.0347275 | I148: =VLOOKUP(C148,'Anexo_GL '!$B$9:$N$1882,6,FALSE) -> 1641.23404 | L148: =VLOOKUP(C148,'Anexo_GL '!$B$9:$N$1882,7,FALSE) -> 16.20703224 | N148: =VLOOKUP(C148,'Anexo_GL '!$B$9:$N$1882,8,FALSE) -> Cumple | P148: =VLOOKUP(C148,'Anexo_GL '!$B$9:$N$1882,10,FALSE) -> 880.19067 | Q148: =VLOOKUP(C148,'Anexo_GL '!$B$9:$N$1882,11,FALSE) -> 396.25692 | R148: =VLOOKUP(C148,'Anexo_GL '!$B$9:$N$1882,12,FALSE) -> 483.93375 | S148: =VLOOKUP(C148,'Anexo_GL '!$B$9:$N$1882,13,FALSE) -> Cumple
A149: 020513 : MD DE PACLLON | B149: 122 | C149: 020513 | D149: ANCASH | E149: MD DE PACLLON | F149: =VLOOKUP(C149,'Anexo_GL '!$B$9:$N$1882,4,FALSE) -> 3092.8586 | H149: =VLOOKUP(C149,'Anexo_GL '!$B$9:$N$1882,5,FALSE) -> 2210.960108 | I149: =VLOOKUP(C149,'Anexo_GL '!$B$9:$N$1882,6,FALSE) -> 5560.40454 | L149: =VLOOKUP(C149,'Anexo_GL '!$B$9:$N$1882,7,FALSE) -> 55.62290617 | N149: =VLOOKUP(C149,'Anexo_GL '!$B$9:$N$1882,8,FALSE) -> Cumple | P149: =VLOOKUP(C149,'Anexo_GL '!$B$9:$N$1882,10,FALSE) -> 2280.22593 | Q149: =VLOOKUP(C149,'Anexo_GL '!$B$9:$N$1882,11,FALSE) -> 289.07496 | R149: =VLOOKUP(C149,'Anexo_GL '!$B$9:$N$1882,12,FALSE) -> 1991.15097 | S149: =VLOOKUP(C149,'Anexo_GL '!$B$9:$N$1882,13,FALSE) -> Cumple
A150: 020514 : MD DE SAN MIGUEL DE CORPANQUI | B150: 123 | C150: 020514 | D150: ANCASH | E150: MD DE SAN MIGUEL DE CORPANQUI | F150: =VLOOKUP(C150,'Anexo_GL '!$B$9:$N$1882,4,FALSE) -> 85.18248 | H150: =VLOOKUP(C150,'Anexo_GL '!$B$9:$N$1882,5,FALSE) -> 1252.610302 | I150: =VLOOKUP(C150,'Anexo_GL '!$B$9:$N$1882,6,FALSE) -> 2959.93341 | L150: =VLOOKUP(C150,'Anexo_GL '!$B$9:$N$1882,7,FALSE) -> 2.877851228 | N150: =VLOOKUP(C150,'Anexo_GL '!$B$9:$N$1882,8,FALSE) -> Cumple | P150: =VLOOKUP(C150,'Anexo_GL '!$B$9:$N$1882,10,FALSE) -> 1306.72954 | Q150: =VLOOKUP(C150,'Anexo_GL '!$B$9:$N$1882,11,FALSE) -> 412.59397 | R150: =VLOOKUP(C150,'Anexo_GL '!$B$9:$N$1882,12,FALSE) -> 894.13557 | S150: =VLOOKUP(C150,'Anexo_GL '!$B$9:$N$1882,13,FALSE) -> Cumple
A151: 020515 : MD DE TICLLOS | B151: 124 | C151: 020515 | D151: ANCASH | E151: MD DE TICLLOS | F151: =VLOOKUP(C151,'Anexo_GL '!$B$9:$N$1882,4,FALSE) -> 1846.01716 | H151: =VLOOKUP(C151,'Anexo_GL '!$B$9:$N$1882,5,FALSE) -> 1384.222535 | I151: =VLOOKUP(C151,'Anexo_GL '!$B$9:$N$1882,6,FALSE) -> 3194.10102 | L151: =VLOOKUP(C151,'Anexo_GL '!$B$9:$N$1882,7,FALSE) -> 57.79457658 | N151: =VLOOKUP(C151,'Anexo_GL '!$B$9:$N$1882,8,FALSE) -> Cumple | P151: =VLOOKUP(C151,'Anexo_GL '!$B$9:$N$1882,10,FALSE) -> 1489.10101 | Q151: =VLOOKUP(C151,'Anexo_GL '!$B$9:$N$1882,11,FALSE) -> 450.61555 | R151: =VLOOKUP(C151,'Anexo_GL '!$B$9:$N$1882,12,FALSE) -> 1038.48546 | S151: =VLOOKUP(C151,'Anexo_GL '!$B$9:$N$1882,13,FALSE) -> Cumple
A152: 020601 : MP DE CARHUAZ | B152: 125 | C152: 020601 | D152: ANCASH | E152: MP DE CARHUAZ | F152: =VLOOKUP(C152,'Anexo_GL '!$B$9:$N$1882,4,FALSE) -> 2743.62678 | H152: =VLOOKUP(C152,'Anexo_GL '!$B$9:$N$1882,5,FALSE) -> 14584.63413 | I152: =VLOOKUP(C152,'Anexo_GL '!$B$9:$N$1882,6,FALSE) -> 21395.53106 | L152: =VLOOKUP(C152,'Anexo_GL '!$B$9:$N$1882,7,FALSE) -> 12.82336378 | N152: =VLOOKUP(C152,'Anexo_GL '!$B$9:$N$1882,8,FALSE) -> Cumple | P152: =VLOOKUP(C152,'Anexo_GL '!$B$9:$N$1882,10,FALSE) -> 15885.74088 | Q152: =VLOOKUP(C152,'Anexo_GL '!$B$9:$N$1882,11,FALSE) -> 5531.28788 | R152: =VLOOKUP(C152,'Anexo_GL '!$B$9:$N$1882,12,FALSE) -> 10354.453 | S152: =VLOOKUP(C152,'Anexo_GL '!$B$9:$N$1882,13,FALSE) -> Cumple
A153: 020602 : MD DE ACOPAMPA | B153: 126 | C153: 020602 | D153: ANCASH | E153: MD DE ACOPAMPA | F153: =VLOOKUP(C153,'Anexo_GL '!$B$9:$N$1882,4,FALSE) -> 207.23412 | H153: =VLOOKUP(C153,'Anexo_GL '!$B$9:$N$1882,5,FALSE) -> 1663.421282 | I153: =VLOOKUP(C153,'Anexo_GL '!$B$9:$N$1882,6,FALSE) -> 3320.41424 | L153: =VLOOKUP(C153,'Anexo_GL '!$B$9:$N$1882,7,FALSE) -> 6.241212843 | N153: =VLOOKUP(C153,'Anexo_GL '!$B$9:$N$1882,8,FALSE) -> Cumple | P153: =VLOOKUP(C153,'Anexo_GL '!$B$9:$N$1882,10,FALSE) -> 1805.44337 | Q153: =VLOOKUP(C153,'Anexo_GL '!$B$9:$N$1882,11,FALSE) -> 700.60357 | R153: =VLOOKUP(C153,'Anexo_GL '!$B$9:$N$1882,12,FALSE) -> 1104.8398 | S153: =VLOOKUP(C153,'Anexo_GL '!$B$9:$N$1882,13,FALSE) -> Cumple
A154: 020603 : MD DE AMASHCA | B154: 127 | C154: 020603 | D154: ANCASH | E154: MD DE AMASHCA | F154: =VLOOKUP(C154,'Anexo_GL '!$B$9:$N$1882,4,FALSE) -> 203.31798 | H154: =VLOOKUP(C154,'Anexo_GL '!$B$9:$N$1882,5,FALSE) -> 1658.379267 | I154: =VLOOKUP(C154,'Anexo_GL '!$B$9:$N$1882,6,FALSE) -> 2948.13303 | L154: =VLOOKUP(C154,'Anexo_GL '!$B$9:$N$1882,7,FALSE) -> 6.896499511 | N154: =VLOOKUP(C154,'Anexo_GL '!$B$9:$N$1882,8,FALSE) -> Cumple | P154: =VLOOKUP(C154,'Anexo_GL '!$B$9:$N$1882,10,FALSE) -> 2215.92435 | Q154: =VLOOKUP(C154,'Anexo_GL '!$B$9:$N$1882,11,FALSE) -> 403.80905 | R154: =VLOOKUP(C154,'Anexo_GL '!$B$9:$N$1882,12,FALSE) -> 1812.1153 | S154: =VLOOKUP(C154,'Anexo_GL '!$B$9:$N$1882,13,FALSE) -> Cumple
A155: 020604 : MD DE ANTA | B155: 128 | C155: 020604 | D155: ANCASH | E155: MD DE ANTA | F155: =VLOOKUP(C155,'Anexo_GL '!$B$9:$N$1882,4,FALSE) -> 338.80174 | H155: =VLOOKUP(C155,'Anexo_GL '!$B$9:$N$1882,5,FALSE) -> 2150.970967 | I155: =VLOOKUP(C155,'Anexo_GL '!$B$9:$N$1882,6,FALSE) -> 3992.29716 | L155: =VLOOKUP(C155,'Anexo_GL '!$B$9:$N$1882,7,FALSE) -> 8.486385818 | N155: =VLOOKUP(C155,'Anexo_GL '!$B$9:$N$1882,8,FALSE) -> Cumple | P155: =VLOOKUP(C155,'Anexo_GL '!$B$9:$N$1882,10,FALSE) -> 2022.78219 | Q155: =VLOOKUP(C155,'Anexo_GL '!$B$9:$N$1882,11,FALSE) -> 952.17951 | R155: =VLOOKUP(C155,'Anexo_GL '!$B$9:$N$1882,12,FALSE) -> 1070.60268 | S155: =VLOOKUP(C155,'Anexo_GL '!$B$9:$N$1882,13,FALSE) -> Cumple
A156: 020605 : MD DE ATAQUERO | B156: 129 | C156: 020605 | D156: ANCASH | E156: MD DE ATAQUERO | F156: =VLOOKUP(C156,'Anexo_GL '!$B$9:$N$1882,4,FALSE) -> 344.31448 | H156: =VLOOKUP(C156,'Anexo_GL '!$B$9:$N$1882,5,FALSE) -> 1259.28969 | I156: =VLOOKUP(C156,'Anexo_GL '!$B$9:$N$1882,6,FALSE) -> 2638.45369 | L156: =VLOOKUP(C156,'Anexo_GL '!$B$9:$N$1882,7,FALSE) -> 13.04985876 | N156: =VLOOKUP(C156,'Anexo_GL '!$B$9:$N$1882,8,FALSE) -> Cumple | P156: =VLOOKUP(C156,'Anexo_GL '!$B$9:$N$1882,10,FALSE) -> 1311.44254 | Q156: =VLOOKUP(C156,'Anexo_GL '!$B$9:$N$1882,11,FALSE) -> 520.32282 | R156: =VLOOKUP(C156,'Anexo_GL '!$B$9:$N$1882,12,FALSE) -> 791.11972 | S156: =VLOOKUP(C156,'Anexo_GL '!$B$9:$N$1882,13,FALSE) -> Cumple
A157: 020606 : MD DE MARCARA | B157: 130 | C157: 020606 | D157: ANCASH | E157: MD DE MARCARA | F157: =VLOOKUP(C157,'Anexo_GL '!$B$9:$N$1882,4,FALSE) -> 2178.56949 | H157: =VLOOKUP(C157,'Anexo_GL '!$B$9:$N$1882,5,FALSE) -> 6209.056143 | I157: =VLOOKUP(C157,'Anexo_GL '!$B$9:$N$1882,6,FALSE) -> 15520.52062 | L157: =VLOOKUP(C157,'Anexo_GL '!$B$9:$N$1882,7,FALSE) -> 14.03670369 | N157: =VLOOKUP(C157,'Anexo_GL '!$B$9:$N$1882,8,FALSE) -> Cumple | P157: =VLOOKUP(C157,'Anexo_GL '!$B$9:$N$1882,10,FALSE) -> 4227.19781 | Q157: =VLOOKUP(C157,'Anexo_GL '!$B$9:$N$1882,11,FALSE) -> 1753.44581 | R157: =VLOOKUP(C157,'Anexo_GL '!$B$9:$N$1882,12,FALSE) -> 2473.752 | S157: =VLOOKUP(C157,'Anexo_GL '!$B$9:$N$1882,13,FALSE) -> Cumple
A158: 020607 : MD DE PARIAHUANCA | B158: 131 | C158: 020607 | D158: ANCASH | E158: MD DE PARIAHUANCA | F158: =VLOOKUP(C158,'Anexo_GL '!$B$9:$N$1882,4,FALSE) -> 222.06426 | H158: =VLOOKUP(C158,'Anexo_GL '!$B$9:$N$1882,5,FALSE) -> 1740.664585 | I158: =VLOOKUP(C158,'Anexo_GL '!$B$9:$N$1882,6,FALSE) -> 2414.97012 | L158: =VLOOKUP(C158,'Anexo_GL '!$B$9:$N$1882,7,FALSE) -> 9.195321224 | N158: =VLOOKUP(C158,'Anexo_GL '!$B$9:$N$1882,8,FALSE) -> Cumple | P158: =VLOOKUP(C158,'Anexo_GL '!$B$9:$N$1882,10,FALSE) -> 1527.85832 | Q158: =VLOOKUP(C158,'Anexo_GL '!$B$9:$N$1882,11,FALSE) -> 847.68872 | R158: =VLOOKUP(C158,'Anexo_GL '!$B$9:$N$1882,12,FALSE) -> 680.1696 | S158: =VLOOKUP(C158,'Anexo_GL '!$B$9:$N$1882,13,FALSE) -> Cumple
A159: 020608 : MD DE SAN MIGUEL DE ACO | B159: 132 | C159: 020608 | D159: ANCASH | E159: MD DE SAN MIGUEL DE ACO | F159: =VLOOKUP(C159,'Anexo_GL '!$B$9:$N$1882,4,FALSE) -> 69.26223 | H159: =VLOOKUP(C159,'Anexo_GL '!$B$9:$N$1882,5,FALSE) -> 1896.49273 | I159: =VLOOKUP(C159,'Anexo_GL '!$B$9:$N$1882,6,FALSE) -> 3354.17798 | L159: =VLOOKUP(C159,'Anexo_GL '!$B$9:$N$1882,7,FALSE) -> 2.064953929 | N159: =VLOOKUP(C159,'Anexo_GL '!$B$9:$N$1882,8,FALSE) -> Cumple | P159: =VLOOKUP(C159,'Anexo_GL '!$B$9:$N$1882,10,FALSE) -> 2553.98042 | Q159: =VLOOKUP(C159,'Anexo_GL '!$B$9:$N$1882,11,FALSE) -> 656.0828 | R159: =VLOOKUP(C159,'Anexo_GL '!$B$9:$N$1882,12,FALSE) -> 1897.89762 | S159: =VLOOKUP(C159,'Anexo_GL '!$B$9:$N$1882,13,FALSE) -> Cumple
A160: 020609 : MD DE SHILLA | B160: 133 | C160: 020609 | D160: ANCASH | E160: MD DE SHILLA | F160: =VLOOKUP(C160,'Anexo_GL '!$B$9:$N$1882,4,FALSE) -> 223.91124 | H160: =VLOOKUP(C160,'Anexo_GL '!$B$9:$N$1882,5,FALSE) -> 2842.534123 | I160: =VLOOKUP(C160,'Anexo_GL '!$B$9:$N$1882,6,FALSE) -> 4851.40042 | L160: =VLOOKUP(C160,'Anexo_GL '!$B$9:$N$1882,7,FALSE) -> 4.61539392 | N160: =VLOOKUP(C160,'Anexo_GL '!$B$9:$N$1882,8,FALSE) -> Cumple | P160: =VLOOKUP(C160,'Anexo_GL '!$B$9:$N$1882,10,FALSE) -> 2155.9071 | Q160: =VLOOKUP(C160,'Anexo_GL '!$B$9:$N$1882,11,FALSE) -> 863.31298 | R160: =VLOOKUP(C160,'Anexo_GL '!$B$9:$N$1882,12,FALSE) -> 1292.59412 | S160: =VLOOKUP(C160,'Anexo_GL '!$B$9:$N$1882,13,FALSE) -> Cumple
A161: 020610 : MD DE TINCO | B161: 134 | C161: 020610 | D161: ANCASH | E161: MD DE TINCO | F161: =VLOOKUP(C161,'Anexo_GL '!$B$9:$N$1882,4,FALSE) -> 2389.68216 | H161: =VLOOKUP(C161,'Anexo_GL '!$B$9:$N$1882,5,FALSE) -> 2366.78028 | I161: =VLOOKUP(C161,'Anexo_GL '!$B$9:$N$1882,6,FALSE) -> 3667.62205 | L161: =VLOOKUP(C161,'Anexo_GL '!$B$9:$N$1882,7,FALSE) -> 65.15617279 | N161: =VLOOKUP(C161,'Anexo_GL '!$B$9:$N$1882,8,FALSE) -> Cumple | P161: =VLOOKUP(C161,'Anexo_GL '!$B$9:$N$1882,10,FALSE) -> 1720.54565 | Q161: =VLOOKUP(C161,'Anexo_GL '!$B$9:$N$1882,11,FALSE) -> 582.96704 | R161: =VLOOKUP(C161,'Anexo_GL '!$B$9:$N$1882,12,FALSE) -> 1137.57861 | S161: =VLOOKUP(C161,'Anexo_GL '!$B$9:$N$1882,13,FALSE) -> Cumple
A162: 020611 : MD DE YUNGAR | B162: 135 | C162: 020611 | D162: ANCASH | E162: MD DE YUNGAR | F162: =VLOOKUP(C162,'Anexo_GL '!$B$9:$N$1882,4,FALSE) -> 262.4523 | H162: =VLOOKUP(C162,'Anexo_GL '!$B$9:$N$1882,5,FALSE) -> 2174.288213 | I162: =VLOOKUP(C162,'Anexo_GL '!$B$9:$N$1882,6,FALSE) -> 4817.62904 | L162: =VLOOKUP(C162,'Anexo_GL '!$B$9:$N$1882,7,FALSE) -> 5.447748214 | N162: =VLOOKUP(C162,'Anexo_GL '!$B$9:$N$1882,8,FALSE) -> Cumple | P162: =VLOOKUP(C162,'Anexo_GL '!$B$9:$N$1882,10,FALSE) -> 2289.32895 | Q162: =VLOOKUP(C162,'Anexo_GL '!$B$9:$N$1882,11,FALSE) -> 769.92341 | R162: =VLOOKUP(C162,'Anexo_GL '!$B$9:$N$1882,12,FALSE) -> 1519.40554 | S162: =VLOOKUP(C162,'Anexo_GL '!$B$9:$N$1882,13,FALSE) -> Cumple
A163: 020701 : MP DE CARLOS FERMIN FITZCARRALD | B163: 136 | C163: 020701 | D163: ANCASH | E163: MP DE CARLOS FERMIN FITZCARRALD | F163: =VLOOKUP(C163,'Anexo_GL '!$B$9:$N$1882,4,FALSE) -> 7580.43161 | H163: =VLOOKUP(C163,'Anexo_GL '!$B$9:$N$1882,5,FALSE) -> 15123.47538 | I163: =VLOOKUP(C163,'Anexo_GL '!$B$9:$N$1882,6,FALSE) -> 28393.27517 | L163: =VLOOKUP(C163,'Anexo_GL '!$B$9:$N$1882,7,FALSE) -> 26.69798241 | N163: =VLOOKUP(C163,'Anexo_GL '!$B$9:$N$1882,8,FALSE) -> Cumple | P163: =VLOOKUP(C163,'Anexo_GL '!$B$9:$N$1882,10,FALSE) -> 15378.33054 | Q163: =VLOOKUP(C163,'Anexo_GL '!$B$9:$N$1882,11,FALSE) -> 6086.38462 | R163: =VLOOKUP(C163,'Anexo_GL '!$B$9:$N$1882,12,FALSE) -> 9291.94592 | S163: =VLOOKUP(C163,'Anexo_GL '!$B$9:$N$1882,13,FALSE) -> Cumple
A164: 020702 : MD DE SAN NICOLAS | B164: 137 | C164: 020702 | D164: ANCASH | E164: MD DE SAN NICOLAS | F164: =VLOOKUP(C164,'Anexo_GL '!$B$9:$N$1882,4,FALSE) -> 85.16409 | H164: =VLOOKUP(C164,'Anexo_GL '!$B$9:$N$1882,5,FALSE) -> 3569.682885 | I164: =VLOOKUP(C164,'Anexo_GL '!$B$9:$N$1882,6,FALSE) -> 8169.62282 | L164: =VLOOKUP(C164,'Anexo_GL '!$B$9:$N$1882,7,FALSE) -> 1.042448249 | N164: =VLOOKUP(C164,'Anexo_GL '!$B$9:$N$1882,8,FALSE) -> Cumple | P164: =VLOOKUP(C164,'Anexo_GL '!$B$9:$N$1882,10,FALSE) -> 2311.4032 | Q164: =VLOOKUP(C164,'Anexo_GL '!$B$9:$N$1882,11,FALSE) -> 1231.2187 | R164: =VLOOKUP(C164,'Anexo_GL '!$B$9:$N$1882,12,FALSE) -> 1080.1845 | S164: =VLOOKUP(C164,'Anexo_GL '!$B$9:$N$1882,13,FALSE) -> Cumple
A165: 020703 : MD DE YAUYA | B165: 138 | C165: 020703 | D165: ANCASH | E165: MD DE YAUYA | F165: =VLOOKUP(C165,'Anexo_GL '!$B$9:$N$1882,4,FALSE) -> 515.04473 | H165: =VLOOKUP(C165,'Anexo_GL '!$B$9:$N$1882,5,FALSE) -> 5878.23303 | I165: =VLOOKUP(C165,'Anexo_GL '!$B$9:$N$1882,6,FALSE) -> 12186.674 | L165: =VLOOKUP(C165,'Anexo_GL '!$B$9:$N$1882,7,FALSE) -> 4.226294475 | N165: =VLOOKUP(C165,'Anexo_GL '!$B$9:$N$1882,8,FALSE) -> Cumple | P165: =VLOOKUP(C165,'Anexo_GL '!$B$9:$N$1882,10,FALSE) -> 6007.48439 | Q165: =VLOOKUP(C165,'Anexo_GL '!$B$9:$N$1882,11,FALSE) -> 2034.54633 | R165: =VLOOKUP(C165,'Anexo_GL '!$B$9:$N$1882,12,FALSE) -> 3972.93806 | S165: =VLOOKUP(C165,'Anexo_GL '!$B$9:$N$1882,13,FALSE) -> Cumple
A166: 020801 : MP DE CASMA | B166: 139 | C166: 020801 | D166: ANCASH | E166: MP DE CASMA | F166: =VLOOKUP(C166,'Anexo_GL '!$B$9:$N$1882,4,FALSE) -> 6047.55421 | H166: =VLOOKUP(C166,'Anexo_GL '!$B$9:$N$1882,5,FALSE) -> 20980.0305 | I166: =VLOOKUP(C166,'Anexo_GL '!$B$9:$N$1882,6,FALSE) -> 36334.88346 | L166: =VLOOKUP(C166,'Anexo_GL '!$B$9:$N$1882,7,FALSE) -> 16.64393452 | N166: =VLOOKUP(C166,'Anexo_GL '!$B$9:$N$1882,8,FALSE) -> Cumple | P166: =VLOOKUP(C166,'Anexo_GL '!$B$9:$N$1882,10,FALSE) -> 21122.69777 | Q166: =VLOOKUP(C166,'Anexo_GL '!$B$9:$N$1882,11,FALSE) -> 12641.80161 | R166: =VLOOKUP(C166,'Anexo_GL '!$B$9:$N$1882,12,FALSE) -> 8480.89616 | S166: =VLOOKUP(C166,'Anexo_GL '!$B$9:$N$1882,13,FALSE) -> Cumple
A167: 020802 : MD DE BUENA VISTA ALTA | B167: 140 | C167: 020802 | D167: ANCASH | E167: MD DE BUENA VISTA ALTA | F167: =VLOOKUP(C167,'Anexo_GL '!$B$9:$N$1882,4,FALSE) -> 726.86742 | H167: =VLOOKUP(C167,'Anexo_GL '!$B$9:$N$1882,5,FALSE) -> 3504.68772 | I167: =VLOOKUP(C167,'Anexo_GL '!$B$9:$N$1882,6,FALSE) -> 7613.4821 | L167: =VLOOKUP(C167,'Anexo_GL '!$B$9:$N$1882,7,FALSE) -> 9.547108806 | N167: =VLOOKUP(C167,'Anexo_GL '!$B$9:$N$1882,8,FALSE) -> Cumple | P167: =VLOOKUP(C167,'Anexo_GL '!$B$9:$N$1882,10,FALSE) -> 3825.31462 | Q167: =VLOOKUP(C167,'Anexo_GL '!$B$9:$N$1882,11,FALSE) -> 2093.55984 | R167: =VLOOKUP(C167,'Anexo_GL '!$B$9:$N$1882,12,FALSE) -> 1731.75478 | S167: =VLOOKUP(C167,'Anexo_GL '!$B$9:$N$1882,13,FALSE) -> Cumple
A168: 020803 : MD DE COMANDANTE NOEL | B168: 141 | C168: 020803 | D168: ANCASH | E168: MD DE COMANDANTE NOEL | F168: =VLOOKUP(C168,'Anexo_GL '!$B$9:$N$1882,4,FALSE) -> 596.30308 | H168: =VLOOKUP(C168,'Anexo_GL '!$B$9:$N$1882,5,FALSE) -> 2459.5932 | I168: =VLOOKUP(C168,'Anexo_GL '!$B$9:$N$1882,6,FALSE) -> 4600.64459 | L168: =VLOOKUP(C168,'Anexo_GL '!$B$9:$N$1882,7,FALSE) -> 12.96129419 | N168: =VLOOKUP(C168,'Anexo_GL '!$B$9:$N$1882,8,FALSE) -> Cumple | P168: =VLOOKUP(C168,'Anexo_GL '!$B$9:$N$1882,10,FALSE) -> 2556.56816 | Q168: =VLOOKUP(C168,'Anexo_GL '!$B$9:$N$1882,11,FALSE) -> 1240.88215 | R168: =VLOOKUP(C168,'Anexo_GL '!$B$9:$N$1882,12,FALSE) -> 1315.68601 | S168: =VLOOKUP(C168,'Anexo_GL '!$B$9:$N$1882,13,FALSE) -> Cumple
A169: 020804 : MD DE YAUTAN | B169: 142 | C169: 020804 | D169: ANCASH | E169: MD DE YAUTAN | F169: =VLOOKUP(C169,'Anexo_GL '!$B$9:$N$1882,4,FALSE) -> 1049.74117 | H169: =VLOOKUP(C169,'Anexo_GL '!$B$9:$N$1882,5,FALSE) -> 4386.027775 | I169: =VLOOKUP(C169,'Anexo_GL '!$B$9:$N$1882,6,FALSE) -> 10569.82677 | L169: =VLOOKUP(C169,'Anexo_GL '!$B$9:$N$1882,7,FALSE) -> 9.931488877 | N169: =VLOOKUP(C169,'Anexo_GL '!$B$9:$N$1882,8,FALSE) -> Cumple | P169: =VLOOKUP(C169,'Anexo_GL '!$B$9:$N$1882,10,FALSE) -> 3077.8287 | Q169: =VLOOKUP(C169,'Anexo_GL '!$B$9:$N$1882,11,FALSE) -> 1768.81494 | R169: =VLOOKUP(C169,'Anexo_GL '!$B$9:$N$1882,12,FALSE) -> 1309.01376 | S169: =VLOOKUP(C169,'Anexo_GL '!$B$9:$N$1882,13,FALSE) -> Cumple
A170: 020901 : MP DE CORONGO | B170: 143 | C170: 020901 | D170: ANCASH | E170: MP DE CORONGO | F170: =VLOOKUP(C170,'Anexo_GL '!$B$9:$N$1882,4,FALSE) -> 450.69347 | H170: =VLOOKUP(C170,'Anexo_GL '!$B$9:$N$1882,5,FALSE) -> 2356.897627 | I170: =VLOOKUP(C170,'Anexo_GL '!$B$9:$N$1882,6,FALSE) -> 1757.69157 | L170: =VLOOKUP(C170,'Anexo_GL '!$B$9:$N$1882,7,FALSE) -> 19.12231846 | N170: =VLOOKUP(C170,'Anexo_GL '!$B$9:$N$1882,8,FALSE) -> Cumple | P170: =VLOOKUP(C170,'Anexo_GL '!$B$9:$N$1882,10,FALSE) -> 1484.8569 | Q170: =VLOOKUP(C170,'Anexo_GL '!$B$9:$N$1882,11,FALSE) -> 1076.36416 | R170: =VLOOKUP(C170,'Anexo_GL '!$B$9:$N$1882,12,FALSE) -> 408.49274 | S170: =VLOOKUP(C170,'Anexo_GL '!$B$9:$N$1882,13,FALSE) -> Cumple
A171: 020902 : MD DE ACO | B171: 144 | C171: 020902 | D171: ANCASH | E171: MD DE ACO | F171: =VLOOKUP(C171,'Anexo_GL '!$B$9:$N$1882,4,FALSE) -> 317.81066 | H171: =VLOOKUP(C171,'Anexo_GL '!$B$9:$N$1882,5,FALSE) -> 773.04644 | I171: =VLOOKUP(C171,'Anexo_GL '!$B$9:$N$1882,6,FALSE) -> 980.68727 | L171: =VLOOKUP(C171,'Anexo_GL '!$B$9:$N$1882,7,FALSE) -> 32.40693233 | N171: =VLOOKUP(C171,'Anexo_GL '!$B$9:$N$1882,8,FALSE) -> Cumple | P171: =VLOOKUP(C171,'Anexo_GL '!$B$9:$N$1882,10,FALSE) -> 672.96468 | Q171: =VLOOKUP(C171,'Anexo_GL '!$B$9:$N$1882,11,FALSE) -> 248.4617 | R171: =VLOOKUP(C171,'Anexo_GL '!$B$9:$N$1882,12,FALSE) -> 424.50298 | S171: =VLOOKUP(C171,'Anexo_GL '!$B$9:$N$1882,13,FALSE) -> Cumple
A172: 020903 : MD DE BAMBAS | B172: 145 | C172: 020903 | D172: ANCASH | E172: MD DE BAMBAS | F172: =VLOOKUP(C172,'Anexo_GL '!$B$9:$N$1882,4,FALSE) -> 37.4225 | H172: =VLOOKUP(C172,'Anexo_GL '!$B$9:$N$1882,5,FALSE) -> 923.815425 | I172: =VLOOKUP(C172,'Anexo_GL '!$B$9:$N$1882,6,FALSE) -> 1236.46779 | L172: =VLOOKUP(C172,'Anexo_GL '!$B$9:$N$1882,7,FALSE) -> 3.026564889 | N172: =VLOOKUP(C172,'Anexo_GL '!$B$9:$N$1882,8,FALSE) -> Cumple | P172: =VLOOKUP(C172,'Anexo_GL '!$B$9:$N$1882,10,FALSE) -> 882.779 | Q172: =VLOOKUP(C172,'Anexo_GL '!$B$9:$N$1882,11,FALSE) -> 366.91921 | R172: =VLOOKUP(C172,'Anexo_GL '!$B$9:$N$1882,12,FALSE) -> 515.85979 | S172: =VLOOKUP(C172,'Anexo_GL '!$B$9:$N$1882,13,FALSE) -> Cumple
A173: 020904 : MD DE CUSCA | B173: 146 | C173: 020904 | D173: ANCASH | E173: MD DE CUSCA | F173: =VLOOKUP(C173,'Anexo_GL '!$B$9:$N$1882,4,FALSE) -> 179.14254 | H173: =VLOOKUP(C173,'Anexo_GL '!$B$9:$N$1882,5,FALSE) -> 3100.731795 | I173: =VLOOKUP(C173,'Anexo_GL '!$B$9:$N$1882,6,FALSE) -> 5193.02495 | L173: =VLOOKUP(C173,'Anexo_GL '!$B$9:$N$1882,7,FALSE) -> 3.449676089 | N173: =VLOOKUP(C173,'Anexo_GL '!$B$9:$N$1882,8,FALSE) -> Cumple | P173: =VLOOKUP(C173,'Anexo_GL '!$B$9:$N$1882,10,FALSE) -> 3078.50958 | Q173: =VLOOKUP(C173,'Anexo_GL '!$B$9:$N$1882,11,FALSE) -> 786.64168 | R173: =VLOOKUP(C173,'Anexo_GL '!$B$9:$N$1882,12,FALSE) -> 2291.8679 | S173: =VLOOKUP(C173,'Anexo_GL '!$B$9:$N$1882,13,FALSE) -> Cumple
A174: 020905 : MD DE LA PAMPA | B174: 147 | C174: 020905 | D174: ANCASH | E174: MD DE LA PAMPA | F174: =VLOOKUP(C174,'Anexo_GL '!$B$9:$N$1882,4,FALSE) -> 556.71038 | H174: =VLOOKUP(C174,'Anexo_GL '!$B$9:$N$1882,5,FALSE) -> 921.8199075 | I174: =VLOOKUP(C174,'Anexo_GL '!$B$9:$N$1882,6,FALSE) -> 1126.28295 | L174: =VLOOKUP(C174,'Anexo_GL '!$B$9:$N$1882,7,FALSE) -> 49.42899828 | N174: =VLOOKUP(C174,'Anexo_GL '!$B$9:$N$1882,8,FALSE) -> Cumple | P174: =VLOOKUP(C174,'Anexo_GL '!$B$9:$N$1882,10,FALSE) -> 790.96383 | Q174: =VLOOKUP(C174,'Anexo_GL '!$B$9:$N$1882,11,FALSE) -> 468.24101 | R174: =VLOOKUP(C174,'Anexo_GL '!$B$9:$N$1882,12,FALSE) -> 322.72282 | S174: =VLOOKUP(C174,'Anexo_GL '!$B$9:$N$1882,13,FALSE) -> Cumple
A175: 020906 : MD DE YANAC | B175: 148 | C175: 020906 | D175: ANCASH | E175: MD DE YANAC | F175: =VLOOKUP(C175,'Anexo_GL '!$B$9:$N$1882,4,FALSE) -> 9.42663 | H175: =VLOOKUP(C175,'Anexo_GL '!$B$9:$N$1882,5,FALSE) -> 1033.65183 | I175: =VLOOKUP(C175,'Anexo_GL '!$B$9:$N$1882,6,FALSE) -> 976.4284 | L175: =VLOOKUP(C175,'Anexo_GL '!$B$9:$N$1882,7,FALSE) -> 0.9119734253 | N175: =VLOOKUP(C175,'Anexo_GL '!$B$9:$N$1882,8,FALSE) -> Cumple | P175: =VLOOKUP(C175,'Anexo_GL '!$B$9:$N$1882,10,FALSE) -> 1463.46756 | Q175: =VLOOKUP(C175,'Anexo_GL '!$B$9:$N$1882,11,FALSE) -> 429.76867 | R175: =VLOOKUP(C175,'Anexo_GL '!$B$9:$N$1882,12,FALSE) -> 1033.69889 | S175: =VLOOKUP(C175,'Anexo_GL '!$B$9:$N$1882,13,FALSE) -> Cumple
A176: 020907 : MD DE YUPAN | B176: 149 | C176: 020907 | D176: ANCASH | E176: MD DE YUPAN | F176: =VLOOKUP(C176,'Anexo_GL '!$B$9:$N$1882,4,FALSE) -> 72.68449 | H176: =VLOOKUP(C176,'Anexo_GL '!$B$9:$N$1882,5,FALSE) -> 719.14388 | I176: =VLOOKUP(C176,'Anexo_GL '!$B$9:$N$1882,6,FALSE) -> 861.17806 | L176: =VLOOKUP(C176,'Anexo_GL '!$B$9:$N$1882,7,FALSE) -> 8.440123289 | N176: =VLOOKUP(C176,'Anexo_GL '!$B$9:$N$1882,8,FALSE) -> Cumple | P176: =VLOOKUP(C176,'Anexo_GL '!$B$9:$N$1882,10,FALSE) -> 704.05153 | Q176: =VLOOKUP(C176,'Anexo_GL '!$B$9:$N$1882,11,FALSE) -> 423.0365 | R176: =VLOOKUP(C176,'Anexo_GL '!$B$9:$N$1882,12,FALSE) -> 281.01503 | S176: =VLOOKUP(C176,'Anexo_GL '!$B$9:$N$1882,13,FALSE) -> Cumple
A177: 021001 : MP DE HUARI | B177: 150 | C177: 021001 | D177: ANCASH | E177: MP DE HUARI | F177: =VLOOKUP(C177,'Anexo_GL '!$B$9:$N$1882,4,FALSE) -> 10855.92069 | H177: =VLOOKUP(C177,'Anexo_GL '!$B$9:$N$1882,5,FALSE) -> 39734.32457 | I177: =VLOOKUP(C177,'Anexo_GL '!$B$9:$N$1882,6,FALSE) -> 111485.0175 | L177: =VLOOKUP(C177,'Anexo_GL '!$B$9:$N$1882,7,FALSE) -> 9.737560193 | N177: =VLOOKUP(C177,'Anexo_GL '!$B$9:$N$1882,8,FALSE) -> Cumple | P177: =VLOOKUP(C177,'Anexo_GL '!$B$9:$N$1882,10,FALSE) -> 47395.95357 | Q177: =VLOOKUP(C177,'Anexo_GL '!$B$9:$N$1882,11,FALSE) -> 8373.16762 | R177: =VLOOKUP(C177,'Anexo_GL '!$B$9:$N$1882,12,FALSE) -> 39022.78595 | S177: =VLOOKUP(C177,'Anexo_GL '!$B$9:$N$1882,13,FALSE) -> Cumple
A178: 021002 : MD DE ANRA | B178: 151 | C178: 021002 | D178: ANCASH | E178: MD DE ANRA | F178: =VLOOKUP(C178,'Anexo_GL '!$B$9:$N$1882,4,FALSE) -> 967.85243 | H178: =VLOOKUP(C178,'Anexo_GL '!$B$9:$N$1882,5,FALSE) -> 7466.921015 | I178: =VLOOKUP(C178,'Anexo_GL '!$B$9:$N$1882,6,FALSE) -> 23681.07264 | L178: =VLOOKUP(C178,'Anexo_GL '!$B$9:$N$1882,7,FALSE) -> 4.087029522 | N178: =VLOOKUP(C178,'Anexo_GL '!$B$9:$N$1882,8,FALSE) -> Cumple | P178: =VLOOKUP(C178,'Anexo_GL '!$B$9:$N$1882,10,FALSE) -> 9230.14669 | Q178: =VLOOKUP(C178,'Anexo_GL '!$B$9:$N$1882,11,FALSE) -> 1629.96449 | R178: =VLOOKUP(C178,'Anexo_GL '!$B$9:$N$1882,12,FALSE) -> 7600.1822 | S178: =VLOOKUP(C178,'Anexo_GL '!$B$9:$N$1882,13,FALSE) -> Cumple
A179: 021003 : MD DE CAJAY | B179: 152 | C179: 021003 | D179: ANCASH | E179: MD DE CAJAY | F179: =VLOOKUP(C179,'Anexo_GL '!$B$9:$N$1882,4,FALSE) -> 646.426 | H179: =VLOOKUP(C179,'Anexo_GL '!$B$9:$N$1882,5,FALSE) -> 12188.74914 | I179: =VLOOKUP(C179,'Anexo_GL '!$B$9:$N$1882,6,FALSE) -> 39878.2822 | L179: =VLOOKUP(C179,'Anexo_GL '!$B$9:$N$1882,7,FALSE) -> 1.620997607 | N179: =VLOOKUP(C179,'Anexo_GL '!$B$9:$N$1882,8,FALSE) -> Cumple | P179: =VLOOKUP(C179,'Anexo_GL '!$B$9:$N$1882,10,FALSE) -> 15569.79922 | Q179: =VLOOKUP(C179,'Anexo_GL '!$B$9:$N$1882,11,FALSE) -> 1793.49969 | R179: =VLOOKUP(C179,'Anexo_GL '!$B$9:$N$1882,12,FALSE) -> 13776.29953 | S179: =VLOOKUP(C179,'Anexo_GL '!$B$9:$N$1882,13,FALSE) -> Cumple
A180: 021004 : MD DE CHAVIN DE HUANTAR | B180: 153 | C180: 021004 | D180: ANCASH | E180: MD DE CHAVIN DE HUANTAR | F180: =VLOOKUP(C180,'Anexo_GL '!$B$9:$N$1882,4,FALSE) -> 7115.63945 | H180: =VLOOKUP(C180,'Anexo_GL '!$B$9:$N$1882,5,FALSE) -> 40369.70943 | I180: =VLOOKUP(C180,'Anexo_GL '!$B$9:$N$1882,6,FALSE) -> 134136.7697 | L180: =VLOOKUP(C180,'Anexo_GL '!$B$9:$N$1882,7,FALSE) -> 5.304764283 | N180: =VLOOKUP(C180,'Anexo_GL '!$B$9:$N$1882,8,FALSE) -> Cumple | P180: =VLOOKUP(C180,'Anexo_GL '!$B$9:$N$1882,10,FALSE) -> 52047.04225 | Q180: =VLOOKUP(C180,'Anexo_GL '!$B$9:$N$1882,11,FALSE) -> 4827.36714 | R180: =VLOOKUP(C180,'Anexo_GL '!$B$9:$N$1882,12,FALSE) -> 47219.67511 | S180: =VLOOKUP(C180,'Anexo_GL '!$B$9:$N$1882,13,FALSE) -> Cumple
A181: 021005 : MD DE HUACACHI | B181: 154 | C181: 021005 | D181: ANCASH | E181: MD DE HUACACHI | F181: =VLOOKUP(C181,'Anexo_GL '!$B$9:$N$1882,4,FALSE) -> 815.78487 | H181: =VLOOKUP(C181,'Anexo_GL '!$B$9:$N$1882,5,FALSE) -> 8377.300227 | I181: =VLOOKUP(C181,'Anexo_GL '!$B$9:$N$1882,6,FALSE) -> 27379.28221 | L181: =VLOOKUP(C181,'Anexo_GL '!$B$9:$N$1882,7,FALSE) -> 2.979569967 | N181: =VLOOKUP(C181,'Anexo_GL '!$B$9:$N$1882,8,FALSE) -> Cumple | P181: =VLOOKUP(C181,'Anexo_GL '!$B$9:$N$1882,10,FALSE) -> 10637.73527 | Q181: =VLOOKUP(C181,'Anexo_GL '!$B$9:$N$1882,11,FALSE) -> 1276.63042 | R181: =VLOOKUP(C181,'Anexo_GL '!$B$9:$N$1882,12,FALSE) -> 9361.10485 | S181: =VLOOKUP(C181,'Anexo_GL '!$B$9:$N$1882,13,FALSE) -> Cumple
A182: 021006 : MD DE HUACCHIS | B182: 155 | C182: 021006 | D182: ANCASH | E182: MD DE HUACCHIS | F182: =VLOOKUP(C182,'Anexo_GL '!$B$9:$N$1882,4,FALSE) -> 704.40959 | H182: =VLOOKUP(C182,'Anexo_GL '!$B$9:$N$1882,5,FALSE) -> 8902.489358 | I182: =VLOOKUP(C182,'Anexo_GL '!$B$9:$N$1882,6,FALSE) -> 29016.8801 | L182: =VLOOKUP(C182,'Anexo_GL '!$B$9:$N$1882,7,FALSE) -> 2.427585556 | N182: =VLOOKUP(C182,'Anexo_GL '!$B$9:$N$1882,8,FALSE) -> Cumple | P182: =VLOOKUP(C182,'Anexo_GL '!$B$9:$N$1882,10,FALSE) -> 11337.20125 | Q182: =VLOOKUP(C182,'Anexo_GL '!$B$9:$N$1882,11,FALSE) -> 1429.85619 | R182: =VLOOKUP(C182,'Anexo_GL '!$B$9:$N$1882,12,FALSE) -> 9907.34506 | S182: =VLOOKUP(C182,'Anexo_GL '!$B$9:$N$1882,13,FALSE) -> Cumple
A183: 021007 : MD DE HUACHIS | B183: 156 | C183: 021007 | D183: ANCASH | E183: MD DE HUACHIS | F183: =VLOOKUP(C183,'Anexo_GL '!$B$9:$N$1882,4,FALSE) -> 2035.68555 | H183: =VLOOKUP(C183,'Anexo_GL '!$B$9:$N$1882,5,FALSE) -> 17950.21621 | I183: =VLOOKUP(C183,'Anexo_GL '!$B$9:$N$1882,6,FALSE) -> 58083.40861 | L183: =VLOOKUP(C183,'Anexo_GL '!$B$9:$N$1882,7,FALSE) -> 3.504762545 | N183: =VLOOKUP(C183,'Anexo_GL '!$B$9:$N$1882,8,FALSE) -> Cumple | P183: =VLOOKUP(C183,'Anexo_GL '!$B$9:$N$1882,10,FALSE) -> 23350.93306 | Q183: =VLOOKUP(C183,'Anexo_GL '!$B$9:$N$1882,11,FALSE) -> 3638.33009 | R183: =VLOOKUP(C183,'Anexo_GL '!$B$9:$N$1882,12,FALSE) -> 19712.60297 | S183: =VLOOKUP(C183,'Anexo_GL '!$B$9:$N$1882,13,FALSE) -> Cumple
A184: 021008 : MD DE HUANTAR | B184: 157 | C184: 021008 | D184: ANCASH | E184: MD DE HUANTAR | F184: =VLOOKUP(C184,'Anexo_GL '!$B$9:$N$1882,4,FALSE) -> 4458.43516 | H184: =VLOOKUP(C184,'Anexo_GL '!$B$9:$N$1882,5,FALSE) -> 11501.01529 | I184: =VLOOKUP(C184,'Anexo_GL '!$B$9:$N$1882,6,FALSE) -> 38349.73149 | L184: =VLOOKUP(C184,'Anexo_GL '!$B$9:$N$1882,7,FALSE) -> 11.62572719 | N184: =VLOOKUP(C184,'Anexo_GL '!$B$9:$N$1882,8,FALSE) -> Cumple | P184: =VLOOKUP(C184,'Anexo_GL '!$B$9:$N$1882,10,FALSE) -> 15016.08099 | Q184: =VLOOKUP(C184,'Anexo_GL '!$B$9:$N$1882,11,FALSE) -> 1968.91031 | R184: =VLOOKUP(C184,'Anexo_GL '!$B$9:$N$1882,12,FALSE) -> 13047.17068 | S184: =VLOOKUP(C184,'Anexo_GL '!$B$9:$N$1882,13,FALSE) -> Cumple
A185: 021009 : MD DE MASIN | B185: 158 | C185: 021009 | D185: ANCASH | E185: MD DE MASIN | F185: =VLOOKUP(C185,'Anexo_GL '!$B$9:$N$1882,4,FALSE) -> 1541.02682 | H185: =VLOOKUP(C185,'Anexo_GL '!$B$9:$N$1882,5,FALSE) -> 7765.558423 | I185: =VLOOKUP(C185,'Anexo_GL '!$B$9:$N$1882,6,FALSE) -> 24620.7938 | L185: =VLOOKUP(C185,'Anexo_GL '!$B$9:$N$1882,7,FALSE) -> 6.259046043 | N185: =VLOOKUP(C185,'Anexo_GL '!$B$9:$N$1882,8,FALSE) -> Cumple | P185: =VLOOKUP(C185,'Anexo_GL '!$B$9:$N$1882,10,FALSE) -> 10155.88142 | Q185: =VLOOKUP(C185,'Anexo_GL '!$B$9:$N$1882,11,FALSE) -> 1679.53084 | R185: =VLOOKUP(C185,'Anexo_GL '!$B$9:$N$1882,12,FALSE) -> 8476.35058 | S185: =VLOOKUP(C185,'Anexo_GL '!$B$9:$N$1882,13,FALSE) -> Cumple
A186: 021010 : MD DE PAUCAS | B186: 159 | C186: 021010 | D186: ANCASH | E186: MD DE PAUCAS | F186: =VLOOKUP(C186,'Anexo_GL '!$B$9:$N$1882,4,FALSE) -> 269.29713 | H186: =VLOOKUP(C186,'Anexo_GL '!$B$9:$N$1882,5,FALSE) -> 8605.695073 | I186: =VLOOKUP(C186,'Anexo_GL '!$B$9:$N$1882,6,FALSE) -> 28405.15261 | L186: =VLOOKUP(C186,'Anexo_GL '!$B$9:$N$1882,7,FALSE) -> 0.948057325 | N186: =VLOOKUP(C186,'Anexo_GL '!$B$9:$N$1882,8,FALSE) -> Cumple | P186: =VLOOKUP(C186,'Anexo_GL '!$B$9:$N$1882,10,FALSE) -> 10552.98916 | Q186: =VLOOKUP(C186,'Anexo_GL '!$B$9:$N$1882,11,FALSE) -> 1541.9157 | R186: =VLOOKUP(C186,'Anexo_GL '!$B$9:$N$1882,12,FALSE) -> 9011.07346 | S186: =VLOOKUP(C186,'Anexo_GL '!$B$9:$N$1882,13,FALSE) -> Cumple
A187: 021011 : MD DE PONTO | B187: 160 | C187: 021011 | D187: ANCASH | E187: MD DE PONTO | F187: =VLOOKUP(C187,'Anexo_GL '!$B$9:$N$1882,4,FALSE) -> 1428.39758 | H187: =VLOOKUP(C187,'Anexo_GL '!$B$9:$N$1882,5,FALSE) -> 16833.41998 | I187: =VLOOKUP(C187,'Anexo_GL '!$B$9:$N$1882,6,FALSE) -> 55975.59274 | L187: =VLOOKUP(C187,'Anexo_GL '!$B$9:$N$1882,7,FALSE) -> 2.55182216 | N187: =VLOOKUP(C187,'Anexo_GL '!$B$9:$N$1882,8,FALSE) -> Cumple | P187: =VLOOKUP(C187,'Anexo_GL '!$B$9:$N$1882,10,FALSE) -> 21725.81296 | Q187: =VLOOKUP(C187,'Anexo_GL '!$B$9:$N$1882,11,FALSE) -> 5029.65527 | R187: =VLOOKUP(C187,'Anexo_GL '!$B$9:$N$1882,12,FALSE) -> 16696.15769 | S187: =VLOOKUP(C187,'Anexo_GL '!$B$9:$N$1882,13,FALSE) -> Cumple
A188: 021012 : MD DE RAHUAPAMPA | B188: 161 | C188: 021012 | D188: ANCASH | E188: MD DE RAHUAPAMPA | F188: =VLOOKUP(C188,'Anexo_GL '!$B$9:$N$1882,4,FALSE) -> 449.55458 | H188: =VLOOKUP(C188,'Anexo_GL '!$B$9:$N$1882,5,FALSE) -> 2963.442303 | I188: =VLOOKUP(C188,'Anexo_GL '!$B$9:$N$1882,6,FALSE) -> 8418.03159 | L188: =VLOOKUP(C188,'Anexo_GL '!$B$9:$N$1882,7,FALSE) -> 5.340376491 | N188: =VLOOKUP(C188,'Anexo_GL '!$B$9:$N$1882,8,FALSE) -> Cumple | P188: =VLOOKUP(C188,'Anexo_GL '!$B$9:$N$1882,10,FALSE) -> 3684.05594 | Q188: =VLOOKUP(C188,'Anexo_GL '!$B$9:$N$1882,11,FALSE) -> 749.05032 | R188: =VLOOKUP(C188,'Anexo_GL '!$B$9:$N$1882,12,FALSE) -> 2935.00562 | S188: =VLOOKUP(C188,'Anexo_GL '!$B$9:$N$1882,13,FALSE) -> Cumple
A189: 021013 : MD DE RAPAYAN | B189: 162 | C189: 021013 | D189: ANCASH | E189: MD DE RAPAYAN | F189: =VLOOKUP(C189,'Anexo_GL '!$B$9:$N$1882,4,FALSE) -> 124.55581 | H189: =VLOOKUP(C189,'Anexo_GL '!$B$9:$N$1882,5,FALSE) -> 8856.070883 | I189: =VLOOKUP(C189,'Anexo_GL '!$B$9:$N$1882,6,FALSE) -> 28950.88416 | L189: =VLOOKUP(C189,'Anexo_GL '!$B$9:$N$1882,7,FALSE) -> 0.4302314545 | N189: =VLOOKUP(C189,'Anexo_GL '!$B$9:$N$1882,8,FALSE) -> Cumple | P189: =VLOOKUP(C189,'Anexo_GL '!$B$9:$N$1882,10,FALSE) -> 11274.52322 | Q189: =VLOOKUP(C189,'Anexo_GL '!$B$9:$N$1882,11,FALSE) -> 1458.82972 | R189: =VLOOKUP(C189,'Anexo_GL '!$B$9:$N$1882,12,FALSE) -> 9815.6935 | S189: =VLOOKUP(C189,'Anexo_GL '!$B$9:$N$1882,13,FALSE) -> Cumple
A190: 021014 : MD DE SAN MARCOS | B190: 163 | C190: 021014 | D190: ANCASH | E190: MD DE SAN MARCOS | F190: =VLOOKUP(C190,'Anexo_GL '!$B$9:$N$1882,4,FALSE) -> 10891.91586 | H190: =VLOOKUP(C190,'Anexo_GL '!$B$9:$N$1882,5,FALSE) -> 144589.6009 | I190: =VLOOKUP(C190,'Anexo_GL '!$B$9:$N$1882,6,FALSE) -> 618432.1367 | L190: =VLOOKUP(C190,'Anexo_GL '!$B$9:$N$1882,7,FALSE) -> 1.761214402 | N190: =VLOOKUP(C190,'Anexo_GL '!$B$9:$N$1882,8,FALSE) -> Cumple | P190: =VLOOKUP(C190,'Anexo_GL '!$B$9:$N$1882,10,FALSE) -> 119460.3481 | Q190: =VLOOKUP(C190,'Anexo_GL '!$B$9:$N$1882,11,FALSE) -> 19818.2223 | R190: =VLOOKUP(C190,'Anexo_GL '!$B$9:$N$1882,12,FALSE) -> 99642.1258 | S190: =VLOOKUP(C190,'Anexo_GL '!$B$9:$N$1882,13,FALSE) -> Cumple
A191: 021015 : MD DE SAN PEDRO DE CHANA | B191: 164 | C191: 021015 | D191: ANCASH | E191: MD DE SAN PEDRO DE CHANA | F191: =VLOOKUP(C191,'Anexo_GL '!$B$9:$N$1882,4,FALSE) -> 286.80728 | H191: =VLOOKUP(C191,'Anexo_GL '!$B$9:$N$1882,5,FALSE) -> 14713.43789 | I191: =VLOOKUP(C191,'Anexo_GL '!$B$9:$N$1882,6,FALSE) -> 46170.28543 | L191: =VLOOKUP(C191,'Anexo_GL '!$B$9:$N$1882,7,FALSE) -> 0.6211945136 | N191: =VLOOKUP(C191,'Anexo_GL '!$B$9:$N$1882,8,FALSE) -> Cumple | P191: =VLOOKUP(C191,'Anexo_GL '!$B$9:$N$1882,10,FALSE) -> 17898.49656 | Q191: =VLOOKUP(C191,'Anexo_GL '!$B$9:$N$1882,11,FALSE) -> 1850.56505 | R191: =VLOOKUP(C191,'Anexo_GL '!$B$9:$N$1882,12,FALSE) -> 16047.93151 | S191: =VLOOKUP(C191,'Anexo_GL '!$B$9:$N$1882,13,FALSE) -> Cumple
A192: 021016 : MD DE UCO | B192: 165 | C192: 021016 | D192: ANCASH | E192: MD DE UCO | F192: =VLOOKUP(C192,'Anexo_GL '!$B$9:$N$1882,4,FALSE) -> 373.61705 | H192: =VLOOKUP(C192,'Anexo_GL '!$B$9:$N$1882,5,FALSE) -> 6478.591557 | I192: =VLOOKUP(C192,'Anexo_GL '!$B$9:$N$1882,6,FALSE) -> 23403.23351 | L192: =VLOOKUP(C192,'Anexo_GL '!$B$9:$N$1882,7,FALSE) -> 1.596433458 | N192: =VLOOKUP(C192,'Anexo_GL '!$B$9:$N$1882,8,FALSE) -> Cumple | P192: =VLOOKUP(C192,'Anexo_GL '!$B$9:$N$1882,10,FALSE) -> 5365.52562 | Q192: =VLOOKUP(C192,'Anexo_GL '!$B$9:$N$1882,11,FALSE) -> 1542.69496 | R192: =VLOOKUP(C192,'Anexo_GL '!$B$9:$N$1882,12,FALSE) -> 3822.83066 | S192: =VLOOKUP(C192,'Anexo_GL '!$B$9:$N$1882,13,FALSE) -> Cumple
A193: 021101 : MP DE HUARMEY | B193: 166 | C193: 021101 | D193: ANCASH | E193: MP DE HUARMEY | F193: =VLOOKUP(C193,'Anexo_GL '!$B$9:$N$1882,4,FALSE) -> 19978.05725 | H193: =VLOOKUP(C193,'Anexo_GL '!$B$9:$N$1882,5,FALSE) -> 19252.48445 | I193: =VLOOKUP(C193,'Anexo_GL '!$B$9:$N$1882,6,FALSE) -> 27613.66049 | L193: =VLOOKUP(C193,'Anexo_GL '!$B$9:$N$1882,7,FALSE) -> 72.34845687 | N193: =VLOOKUP(C193,'Anexo_GL '!$B$9:$N$1882,8,FALSE) -> Cumple | P193: =VLOOKUP(C193,'Anexo_GL '!$B$9:$N$1882,10,FALSE) -> 17929.94769 | Q193: =VLOOKUP(C193,'Anexo_GL '!$B$9:$N$1882,11,FALSE) -> 6257.58726 | R193: =VLOOKUP(C193,'Anexo_GL '!$B$9:$N$1882,12,FALSE) -> 11672.36043 | S193: =VLOOKUP(C193,'Anexo_GL '!$B$9:$N$1882,13,FALSE) -> Cumple
A194: 021102 : MD DE COCHAPETI | B194: 167 | C194: 021102 | D194: ANCASH | E194: MD DE COCHAPETI | F194: =VLOOKUP(C194,'Anexo_GL '!$B$9:$N$1882,4,FALSE) -> 9.6288 | H194: =VLOOKUP(C194,'Anexo_GL '!$B$9:$N$1882,5,FALSE) -> 990.23658 | I194: =VLOOKUP(C194,'Anexo_GL '!$B$9:$N$1882,6,FALSE) -> 1473.79132 | L194: =VLOOKUP(C194,'Anexo_GL '!$B$9:$N$1882,7,FALSE) -> 0.6533353718 | N194: =VLOOKUP(C194,'Anexo_GL '!$B$9:$N$1882,8,FALSE) -> Cumple | P194: =VLOOKUP(C194,'Anexo_GL '!$B$9:$N$1882,10,FALSE) -> 891.56039 | Q194: =VLOOKUP(C194,'Anexo_GL '!$B$9:$N$1882,11,FALSE) -> 375.17275 | R194: =VLOOKUP(C194,'Anexo_GL '!$B$9:$N$1882,12,FALSE) -> 516.38764 | S194: =VLOOKUP(C194,'Anexo_GL '!$B$9:$N$1882,13,FALSE) -> Cumple
A195: 021103 : MD DE CULEBRAS | B195: 168 | C195: 021103 | D195: ANCASH | E195: MD DE CULEBRAS | F195: =VLOOKUP(C195,'Anexo_GL '!$B$9:$N$1882,4,FALSE) -> 3479.24905 | H195: =VLOOKUP(C195,'Anexo_GL '!$B$9:$N$1882,5,FALSE) -> 3017.43867 | I195: =VLOOKUP(C195,'Anexo_GL '!$B$9:$N$1882,6,FALSE) -> 6592.34689 | L195: =VLOOKUP(C195,'Anexo_GL '!$B$9:$N$1882,7,FALSE) -> 52.77709301 | N195: =VLOOKUP(C195,'Anexo_GL '!$B$9:$N$1882,8,FALSE) -> Cumple | P195: =VLOOKUP(C195,'Anexo_GL '!$B$9:$N$1882,10,FALSE) -> 1900.95063 | Q195: =VLOOKUP(C195,'Anexo_GL '!$B$9:$N$1882,11,FALSE) -> 1478.32966 | R195: =VLOOKUP(C195,'Anexo_GL '!$B$9:$N$1882,12,FALSE) -> 422.62097 | S195: =VLOOKUP(C195,'Anexo_GL '!$B$9:$N$1882,13,FALSE) -> Cumple
A196: 021104 : MD DE HUAYAN | B196: 169 | C196: 021104 | D196: ANCASH | E196: MD DE HUAYAN | F196: =VLOOKUP(C196,'Anexo_GL '!$B$9:$N$1882,4,FALSE) -> 279.88713 | H196: =VLOOKUP(C196,'Anexo_GL '!$B$9:$N$1882,5,FALSE) -> 1094.52745 | I196: =VLOOKUP(C196,'Anexo_GL '!$B$9:$N$1882,6,FALSE) -> 1861.07528 | L196: =VLOOKUP(C196,'Anexo_GL '!$B$9:$N$1882,7,FALSE) -> 15.039001 | N196: =VLOOKUP(C196,'Anexo_GL '!$B$9:$N$1882,8,FALSE) -> Cumple | P196: =VLOOKUP(C196,'Anexo_GL '!$B$9:$N$1882,10,FALSE) -> 1143.11874 | Q196: =VLOOKUP(C196,'Anexo_GL '!$B$9:$N$1882,11,FALSE) -> 438.33771 | R196: =VLOOKUP(C196,'Anexo_GL '!$B$9:$N$1882,12,FALSE) -> 704.78103 | S196: =VLOOKUP(C196,'Anexo_GL '!$B$9:$N$1882,13,FALSE) -> Cumple
A197: 021105 : MD DE MALVAS | B197: 170 | C197: 021105 | D197: ANCASH | E197: MD DE MALVAS | F197: =VLOOKUP(C197,'Anexo_GL '!$B$9:$N$1882,4,FALSE) -> 418.01935 | H197: =VLOOKUP(C197,'Anexo_GL '!$B$9:$N$1882,5,FALSE) -> 1049.822502 | I197: =VLOOKUP(C197,'Anexo_GL '!$B$9:$N$1882,6,FALSE) -> 1540.27824 | L197: =VLOOKUP(C197,'Anexo_GL '!$B$9:$N$1882,7,FALSE) -> 27.13921025 | N197: =VLOOKUP(C197,'Anexo_GL '!$B$9:$N$1882,8,FALSE) -> Cumple | P197: =VLOOKUP(C197,'Anexo_GL '!$B$9:$N$1882,10,FALSE) -> 981.76912 | Q197: =VLOOKUP(C197,'Anexo_GL '!$B$9:$N$1882,11,FALSE) -> 491.00321 | R197: =VLOOKUP(C197,'Anexo_GL '!$B$9:$N$1882,12,FALSE) -> 490.76591 | S197: =VLOOKUP(C197,'Anexo_GL '!$B$9:$N$1882,13,FALSE) -> Cumple
A198: 021201 : MP DE HUAYLAS - CARAZ | B198: 171 | C198: 021201 | D198: ANCASH | E198: MP DE HUAYLAS - CARAZ | F198: =VLOOKUP(C198,'Anexo_GL '!$B$9:$N$1882,4,FALSE) -> 1750.34906 | H198: =VLOOKUP(C198,'Anexo_GL '!$B$9:$N$1882,5,FALSE) -> 20718.96228 | I198: =VLOOKUP(C198,'Anexo_GL '!$B$9:$N$1882,6,FALSE) -> 32117.26414 | L198: =VLOOKUP(C198,'Anexo_GL '!$B$9:$N$1882,7,FALSE) -> 5.449869741 | N198: =VLOOKUP(C198,'Anexo_GL '!$B$9:$N$1882,8,FALSE) -> Cumple | P198: =VLOOKUP(C198,'Anexo_GL '!$B$9:$N$1882,10,FALSE) -> 18211.14831 | Q198: =VLOOKUP(C198,'Anexo_GL '!$B$9:$N$1882,11,FALSE) -> 6480.96133 | R198: =VLOOKUP(C198,'Anexo_GL '!$B$9:$N$1882,12,FALSE) -> 11730.18698 | S198: =VLOOKUP(C198,'Anexo_GL '!$B$9:$N$1882,13,FALSE) -> Cumple
A199: 021202 : MD DE HUALLANCA | B199: 172 | C199: 021202 | D199: ANCASH | E199: MD DE HUALLANCA | F199: =VLOOKUP(C199,'Anexo_GL '!$B$9:$N$1882,4,FALSE) -> 125.29443 | H199: =VLOOKUP(C199,'Anexo_GL '!$B$9:$N$1882,5,FALSE) -> 3248.359878 | I199: =VLOOKUP(C199,'Anexo_GL '!$B$9:$N$1882,6,FALSE) -> 4120.75703 | L199: =VLOOKUP(C199,'Anexo_GL '!$B$9:$N$1882,7,FALSE) -> 3.040568252 | N199: =VLOOKUP(C199,'Anexo_GL '!$B$9:$N$1882,8,FALSE) -> Cumple | P199: =VLOOKUP(C199,'Anexo_GL '!$B$9:$N$1882,10,FALSE) -> 1585.16023 | Q199: =VLOOKUP(C199,'Anexo_GL '!$B$9:$N$1882,11,FALSE) -> 1136.63902 | R199: =VLOOKUP(C199,'Anexo_GL '!$B$9:$N$1882,12,FALSE) -> 448.52121 | S199: =VLOOKUP(C199,'Anexo_GL '!$B$9:$N$1882,13,FALSE) -> Cumple
A200: 021203 : MD DE HUATA | B200: 173 | C200: 021203 | D200: ANCASH | E200: MD DE HUATA | F200: =VLOOKUP(C200,'Anexo_GL '!$B$9:$N$1882,4,FALSE) -> 510.29391 | H200: =VLOOKUP(C200,'Anexo_GL '!$B$9:$N$1882,5,FALSE) -> 1526.47204 | I200: =VLOOKUP(C200,'Anexo_GL '!$B$9:$N$1882,6,FALSE) -> 2784.60671 | L200: =VLOOKUP(C200,'Anexo_GL '!$B$9:$N$1882,7,FALSE) -> 18.32552899 | N200: =VLOOKUP(C200,'Anexo_GL '!$B$9:$N$1882,8,FALSE) -> Cumple | P200: =VLOOKUP(C200,'Anexo_GL '!$B$9:$N$1882,10,FALSE) -> 1328.84284 | Q200: =VLOOKUP(C200,'Anexo_GL '!$B$9:$N$1882,11,FALSE) -> 532.50834 | R200: =VLOOKUP(C200,'Anexo_GL '!$B$9:$N$1882,12,FALSE) -> 796.3345 | S200: =VLOOKUP(C200,'Anexo_GL '!$B$9:$N$1882,13,FALSE) -> Cumple
... 1701 more rows

Sheet Anexo_GL
A1: Anexo N° 4: Seguimiento al Cumplimiento de las Reglas Fiscales Subnacionales 3T2019
A3: Gobiernos Locales
A5: N° | B5: Ubigeo | C5: Departamento | D5: Municipalidad | E5: R1: Regla Fiscal de Saldo de Deuda Total | K5: R2: Regla Fiscal de Ahorro en Cuenta Corriente
E6: 3T2019 | K6: 3T2019
E7: S/ Miles | H7: SDT/ICT Prom ó SDT/ Lím Ley N° 29230 ó SDT/ ICT 2018 4/ % | I7: Cumple R1 | K7: S/ Miles | N7: Cumple R2
E8: Saldo de Deuda Total 1/ | F8: ICT Prom2/ | G8: Límite Ley N° 29230 3/ | K8: Ingreso Corriente Total | L8: Gasto Corriente Total | M8: Ahorro en Cuenta Corriente
A9: 1 | B9: 010101 | C9: AMAZONAS | D9: MUNICIPALIDAD PROVINCIAL DE CHACHAPOYAS | E9: =+VLOOKUP($B9,'[2]GL 3T2019'!$B$6:$DH$1879,58,0)/1000 -> 8881.07804 | F9: =+VLOOKUP($B9,'[2]GL 3T2019'!$B$6:$DH$1879,84,0)/1000 -> 14315.91974 | G9: 0.92616 | H9: 62.03637771 | I9: Cumple | J9: 54.27990456 | K9: 10679.94795 | L9: 8578.79803 | M9: 2101.14992 | N9: Cumple
A10: 2 | B10: 010102 | C10: AMAZONAS | D10: MUNICIPALIDAD DISTRITAL DE ASUNCION | E10: =+VLOOKUP($B10,'[2]GL 3T2019'!$B$6:$DH$1879,58,0)/1000 -> 859.67131 | F10: =+VLOOKUP($B10,'[2]GL 3T2019'!$B$6:$DH$1879,84,0)/1000 -> 755.750665 | G10: 0.00021 | H10: 113.7506521 | I10: No Cumple | J10: 2.186821733 | K10: 552.01666 | L10: 373.84662 | M10: 178.17004 | N10: Cumple
A11: 3 | B11: 010103 | C11: AMAZONAS | D11: MUNICIPALIDAD DISTRITAL DE BALSAS | E11: =+VLOOKUP($B11,'[2]GL 3T2019'!$B$6:$DH$1879,58,0)/1000 -> 10.80835 | F11: =+VLOOKUP($B11,'[2]GL 3T2019'!$B$6:$DH$1879,84,0)/1000 -> 663.6127575 | G11: 0.01755 | H11: 1.628713414 | I11: Cumple | J11: 2.671403321 | K11: 460.53888 | L11: 262.83054 | M11: 197.70834 | N11: Cumple
A12: 4 | B12: 010104 | C12: AMAZONAS | D12: MUNICIPALIDAD DISTRITAL DE CHETO | E12: =+VLOOKUP($B12,'[2]GL 3T2019'!$B$6:$DH$1879,58,0)/1000 -> 20.87745 | F12: =+VLOOKUP($B12,'[2]GL 3T2019'!$B$6:$DH$1879,84,0)/1000 -> 491.7585075 | G12: 0.00038 | H12: 4.245467985 | I12: Cumple | J12: 5.362480089 | K12: 443.51555 | L12: 316.30755 | M12: 127.208 | N12: Cumple
A13: 5 | B13: 010105 | C13: AMAZONAS | D13: MUNICIPALIDAD DISTRITAL DE CHILIQUIN | E13: =+VLOOKUP($B13,'[2]GL 3T2019'!$B$6:$DH$1879,58,0)/1000 -> 71.36902 | F13: =+VLOOKUP($B13,'[2]GL 3T2019'!$B$6:$DH$1879,84,0)/1000 -> 832.0691925 | G13: 0.00042 | H13: 8.577293889 | I13: Cumple | J13: 1.127170171 | K13: 452.9465 | L13: 307.56418 | M13: 145.38232 | N13: Cumple
A14: 6 | B14: 010106 | C14: AMAZONAS | D14: MUNICIPALIDAD DISTRITAL DE CHUQUIBAMBA | E14: =+VLOOKUP($B14,'[2]GL 3T2019'!$B$6:$DH$1879,58,0)/1000 -> 117.41751 | F14: =+VLOOKUP($B14,'[2]GL 3T2019'!$B$6:$DH$1879,84,0)/1000 -> 644.362495 | G14: 0.00077 | H14: 18.22227565 | I14: Cumple | J14: 9.254175534 | K14: 495.86216 | L14: 309.94677 | M14: 185.91539 | N14: Cumple
A15: 7 | B15: 010107 | C15: AMAZONAS | D15: MUNICIPALIDAD DISTRITAL DE GRANADA | E15: =+VLOOKUP($B15,'[2]GL 3T2019'!$B$6:$DH$1879,58,0)/1000 -> 195.81798 | F15: =+VLOOKUP($B15,'[2]GL 3T2019'!$B$6:$DH$1879,84,0)/1000 -> 581.79072 | G15: 0.00024 | H15: 33.65780396 | I15: Cumple | J15: 35.03481449 | K15: 440.72981 | L15: 290.79839 | M15: 149.93142 | N15: Cumple
A16: 8 | B16: 010108 | C16: AMAZONAS | D16: MUNICIPALIDAD DISTRITAL DE HUANCAS | E16: =+VLOOKUP($B16,'[2]GL 3T2019'!$B$6:$DH$1879,58,0)/1000 -> 115.20023 | F16: =+VLOOKUP($B16,'[2]GL 3T2019'!$B$6:$DH$1879,84,0)/1000 -> 749.589145 | G16: 0.0009 | H16: 15.36844961 | I16: Cumple | J16: 18.41068647 | K16: 546.83198 | L16: 406.84704 | M16: 139.98494 | N16: Cumple
A17: 9 | B17: 010109 | C17: AMAZONAS | D17: MUNICIPALIDAD DISTRITAL DE JALCA GRANDE | E17: =+VLOOKUP($B17,'[2]GL 3T2019'!$B$6:$DH$1879,58,0)/1000 -> 221.65152 | F17: =+VLOOKUP($B17,'[2]GL 3T2019'!$B$6:$DH$1879,84,0)/1000 -> 1252.685532 | G17: 0.97539 | H17: 17.69410712 | I17: Cumple | J17: 1.482917631 | K17: 860.5932 | L17: 484.50039 | M17: 376.09281 | N17: Cumple
A18: 10 | B18: 010110 | C18: AMAZONAS | D18: MUNICIPALIDAD DISTRITAL DE LEIMEBAMBA | E18: =+VLOOKUP($B18,'[2]GL 3T2019'!$B$6:$DH$1879,58,0)/1000 -> 123.44224 | F18: =+VLOOKUP($B18,'[2]GL 3T2019'!$B$6:$DH$1879,84,0)/1000 -> 950.98154 | G18: 0.00114 | H18: 12.98050854 | I18: Cumple | J18: 6.828084421 | K18: 622.86797 | L18: 489.74553 | M18: 133.12244 | N18: Cumple
A19: 11 | B19: 010111 | C19: AMAZONAS | D19: MUNICIPALIDAD DISTRITAL DE LEVANTO | E19: =+VLOOKUP($B19,'[2]GL 3T2019'!$B$6:$DH$1879,58,0)/1000 -> 24.45803 | F19: =+VLOOKUP($B19,'[2]GL 3T2019'!$B$6:$DH$1879,84,0)/1000 -> 628.910165 | G19: 0.00058 | H19: 3.888954474 | I19: Cumple | J19: 1.487120252 | K19: 446.65879 | L19: 363.96246 | M19: 82.69633 | N19: Cumple
A20: 12 | B20: 010112 | C20: AMAZONAS | D20: MUNICIPALIDAD DISTRITAL DE MAGDALENA | E20: =+VLOOKUP($B20,'[2]GL 3T2019'!$B$6:$DH$1879,58,0)/1000 -> 2320.46346 | F20: =+VLOOKUP($B20,'[2]GL 3T2019'!$B$6:$DH$1879,84,0)/1000 -> 692.1768225 | G20: 0.0005 | H20: 335.2414274 | I20: No Cumple | J20: 1.616022147 | K20: 450.6138 | L20: 292.42146 | M20: 158.19234 | N20: Cumple
A21: 13 | B21: 010113 | C21: AMAZONAS | D21: MUNICIPALIDAD DISTRITAL DE MARISCAL CASTILLA | E21: =+VLOOKUP($B21,'[2]GL 3T2019'!$B$6:$DH$1879,58,0)/1000 -> 17.11081 | F21: =+VLOOKUP($B21,'[2]GL 3T2019'!$B$6:$DH$1879,84,0)/1000 -> 594.098455 | G21: 0.00026 | H21: 2.880130365 | I21: Cumple | J21: 0.6825332013 | K21: 442.65948 | L21: 301.31416 | M21: 141.34532 | N21: Cumple
A22: 14 | B22: 010114 | C22: AMAZONAS | D22: MUNICIPALIDAD DISTRITAL DE MOLINOPAMPA | E22: =+VLOOKUP($B22,'[2]GL 3T2019'!$B$6:$DH$1879,58,0)/1000 -> 33.80678 | F22: =+VLOOKUP($B22,'[2]GL 3T2019'!$B$6:$DH$1879,84,0)/1000 -> 1018.67929 | G22: 0.00127 | H22: 3.318687278 | I22: Cumple | J22: 5.897556521 | K22: 690.65025 | L22: 512.78209 | M22: 177.86816 | N22: Cumple
A23: 15 | B23: 010115 | C23: AMAZONAS | D23: MUNICIPALIDAD DISTRITAL DE MONTEVIDEO | E23: =+VLOOKUP($B23,'[2]GL 3T2019'!$B$6:$DH$1879,58,0)/1000 -> 37.56068 | F23: =+VLOOKUP($B23,'[2]GL 3T2019'!$B$6:$DH$1879,84,0)/1000 -> 543.45308 | G23: 0.00037 | H23: 6.911485348 | I23: Cumple | J23: 4.790001182 | K23: 326.00834 | L23: 322.40126 | M23: 3.60708 | N23: Cumple
A24: 16 | B24: 010116 | C24: AMAZONAS | D24: MUNICIPALIDAD DISTRITAL DE OLLEROS | E24: =+VLOOKUP($B24,'[2]GL 3T2019'!$B$6:$DH$1879,58,0)/1000 -> 90.73567 | F24: =+VLOOKUP($B24,'[2]GL 3T2019'!$B$6:$DH$1879,84,0)/1000 -> 534.8442675 | G24: 0.00024 | H24: 16.9648766 | I24: Cumple | J24: 11.39714942 | K24: 327.9094 | L24: 234.09196 | M24: 93.81744 | N24: Cumple
A25: 17 | B25: 010117 | C25: AMAZONAS | D25: MUNICIPALIDAD DISTRITAL DE QUINJALCA | E25: =+VLOOKUP($B25,'[2]GL 3T2019'!$B$6:$DH$1879,58,0)/1000 -> 434.46328 | F25: =+VLOOKUP($B25,'[2]GL 3T2019'!$B$6:$DH$1879,84,0)/1000 -> 588.252265 | G25: 0.00045 | H25: 73.8566268 | I25: Cumple | J25: 1.334356198 | K25: 447.0509 | L25: 281.79862 | M25: 165.25228 | N25: Cumple
A26: 18 | B26: 010118 | C26: AMAZONAS | D26: MUNICIPALIDAD DISTRITAL DE SAN FRANCISCO DE DAGUAS | E26: =+VLOOKUP($B26,'[2]GL 3T2019'!$B$6:$DH$1879,58,0)/1000 -> 107.22236 | F26: =+VLOOKUP($B26,'[2]GL 3T2019'!$B$6:$DH$1879,84,0)/1000 -> 582.5899225 | G26: 0.00023 | H26: 18.40443095 | I26: Cumple | J26: 5.803175051 | K26: 485.83504 | L26: 271.17655 | M26: 214.65849 | N26: Cumple
A27: 19 | B27: 010119 | C27: AMAZONAS | D27: MUNICIPALIDAD DISTRITAL DE SAN ISIDRO DE MAYNO | E27: =+VLOOKUP($B27,'[2]GL 3T2019'!$B$6:$DH$1879,58,0)/1000 -> 412.99927 | F27: =+VLOOKUP($B27,'[2]GL 3T2019'!$B$6:$DH$1879,84,0)/1000 -> 692.44479 | G27: 0.00045 | H27: 59.64363888 | I27: Cumple | J27: 3.142795669 | K27: 444.41139 | L27: 273.9179 | M27: 170.49349 | N27: Cumple
A28: 20 | B28: 010120 | C28: AMAZONAS | D28: MUNICIPALIDAD DISTRITAL DE SOLOCO | E28: =+VLOOKUP($B28,'[2]GL 3T2019'!$B$6:$DH$1879,58,0)/1000 -> 1048.0936 | F28: =+VLOOKUP($B28,'[2]GL 3T2019'!$B$6:$DH$1879,84,0)/1000 -> 1093.116985 | G28: 0.00044 | H28: 95.88119244 | I28: Cumple | J28: 104.8888945 | K28: 1330.42071 | L28: 394.43447 | M28: 935.98624 | N28: Cumple
A29: 21 | B29: 010121 | C29: AMAZONAS | D29: MUNICIPALIDAD DISTRITAL DE SONCHE | E29: =+VLOOKUP($B29,'[2]GL 3T2019'!$B$6:$DH$1879,58,0)/1000 -> 35.97191 | F29: =+VLOOKUP($B29,'[2]GL 3T2019'!$B$6:$DH$1879,84,0)/1000 -> 493.4427325 | G29: 0.00013 | H29: 7.289986787 | I29: Cumple | J29: 4.390817662 | K29: 426.30894 | L29: 317.37527 | M29: 108.93367 | N29: Cumple
A30: 22 | B30: 010201 | C30: AMAZONAS | D30: MUNICIPALIDAD PROVINCIAL DE BAGUA - LA PECA | E30: =+VLOOKUP($B30,'[2]GL 3T2019'!$B$6:$DH$1879,58,0)/1000 -> 1514.10172 | F30: =+VLOOKUP($B30,'[2]GL 3T2019'!$B$6:$DH$1879,84,0)/1000 -> 12553.17458 | G30: 0.79812 | H30: 12.06150452 | I30: Cumple | J30: 10.73202609 | K30: 9516.29639 | L30: 7751.74562 | M30: 1764.55077 | N30: Cumple
A31: 23 | B31: 010202 | C31: AMAZONAS | D31: MUNICIPALIDAD DISTRITAL DE ARAMANGO | E31: =+VLOOKUP($B31,'[2]GL 3T2019'!$B$6:$DH$1879,58,0)/1000 -> 212.08149 | F31: =+VLOOKUP($B31,'[2]GL 3T2019'!$B$6:$DH$1879,84,0)/1000 -> 3812.628195 | G31: 1.10488 | H31: 5.562606138 | I31: Cumple | J31: 21.74290237 | K31: 2618.2741 | L31: 1696.30876 | M31: 921.96534 | N31: Cumple
A32: 24 | B32: 010203 | C32: AMAZONAS | D32: MUNICIPALIDAD DISTRITAL DE COPALLIN | E32: =+VLOOKUP($B32,'[2]GL 3T2019'!$B$6:$DH$1879,58,0)/1000 -> 529.92719 | F32: =+VLOOKUP($B32,'[2]GL 3T2019'!$B$6:$DH$1879,84,0)/1000 -> 2227.309395 | G32: 0.00045 | H32: 23.79225765 | I32: Cumple | J32: 16.03675113 | K32: 1048.22987 | L32: 1168.13926 | M32: -119.90939 | N32: No Cumple
A33: 25 | B33: 010204 | C33: AMAZONAS | D33: MUNICIPALIDAD DISTRITAL DE EL PARCO | E33: =+VLOOKUP($B33,'[2]GL 3T2019'!$B$6:$DH$1879,58,0)/1000 -> 244.96628 | F33: =+VLOOKUP($B33,'[2]GL 3T2019'!$B$6:$DH$1879,84,0)/1000 -> 1987.799118 | G33: 0.00013 | H33: 12.32349274 | I33: Cumple | J33: 6.411214762 | K33: 432.16593 | L33: 411.85978 | M33: 20.30615 | N33: Cumple
A34: 26 | B34: 010205 | C34: AMAZONAS | D34: MUNICIPALIDAD DISTRITAL DE IMAZA | E34: =+VLOOKUP($B34,'[2]GL 3T2019'!$B$6:$DH$1879,58,0)/1000 -> 7138.9296 | F34: =+VLOOKUP($B34,'[2]GL 3T2019'!$B$6:$DH$1879,84,0)/1000 -> 8701.580585 | G34: 2.19136 | H34: 82.04175701 | I34: Cumple | J34: 80.65953525 | K34: 6944.76865 | L34: 5357.82524 | M34: 1586.94341 | N34: Cumple
A35: 27 | B35: 010206 | C35: AMAZONAS | D35: MUNICIPALIDAD DISTRITAL DE LA PECA | E35: =+VLOOKUP($B35,'[2]GL 3T2019'!$B$6:$DH$1879,58,0)/1000 -> 150.67404 | F35: =+VLOOKUP($B35,'[2]GL 3T2019'!$B$6:$DH$1879,84,0)/1000 -> 2259.188523 | G35: 0.0007 | H35: 6.669387636 | I35: Cumple | J35: 7.47030568 | K35: 1756.56303 | L35: 1104.55611 | M35: 652.00692 | N35: Cumple
A36: 28 | B36: 010301 | C36: AMAZONAS | D36: MUNICIPALIDAD PROVINCIAL DE BONGARA - JUMBILLA | E36: =+VLOOKUP($B36,'[2]GL 3T2019'!$B$6:$DH$1879,58,0)/1000 -> 1986.03827 | F36: =+VLOOKUP($B36,'[2]GL 3T2019'!$B$6:$DH$1879,84,0)/1000 -> 3307.338563 | G36: 0.00019 | H36: 60.04943953 | I36: Cumple | J36: 53.97374171 | K36: 2227.79539 | L36: 1341.40866 | M36: 886.38673 | N36: Cumple
A37: 29 | B37: 010302 | C37: AMAZONAS | D37: MUNICIPALIDAD DISTRITAL DE CHISQUILLA | E37: =+VLOOKUP($B37,'[2]GL 3T2019'!$B$6:$DH$1879,58,0)/1000 -> 552.84823 | F37: =+VLOOKUP($B37,'[2]GL 3T2019'!$B$6:$DH$1879,84,0)/1000 -> 999.51835 | G37: 1e-06 | H37: 55.31146377 | I37: Cumple | J37: 2.656695798 | K37: 337.11877 | L37: 297.61982 | M37: 39.49895 | N37: Cumple
A38: 30 | B38: 010303 | C38: AMAZONAS | D38: MUNICIPALIDAD DISTRITAL DE CHURUJA | E38: =+VLOOKUP($B38,'[2]GL 3T2019'!$B$6:$DH$1879,58,0)/1000 -> 10.49957 | F38: =+VLOOKUP($B38,'[2]GL 3T2019'!$B$6:$DH$1879,84,0)/1000 -> 381.3571775 | G38: 1e-06 | H38: 2.753211587 | I38: Cumple | J38: 0.181581116 | K38: 325.6734 | L38: 263.51253 | M38: 62.16087 | N38: Cumple
A39: 31 | B39: 010304 | C39: AMAZONAS | D39: MUNICIPALIDAD DISTRITAL DE COROSHA | E39: =+VLOOKUP($B39,'[2]GL 3T2019'!$B$6:$DH$1879,58,0)/1000 -> 44.79162 | F39: =+VLOOKUP($B39,'[2]GL 3T2019'!$B$6:$DH$1879,84,0)/1000 -> 522.390735 | G39: 0.00011 | H39: 8.574351917 | I39: Cumple | J39: 18.60973176 | K39: 430.47914 | L39: 395.92353 | M39: 34.55561 | N39: Cumple
A40: 32 | B40: 010305 | C40: AMAZONAS | D40: MUNICIPALIDAD DISTRITAL DE CUISPES | E40: =+VLOOKUP($B40,'[2]GL 3T2019'!$B$6:$DH$1879,58,0)/1000 -> 77.52623 | F40: =+VLOOKUP($B40,'[2]GL 3T2019'!$B$6:$DH$1879,84,0)/1000 -> 508.8186575 | G40: 7e-05 | H40: 15.23651479 | I40: Cumple | J40: 3.557431472 | K40: 281.17572 | L40: 271.97868 | M40: 9.19704 | N40: Cumple
A41: 33 | B41: 010306 | C41: AMAZONAS | D41: MUNICIPALIDAD DISTRITAL DE FLORIDA | E41: =+VLOOKUP($B41,'[2]GL 3T2019'!$B$6:$DH$1879,58,0)/1000 -> 123.55597 | F41: =+VLOOKUP($B41,'[2]GL 3T2019'!$B$6:$DH$1879,84,0)/1000 -> 1961.93016 | G41: 0.00068 | H41: 6.297674225 | I41: Cumple | J41: 19.46389523 | K41: 1799.71947 | L41: 957.70189 | M41: 842.01758 | N41: Cumple
A42: 34 | B42: 010307 | C42: AMAZONAS | D42: MUNICIPALIDAD DISTRITAL DE JAZAN | E42: =+VLOOKUP($B42,'[2]GL 3T2019'!$B$6:$DH$1879,58,0)/1000 -> 1350.22379 | F42: =+VLOOKUP($B42,'[2]GL 3T2019'!$B$6:$DH$1879,84,0)/1000 -> 3133.435577 | G42: 0.00038 | H42: 43.09084251 | I42: Cumple | J42: 43.7957929 | K42: 4425.23624 | L42: 1492.2153 | M42: 2933.02094 | N42: Cumple
A43: 35 | B43: 010308 | C43: AMAZONAS | D43: MUNICIPALIDAD DISTRITAL DE RECTA | E43: =+VLOOKUP($B43,'[2]GL 3T2019'!$B$6:$DH$1879,58,0)/1000 -> 20.57613 | F43: =+VLOOKUP($B43,'[2]GL 3T2019'!$B$6:$DH$1879,84,0)/1000 -> 440.2698675 | G43: 1e-06 | H43: 4.673526743 | I43: Cumple | J43: 3.823752767 | K43: 328.84402 | L43: 377.18707 | M43: -48.34305 | N43: No Cumple
A44: 36 | B44: 010309 | C44: AMAZONAS | D44: MUNICIPALIDAD DISTRITAL DE SAN CARLOS | E44: =+VLOOKUP($B44,'[2]GL 3T2019'!$B$6:$DH$1879,58,0)/1000 -> 72.14967 | F44: =+VLOOKUP($B44,'[2]GL 3T2019'!$B$6:$DH$1879,84,0)/1000 -> 503.8025625 | G44: 1e-06 | H44: 14.32102085 | I44: Cumple | J44: 3.309691946 | K44: 342.83132 | L44: 263.99149 | M44: 78.83983 | N44: Cumple
A45: 37 | B45: 010310 | C45: AMAZONAS | D45: MUNICIPALIDAD DISTRITAL DE SHIPASBAMBA | E45: =+VLOOKUP($B45,'[2]GL 3T2019'!$B$6:$DH$1879,58,0)/1000 -> 20.91121 | F45: =+VLOOKUP($B45,'[2]GL 3T2019'!$B$6:$DH$1879,84,0)/1000 -> 786.65287 | G45: 0.00019 | H45: 2.658251282 | I45: Cumple | J45: 1.844394946 | K45: 669.5591 | L45: 303.79654 | M45: 365.76256 | N45: Cumple
A46: 38 | B46: 010311 | C46: AMAZONAS | D46: MUNICIPALIDAD DISTRITAL DE VALERA | E46: =+VLOOKUP($B46,'[2]GL 3T2019'!$B$6:$DH$1879,58,0)/1000 -> 20.58923 | F46: =+VLOOKUP($B46,'[2]GL 3T2019'!$B$6:$DH$1879,84,0)/1000 -> 574.327885 | G46: 0.00013 | H46: 3.584926057 | I46: Cumple | J46: 11.4803255 | K46: 373.76701 | L46: 261.83559 | M46: 111.93142 | N46: Cumple
A47: 39 | B47: 010312 | C47: AMAZONAS | D47: MUNICIPALIDAD DISTRITAL DE YAMBRASBAMBA | E47: =+VLOOKUP($B47,'[2]GL 3T2019'!$B$6:$DH$1879,58,0)/1000 -> 416.43816 | F47: =+VLOOKUP($B47,'[2]GL 3T2019'!$B$6:$DH$1879,84,0)/1000 -> 2733.309845 | G47: 0.00081 | H47: 15.23567336 | I47: Cumple | J47: 20.91517894 | K47: 2418.00046 | L47: 955.76047 | M47: 1462.23999 | N47: Cumple
A48: 40 | B48: 010401 | C48: AMAZONAS | D48: MUNICIPALIDAD PROVINCIAL DE CONDORCANQUI - NIEVA | E48: =+VLOOKUP($B48,'[2]GL 3T2019'!$B$6:$DH$1879,58,0)/1000 -> 1464.78294 | F48: =+VLOOKUP($B48,'[2]GL 3T2019'!$B$6:$DH$1879,84,0)/1000 -> 17590.59288 | G48: 2.38386 | H48: 8.327081126 | I48: Cumple | J48: 7.148339973 | K48: 13466.55757 | L48: 8502.51017 | M48: 4964.0474 | N48: Cumple
A49: 41 | B49: 010402 | C49: AMAZONAS | D49: MUNICIPALIDAD DISTRITAL DE EL CENEPA | E49: =+VLOOKUP($B49,'[2]GL 3T2019'!$B$6:$DH$1879,58,0)/1000 -> 57.01015 | F49: =+VLOOKUP($B49,'[2]GL 3T2019'!$B$6:$DH$1879,84,0)/1000 -> 3997.212705 | G49: 0.60395 | H49: 1.426247593 | I49: Cumple | J49: 14.68049659 | K49: 2404.00139 | L49: 2005.32921 | M49: 398.67218 | N49: Cumple
A50: 42 | B50: 010403 | C50: AMAZONAS | D50: MUNICIPALIDAD DISTRITAL DE RIO SANTIAGO | E50: =+VLOOKUP($B50,'[2]GL 3T2019'!$B$6:$DH$1879,58,0)/1000 -> 2289.64735 | F50: =+VLOOKUP($B50,'[2]GL 3T2019'!$B$6:$DH$1879,84,0)/1000 -> 7175.544233 | G50: 1.03372 | H50: 31.90904098 | I50: Cumple | J50: 29.66980011 | K50: 4886.49324 | L50: 4013.27009 | M50: 873.22315 | N50: Cumple
A51: 43 | B51: 010501 | C51: AMAZONAS | D51: MUNICIPALIDAD PROVINCIAL DE LUYA - LAMUD | E51: =+VLOOKUP($B51,'[2]GL 3T2019'!$B$6:$DH$1879,58,0)/1000 -> 1516.9484 | F51: =+VLOOKUP($B51,'[2]GL 3T2019'!$B$6:$DH$1879,84,0)/1000 -> 5681.985727 | G51: 0.00013 | H51: 26.69750458 | I51: Cumple | J51: 37.30932836 | K51: 3956.5345 | L51: 2334.15058 | M51: 1622.38392 | N51: Cumple
A52: 44 | B52: 010502 | C52: AMAZONAS | D52: MUNICIPALIDAD DISTRITAL DE CAMPORREDONDO | E52: =+VLOOKUP($B52,'[2]GL 3T2019'!$B$6:$DH$1879,58,0)/1000 -> 184.33435 | F52: =+VLOOKUP($B52,'[2]GL 3T2019'!$B$6:$DH$1879,84,0)/1000 -> 2025.90321 | G52: 0.0007 | H52: 9.098872497 | I52: Cumple | J52: 3.009200999 | K52: 1396.02273 | L52: 786.87913 | M52: 609.1436 | N52: Cumple
A53: 45 | B53: 010503 | C53: AMAZONAS | D53: MUNICIPALIDAD DISTRITAL DE COCABAMBA | E53: =+VLOOKUP($B53,'[2]GL 3T2019'!$B$6:$DH$1879,58,0)/1000 -> 1691.76161 | F53: =+VLOOKUP($B53,'[2]GL 3T2019'!$B$6:$DH$1879,84,0)/1000 -> 977.5951175 | G53: 0.00024 | H53: 173.0534021 | I53: No Cumple | J53: 37.23988627 | K53: 755.35814 | L53: 433.54548 | M53: 321.81266 | N53: Cumple
A54: 46 | B54: 010504 | C54: AMAZONAS | D54: MUNICIPALIDAD DISTRITAL DE COLCAMAR | E54: =+VLOOKUP($B54,'[2]GL 3T2019'!$B$6:$DH$1879,58,0)/1000 -> 351.98645 | F54: =+VLOOKUP($B54,'[2]GL 3T2019'!$B$6:$DH$1879,84,0)/1000 -> 721.052855 | G54: 0.00013 | H54: 48.81562393 | I54: Cumple | J54: 6.590348053 | K54: 560.13831 | L54: 439.0967 | M54: 121.04161 | N54: Cumple
A55: 47 | B55: 010505 | C55: AMAZONAS | D55: MUNICIPALIDAD DISTRITAL DE CONILA | E55: =+VLOOKUP($B55,'[2]GL 3T2019'!$B$6:$DH$1879,58,0)/1000 -> 378.46947 | F55: =+VLOOKUP($B55,'[2]GL 3T2019'!$B$6:$DH$1879,84,0)/1000 -> 777.7720375 | G55: 0.00021 | H55: 48.66071956 | I55: Cumple | J55: 42.17058411 | K55: 348.2983 | L55: 319.78935 | M55: 28.50895 | N55: Cumple
A56: 48 | B56: 010506 | C56: AMAZONAS | D56: MUNICIPALIDAD DISTRITAL DE INGUILPATA | E56: =+VLOOKUP($B56,'[2]GL 3T2019'!$B$6:$DH$1879,58,0)/1000 -> 101.94683 | F56: =+VLOOKUP($B56,'[2]GL 3T2019'!$B$6:$DH$1879,84,0)/1000 -> 580.0500175 | G56: 1e-05 | H56: 17.57552399 | I56: Cumple | J56: 4.964535865 | K56: 438.87295 | L56: 326.00959 | M56: 112.86336 | N56: Cumple
A57: 49 | B57: 010507 | C57: AMAZONAS | D57: MUNICIPALIDAD DISTRITAL DE LONGUITA | E57: =+VLOOKUP($B57,'[2]GL 3T2019'!$B$6:$DH$1879,58,0)/1000 -> 25.39889 | F57: =+VLOOKUP($B57,'[2]GL 3T2019'!$B$6:$DH$1879,84,0)/1000 -> 744.3674175 | G57: 0.00013 | H57: 3.412144245 | I57: Cumple | J57: 1.495936626 | K57: 435.93782 | L57: 351.87487 | M57: 84.06295 | N57: Cumple
A58: 50 | B58: 010508 | C58: AMAZONAS | D58: MUNICIPALIDAD DISTRITAL DE LONYA CHICO | E58: =+VLOOKUP($B58,'[2]GL 3T2019'!$B$6:$DH$1879,58,0)/1000 -> 332.21761 | F58: =+VLOOKUP($B58,'[2]GL 3T2019'!$B$6:$DH$1879,84,0)/1000 -> 713.10272 | G58: 3e-05 | H58: 46.58762345 | I58: Cumple | J58: 13.43401217 | K58: 556.74704 | L58: 390.00096 | M58: 166.74608 | N58: Cumple
A59: 51 | B59: 010509 | C59: AMAZONAS | D59: MUNICIPALIDAD DISTRITAL DE LUYA | E59: =+VLOOKUP($B59,'[2]GL 3T2019'!$B$6:$DH$1879,58,0)/1000 -> 736.03902 | F59: =+VLOOKUP($B59,'[2]GL 3T2019'!$B$6:$DH$1879,84,0)/1000 -> 1255.5532 | G59: 0.00024 | H59: 58.6226868 | I59: Cumple | J59: 27.2373911 | K59: 1026.06284 | L59: 562.79341 | M59: 463.26943 | N59: Cumple
A60: 52 | B60: 010510 | C60: AMAZONAS | D60: MUNICIPALIDAD DISTRITAL DE LUYA VIEJO | E60: =+VLOOKUP($B60,'[2]GL 3T2019'!$B$6:$DH$1879,58,0)/1000 -> 77.57959 | F60: =+VLOOKUP($B60,'[2]GL 3T2019'!$B$6:$DH$1879,84,0)/1000 -> 530.05322 | G60: 3e-05 | H60: 14.6361888 | I60: Cumple | J60: 10.19959492 | K60: 429.7477 | L60: 293.23742 | M60: 136.51028 | N60: Cumple
A61: 53 | B61: 010511 | C61: AMAZONAS | D61: MUNICIPALIDAD DISTRITAL DE MARIA | E61: =+VLOOKUP($B61,'[2]GL 3T2019'!$B$6:$DH$1879,58,0)/1000 -> 74.92854 | F61: =+VLOOKUP($B61,'[2]GL 3T2019'!$B$6:$DH$1879,84,0)/1000 -> 784.6671225 | G61: 3e-05 | H61: 9.549086211 | I61: Cumple | J61: 4.107115091 | K61: 1256.93617 | L61: 242.10516 | M61: 1014.83101 | N61: Cumple
A62: 54 | B62: 010512 | C62: AMAZONAS | D62: MUNICIPALIDAD DISTRITAL DE OCALLI | E62: =+VLOOKUP($B62,'[2]GL 3T2019'!$B$6:$DH$1879,58,0)/1000 -> 121.28211 | F62: =+VLOOKUP($B62,'[2]GL 3T2019'!$B$6:$DH$1879,84,0)/1000 -> 1716.972207 | G62: 0.00044 | H62: 7.063720046 | I62: Cumple | J62: 8.252212078 | K62: 2112.67908 | L62: 736.36262 | M62: 1376.31646 | N62: Cumple
A63: 55 | B63: 010513 | C63: AMAZONAS | D63: MUNICIPALIDAD DISTRITAL DE OCUMAL | E63: =+VLOOKUP($B63,'[2]GL 3T2019'!$B$6:$DH$1879,58,0)/1000 -> 742.57562 | F63: =+VLOOKUP($B63,'[2]GL 3T2019'!$B$6:$DH$1879,84,0)/1000 -> 1475.26392 | G63: 0.0004 | H63: 50.33510343 | I63: Cumple | J63: 3.87203268 | K63: 1123.63328 | L63: 589.66245 | M63: 533.97083 | N63: Cumple
A64: 56 | B64: 010514 | C64: AMAZONAS | D64: MUNICIPALIDAD DISTRITAL DE PIZUQUIA | E64: =+VLOOKUP($B64,'[2]GL 3T2019'!$B$6:$DH$1879,58,0)/1000 -> 1271.94354 | F64: =+VLOOKUP($B64,'[2]GL 3T2019'!$B$6:$DH$1879,84,0)/1000 -> 2230.430285 | G64: 0.0005 | H64: 57.02682341 | I64: Cumple | J64: 94.91921428 | K64: 1693.71267 | L64: 1259.7478 | M64: 433.96487 | N64: Cumple
A65: 57 | B65: 010515 | C65: AMAZONAS | D65: MUNICIPALIDAD DISTRITAL DE PROVIDENCIA | E65: =+VLOOKUP($B65,'[2]GL 3T2019'!$B$6:$DH$1879,58,0)/1000 -> 66.34669 | F65: =+VLOOKUP($B65,'[2]GL 3T2019'!$B$6:$DH$1879,84,0)/1000 -> 560.5918575 | G65: 0.00013 | H65: 11.83511482 | I65: Cumple | J65: 15.90290219 | K65: 502.84404 | L65: 395.40969 | M65: 107.43435 | N65: Cumple
A66: 58 | B66: 010516 | C66: AMAZONAS | D66: MUNICIPALIDAD DISTRITAL DE SAN CRISTOBAL DE OLTO | E66: =+VLOOKUP($B66,'[2]GL 3T2019'!$B$6:$DH$1879,58,0)/1000 -> 51.70078 | F66: =+VLOOKUP($B66,'[2]GL 3T2019'!$B$6:$DH$1879,84,0)/1000 -> 527.3596475 | G66: 7e-05 | H66: 9.803704217 | I66: Cumple | J66: 4.970375754 | K66: 336.05818 | L66: 244.97915 | M66: 91.07903 | N66: Cumple
A67: 59 | B67: 010517 | C67: AMAZONAS | D67: MUNICIPALIDAD DISTRITAL DE SAN FRANCISCO DE YESO | E67: =+VLOOKUP($B67,'[2]GL 3T2019'!$B$6:$DH$1879,58,0)/1000 -> 19.43001 | F67: =+VLOOKUP($B67,'[2]GL 3T2019'!$B$6:$DH$1879,84,0)/1000 -> 517.285955 | G67: 9e-05 | H67: 3.756144897 | I67: Cumple | J67: 7.586201068 | K67: 331.81196 | L67: 195.9299 | M67: 135.88206 | N67: Cumple
A68: 60 | B68: 010518 | C68: AMAZONAS | D68: MUNICIPALIDAD DISTRITAL DE SAN JERONIMO DE PACLAS | E68: =+VLOOKUP($B68,'[2]GL 3T2019'!$B$6:$DH$1879,58,0)/1000 -> 38.70638 | F68: =+VLOOKUP($B68,'[2]GL 3T2019'!$B$6:$DH$1879,84,0)/1000 -> 566.3590725 | G68: 9e-05 | H68: 6.834247367 | I68: Cumple | J68: 7.042366949 | K68: 455.27226 | L68: 273.54714 | M68: 181.72512 | N68: Cumple
A69: 61 | B69: 010519 | C69: AMAZONAS | D69: MUNICIPALIDAD DISTRITAL DE SAN JUAN DE LOPECANCHA | E69: =+VLOOKUP($B69,'[2]GL 3T2019'!$B$6:$DH$1879,58,0)/1000 -> 73.75648 | F69: =+VLOOKUP($B69,'[2]GL 3T2019'!$B$6:$DH$1879,84,0)/1000 -> 838.7826025 | G69: 3e-05 | H69: 8.793277278 | I69: Cumple | J69: 11.47627448 | K69: 1182.22991 | L69: 379.61593 | M69: 802.61398 | N69: Cumple
A70: 62 | B70: 010520 | C70: AMAZONAS | D70: MUNICIPALIDAD DISTRITAL DE SANTA CATALINA | E70: =+VLOOKUP($B70,'[2]GL 3T2019'!$B$6:$DH$1879,58,0)/1000 -> 82.23758 | F70: =+VLOOKUP($B70,'[2]GL 3T2019'!$B$6:$DH$1879,84,0)/1000 -> 687.8641875 | G70: 0.00013 | H70: 11.95549667 | I70: Cumple | J70: 6.474931541 | K70: 485.36489 | L70: 405.57429 | M70: 79.7906 | N70: Cumple
A71: 63 | B71: 010521 | C71: AMAZONAS | D71: MUNICIPALIDAD DISTRITAL DE SANTO TOMAS | E71: =+VLOOKUP($B71,'[2]GL 3T2019'!$B$6:$DH$1879,58,0)/1000 -> 124.26052 | F71: =+VLOOKUP($B71,'[2]GL 3T2019'!$B$6:$DH$1879,84,0)/1000 -> 1222.07439 | G71: 0.00035 | H71: 10.16799967 | I71: Cumple | J71: 5.208173224 | K71: 922.41422 | L71: 626.41247 | M71: 296.00175 | N71: Cumple
A72: 64 | B72: 010522 | C72: AMAZONAS | D72: MUNICIPALIDAD DISTRITAL DE TINGO | E72: =+VLOOKUP($B72,'[2]GL 3T2019'!$B$6:$DH$1879,58,0)/1000 -> 3.80157 | F72: =+VLOOKUP($B72,'[2]GL 3T2019'!$B$6:$DH$1879,84,0)/1000 -> 579.517795 | G72: 9e-05 | H72: 0.6559884844 | I72: Cumple | J72: 8.175842099 | K72: 349.80914 | L72: 330.40301 | M72: 19.40613 | N72: Cumple
A73: 65 | B73: 010523 | C73: AMAZONAS | D73: MUNICIPALIDAD DISTRITAL DE TRITA | E73: =+VLOOKUP($B73,'[2]GL 3T2019'!$B$6:$DH$1879,58,0)/1000 -> 13.54367 | F73: =+VLOOKUP($B73,'[2]GL 3T2019'!$B$6:$DH$1879,84,0)/1000 -> 508.3388325 | G73: 0.00013 | H73: 2.664299702 | I73: Cumple | J73: 1.989036773 | K73: 339.82065 | L73: 236.67097 | M73: 103.14968 | N73: Cumple
A74: 66 | B74: 010601 | C74: AMAZONAS | D74: MUNICIPALIDAD PROVINCIAL DE RODRIGUEZ DE MENDOZA - SAN NICOLAS | E74: =+VLOOKUP($B74,'[2]GL 3T2019'!$B$6:$DH$1879,58,0)/1000 -> 7240.9863 | F74: =+VLOOKUP($B74,'[2]GL 3T2019'!$B$6:$DH$1879,84,0)/1000 -> 5681.835928 | G74: 0.00019 | H74: 127.4409609 | I74: No Cumple | J74: 89.05589993 | K74: 2852.69204 | L74: 2237.39372 | M74: 615.29832 | N74: Cumple
A75: 67 | B75: 010602 | C75: AMAZONAS | D75: MUNICIPALIDAD DISTRITAL DE CHIRIMOTO | E75: =+VLOOKUP($B75,'[2]GL 3T2019'!$B$6:$DH$1879,58,0)/1000 -> 28.82905 | F75: =+VLOOKUP($B75,'[2]GL 3T2019'!$B$6:$DH$1879,84,0)/1000 -> 1133.256742 | G75: 0.00021 | H75: 2.543911624 | I75: Cumple | J75: 231.4212598 | K75: 570.78488 | L75: 388.24218 | M75: 182.5427 | N75: Cumple
A76: 68 | B76: 010603 | C76: AMAZONAS | D76: MUNICIPALIDAD DISTRITAL DE COCHAMAL | E76: =+VLOOKUP($B76,'[2]GL 3T2019'!$B$6:$DH$1879,58,0)/1000 -> 2.48121 | F76: =+VLOOKUP($B76,'[2]GL 3T2019'!$B$6:$DH$1879,84,0)/1000 -> 438.211795 | G76: 3e-05 | H76: 0.5662125092 | I76: Cumple | J76: 1.888601422 | K76: 215.34141 | L76: 260.3296 | M76: -44.98819 | N76: No Cumple
A77: 69 | B77: 010604 | C77: AMAZONAS | D77: MUNICIPALIDAD DISTRITAL DE HUAMBO | E77: =+VLOOKUP($B77,'[2]GL 3T2019'!$B$6:$DH$1879,58,0)/1000 -> 300.11937 | F77: =+VLOOKUP($B77,'[2]GL 3T2019'!$B$6:$DH$1879,84,0)/1000 -> 734.9587775 | G77: 0.00024 | H77: 40.83485757 | I77: Cumple | J77: 24.99066088 | K77: 557.89783 | L77: 641.80545 | M77: -83.90762 | N77: No Cumple
A78: 70 | B78: 010605 | C78: AMAZONAS | D78: MUNICIPALIDAD DISTRITAL DE LIMABAMBA | E78: =+VLOOKUP($B78,'[2]GL 3T2019'!$B$6:$DH$1879,58,0)/1000 -> 2227.42267 | F78: =+VLOOKUP($B78,'[2]GL 3T2019'!$B$6:$DH$1879,84,0)/1000 -> 907.3037125 | G78: 0.00033 | H78: 245.4991244 | I78: No Cumple | J78: 226.7889901 | K78: 799.75867 | L78: 467.80724 | M78: 331.95143 | N78: Cumple
A79: 71 | B79: 010606 | C79: AMAZONAS | D79: MUNICIPALIDAD DISTRITAL DE LONGAR | E79: =+VLOOKUP($B79,'[2]GL 3T2019'!$B$6:$DH$1879,58,0)/1000 -> 2181.75704 | F79: =+VLOOKUP($B79,'[2]GL 3T2019'!$B$6:$DH$1879,84,0)/1000 -> 538.7946725 | G79: 0.00011 | H79: 404.9329274 | I79: No Cumple | J79: 16.12688286 | K79: 341.4835 | L79: 251.19574 | M79: 90.28776 | N79: Cumple
A80: 72 | B80: 010607 | C80: AMAZONAS | D80: MUNICIPALIDAD DISTRITAL DE MARISCAL BENAVIDES | E80: =+VLOOKUP($B80,'[2]GL 3T2019'!$B$6:$DH$1879,58,0)/1000 -> 770.30287 | F80: =+VLOOKUP($B80,'[2]GL 3T2019'!$B$6:$DH$1879,84,0)/1000 -> 1184.084905 | G80: 5e-05 | H80: 65.05469893 | I80: Cumple | J80: 75.77025397 | K80: 1066.07751 | L80: 612.86715 | M80: 453.21036 | N80: Cumple
A81: 73 | B81: 010608 | C81: AMAZONAS | D81: MUNICIPALIDAD DISTRITAL DE MILPUC | E81: =+VLOOKUP($B81,'[2]GL 3T2019'!$B$6:$DH$1879,58,0)/1000 -> 132.94749 | F81: =+VLOOKUP($B81,'[2]GL 3T2019'!$B$6:$DH$1879,84,0)/1000 -> 510.8472025 | G81: 7e-05 | H81: 26.02490321 | I81: Cumple | J81: 19.2929063 | K81: 334.51496 | L81: 345.34862 | M81: -10.83366 | N81: No Cumple
A82: 74 | B82: 010609 | C82: AMAZONAS | D82: MUNICIPALIDAD DISTRITAL DE OMIA | E82: =+VLOOKUP($B82,'[2]GL 3T2019'!$B$6:$DH$1879,58,0)/1000 -> 57.06322 | F82: =+VLOOKUP($B82,'[2]GL 3T2019'!$B$6:$DH$1879,84,0)/1000 -> 3362.044083 | G82: 0.00083 | H82: 1.697277567 | I82: Cumple | J82: 2.759214772 | K82: 1782.5867 | L82: 1228.78344 | M82: 553.80326 | N82: Cumple
A83: 75 | B83: 010610 | C83: AMAZONAS | D83: MUNICIPALIDAD DISTRITAL DE SANTA ROSA | E83: =+VLOOKUP($B83,'[2]GL 3T2019'!$B$6:$DH$1879,58,0)/1000 -> 1.40294 | F83: =+VLOOKUP($B83,'[2]GL 3T2019'!$B$6:$DH$1879,84,0)/1000 -> 515.1385825 | G83: 3e-05 | H83: 0.2723422488 | I83: Cumple | J83: 8.793899626 | K83: 452.82693 | L83: 333.63895 | M83: 119.18798 | N83: Cumple
A84: 76 | B84: 010611 | C84: AMAZONAS | D84: MUNICIPALIDAD DISTRITAL DE TOTORA | E84: =+VLOOKUP($B84,'[2]GL 3T2019'!$B$6:$DH$1879,58,0)/1000 -> 10.60623 | F84: =+VLOOKUP($B84,'[2]GL 3T2019'!$B$6:$DH$1879,84,0)/1000 -> 594.828075 | G84: 3e-05 | H84: 1.783074883 | I84: Cumple | J84: 9.224024565 | K84: 451.31612 | L84: 330.29791 | M84: 121.01821 | N84: Cumple
A85: 77 | B85: 010612 | C85: AMAZONAS | D85: MUNICIPALIDAD DISTRITAL DE VISTA ALEGRE | E85: =+VLOOKUP($B85,'[2]GL 3T2019'!$B$6:$DH$1879,58,0)/1000 -> 50.34735 | F85: =+VLOOKUP($B85,'[2]GL 3T2019'!$B$6:$DH$1879,84,0)/1000 -> 1146.77845 | G85: 0.00038 | H85: 4.390329274 | I85: Cumple | J85: 4.651942685 | K85: 800.66364 | L85: 347.53487 | M85: 453.12877 | N85: Cumple
A86: 78 | B86: 010701 | C86: AMAZONAS | D86: MUNICIPALIDAD PROVINCIA DE UTCUBAMBA - BAGUA GRANDE | E86: =+VLOOKUP($B86,'[2]GL 3T2019'!$B$6:$DH$1879,58,0)/1000 -> 3411.80873 | F86: =+VLOOKUP($B86,'[2]GL 3T2019'!$B$6:$DH$1879,84,0)/1000 -> 27025.97597 | G86: 0.98223 | H86: 12.62418324 | I86: Cumple | J86: 13.30508156 | K86: 19822.12685 | L86: 12381.03328 | M86: 7441.09357 | N86: Cumple
A87: 79 | B87: 010702 | C87: AMAZONAS | D87: MUNICIPALIDAD DISTRITAL DE CAJARURO | E87: =+VLOOKUP($B87,'[2]GL 3T2019'!$B$6:$DH$1879,58,0)/1000 -> 1701.18142 | F87: =+VLOOKUP($B87,'[2]GL 3T2019'!$B$6:$DH$1879,84,0)/1000 -> 10493.43784 | G87: 0.79756 | H87: 16.21185969 | I87: Cumple | J87: 14.22708385 | K87: 9841.50504 | L87: 4273.71168 | M87: 5567.79336 | N87: Cumple
A88: 80 | B88: 010703 | C88: AMAZONAS | D88: MUNICIPALIDAD DISTRITAL DE CUMBA | E88: =+VLOOKUP($B88,'[2]GL 3T2019'!$B$6:$DH$1879,58,0)/1000 -> 155.15157 | F88: =+VLOOKUP($B88,'[2]GL 3T2019'!$B$6:$DH$1879,84,0)/1000 -> 3044.54525 | G88: 0.0009 | H88: 5.096050716 | I88: Cumple | J88: 2.326730109 | K88: 2410.04631 | L88: 1669.40982 | M88: 740.63649 | N88: Cumple
A89: 81 | B89: 010704 | C89: AMAZONAS | D89: MUNICIPALIDAD DISTRITAL DE EL MILAGRO | E89: =+VLOOKUP($B89,'[2]GL 3T2019'!$B$6:$DH$1879,58,0)/1000 -> 106.84079 | F89: =+VLOOKUP($B89,'[2]GL 3T2019'!$B$6:$DH$1879,84,0)/1000 -> 2598.058347 | G89: 0.00045 | H89: 4.1123322 | I89: Cumple | J89: 11.54180355 | K89: 1662.03342 | L89: 1714.98461 | M89: -52.95119 | N89: No Cumple
A90: 82 | B90: 010705 | C90: AMAZONAS | D90: MUNICIPALIDAD DISTRITAL DE JAMALCA | E90: =+VLOOKUP($B90,'[2]GL 3T2019'!$B$6:$DH$1879,58,0)/1000 -> 1121.69788 | F90: =+VLOOKUP($B90,'[2]GL 3T2019'!$B$6:$DH$1879,84,0)/1000 -> 3842.783017 | G90: 0.00077 | H90: 29.18972721 | I90: Cumple | J90: 16.61781048 | K90: 4178.97729 | L90: 1901.90518 | M90: 2277.07211 | N90: Cumple
A91: 83 | B91: 010706 | C91: AMAZONAS | D91: MUNICIPALIDAD DISTRITAL DE LONYA GRANDE | E91: =+VLOOKUP($B91,'[2]GL 3T2019'!$B$6:$DH$1879,58,0)/1000 -> 182.65343 | F91: =+VLOOKUP($B91,'[2]GL 3T2019'!$B$6:$DH$1879,84,0)/1000 -> 3455.39712 | G91: 0.00103 | H91: 5.286032941 | I91: Cumple | J91: 7.806559217 | K91: 2570.74448 | L91: 1585.16045 | M91: 985.58403 | N91: Cumple
A92: 84 | B92: 010707 | C92: AMAZONAS | D92: MUNICIPALIDAD DISTRITAL DE YAMON | E92: =+VLOOKUP($B92,'[2]GL 3T2019'!$B$6:$DH$1879,58,0)/1000 -> 708.35626 | F92: =+VLOOKUP($B92,'[2]GL 3T2019'!$B$6:$DH$1879,84,0)/1000 -> 1679.14316 | G92: 0.00026 | H92: 42.18557874 | I92: Cumple | J92: 554.5279042 | K92: 2028.68189 | L92: 665.59855 | M92: 1363.08334 | N92: Cumple
A93: 85 | B93: 020101 | C93: ANCASH | D93: MUNICIPALIDAD PROVINCIAL DE HUARAZ | E93: =+VLOOKUP($B93,'[2]GL 3T2019'!$B$6:$DH$1879,58,0)/1000 -> 21781.41991 | F93: =+VLOOKUP($B93,'[2]GL 3T2019'!$B$6:$DH$1879,84,0)/1000 -> 41449.96989 | G93: 52459.04805 | H93: 41.52080665 | I93: Cumple | J93: 54.41870073 | K93: 38655.17293 | L93: 20284.67232 | M93: 18370.50061 | N93: Cumple
A94: 86 | B94: 020102 | C94: ANCASH | D94: MUNICIPALIDAD DISTRITAL DE COCHABAMBA | E94: =+VLOOKUP($B94,'[2]GL 3T2019'!$B$6:$DH$1879,58,0)/1000 -> 133.70943 | F94: =+VLOOKUP($B94,'[2]GL 3T2019'!$B$6:$DH$1879,84,0)/1000 -> 2158.676 | G94: 4983.86124 | H94: 2.682848169 | I94: Cumple | J94: 7.155484107 | K94: 2320.48726 | L94: 1040.88997 | M94: 1279.59729 | N94: Cumple
A95: 87 | B95: 020103 | C95: ANCASH | D95: MUNICIPALIDAD DISTRITAL DE COLCABAMBA | E95: =+VLOOKUP($B95,'[2]GL 3T2019'!$B$6:$DH$1879,58,0)/1000 -> 122.28323 | F95: =+VLOOKUP($B95,'[2]GL 3T2019'!$B$6:$DH$1879,84,0)/1000 -> 960.383675 | G95: 1531.06693 | H95: 7.986798461 | I95: Cumple | J95: 7.609234548 | K95: 976.15159 | L95: 509.92126 | M95: 466.23033 | N95: Cumple
A96: 88 | B96: 020104 | C96: ANCASH | D96: MUNICIPALIDAD DISTRITAL DE HUANCHAY | E96: =+VLOOKUP($B96,'[2]GL 3T2019'!$B$6:$DH$1879,58,0)/1000 -> 136.65558 | F96: =+VLOOKUP($B96,'[2]GL 3T2019'!$B$6:$DH$1879,84,0)/1000 -> 1964.563825 | G96: 4299.92623 | H96: 3.178091267 | I96: Cumple | J96: 2.944463028 | K96: 2139.10731 | L96: 799.62552 | M96: 1339.48179 | N96: Cumple
A97: 89 | B97: 020105 | C97: ANCASH | D97: MUNICIPALIDAD DISTRITAL DE INDEPENDENCIA | E97: =+VLOOKUP($B97,'[2]GL 3T2019'!$B$6:$DH$1879,58,0)/1000 -> 10907.81441 | F97: =+VLOOKUP($B97,'[2]GL 3T2019'!$B$6:$DH$1879,84,0)/1000 -> 36012.48193 | G97: 75862.14813 | H97: 14.37846763 | I97: Cumple | J97: 31.58351592 | K97: 38686.29618 | L97: 11430.67276 | M97: 27255.62342 | N97: Cumple
A98: 90 | B98: 020106 | C98: ANCASH | D98: MUNICIPALIDAD DISTRITAL DE JANGAS | E98: =+VLOOKUP($B98,'[2]GL 3T2019'!$B$6:$DH$1879,58,0)/1000 -> 483.14146 | F98: =+VLOOKUP($B98,'[2]GL 3T2019'!$B$6:$DH$1879,84,0)/1000 -> 4313.898407 | G98: 10394.11077 | H98: 4.648223121 | I98: Cumple | J98: 4.487485653 | K98: 4488.82134 | L98: 1676.54373 | M98: 2812.27761 | N98: Cumple
A99: 91 | B99: 020107 | C99: ANCASH | D99: MUNICIPALIDAD DISTRITAL DE LA LIBERTAD | E99: =+VLOOKUP($B99,'[2]GL 3T2019'!$B$6:$DH$1879,58,0)/1000 -> 57.8867 | F99: =+VLOOKUP($B99,'[2]GL 3T2019'!$B$6:$DH$1879,84,0)/1000 -> 1609.485025 | G99: 2249.25278 | H99: 2.573596908 | I99: Cumple | J99: 4.451602874 | K99: 1937.43919 | L99: 580.08949 | M99: 1357.3497 | N99: Cumple
A100: 92 | B100: 020108 | C100: ANCASH | D100: MUNICIPALIDAD DISTRITAL DE OLLEROS | E100: =+VLOOKUP($B100,'[2]GL 3T2019'!$B$6:$DH$1879,58,0)/1000 -> 967.06852 | F100: =+VLOOKUP($B100,'[2]GL 3T2019'!$B$6:$DH$1879,84,0)/1000 -> 1584.375387 | G100: 3315.44663 | H100: 29.16857449 | I100: Cumple | J100: 49.35890868 | K100: 1604.23534 | L100: 491.7418 | M100: 1112.49354 | N100: Cumple
A101: 93 | B101: 020109 | C101: ANCASH | D101: MUNICIPALIDAD DISTRITAL DE PAMPAS | E101: =+VLOOKUP($B101,'[2]GL 3T2019'!$B$6:$DH$1879,58,0)/1000 -> 199.58024 | F101: =+VLOOKUP($B101,'[2]GL 3T2019'!$B$6:$DH$1879,84,0)/1000 -> 1474.952563 | G101: 2896.07807 | H101: 6.891397096 | I101: Cumple | J101: 4.864245481 | K101: 1007.60572 | L101: 560.20812 | M101: 447.3976 | N101: Cumple
A102: 94 | B102: 020110 | C102: ANCASH | D102: MUNICIPALIDAD DISTRITAL DE PARIACOTO | E102: =+VLOOKUP($B102,'[2]GL 3T2019'!$B$6:$DH$1879,58,0)/1000 -> 95.43733 | F102: =+VLOOKUP($B102,'[2]GL 3T2019'!$B$6:$DH$1879,84,0)/1000 -> 3502.746665 | G102: 7800.11679 | H102: 1.223537193 | I102: Cumple | J102: 8.039053961 | K102: 3810.55455 | L102: 1319.35257 | M102: 2491.20198 | N102: Cumple
A103: 95 | B103: 020111 | C103: ANCASH | D103: MUNICIPALIDAD DISTRITAL DE PIRA | E103: =+VLOOKUP($B103,'[2]GL 3T2019'!$B$6:$DH$1879,58,0)/1000 -> 665.70426 | F103: =+VLOOKUP($B103,'[2]GL 3T2019'!$B$6:$DH$1879,84,0)/1000 -> 3558.75827 | G103: 9537.66747 | H103: 6.979738622 | I103: Cumple | J103: 12.94089463 | K103: 2320.33889 | L103: 1088.54719 | M103: 1231.7917 | N103: Cumple
A104: 96 | B104: 020112 | C104: ANCASH | D104: MUNICIPALIDAD DISTRITAL DE TARICA | E104: =+VLOOKUP($B104,'[2]GL 3T2019'!$B$6:$DH$1879,58,0)/1000 -> 620.47043 | F104: =+VLOOKUP($B104,'[2]GL 3T2019'!$B$6:$DH$1879,84,0)/1000 -> 3735.006135 | G104: 8251.19978 | H104: 7.519760114 | I104: Cumple | J104: 16.67548452 | K104: 3968.00605 | L104: 1360.04157 | M104: 2607.96448 | N104: Cumple
A105: 97 | B105: 020201 | C105: ANCASH | D105: MUNICIPALIDAD PROVINCIAL DE AIJA | E105: =+VLOOKUP($B105,'[2]GL 3T2019'!$B$6:$DH$1879,58,0)/1000 -> 140.69667 | F105: =+VLOOKUP($B105,'[2]GL 3T2019'!$B$6:$DH$1879,84,0)/1000 -> 2889.689243 | G105: 3639.1468 | H105: 3.866199352 | I105: Cumple | J105: 4.622467076 | K105: 2402.06664 | L105: 1088.11405 | M105: 1313.95259 | N105: Cumple
A106: 98 | B106: 020202 | C106: ANCASH | D106: MUNICIPALIDAD DISTRITAL DE CORIS | E106: =+VLOOKUP($B106,'[2]GL 3T2019'!$B$6:$DH$1879,58,0)/1000 -> 420.97565 | F106: =+VLOOKUP($B106,'[2]GL 3T2019'!$B$6:$DH$1879,84,0)/1000 -> 2361.90198 | G106: 5655.53011 | H106: 7.443610799 | I106: Cumple | J106: 3.652357031 | K106: 2740.59461 | L106: 927.11174 | M106: 1813.48287 | N106: Cumple
A107: 99 | B107: 020203 | C107: ANCASH | D107: MUNICIPALIDAD DISTRITAL DE HUACLLAN | E107: =+VLOOKUP($B107,'[2]GL 3T2019'!$B$6:$DH$1879,58,0)/1000 -> 128.21369 | F107: =+VLOOKUP($B107,'[2]GL 3T2019'!$B$6:$DH$1879,84,0)/1000 -> 960.539 | G107: 1673.67391 | H107: 7.66061353 | I107: Cumple | J107: 11.95907507 | K107: 923.95606 | L107: 304.5965 | M107: 619.35956 | N107: Cumple
A108: 100 | B108: 020204 | C108: ANCASH | D108: MUNICIPALIDAD DISTRITAL DE LA MERCED | E108: =+VLOOKUP($B108,'[2]GL 3T2019'!$B$6:$DH$1879,58,0)/1000 -> 111.66667 | F108: =+VLOOKUP($B108,'[2]GL 3T2019'!$B$6:$DH$1879,84,0)/1000 -> 2725.38196 | G108: 6048.68282 | H108: 1.846132015 | I108: Cumple | J108: 1.939769319 | K108: 2933.01105 | L108: 875.26849 | M108: 2057.74256 | N108: Cumple
A109: 101 | B109: 020205 | C109: ANCASH | D109: MUNICIPALIDAD DISTRITAL DE SUCCHA | E109: =+VLOOKUP($B109,'[2]GL 3T2019'!$B$6:$DH$1879,58,0)/1000 -> 183.05521 | F109: =+VLOOKUP($B109,'[2]GL 3T2019'!$B$6:$DH$1879,84,0)/1000 -> 1088.701882 | G109: 1692.76448 | H109: 10.81397986 | I109: Cumple | J109: 4.335030059 | K109: 1055.46717 | L109: 551.6079 | M109: 503.85927 | N109: Cumple
A110: 102 | B110: 020301 | C110: ANCASH | D110: MUNICIPALIDAD PROVINCIAL DE ANTONIO RAYMONDI - LLAMELLIN | E110: =+VLOOKUP($B110,'[2]GL 3T2019'!$B$6:$DH$1879,58,0)/1000 -> 438.12891 | F110: =+VLOOKUP($B110,'[2]GL 3T2019'!$B$6:$DH$1879,84,0)/1000 -> 4067.059915 | G110: 5096.49261 | H110: 8.596675077 | I110: Cumple | J110: 7.749645342 | K110: 2874.46912 | L110: 1834.96968 | M110: 1039.49944 | N110: Cumple
A111: 103 | B111: 020302 | C111: ANCASH | D111: MUNICIPALIDAD DISTRITAL DE ACSO | E111: =+VLOOKUP($B111,'[2]GL 3T2019'!$B$6:$DH$1879,58,0)/1000 -> 59.00116 | F111: =+VLOOKUP($B111,'[2]GL 3T2019'!$B$6:$DH$1879,84,0)/1000 -> 1454.871777 | G111: 3463.54458 | H111: 1.703490705 | I111: Cumple | J111: 2.906955743 | K111: 920.42024 | L111: 459.57599 | M111: 460.84425 | N111: Cumple
A112: 104 | B112: 020303 | C112: ANCASH | D112: MUNICIPALIDAD DISTRITAL DE CHACCHO | E112: =+VLOOKUP($B112,'[2]GL 3T2019'!$B$6:$DH$1879,58,0)/1000 -> 400.23133 | F112: =+VLOOKUP($B112,'[2]GL 3T2019'!$B$6:$DH$1879,84,0)/1000 -> 1298.836055 | G112: 3175.04429 | H112: 12.60553534 | I112: Cumple | J112: 31.39885514 | K112: 862.24205 | L112: 553.54668 | M112: 308.69537 | N112: Cumple
A113: 105 | B113: 020304 | C113: ANCASH | D113: MUNICIPALIDAD DISTRITAL DE CHINGAS | E113: =+VLOOKUP($B113,'[2]GL 3T2019'!$B$6:$DH$1879,58,0)/1000 -> 56.13138 | F113: =+VLOOKUP($B113,'[2]GL 3T2019'!$B$6:$DH$1879,84,0)/1000 -> 1417.84214 | G113: 3108.99792 | H113: 1.805449262 | I113: Cumple | J113: 3.963055504 | K113: 1457.59269 | L113: 576.17122 | M113: 881.42147 | N113: Cumple
A114: 106 | B114: 020305 | C114: ANCASH | D114: MUNICIPALIDAD DISTRITAL DE MIRGAS | E114: =+VLOOKUP($B114,'[2]GL 3T2019'!$B$6:$DH$1879,58,0)/1000 -> 403.38867 | F114: =+VLOOKUP($B114,'[2]GL 3T2019'!$B$6:$DH$1879,84,0)/1000 -> 4255.970865 | G114: 10942.28809 | H114: 3.686511145 | I114: Cumple | J114: 3.413636124 | K114: 4676.42504 | L114: 1063.21556 | M114: 3613.20948 | N114: Cumple
A115: 107 | B115: 020306 | C115: ANCASH | D115: MUNICIPALIDAD DISTRITAL DE SAN JUAN DE RONTOY | E115: =+VLOOKUP($B115,'[2]GL 3T2019'!$B$6:$DH$1879,58,0)/1000 -> 154.71198 | F115: =+VLOOKUP($B115,'[2]GL 3T2019'!$B$6:$DH$1879,84,0)/1000 -> 1393.953362 | G115: 3109.49274 | H115: 4.975473266 | I115: Cumple | J115: 1.053736116 | K115: 1464.40283 | L115: 498.12932 | M115: 966.27351 | N115: Cumple
A116: 108 | B116: 020401 | C116: ANCASH | D116: MUNICIPALIDAD PROVINCIAL DE ASUNCION - CHACAS | E116: =+VLOOKUP($B116,'[2]GL 3T2019'!$B$6:$DH$1879,58,0)/1000 -> 1443.26468 | F116: =+VLOOKUP($B116,'[2]GL 3T2019'!$B$6:$DH$1879,84,0)/1000 -> 4959.495865 | G116: 8031.3444 | H116: 17.97039958 | I116: Cumple | J116: 8.951363691 | K116: 4427.66826 | L116: 2026.77738 | M116: 2400.89088 | N116: Cumple
A117: 109 | B117: 020402 | C117: ANCASH | D117: MUNICIPALIDAD DISTRITAL DE ACOCHACA | E117: =+VLOOKUP($B117,'[2]GL 3T2019'!$B$6:$DH$1879,58,0)/1000 -> 267.32526 | F117: =+VLOOKUP($B117,'[2]GL 3T2019'!$B$6:$DH$1879,84,0)/1000 -> 2754.197928 | G117: 6323.82328 | H117: 4.227272777 | I117: Cumple | J117: 2.30094574 | K117: 2927.17293 | L117: 1221.10343 | M117: 1706.0695 | N117: Cumple
A118: 110 | B118: 020501 | C118: ANCASH | D118: MUNICIPALIDAD PROVINCIAL DE BOLOGNESI - CHIQUIAN | E118: =+VLOOKUP($B118,'[2]GL 3T2019'!$B$6:$DH$1879,58,0)/1000 -> 1507.39138 | F118: =+VLOOKUP($B118,'[2]GL 3T2019'!$B$6:$DH$1879,84,0)/1000 -> 4610.294458 | G118: 4457.11427 | H118: 32.69620615 | I118: Cumple | J118: 32.78891577 | K118: 3670.6267 | L118: 1799.84052 | M118: 1870.78618 | N118: Cumple
A119: 111 | B119: 020502 | C119: ANCASH | D119: MUNICIPALIDAD DISTRITAL DE ABELARDO PARDO LAZAMETA | E119: =+VLOOKUP($B119,'[2]GL 3T2019'!$B$6:$DH$1879,58,0)/1000 -> 756.36301 | F119: =+VLOOKUP($B119,'[2]GL 3T2019'!$B$6:$DH$1879,84,0)/1000 -> 1732.62907 | G119: 3724.12385 | H119: 20.30982428 | I119: Cumple | J119: 9.579073749 | K119: 1524.54049 | L119: 594.71754 | M119: 929.82295 | N119: Cumple
A120: 112 | B120: 020503 | C120: ANCASH | D120: MUNICIPALIDAD DISTRITAL DE ANTONIO RAYMONDI | E120: =+VLOOKUP($B120,'[2]GL 3T2019'!$B$6:$DH$1879,58,0)/1000 -> 952.15788 | F120: =+VLOOKUP($B120,'[2]GL 3T2019'!$B$6:$DH$1879,84,0)/1000 -> 1660.876187 | G120: 2417.79665 | H120: 39.38122257 | I120: Cumple | J120: 77.55197564 | K120: 2039.96997 | L120: 537.72292 | M120: 1502.24705 | N120: Cumple
A121: 113 | B121: 020504 | C121: ANCASH | D121: MUNICIPALIDAD DISTRITAL DE AQUIA | E121: =+VLOOKUP($B121,'[2]GL 3T2019'!$B$6:$DH$1879,58,0)/1000 -> 281.03616 | F121: =+VLOOKUP($B121,'[2]GL 3T2019'!$B$6:$DH$1879,84,0)/1000 -> 2892.50856 | G121: 6224.78303 | H121: 4.51479447 | I121: Cumple | J121: 13.70615468 | K121: 2875.20417 | L121: 658.87977 | M121: 2216.3244 | N121: Cumple
A122: 114 | B122: 020505 | C122: ANCASH | D122: MUNICIPALIDAD DISTRITAL DE CAJACAY | E122: =+VLOOKUP($B122,'[2]GL 3T2019'!$B$6:$DH$1879,58,0)/1000 -> 74.80686 | F122: =+VLOOKUP($B122,'[2]GL 3T2019'!$B$6:$DH$1879,84,0)/1000 -> 1698.830195 | G122: 3716.82307 | H122: 2.012655932 | I122: Cumple | J122: 2.435106953 | K122: 1633.62856 | L122: 758.68079 | M122: 874.94777 | N122: Cumple
A123: 115 | B123: 020506 | C123: ANCASH | D123: MUNICIPALIDAD DISTRITAL DE CANIS | E123: =+VLOOKUP($B123,'[2]GL 3T2019'!$B$6:$DH$1879,58,0)/1000 -> 182.38486 | F123: =+VLOOKUP($B123,'[2]GL 3T2019'!$B$6:$DH$1879,84,0)/1000 -> 1516.805915 | G123: 3827.66807 | H123: 4.764907946 | I123: Cumple | J123: 8.477897475 | K123: 1669.40307 | L123: 390.23548 | M123: 1279.16759 | N123: Cumple
A124: 116 | B124: 020507 | C124: ANCASH | D124: MUNICIPALIDAD DISTRITAL DE COLQUIOC | E124: =+VLOOKUP($B124,'[2]GL 3T2019'!$B$6:$DH$1879,58,0)/1000 -> 6357.3549 | F124: =+VLOOKUP($B124,'[2]GL 3T2019'!$B$6:$DH$1879,84,0)/1000 -> 3013.40997 | G124: 7926.41156 | H124: 80.20470363 | I124: Cumple | J124: 96.12690808 | K124: 3257.6041 | L124: 723.52659 | M124: 2534.07751 | N124: Cumple
A125: 117 | B125: 020508 | C125: ANCASH | D125: MUNICIPALIDAD DISTRITAL DE HUALLANCA | E125: =+VLOOKUP($B125,'[2]GL 3T2019'!$B$6:$DH$1879,58,0)/1000 -> 1210.86401 | F125: =+VLOOKUP($B125,'[2]GL 3T2019'!$B$6:$DH$1879,84,0)/1000 -> 8653.820535 | G125: 23675.26487 | H125: 5.114468694 | I125: Cumple | J125: 7.129956058 | K125: 8851.23973 | L125: 3092.57103 | M125: 5758.6687 | N125: Cumple
A126: 118 | B126: 020509 | C126: ANCASH | D126: MUNICIPALIDAD DISTRITAL DE HUASTA | E126: =+VLOOKUP($B126,'[2]GL 3T2019'!$B$6:$DH$1879,58,0)/1000 -> 380.61821 | F126: =+VLOOKUP($B126,'[2]GL 3T2019'!$B$6:$DH$1879,84,0)/1000 -> 3314.222542 | G126: 7587.51998 | H126: 5.016371766 | I126: Cumple | J126: 7.390804335 | K126: 3482.93481 | L126: 677.29264 | M126: 2805.64217 | N126: Cumple
A127: 119 | B127: 020510 | C127: ANCASH | D127: MUNICIPALIDAD DISTRITAL DE HUAYLLACAYAN | E127: =+VLOOKUP($B127,'[2]GL 3T2019'!$B$6:$DH$1879,58,0)/1000 -> 1616.81872 | F127: =+VLOOKUP($B127,'[2]GL 3T2019'!$B$6:$DH$1879,84,0)/1000 -> 1261.291985 | G127: 2963.05389 | H127: 54.56595729 | I127: Cumple | J127: 95.30453603 | K127: 897.8871 | L127: 441.03197 | M127: 456.85513 | N127: Cumple
A128: 120 | B128: 020511 | C128: ANCASH | D128: MUNICIPALIDAD DISTRITAL DE LA PRIMAVERA | E128: =+VLOOKUP($B128,'[2]GL 3T2019'!$B$6:$DH$1879,58,0)/1000 -> 224.72619 | F128: =+VLOOKUP($B128,'[2]GL 3T2019'!$B$6:$DH$1879,84,0)/1000 -> 1443.82113 | G128: 2044.43369 | H128: 10.99209972 | I128: Cumple | J128: 10.26519059 | K128: 1874.6619 | L128: 764.50832 | M128: 1110.15358 | N128: Cumple
A129: 121 | B129: 020512 | C129: ANCASH | D129: MUNICIPALIDAD DISTRITAL DE MANGAS | E129: =+VLOOKUP($B129,'[2]GL 3T2019'!$B$6:$DH$1879,58,0)/1000 -> 265.99533 | F129: =+VLOOKUP($B129,'[2]GL 3T2019'!$B$6:$DH$1879,84,0)/1000 -> 930.0347275 | G129: 1641.23404 | H129: 16.20703224 | I129: Cumple | J129: 8.8807718 | K129: 880.19067 | L129: 396.25692 | M129: 483.93375 | N129: Cumple
A130: 122 | B130: 020513 | C130: ANCASH | D130: MUNICIPALIDAD DISTRITAL DE PACLLON | E130: =+VLOOKUP($B130,'[2]GL 3T2019'!$B$6:$DH$1879,58,0)/1000 -> 3092.8586 | F130: =+VLOOKUP($B130,'[2]GL 3T2019'!$B$6:$DH$1879,84,0)/1000 -> 2210.960108 | G130: 5560.40454 | H130: 55.62290617 | I130: Cumple | J130: 161.7276783 | K130: 2280.22593 | L130: 289.07496 | M130: 1991.15097 | N130: Cumple
A131: 123 | B131: 020514 | C131: ANCASH | D131: MUNICIPALIDAD DISTRITAL DE SAN MIGUEL DE CORPANQUI | E131: =+VLOOKUP($B131,'[2]GL 3T2019'!$B$6:$DH$1879,58,0)/1000 -> 85.18248 | F131: =+VLOOKUP($B131,'[2]GL 3T2019'!$B$6:$DH$1879,84,0)/1000 -> 1252.610302 | G131: 2959.93341 | H131: 2.877851228 | I131: Cumple | J131: 4.820008059 | K131: 1306.72954 | L131: 412.59397 | M131: 894.13557 | N131: Cumple
A132: 124 | B132: 020515 | C132: ANCASH | D132: MUNICIPALIDAD DISTRITAL DE TICLLOS | E132: =+VLOOKUP($B132,'[2]GL 3T2019'!$B$6:$DH$1879,58,0)/1000 -> 1846.01716 | F132: =+VLOOKUP($B132,'[2]GL 3T2019'!$B$6:$DH$1879,84,0)/1000 -> 1384.222535 | G132: 3194.10102 | H132: 57.79457658 | I132: Cumple | J132: 1.171390819 | K132: 1489.10101 | L132: 450.61555 | M132: 1038.48546 | N132: Cumple
A133: 125 | B133: 020601 | C133: ANCASH | D133: MUNICIPALIDAD PROVINCIAL DE CARHUAZ | E133: =+VLOOKUP($B133,'[2]GL 3T2019'!$B$6:$DH$1879,58,0)/1000 -> 2743.62678 | F133: =+VLOOKUP($B133,'[2]GL 3T2019'!$B$6:$DH$1879,84,0)/1000 -> 14584.63413 | G133: 21395.53106 | H133: 12.82336378 | I133: Cumple | J133: 9.073664291 | K133: 15885.74088 | L133: 5531.28788 | M133: 10354.453 | N133: Cumple
A134: 126 | B134: 020602 | C134: ANCASH | D134: MUNICIPALIDAD DISTRITAL DE ACOPAMPA | E134: =+VLOOKUP($B134,'[2]GL 3T2019'!$B$6:$DH$1879,58,0)/1000 -> 207.23412 | F134: =+VLOOKUP($B134,'[2]GL 3T2019'!$B$6:$DH$1879,84,0)/1000 -> 1663.421282 | G134: 3320.41424 | H134: 6.241212843 | I134: Cumple | J134: 9.008654796 | K134: 1805.44337 | L134: 700.60357 | M134: 1104.8398 | N134: Cumple
A135: 127 | B135: 020603 | C135: ANCASH | D135: MUNICIPALIDAD DISTRITAL DE AMASHCA | E135: =+VLOOKUP($B135,'[2]GL 3T2019'!$B$6:$DH$1879,58,0)/1000 -> 203.31798 | F135: =+VLOOKUP($B135,'[2]GL 3T2019'!$B$6:$DH$1879,84,0)/1000 -> 1658.379267 | G135: 2948.13303 | H135: 6.896499511 | I135: Cumple | J135: 6.190320181 | K135: 2215.92435 | L135: 403.80905 | M135: 1812.1153 | N135: Cumple
A136: 128 | B136: 020604 | C136: ANCASH | D136: MUNICIPALIDAD DISTRITAL DE ANTA | E136: =+VLOOKUP($B136,'[2]GL 3T2019'!$B$6:$DH$1879,58,0)/1000 -> 338.80174 | F136: =+VLOOKUP($B136,'[2]GL 3T2019'!$B$6:$DH$1879,84,0)/1000 -> 2150.970967 | G136: 3992.29716 | H136: 8.486385818 | I136: Cumple | J136: 2.635391469 | K136: 2022.78219 | L136: 952.17951 | M136: 1070.60268 | N136: Cumple
A137: 129 | B137: 020605 | C137: ANCASH | D137: MUNICIPALIDAD DISTRITAL DE ATAQUERO | E137: =+VLOOKUP($B137,'[2]GL 3T2019'!$B$6:$DH$1879,58,0)/1000 -> 344.31448 | F137: =+VLOOKUP($B137,'[2]GL 3T2019'!$B$6:$DH$1879,84,0)/1000 -> 1259.28969 | G137: 2638.45369 | H137: 13.04985876 | I137: Cumple | J137: 8.965179982 | K137: 1311.44254 | L137: 520.32282 | M137: 791.11972 | N137: Cumple
A138: 130 | B138: 020606 | C138: ANCASH | D138: MUNICIPALIDAD DISTRITAL DE MARCARA | E138: =+VLOOKUP($B138,'[2]GL 3T2019'!$B$6:$DH$1879,58,0)/1000 -> 2178.56949 | F138: =+VLOOKUP($B138,'[2]GL 3T2019'!$B$6:$DH$1879,84,0)/1000 -> 6209.056143 | G138: 15520.52062 | H138: 14.03670369 | I138: Cumple | J138: 8.913791201 | K138: 4227.19781 | L138: 1753.44581 | M138: 2473.752 | N138: Cumple
A139: 131 | B139: 020607 | C139: ANCASH | D139: MUNICIPALIDAD DISTRITAL DE PARIAHUANCA | E139: =+VLOOKUP($B139,'[2]GL 3T2019'!$B$6:$DH$1879,58,0)/1000 -> 222.06426 | F139: =+VLOOKUP($B139,'[2]GL 3T2019'!$B$6:$DH$1879,84,0)/1000 -> 1740.664585 | G139: 2414.97012 | H139: 9.195321224 | I139: Cumple | J139: 3.142022127 | K139: 1527.85832 | L139: 847.68872 | M139: 680.1696 | N139: Cumple
A140: 132 | B140: 020608 | C140: ANCASH | D140: MUNICIPALIDAD DISTRITAL DE SAN MIGUEL DE ACO | E140: =+VLOOKUP($B140,'[2]GL 3T2019'!$B$6:$DH$1879,58,0)/1000 -> 69.26223 | F140: =+VLOOKUP($B140,'[2]GL 3T2019'!$B$6:$DH$1879,84,0)/1000 -> 1896.49273 | G140: 3354.17798 | H140: 2.064953929 | I140: Cumple | J140: 4.614927536 | K140: 2553.98042 | L140: 656.0828 | M140: 1897.89762 | N140: Cumple
A141: 133 | B141: 020609 | C141: ANCASH | D141: MUNICIPALIDAD DISTRITAL DE SHILLA | E141: =+VLOOKUP($B141,'[2]GL 3T2019'!$B$6:$DH$1879,58,0)/1000 -> 223.91124 | F141: =+VLOOKUP($B141,'[2]GL 3T2019'!$B$6:$DH$1879,84,0)/1000 -> 2842.534123 | G141: 4851.40042 | H141: 4.61539392 | I141: Cumple | J141: 3.233636646 | K141: 2155.9071 | L141: 863.31298 | M141: 1292.59412 | N141: Cumple
A142: 134 | B142: 020610 | C142: ANCASH | D142: MUNICIPALIDAD DISTRITAL DE TINCO | E142: =+VLOOKUP($B142,'[2]GL 3T2019'!$B$6:$DH$1879,58,0)/1000 -> 2389.68216 | F142: =+VLOOKUP($B142,'[2]GL 3T2019'!$B$6:$DH$1879,84,0)/1000 -> 2366.78028 | G142: 3667.62205 | H142: 65.15617279 | I142: Cumple | J142: 125.495329 | K142: 1720.54565 | L142: 582.96704 | M142: 1137.57861 | N142: Cumple
A143: 135 | B143: 020611 | C143: ANCASH | D143: MUNICIPALIDAD DISTRITAL DE YUNGAR | E143: =+VLOOKUP($B143,'[2]GL 3T2019'!$B$6:$DH$1879,58,0)/1000 -> 262.4523 | F143: =+VLOOKUP($B143,'[2]GL 3T2019'!$B$6:$DH$1879,84,0)/1000 -> 2174.288213 | G143: 4817.62904 | H143: 5.447748214 | I143: Cumple | J143: 14.36410176 | K143: 2289.32895 | L143: 769.92341 | M143: 1519.40554 | N143: Cumple
A144: 136 | B144: 020701 | C144: ANCASH | D144: MUNICIPALIDAD PROVINCIAL DE CARLOS FERMIN FITZCARRALD | E144: =+VLOOKUP($B144,'[2]GL 3T2019'!$B$6:$DH$1879,58,0)/1000 -> 7580.43161 | F144: =+VLOOKUP($B144,'[2]GL 3T2019'!$B$6:$DH$1879,84,0)/1000 -> 15123.47538 | G144: 28393.27517 | H144: 26.69798241 | I144: Cumple | J144: 156.9653169 | K144: 15378.33054 | L144: 6086.38462 | M144: 9291.94592 | N144: Cumple
A145: 137 | B145: 020702 | C145: ANCASH | D145: MUNICIPALIDAD DISTRITAL DE SAN NICOLAS | E145: =+VLOOKUP($B145,'[2]GL 3T2019'!$B$6:$DH$1879,58,0)/1000 -> 85.16409 | F145: =+VLOOKUP($B145,'[2]GL 3T2019'!$B$6:$DH$1879,84,0)/1000 -> 3569.682885 | G145: 8169.62282 | H145: 1.042448249 | I145: Cumple | J145: 2.231699382 | K145: 2311.4032 | L145: 1231.2187 | M145: 1080.1845 | N145: Cumple
A146: 138 | B146: 020703 | C146: ANCASH | D146: MUNICIPALIDAD DISTRITAL DE YAUYA | E146: =+VLOOKUP($B146,'[2]GL 3T2019'!$B$6:$DH$1879,58,0)/1000 -> 515.04473 | F146: =+VLOOKUP($B146,'[2]GL 3T2019'!$B$6:$DH$1879,84,0)/1000 -> 5878.23303 | G146: 12186.674 | H146: 4.226294475 | I146: Cumple | J146: 13.66587347 | K146: 6007.48439 | L146: 2034.54633 | M146: 3972.93806 | N146: Cumple
A147: 139 | B147: 020801 | C147: ANCASH | D147: MUNICIPALIDAD PROVINCIAL DE CASMA | E147: =+VLOOKUP($B147,'[2]GL 3T2019'!$B$6:$DH$1879,58,0)/1000 -> 6047.55421 | F147: =+VLOOKUP($B147,'[2]GL 3T2019'!$B$6:$DH$1879,84,0)/1000 -> 20980.0305 | G147: 36334.88346 | H147: 16.64393452 | I147: Cumple | J147: 28.43410737 | K147: 21122.69777 | L147: 12641.80161 | M147: 8480.89616 | N147: Cumple
A148: 140 | B148: 020802 | C148: ANCASH | D148: MUNICIPALIDAD DISTRITAL DE BUENA VISTA ALTA | E148: =+VLOOKUP($B148,'[2]GL 3T2019'!$B$6:$DH$1879,58,0)/1000 -> 726.86742 | F148: =+VLOOKUP($B148,'[2]GL 3T2019'!$B$6:$DH$1879,84,0)/1000 -> 3504.68772 | G148: 7613.4821 | H148: 9.547108806 | I148: Cumple | J148: 70.20037812 | K148: 3825.31462 | L148: 2093.55984 | M148: 1731.75478 | N148: Cumple
A149: 141 | B149: 020803 | C149: ANCASH | D149: MUNICIPALIDAD DISTRITAL DE COMANDANTE NOEL | E149: =+VLOOKUP($B149,'[2]GL 3T2019'!$B$6:$DH$1879,58,0)/1000 -> 596.30308 | F149: =+VLOOKUP($B149,'[2]GL 3T2019'!$B$6:$DH$1879,84,0)/1000 -> 2459.5932 | G149: 4600.64459 | H149: 12.96129419 | I149: Cumple | J149: 15.09727474 | K149: 2556.56816 | L149: 1240.88215 | M149: 1315.68601 | N149: Cumple
A150: 142 | B150: 020804 | C150: ANCASH | D150: MUNICIPALIDAD DISTRITAL DE YAUTAN | E150: =+VLOOKUP($B150,'[2]GL 3T2019'!$B$6:$DH$1879,58,0)/1000 -> 1049.74117 | F150: =+VLOOKUP($B150,'[2]GL 3T2019'!$B$6:$DH$1879,84,0)/1000 -> 4386.027775 | G150: 10569.82677 | H150: 9.931488877 | I150: Cumple | J150: 10.38104235 | K150: 3077.8287 | L150: 1768.81494 | M150: 1309.01376 | N150: Cumple
A151: 143 | B151: 020901 | C151: ANCASH | D151: MUNICIPALIDAD PROVINCIAL DE CORONGO | E151: =+VLOOKUP($B151,'[2]GL 3T2019'!$B$6:$DH$1879,58,0)/1000 -> 450.69347 | F151: =+VLOOKUP($B151,'[2]GL 3T2019'!$B$6:$DH$1879,84,0)/1000 -> 2356.897627 | G151: 1757.69157 | H151: 19.12231846 | I151: Cumple | J151: 11.65493171 | K151: 1484.8569 | L151: 1076.36416 | M151: 408.49274 | N151: Cumple
A152: 144 | B152: 020902 | C152: ANCASH | D152: MUNICIPALIDAD DISTRITAL DE ACO | E152: =+VLOOKUP($B152,'[2]GL 3T2019'!$B$6:$DH$1879,58,0)/1000 -> 317.81066 | F152: =+VLOOKUP($B152,'[2]GL 3T2019'!$B$6:$DH$1879,84,0)/1000 -> 773.04644 | G152: 980.68727 | H152: 32.40693233 | I152: Cumple | J152: 34.26305452 | K152: 672.96468 | L152: 248.4617 | M152: 424.50298 | N152: Cumple
A153: 145 | B153: 020903 | C153: ANCASH | D153: MUNICIPALIDAD DISTRITAL DE BAMBAS | E153: =+VLOOKUP($B153,'[2]GL 3T2019'!$B$6:$DH$1879,58,0)/1000 -> 37.4225 | F153: =+VLOOKUP($B153,'[2]GL 3T2019'!$B$6:$DH$1879,84,0)/1000 -> 923.815425 | G153: 1236.46779 | H153: 3.026564889 | I153: Cumple | J153: 2.697035348 | K153: 882.779 | L153: 366.91921 | M153: 515.85979 | N153: Cumple
A154: 146 | B154: 020904 | C154: ANCASH | D154: MUNICIPALIDAD DISTRITAL DE CUSCA | E154: =+VLOOKUP($B154,'[2]GL 3T2019'!$B$6:$DH$1879,58,0)/1000 -> 179.14254 | F154: =+VLOOKUP($B154,'[2]GL 3T2019'!$B$6:$DH$1879,84,0)/1000 -> 3100.731795 | G154: 5193.02495 | H154: 3.449676089 | I154: Cumple | J154: 1.559631059 | K154: 3078.50958 | L154: 786.64168 | M154: 2291.8679 | N154: Cumple
A155: 147 | B155: 020905 | C155: ANCASH | D155: MUNICIPALIDAD DISTRITAL DE LA PAMPA | E155: =+VLOOKUP($B155,'[2]GL 3T2019'!$B$6:$DH$1879,58,0)/1000 -> 556.71038 | F155: =+VLOOKUP($B155,'[2]GL 3T2019'!$B$6:$DH$1879,84,0)/1000 -> 921.8199075 | G155: 1126.28295 | H155: 49.42899828 | I155: Cumple | J155: 50.79728753 | K155: 790.96383 | L155: 468.24101 | M155: 322.72282 | N155: Cumple
A156: 148 | B156: 020906 | C156: ANCASH | D156: MUNICIPALIDAD DISTRITAL DE YANAC | E156: =+VLOOKUP($B156,'[2]GL 3T2019'!$B$6:$DH$1879,58,0)/1000 -> 9.42663 | F156: =+VLOOKUP($B156,'[2]GL 3T2019'!$B$6:$DH$1879,84,0)/1000 -> 1033.65183 | G156: 976.4284 | H156: 0.9119734253 | I156: Cumple | J156: 4.664556331 | K156: 1463.46756 | L156: 429.76867 | M156: 1033.69889 | N156: Cumple
A157: 149 | B157: 020907 | C157: ANCASH | D157: MUNICIPALIDAD DISTRITAL DE YUPAN | E157: =+VLOOKUP($B157,'[2]GL 3T2019'!$B$6:$DH$1879,58,0)/1000 -> 72.68449 | F157: =+VLOOKUP($B157,'[2]GL 3T2019'!$B$6:$DH$1879,84,0)/1000 -> 719.14388 | G157: 861.17806 | H157: 8.440123289 | I157: Cumple | J157: 13.35240331 | K157: 704.05153 | L157: 423.0365 | M157: 281.01503 | N157: Cumple
A158: 150 | B158: 021001 | C158: ANCASH | D158: MUNICIPALIDAD PROVINCIAL DE HUARI | E158: =+VLOOKUP($B158,'[2]GL 3T2019'!$B$6:$DH$1879,58,0)/1000 -> 10855.92069 | F158: =+VLOOKUP($B158,'[2]GL 3T2019'!$B$6:$DH$1879,84,0)/1000 -> 39734.32457 | G158: 111485.0175 | H158: 9.737560193 | I158: Cumple | J158: 16.92588222 | K158: 47395.95357 | L158: 8373.16762 | M158: 39022.78595 | N158: Cumple
A159: 151 | B159: 021002 | C159: ANCASH | D159: MUNICIPALIDAD DISTRITAL DE ANRA | E159: =+VLOOKUP($B159,'[2]GL 3T2019'!$B$6:$DH$1879,58,0)/1000 -> 967.85243 | F159: =+VLOOKUP($B159,'[2]GL 3T2019'!$B$6:$DH$1879,84,0)/1000 -> 7466.921015 | G159: 23681.07264 | H159: 4.087029522 | I159: Cumple | J159: 7.979718958 | K159: 9230.14669 | L159: 1629.96449 | M159: 7600.1822 | N159: Cumple
A160: 152 | B160: 021003 | C160: ANCASH | D160: MUNICIPALIDAD DISTRITAL DE CAJAY | E160: =+VLOOKUP($B160,'[2]GL 3T2019'!$B$6:$DH$1879,58,0)/1000 -> 646.426 | F160: =+VLOOKUP($B160,'[2]GL 3T2019'!$B$6:$DH$1879,84,0)/1000 -> 12188.74914 | G160: 39878.2822 | H160: 1.620997607 | I160: Cumple | J160: 2.781845793 | K160: 15569.79922 | L160: 1793.49969 | M160: 13776.29953 | N160: Cumple
A161: 153 | B161: 021004 | C161: ANCASH | D161: MUNICIPALIDAD DISTRITAL DE CHAVIN DE HUANTAR | E161: =+VLOOKUP($B161,'[2]GL 3T2019'!$B$6:$DH$1879,58,0)/1000 -> 7115.63945 | F161: =+VLOOKUP($B161,'[2]GL 3T2019'!$B$6:$DH$1879,84,0)/1000 -> 40369.70943 | G161: 134136.7697 | H161: 5.304764283 | I161: Cumple | J161: 7.026165508 | K161: 52047.04225 | L161: 4827.36714 | M161: 47219.67511 | N161: Cumple
A162: 154 | B162: 021005 | C162: ANCASH | D162: MUNICIPALIDAD DISTRITAL DE HUACACHI | E162: =+VLOOKUP($B162,'[2]GL 3T2019'!$B$6:$DH$1879,58,0)/1000 -> 815.78487 | F162: =+VLOOKUP($B162,'[2]GL 3T2019'!$B$6:$DH$1879,84,0)/1000 -> 8377.300227 | G162: 27379.28221 | H162: 2.979569967 | I162: Cumple | J162: 7.107785806 | K162: 10637.73527 | L162: 1276.63042 | M162: 9361.10485 | N162: Cumple
A163: 155 | B163: 021006 | C163: ANCASH | D163: MUNICIPALIDAD DISTRITAL DE HUACCHIS | E163: =+VLOOKUP($B163,'[2]GL 3T2019'!$B$6:$DH$1879,58,0)/1000 -> 704.40959 | F163: =+VLOOKUP($B163,'[2]GL 3T2019'!$B$6:$DH$1879,84,0)/1000 -> 8902.489358 | G163: 29016.8801 | H163: 2.427585556 | I163: Cumple | J163: 4.791505864 | K163: 11337.20125 | L163: 1429.85619 | M163: 9907.34506 | N163: Cumple
A164: 156 | B164: 021007 | C164: ANCASH | D164: MUNICIPALIDAD DISTRITAL DE HUACHIS | E164: =+VLOOKUP($B164,'[2]GL 3T2019'!$B$6:$DH$1879,58,0)/1000 -> 2035.68555 | F164: =+VLOOKUP($B164,'[2]GL 3T2019'!$B$6:$DH$1879,84,0)/1000 -> 17950.21621 | G164: 58083.40861 | H164: 3.504762545 | I164: Cumple | J164: 31.60193754 | K164: 23350.93306 | L164: 3638.33009 | M164: 19712.60297 | N164: Cumple
A165: 157 | B165: 021008 | C165: ANCASH | D165: MUNICIPALIDAD DISTRITAL DE HUANTAR | E165: =+VLOOKUP($B165,'[2]GL 3T2019'!$B$6:$DH$1879,58,0)/1000 -> 4458.43516 | F165: =+VLOOKUP($B165,'[2]GL 3T2019'!$B$6:$DH$1879,84,0)/1000 -> 11501.01529 | G165: 38349.73149 | H165: 11.62572719 | I165: Cumple | J165: 23.41858466 | K165: 15016.08099 | L165: 1968.91031 | M165: 13047.17068 | N165: Cumple
A166: 158 | B166: 021009 | C166: ANCASH | D166: MUNICIPALIDAD DISTRITAL DE MASIN | E166: =+VLOOKUP($B166,'[2]GL 3T2019'!$B$6:$DH$1879,58,0)/1000 -> 1541.02682 | F166: =+VLOOKUP($B166,'[2]GL 3T2019'!$B$6:$DH$1879,84,0)/1000 -> 7765.558423 | G166: 24620.7938 | H166: 6.259046043 | I166: Cumple | J166: 2.760350817 | K166: 10155.88142 | L166: 1679.53084 | M166: 8476.35058 | N166: Cumple
A167: 159 | B167: 021010 | C167: ANCASH | D167: MUNICIPALIDAD DISTRITAL DE PAUCAS | E167: =+VLOOKUP($B167,'[2]GL 3T2019'!$B$6:$DH$1879,58,0)/1000 -> 269.29713 | F167: =+VLOOKUP($B167,'[2]GL 3T2019'!$B$6:$DH$1879,84,0)/1000 -> 8605.695073 | G167: 28405.15261 | H167: 0.948057325 | I167: Cumple | J167: 0.8401074672 | K167: 10552.98916 | L167: 1541.9157 | M167: 9011.07346 | N167: Cumple
A168: 160 | B168: 021011 | C168: ANCASH | D168: MUNICIPALIDAD DISTRITAL DE PONTO | E168: =+VLOOKUP($B168,'[2]GL 3T2019'!$B$6:$DH$1879,58,0)/1000 -> 1428.39758 | F168: =+VLOOKUP($B168,'[2]GL 3T2019'!$B$6:$DH$1879,84,0)/1000 -> 16833.41998 | G168: 55975.59274 | H168: 2.55182216 | I168: Cumple | J168: 2.267730559 | K168: 21725.81296 | L168: 5029.65527 | M168: 16696.15769 | N168: Cumple
A169: 161 | B169: 021012 | C169: ANCASH | D169: MUNICIPALIDAD DISTRITAL DE RAHUAPAMPA | E169: =+VLOOKUP($B169,'[2]GL 3T2019'!$B$6:$DH$1879,58,0)/1000 -> 449.55458 | F169: =+VLOOKUP($B169,'[2]GL 3T2019'!$B$6:$DH$1879,84,0)/1000 -> 2963.442303 | G169: 8418.03159 | H169: 5.340376491 | I169: Cumple | J169: 13.70812223 | K169: 3684.05594 | L169: 749.05032 | M169: 2935.00562 | N169: Cumple
A170: 162 | B170: 021013 | C170: ANCASH | D170: MUNICIPALIDAD DISTRITAL DE RAPAYAN | E170: =+VLOOKUP($B170,'[2]GL 3T2019'!$B$6:$DH$1879,58,0)/1000 -> 124.55581 | F170: =+VLOOKUP($B170,'[2]GL 3T2019'!$B$6:$DH$1879,84,0)/1000 -> 8856.070883 | G170: 28950.88416 | H170: 0.4302314545 | I170: Cumple | J170: 3.264415619 | K170: 11274.52322 | L170: 1458.82972 | M170: 9815.6935 | N170: Cumple
A171: 163 | B171: 021014 | C171: ANCASH | D171: MUNICIPALIDAD DISTRITAL DE SAN MARCOS | E171: =+VLOOKUP($B171,'[2]GL 3T2019'!$B$6:$DH$1879,58,0)/1000 -> 10891.91586 | F171: =+VLOOKUP($B171,'[2]GL 3T2019'!$B$6:$DH$1879,84,0)/1000 -> 144589.6009 | G171: 618432.1367 | H171: 1.761214402 | I171: Cumple | J171: 3.081396556 | K171: 119460.3481 | L171: 19818.2223 | M171: 99642.1258 | N171: Cumple
A172: 164 | B172: 021015 | C172: ANCASH | D172: MUNICIPALIDAD DISTRITAL DE SAN PEDRO DE CHANA | E172: =+VLOOKUP($B172,'[2]GL 3T2019'!$B$6:$DH$1879,58,0)/1000 -> 286.80728 | F172: =+VLOOKUP($B172,'[2]GL 3T2019'!$B$6:$DH$1879,84,0)/1000 -> 14713.43789 | G172: 46170.28543 | H172: 0.6211945136 | I172: Cumple | J172: 1.249623304 | K172: 17898.49656 | L172: 1850.56505 | M172: 16047.93151 | N172: Cumple
A173: 165 | B173: 021016 | C173: ANCASH | D173: MUNICIPALIDAD DISTRITAL DE UCO | E173: =+VLOOKUP($B173,'[2]GL 3T2019'!$B$6:$DH$1879,58,0)/1000 -> 373.61705 | F173: =+VLOOKUP($B173,'[2]GL 3T2019'!$B$6:$DH$1879,84,0)/1000 -> 6478.591557 | G173: 23403.23351 | H173: 1.596433458 | I173: Cumple | J173: 1.305750653 | K173: 5365.52562 | L173: 1542.69496 | M173: 3822.83066 | N173: Cumple
A174: 166 | B174: 021101 | C174: ANCASH | D174: MUNICIPALIDAD PROVINCIAL DE HUARMEY | E174: =+VLOOKUP($B174,'[2]GL 3T2019'!$B$6:$DH$1879,58,0)/1000 -> 19978.05725 | F174: =+VLOOKUP($B174,'[2]GL 3T2019'!$B$6:$DH$1879,84,0)/1000 -> 19252.48445 | G174: 27613.66049 | H174: 72.34845687 | I174: Cumple | J174: 126.7747242 | K174: 17929.94769 | L174: 6257.58726 | M174: 11672.36043 | N174: Cumple
A175: 167 | B175: 021102 | C175: ANCASH | D175: MUNICIPALIDAD DISTRITAL DE COCHAPETI | E175: =+VLOOKUP($B175,'[2]GL 3T2019'!$B$6:$DH$1879,58,0)/1000 -> 9.6288 | F175: =+VLOOKUP($B175,'[2]GL 3T2019'!$B$6:$DH$1879,84,0)/1000 -> 990.23658 | G175: 1473.79132 | H175: 0.6533353718 | I175: Cumple | J175: 0.9441900236 | K175: 891.56039 | L175: 375.17275 | M175: 516.38764 | N175: Cumple
A176: 168 | B176: 021103 | C176: ANCASH | D176: MUNICIPALIDAD DISTRITAL DE CULEBRAS | E176: =+VLOOKUP($B176,'[2]GL 3T2019'!$B$6:$DH$1879,58,0)/1000 -> 3479.24905 | F176: =+VLOOKUP($B176,'[2]GL 3T2019'!$B$6:$DH$1879,84,0)/1000 -> 3017.43867 | G176: 6592.34689 | H176: 52.77709301 | I176: Cumple | J176: 98.26489083 | K176: 1900.95063 | L176: 1478.32966 | M176: 422.62097 | N176: Cumple
A177: 169 | B177: 021104 | C177: ANCASH | D177: MUNICIPALIDAD DISTRITAL DE HUAYAN | E177: =+VLOOKUP($B177,'[2]GL 3T2019'!$B$6:$DH$1879,58,0)/1000 -> 279.88713 | F177: =+VLOOKUP($B177,'[2]GL 3T2019'!$B$6:$DH$1879,84,0)/1000 -> 1094.52745 | G177: 1861.07528 | H177: 15.039001 | I177: Cumple | J177: 3.189181402 | K177: 1143.11874 | L177: 438.33771 | M177: 704.78103 | N177: Cumple
A178: 170 | B178: 021105 | C178: ANCASH | D178: MUNICIPALIDAD DISTRITAL DE MALVAS | E178: =+VLOOKUP($B178,'[2]GL 3T2019'!$B$6:$DH$1879,58,0)/1000 -> 418.01935 | F178: =+VLOOKUP($B178,'[2]GL 3T2019'!$B$6:$DH$1879,84,0)/1000 -> 1049.822502 | G178: 1540.27824 | H178: 27.13921025 | I178: Cumple | J178: 30.77386279 | K178: 981.76912 | L178: 491.00321 | M178: 490.76591 | N178: Cumple
A179: 171 | B179: 021201 | C179: ANCASH | D179: MUNICIPALIDAD PROVINCIAL DE HUAYLAS - CARAZ | E179: =+VLOOKUP($B179,'[2]GL 3T2019'!$B$6:$DH$1879,58,0)/1000 -> 1750.34906 | F179: =+VLOOKUP($B179,'[2]GL 3T2019'!$B$6:$DH$1879,84,0)/1000 -> 20718.96228 | G179: 32117.26414 | H179: 5.449869741 | I179: Cumple | J179: 4.830970064 | K179: 18211.14831 | L179: 6480.96133 | M179: 11730.18698 | N179: Cumple
A180: 172 | B180: 021202 | C180: ANCASH | D180: MUNICIPALIDAD DISTRITAL DE HUALLANCA | E180: =+VLOOKUP($B180,'[2]GL 3T2019'!$B$6:$DH$1879,58,0)/1000 -> 125.29443 | F180: =+VLOOKUP($B180,'[2]GL 3T2019'!$B$6:$DH$1879,84,0)/1000 -> 3248.359878 | G180: 4120.75703 | H180: 3.040568252 | I180: Cumple | J180: 8.41287185 | K180: 1585.16023 | L180: 1136.63902 | M180: 448.52121 | N180: Cumple
A181: 173 | B181: 021203 | C181: ANCASH | D181: MUNICIPALIDAD DISTRITAL DE HUATA | E181: =+VLOOKUP($B181,'[2]GL 3T2019'!$B$6:$DH$1879,58,0)/1000 -> 510.29391 | F181: =+VLOOKUP($B181,'[2]GL 3T2019'!$B$6:$DH$1879,84,0)/1000 -> 1526.47204 | G181: 2784.60671 | H181: 18.32552899 | I181: Cumple | J181: 17.22466029 | K181: 1328.84284 | L181: 532.50834 | M181: 796.3345 | N181: Cumple
A182: 174 | B182: 021204 | C182: ANCASH | D182: MUNICIPALIDAD DISTRITAL DE HUAYLAS | E182: =+VLOOKUP($B182,'[2]GL 3T2019'!$B$6:$DH$1879,58,0)/1000 -> 349.18019 | F182: =+VLOOKUP($B182,'[2]GL 3T2019'!$B$6:$DH$1879,84,0)/1000 -> 1526.562338 | G182: 3675.98136 | H182: 9.498965196 | I182: Cumple | J182: 15.25946609 | K182: 891.01291 | L182: 523.3086 | M182: 367.70431 | N182: Cumple
A183: 175 | B183: 021205 | C183: ANCASH | D183: MUNICIPALIDAD DISTRITAL DE MATO | E183: =+VLOOKUP($B183,'[2]GL 3T2019'!$B$6:$DH$1879,58,0)/1000 -> 698.62142 | F183: =+VLOOKUP($B183,'[2]GL 3T2019'!$B$6:$DH$1879,84,0)/1000 -> 1288.369772 | G183: 2864.85413 | H183: 24.38593339 | I183: Cumple | J183: 27.16504904 | K183: 771.91932 | L183: 483.24923 | M183: 288.67009 | N183: Cumple
A184: 176 | B184: 021206 | C184: ANCASH | D184: MUNICIPALIDAD DISTRITAL DE PAMPAROMAS | E184: =+VLOOKUP($B184,'[2]GL 3T2019'!$B$6:$DH$1879,58,0)/1000 -> 1524.22018 | F184: =+VLOOKUP($B184,'[2]GL 3T2019'!$B$6:$DH$1879,84,0)/1000 -> 7828.684135 | G184: 18951.61849 | H184: 8.042691345 | I184: Cumple | J184: 12.91997662 | K184: 4595.88247 | L184: 2024.18712 | M184: 2571.69535 | N184: Cumple
A185: 177 | B185: 021207 | C185: ANCASH | D185: MUNICIPALIDAD DISTRITAL DE PUEBLO LIBRE | E185: =+VLOOKUP($B185,'[2]GL 3T2019'!$B$6:$DH$1879,58,0)/1000 -> 529.8655 | F185: =+VLOOKUP($B185,'[2]GL 3T2019'!$B$6:$DH$1879,84,0)/1000 -> 6094.206195 | G185: 13833.10412 | H185: 3.830416481 | I185: Cumple | J185: 8.146398733 | K185: 5718.58913 | L185: 2005.79644 | M185: 3712.79269 | N185: Cumple
A186: 178 | B186: 021208 | C186: ANCASH | D186: MUNICIPALIDAD DISTRITAL DE SANTA CRUZ | E186: =+VLOOKUP($B186,'[2]GL 3T2019'!$B$6:$DH$1879,58,0)/1000 -> 1237.89518 | F186: =+VLOOKUP($B186,'[2]GL 3T2019'!$B$6:$DH$1879,84,0)/1000 -> 5391.093205 | G186: 12729.02798 | H186: 9.724978073 | I186: Cumple | J186: 12.33447419 | K186: 5575.63087 | L186: 2359.57816 | M186: 3216.05271 | N186: Cumple
A187: 179 | B187: 021209 | C187: ANCASH | D187: MUNICIPALIDAD DISTRITAL DE SANTO TORIBIO | E187: =+VLOOKUP($B187,'[2]GL 3T2019'!$B$6:$DH$1879,58,0)/1000 -> 297.66516 | F187: =+VLOOKUP($B187,'[2]GL 3T2019'!$B$6:$DH$1879,84,0)/1000 -> 1879.561853 | G187: 2552.36425 | H187: 11.66233072 | I187: Cumple | J187: 22.38069923 | K187: 1964.1847 | L187: 595.35698 | M187: 1368.82772 | N187: Cumple
A188: 180 | B188: 021210 | C188: ANCASH | D188: MUNICIPALIDAD DISTRITAL DE YURACMARCA | E188: =+VLOOKUP($B188,'[2]GL 3T2019'!$B$6:$DH$1879,58,0)/1000 -> 194.85755 | F188: =+VLOOKUP($B188,'[2]GL 3T2019'!$B$6:$DH$1879,84,0)/1000 -> 3480.50589 | G188: 6372.54023 | H188: 3.057768848 | I188: Cumple | J188: 24.40319799 | K188: 2654.90524 | L188: 1900.02222 | M188: 754.88302 | N188: Cumple
A189: 181 | B189: 021301 | C189: ANCASH | D189: MUNICIPALIDAD PROVINCIAL DE MARISCAL LUZURIAGA - PISCOBAMBA | E189: =+VLOOKUP($B189,'[2]GL 3T2019'!$B$6:$DH$1879,58,0)/1000 -> 2667.78785 | F189: =+VLOOKUP($B189,'[2]GL 3T2019'!$B$6:$DH$1879,84,0)/1000 -> 5005.213483 | G189: 6617.6687 | H189: 40.31310679 | I189: Cumple | J189: 48.49391824 | K189: 3180.89279 | L189: 1598.67486 | M189: 1582.21793 | N189: Cumple
A190: 182 | B190: 021302 | C190: ANCASH | D190: MUNICIPALIDAD DISTRITAL DE CASCA | E190: =+VLOOKUP($B190,'[2]GL 3T2019'!$B$6:$DH$1879,58,0)/1000 -> 239.37167 | F190: =+VLOOKUP($B190,'[2]GL 3T2019'!$B$6:$DH$1879,84,0)/1000 -> 4085.315152 | G190: 10158.81927 | H190: 2.356294207 | I190: Cumple | J190: 1.301168834 | K190: 2718.94846 | L190: 1160.60768 | M190: 1558.34078 | N190: Cumple
A191: 183 | B191: 021303 | C191: ANCASH | D191: MUNICIPALIDAD DISTRITAL DE ELEAZAR GUZMAN BARRON | E191: =+VLOOKUP($B191,'[2]GL 3T2019'!$B$6:$DH$1879,58,0)/1000 -> 75.20728 | F191: =+VLOOKUP($B191,'[2]GL 3T2019'!$B$6:$DH$1879,84,0)/1000 -> 1481.926187 | G191: 3116.81065 | H191: 2.412956334 | I191: Cumple | J191: 2.034709034 | K191: 1574.95094 | L191: 518.18471 | M191: 1056.76623 | N191: Cumple
A192: 184 | B192: 021304 | C192: ANCASH | D192: MUNICIPALIDAD DISTRITAL DE FIDEL OLIVAS ESCUDERO | E192: =+VLOOKUP($B192,'[2]GL 3T2019'!$B$6:$DH$1879,58,0)/1000 -> 43.686 | F192: =+VLOOKUP($B192,'[2]GL 3T2019'!$B$6:$DH$1879,84,0)/1000 -> 2274.138265 | G192: 4803.3159 | H192: 0.9094967083 | I192: Cumple | J192: 1.726114689 | K192: 2424.96878 | L192: 683.5164 | M192: 1741.45238 | N192: Cumple
A193: 185 | B193: 021305 | C193: ANCASH | D193: MUNICIPALIDAD DISTRITAL DE LLAMA | E193: =+VLOOKUP($B193,'[2]GL 3T2019'!$B$6:$DH$1879,58,0)/1000 -> 271.68371 | F193: =+VLOOKUP($B193,'[2]GL 3T2019'!$B$6:$DH$1879,84,0)/1000 -> 1488.137105 | G193: 2735.48774 | H193: 9.931819691 | I193: Cumple | J193: 4.908319874 | K193: 1427.52446 | L193: 584.53516 | M193: 842.9893 | N193: Cumple
A194: 186 | B194: 021306 | C194: ANCASH | D194: MUNICIPALIDAD DISTRITAL DE LLUMPA | E194: =+VLOOKUP($B194,'[2]GL 3T2019'!$B$6:$DH$1879,58,0)/1000 -> 754.86153 | F194: =+VLOOKUP($B194,'[2]GL 3T2019'!$B$6:$DH$1879,84,0)/1000 -> 6291.88119 | G194: 14118.62194 | H194: 5.346566635 | I194: Cumple | J194: 13.00324746 | K194: 6718.66002 | L194: 2088.83813 | M194: 4629.82189 | N194: Cumple
A195: 187 | B195: 021307 | C195: ANCASH | D195: MUNICIPALIDAD DISTRITAL DE LUCMA | E195: =+VLOOKUP($B195,'[2]GL 3T2019'!$B$6:$DH$1879,58,0)/1000 -> 147.37545 | F195: =+VLOOKUP($B195,'[2]GL 3T2019'!$B$6:$DH$1879,84,0)/1000 -> 3203.289142 | G195: 7364.85897 | H195: 2.001062758 | I195: Cumple | J195: 1.839802745 | K195: 3316.01306 | L195: 1091.42399 | M195: 2224.58907 | N195: Cumple
A196: 188 | B196: 021308 | C196: ANCASH | D196: MUNICIPALIDAD DISTRITAL DE MUSGA | E196: =+VLOOKUP($B196,'[2]GL 3T2019'!$B$6:$DH$1879,58,0)/1000 -> 234.81975 | F196: =+VLOOKUP($B196,'[2]GL 3T2019'!$B$6:$DH$1879,84,0)/1000 -> 1224.644063 | G196: 2267.89876 | H196: 10.35406669 | I196: Cumple | J196: 7.545874976 | K196: 1240.40346 | L196: 423.74678 | M196: 816.65668 | N196: Cumple
A197: 189 | B197: 021401 | C197: ANCASH | D197: MUNICIPALIDAD PROVINCIAL DE OCROS | E197: =+VLOOKUP($B197,'[2]GL 3T2019'!$B$6:$DH$1879,58,0)/1000 -> 849.33416 | F197: =+VLOOKUP($B197,'[2]GL 3T2019'!$B$6:$DH$1879,84,0)/1000 -> 2678.93152 | G197: 1380.81046 | H197: 31.70421318 | I197: Cumple | J197: 37.82059137 | K197: 1584.8156 | L197: 931.04089 | M197: 653.77471 | N197: Cumple
A198: 190 | B198: 021402 | C198: ANCASH | D198: MUNICIPALIDAD DISTRITAL DE ACAS | E198: =+VLOOKUP($B198,'[2]GL 3T2019'!$B$6:$DH$1879,58,0)/1000 -> 62.56587 | F198: =+VLOOKUP($B198,'[2]GL 3T2019'!$B$6:$DH$1879,84,0)/1000 -> 1296.694145 | G198: 2340.0568 | H198: 2.673690228 | I198: Cumple | J198: 4.133531599 | K198: 1190.13886 | L198: 414.75453 | M198: 775.38433 | N198: Cumple
A199: 191 | B199: 021403 | C199: ANCASH | D199: MUNICIPALIDAD DISTRITAL DE CAJAMARQUILLA | E199: =+VLOOKUP($B199,'[2]GL 3T2019'!$B$6:$DH$1879,58,0)/1000 -> 22.62525 | F199: =+VLOOKUP($B199,'[2]GL 3T2019'!$B$6:$DH$1879,84,0)/1000 -> 632.9493825 | G199: 580.56324 | H199: 3.574574938 | I199: Cumple | J199: 4.911588276 | K199: 535.32305 | L199: 270.73785 | M199: 264.5852 | N199: Cumple
A200: 192 | B200: 021404 | C200: ANCASH | D200: MUNICIPALIDAD DISTRITAL DE CARHUAPAMPA | E200: =+VLOOKUP($B200,'[2]GL 3T2019'!$B$6:$DH$1879,58,0)/1000 -> 81.96624 | F200: =+VLOOKUP($B200,'[2]GL 3T2019'!$B$6:$DH$1879,84,0)/1000 -> 1124.861167 | G200: 1892.37585 | H200: 4.331393259 | I200: Cumple | J200: 9.101073241 | K200: 1166.35608 | L200: 448.92093 | M200: 717.43515 | N200: Cumple
A201: 193 | B201: 021405 | C201: ANCASH | D201: MUNICIPALIDAD DISTRITAL DE COCHAS | E201: =+VLOOKUP($B201,'[2]GL 3T2019'!$B$6:$DH$1879,58,0)/1000 -> 262.86449 | F201: =+VLOOKUP($B201,'[2]GL 3T2019'!$B$6:$DH$1879,84,0)/1000 -> 1483.31044 | G201: 2424.3886 | H201: 10.84250644 | I201: Cumple | J201: 30.10692164 | K201: 1365.88384 | L201: 888.70457 | M201: 477.17927 | N201: Cumple
A202: 194 | B202: 021406 | C202: ANCASH | D202: MUNICIPALIDAD DISTRITAL DE CONGAS | E202: =+VLOOKUP($B202,'[2]GL 3T2019'!$B$6:$DH$1879,58,0)/1000 -> 500.57677 | F202: =+VLOOKUP($B202,'[2]GL 3T2019'!$B$6:$DH$1879,84,0)/1000 -> 1223.357708 | G202: 2458.56216 | H202: 20.36054968 | I202: Cumple | J202: 0.9724655718 | K202: 1285.98344 | L202: 419.70391 | M202: 866.27953 | N202: Cumple
... 1686 more rows

Sheet DPTO (hidden)
A1: -------------------- | B1: CODI_DEP | C1: DESC_DEP
A2: 01:AMAZONAS | B2: 01 | C2: AMAZONAS
A3: 02:ANCASH | B3: 02 | C3: ANCASH
A4: 03:APURIMAC | B4: 03 | C4: APURIMAC
A5: 04:AREQUIPA | B5: 04 | C5: AREQUIPA
A6: 05:AYACUCHO | B6: 05 | C6: AYACUCHO
A7: 06:CAJAMARCA | B7: 06 | C7: CAJAMARCA
A8: 07:PROV CONSTIT DEL CALLAO | B8: 07 | C8: PROV CONSTIT DEL CALLAO
A9: 08:CUSCO | B9: 08 | C9: CUSCO
A10: 09:HUANCAVELICA | B10: 09 | C10: HUANCAVELICA
A11: 10:HUANUCO | B11: 10 | C11: HUANUCO
A12: 11:ICA | B12: 11 | C12: ICA
A13: 12:JUNIN | B13: 12 | C13: JUNIN
A14: 13:LA LIBERTAD | B14: 13 | C14: LA LIBERTAD
A15: 14:LAMBAYEQUE | B15: 14 | C15: LAMBAYEQUE
A16: 15:LIMA | B16: 15 | C16: LIMA
A17: 16:LORETO | B17: 16 | C17: LORETO
A18: 17:MADRE DE DIOS | B18: 17 | C18: MADRE DE DIOS
A19: 18:MOQUEGUA | B19: 18 | C19: MOQUEGUA
A20: 19:PASCO | B20: 19 | C20: PASCO
A21: 20:PIURA | B21: 20 | C21: PIURA
A22: 21:PUNO | B22: 21 | C22: PUNO
A23: 22:SAN MARTIN | B23: 22 | C23: SAN MARTIN
A24: 23:TACNA | B24: 23 | C24: TACNA
A25: 24:TUMBES | B25: 24 | C25: TUMBES
A26: 25:UCAYALI | B26: 25 | C26: UCAYALI

Sheet PROV (hidden)
A1: PROV | B1: CODI_DEP | C1: CODI_PRO | D1: DESC_PRO
A2: 0101:CHACHAPOYAS | B2: 01 | C2: 01 | D2: CHACHAPOYAS
A3: 0102:BAGUA | B3: 01 | C3: 02 | D3: BAGUA
A4: 0103:BONGARA | B4: 01 | C4: 03 | D4: BONGARA
A5: 0104:CONDORCANQUI | B5: 01 | C5: 04 | D5: CONDORCANQUI
A6: 0105:LUYA | B6: 01 | C6: 05 | D6: LUYA
A7: 0106:RODRIGUEZ DE MENDOZA | B7: 01 | C7: 06 | D7: RODRIGUEZ DE MENDOZA
A8: 0107:UCTUBAMBA | B8: 01 | C8: 07 | D8: UCTUBAMBA
A9: 0201:HUARAZ | B9: 02 | C9: 01 | D9: HUARAZ
A10: 0202:AIJA | B10: 02 | C10: 02 | D10: AIJA
A11: 0203:ANTONIO RAIMONDI | B11: 02 | C11: 03 | D11: ANTONIO RAIMONDI
A12: 0204:ASUNCION | B12: 02 | C12: 04 | D12: ASUNCION
A13: 0205:BOLOGNESI | B13: 02 | C13: 05 | D13: BOLOGNESI
A14: 0206:CARHUAZ | B14: 02 | C14: 06 | D14: CARHUAZ
A15: 0207:CARLOS FERMIN FITZCARRALD | B15: 02 | C15: 07 | D15: CARLOS FERMIN FITZCARRALD
A16: 0208:CASMA | B16: 02 | C16: 08 | D16: CASMA
A17: 0209:CORONGO | B17: 02 | C17: 09 | D17: CORONGO
A18: 0210:HUARI | B18: 02 | C18: 10 | D18: HUARI
A19: 0211:HUARMEY | B19: 02 | C19: 11 | D19: HUARMEY
A20: 0212:HUAYLAS | B20: 02 | C20: 12 | D20: HUAYLAS
A21: 0213:MARISCAL LUZURIAGA | B21: 02 | C21: 13 | D21: MARISCAL LUZURIAGA
A22: 0214:OCROS | B22: 02 | C22: 14 | D22: OCROS
A23: 0215:PALLASCA | B23: 02 | C23: 15 | D23: PALLASCA
A24: 0216:POMABAMBA | B24: 02 | C24: 16 | D24: POMABAMBA
A25: 0217:RECUAY | B25: 02 | C25: 17 | D25: RECUAY
A26: 0218:SANTA | B26: 02 | C26: 18 | D26: SANTA
A27: 0219:SIHUAS | B27: 02 | C27: 19 | D27: SIHUAS
A28: 0220:YUNGAY | B28: 02 | C28: 20 | D28: YUNGAY
A29: 0301:ABANCAY | B29: 03 | C29: 01 | D29: ABANCAY
A30: 0302:ANDAHUAYLAS | B30: 03 | C30: 02 | D30: ANDAHUAYLAS
A31: 0303:ANTABAMBA | B31: 03 | C31: 03 | D31: ANTABAMBA
A32: 0304:AYMARAES | B32: 03 | C32: 04 | D32: AYMARAES
A33: 0305:COTABAMBA | B33: 03 | C33: 05 | D33: COTABAMBA
A34: 0306:CHINCHEROS | B34: 03 | C34: 06 | D34: CHINCHEROS
A35: 0307:GRAU | B35: 03 | C35: 07 | D35: GRAU
A36: 0401:AREQUIPA | B36: 04 | C36: 01 | D36: AREQUIPA
A37: 0402:CAMANA | B37: 04 | C37: 02 | D37: CAMANA
A38: 0403:CARAVELI | B38: 04 | C38: 03 | D38: CARAVELI
A39: 0404:CASTILLA | B39: 04 | C39: 04 | D39: CASTILLA
A40: 0405:CAYLLOMA | B40: 04 | C40: 05 | D40: CAYLLOMA
A41: 0406:CONDESUYOS | B41: 04 | C41: 06 | D41: CONDESUYOS
A42: 0407:ISLAY | B42: 04 | C42: 07 | D42: ISLAY
A43: 0408:LA UNION | B43: 04 | C43: 08 | D43: LA UNION
A44: 0501:HUAMANGA | B44: 05 | C44: 01 | D44: HUAMANGA
A45: 0502:CANGALLO | B45: 05 | C45: 02 | D45: CANGALLO
A46: 0503:HUANCA SANCOS | B46: 05 | C46: 03 | D46: HUANCA SANCOS
A47: 0504:HUANTA | B47: 05 | C47: 04 | D47: HUANTA
A48: 0505:LA MAR | B48: 05 | C48: 05 | D48: LA MAR
A49: 0506:LUCANAS | B49: 05 | C49: 06 | D49: LUCANAS
A50: 0507:PARINACOCHAS | B50: 05 | C50: 07 | D50: PARINACOCHAS
A51: 0508:PAUCAR DEL SARA SARA | B51: 05 | C51: 08 | D51: PAUCAR DEL SARA SARA
A52: 0509:SUCRE | B52: 05 | C52: 09 | D52: SUCRE
A53: 0510:VICTOR FAJARDO | B53: 05 | C53: 10 | D53: VICTOR FAJARDO
A54: 0511:VILCASHUAMAN | B54: 05 | C54: 11 | D54: VILCASHUAMAN
A55: 0601:CAJAMARCA | B55: 06 | C55: 01 | D55: CAJAMARCA
A56: 0602:CAJABAMBA | B56: 06 | C56: 02 | D56: CAJABAMBA
A57: 0603:CELENDIN | B57: 06 | C57: 03 | D57: CELENDIN
A58: 0604:CHOTA | B58: 06 | C58: 04 | D58: CHOTA
A59: 0605:CONTUMAZA | B59: 06 | C59: 05 | D59: CONTUMAZA
A60: 0606:CUTERVO | B60: 06 | C60: 06 | D60: CUTERVO
A61: 0607:HUALGAYOC | B61: 06 | C61: 07 | D61: HUALGAYOC
A62: 0608:JAEN | B62: 06 | C62: 08 | D62: JAEN
A63: 0609:SAN IGNACIO | B63: 06 | C63: 09 | D63: SAN IGNACIO
A64: 0610:SAN MARCOS | B64: 06 | C64: 10 | D64: SAN MARCOS
A65: 0611:SAN MIGUEL | B65: 06 | C65: 11 | D65: SAN MIGUEL
A66: 0612:SAN PABLO | B66: 06 | C66: 12 | D66: SAN PABLO
A67: 0613:SANTA CRUZ | B67: 06 | C67: 13 | D67: SANTA CRUZ
A68: 0701:PROV. CALLAO | B68: 07 | C68: 01 | D68: PROV. CALLAO
A69: 0801:CUSCO | B69: 08 | C69: 01 | D69: CUSCO
A70: 0802:ACOMAYO | B70: 08 | C70: 02 | D70: ACOMAYO
A71: 0803:ANTA | B71: 08 | C71: 03 | D71: ANTA
A72: 0804:CALCA | B72: 08 | C72: 04 | D72: CALCA
A73: 0805:CANAS | B73: 08 | C73: 05 | D73: CANAS
A74: 0806:CANCHIS | B74: 08 | C74: 06 | D74: CANCHIS
A75: 0807:CHUMBIVILCAS | B75: 08 | C75: 07 | D75: CHUMBIVILCAS
A76: 0808:ESPINAR | B76: 08 | C76: 08 | D76: ESPINAR
A77: 0809:LA CONVENCION | B77: 08 | C77: 09 | D77: LA CONVENCION
A78: 0810:PARURO | B78: 08 | C78: 10 | D78: PARURO
A79: 0811:PAUCARTAMBO | B79: 08 | C79: 11 | D79: PAUCARTAMBO
A80: 0812:QUISPICANCHIS | B80: 08 | C80: 12 | D80: QUISPICANCHIS
A81: 0813:URUBAMBA | B81: 08 | C81: 13 | D81: URUBAMBA
A82: 0901:HUANCAVELICA | B82: 09 | C82: 01 | D82: HUANCAVELICA
A83: 0902:ACOBAMBA | B83: 09 | C83: 02 | D83: ACOBAMBA
A84: 0903:ANGARAES | B84: 09 | C84: 03 | D84: ANGARAES
A85: 0904:CASTROVIRREYNA | B85: 09 | C85: 04 | D85: CASTROVIRREYNA
A86: 0905:CHURCAMPA | B86: 09 | C86: 05 | D86: CHURCAMPA
A87: 0906:HUAYTARA | B87: 09 | C87: 06 | D87: HUAYTARA
A88: 0907:TAYACAJA | B88: 09 | C88: 07 | D88: TAYACAJA
A89: 1001:HUANUCO | B89: 10 | C89: 01 | D89: HUANUCO
A90: 1002:AMBO | B90: 10 | C90: 02 | D90: AMBO
A91: 1003:DOS DE MAYO | B91: 10 | C91: 03 | D91: DOS DE MAYO
A92: 1004:HUACAYBAMBA | B92: 10 | C92: 04 | D92: HUACAYBAMBA
A93: 1005:HUAMALIES | B93: 10 | C93: 05 | D93: HUAMALIES
A94: 1006:LEONCIO PRADO | B94: 10 | C94: 06 | D94: LEONCIO PRADO
A95: 1007:MARANON | B95: 10 | C95: 07 | D95: MARANON
A96: 1008:PACHITEA | B96: 10 | C96: 08 | D96: PACHITEA
A97: 1009:PUERTO INCA | B97: 10 | C97: 09 | D97: PUERTO INCA
A98: 1010:LAURICOCHA | B98: 10 | C98: 10 | D98: LAURICOCHA
A99: 1011:YAROWILCA | B99: 10 | C99: 11 | D99: YAROWILCA
A100: 1101:ICA | B100: 11 | C100: 01 | D100: ICA
A101: 1102:CHINCHA | B101: 11 | C101: 02 | D101: CHINCHA
A102: 1103:NAZCA | B102: 11 | C102: 03 | D102: NAZCA
A103: 1104:PALPA | B103: 11 | C103: 04 | D103: PALPA
A104: 1105:PISCO | B104: 11 | C104: 05 | D104: PISCO
A105: 1201:HUANCAYO | B105: 12 | C105: 01 | D105: HUANCAYO
A106: 1202:CONCEPCION | B106: 12 | C106: 02 | D106: CONCEPCION
A107: 1203:CHANCHAMAYO | B107: 12 | C107: 03 | D107: CHANCHAMAYO
A108: 1204:JAUJA | B108: 12 | C108: 04 | D108: JAUJA
A109: 1205:JUNIN | B109: 12 | C109: 05 | D109: JUNIN
A110: 1206:SATIPO | B110: 12 | C110: 06 | D110: SATIPO
A111: 1207:TARMA | B111: 12 | C111: 07 | D111: TARMA
A112: 1208:YAULI | B112: 12 | C112: 08 | D112: YAULI
A113: 1209:CHUPACA | B113: 12 | C113: 09 | D113: CHUPACA
A114: 1301:TRUJILLO | B114: 13 | C114: 01 | D114: TRUJILLO
A115: 1302:ASCOPE | B115: 13 | C115: 02 | D115: ASCOPE
A116: 1303:BOLIVAR | B116: 13 | C116: 03 | D116: BOLIVAR
A117: 1304:CHEPEN | B117: 13 | C117: 04 | D117: CHEPEN
A118: 1305:JULCAN | B118: 13 | C118: 05 | D118: JULCAN
A119: 1306:OTUZCO | B119: 13 | C119: 06 | D119: OTUZCO
A120: 1307:PACASMAYO | B120: 13 | C120: 07 | D120: PACASMAYO
A121: 1308:PATAZ | B121: 13 | C121: 08 | D121: PATAZ
A122: 1309:SANCHEZ CARRION | B122: 13 | C122: 09 | D122: SANCHEZ CARRION
A123: 1310:SANTIAGO DE CHUCO | B123: 13 | C123: 10 | D123: SANTIAGO DE CHUCO
A124: 1311:GRAN CHIMU | B124: 13 | C124: 11 | D124: GRAN CHIMU
A125: 1312:VIRU | B125: 13 | C125: 12 | D125: VIRU
A126: 1401:CHICLAYO | B126: 14 | C126: 01 | D126: CHICLAYO
A127: 1402:FERRENAFE | B127: 14 | C127: 02 | D127: FERRENAFE
A128: 1403:LAMBAYEQUE | B128: 14 | C128: 03 | D128: LAMBAYEQUE
A129: 1501:LIMA | B129: 15 | C129: 01 | D129: LIMA
A130: 1502:BARRANCA | B130: 15 | C130: 02 | D130: BARRANCA
A131: 1503:CAJATAMBO | B131: 15 | C131: 03 | D131: CAJATAMBO
A132: 1504:CANTA | B132: 15 | C132: 04 | D132: CANTA
A133: 1505:CAÑETE | B133: 15 | C133: 05 | D133: CAÑETE
A134: 1506:HUARAL | B134: 15 | C134: 06 | D134: HUARAL
A135: 1507:HUAROCHIRI | B135: 15 | C135: 07 | D135: HUAROCHIRI
A136: 1508:HUAURA | B136: 15 | C136: 08 | D136: HUAURA
A137: 1509:OYON | B137: 15 | C137: 09 | D137: OYON
A138: 1510:YAUYOS | B138: 15 | C138: 10 | D138: YAUYOS
A139: 1601:MAYNAS | B139: 16 | C139: 01 | D139: MAYNAS
A140: 1602:ALTO AMAZONAS | B140: 16 | C140: 02 | D140: ALTO AMAZONAS
A141: 1603:LORETO | B141: 16 | C141: 03 | D141: LORETO
A142: 1604:RAMON CASTILLA | B142: 16 | C142: 04 | D142: RAMON CASTILLA
A143: 1605:REQUENA | B143: 16 | C143: 05 | D143: REQUENA
A144: 1606:UCAYALI | B144: 16 | C144: 06 | D144: UCAYALI
A145: 1607:DATEM DEL MARAÑON | B145: 16 | C145: 07 | D145: DATEM DEL MARAÑON
A146: 1608:PUTUMAYO | B146: 16 | C146: 08 | D146: PUTUMAYO
A147: 1701:TAMBOPATA | B147: 17 | C147: 01 | D147: TAMBOPATA
A148: 1702:MANU | B148: 17 | C148: 02 | D148: MANU
A149: 1703:TAHUAMANU | B149: 17 | C149: 03 | D149: TAHUAMANU
A150: 1801:MARISCAL NIETO | B150: 18 | C150: 01 | D150: MARISCAL NIETO
A151: 1802:GENERAL SANCHEZ CERRO | B151: 18 | C151: 02 | D151: GENERAL SANCHEZ CERRO
A152: 1803:ILO | B152: 18 | C152: 03 | D152: ILO
A153: 1901:PASCO | B153: 19 | C153: 01 | D153: PASCO
A154: 1902:DANIEL A. CARRION | B154: 19 | C154: 02 | D154: DANIEL A. CARRION
A155: 1903:OXAPAMPA | B155: 19 | C155: 03 | D155: OXAPAMPA
A156: 2001:PIURA | B156: 20 | C156: 01 | D156: PIURA
A157: 2002:AYABACA | B157: 20 | C157: 02 | D157: AYABACA
A158: 2003:HUANCABAMBA | B158: 20 | C158: 03 | D158: HUANCABAMBA
A159: 2004:MORROPON | B159: 20 | C159: 04 | D159: MORROPON
A160: 2005:PAITA | B160: 20 | C160: 05 | D160: PAITA
A161: 2006:SULLANA | B161: 20 | C161: 06 | D161: SULLANA
A162: 2007:TALARA | B162: 20 | C162: 07 | D162: TALARA
A163: 2008:SECHURA | B163: 20 | C163: 08 | D163: SECHURA
A164: 2101:PUNO | B164: 21 | C164: 01 | D164: PUNO
A165: 2102:AZANGARO | B165: 21 | C165: 02 | D165: AZANGARO
A166: 2103:CARABAYA | B166: 21 | C166: 03 | D166: CARABAYA
A167: 2104:CHUCUITO | B167: 21 | C167: 04 | D167: CHUCUITO
A168: 2105:EL COLLAO | B168: 21 | C168: 05 | D168: EL COLLAO
A169: 2106:HUANCANE | B169: 21 | C169: 06 | D169: HUANCANE
A170: 2107:LAMPA | B170: 21 | C170: 07 | D170: LAMPA
A171: 2108:MELGAR | B171: 21 | C171: 08 | D171: MELGAR
A172: 2109:MOHO | B172: 21 | C172: 09 | D172: MOHO
A173: 2110:SAN ANTONIO DE PUTINA | B173: 21 | C173: 10 | D173: SAN ANTONIO DE PUTINA
A174: 2111:SAN ROMAN | B174: 21 | C174: 11 | D174: SAN ROMAN
A175: 2112:SANDIA | B175: 21 | C175: 12 | D175: SANDIA
A176: 2113:YUNGUYO | B176: 21 | C176: 13 | D176: YUNGUYO
A177: 2201:MOYOBAMBA | B177: 22 | C177: 01 | D177: MOYOBAMBA
A178: 2202:BELLAVISTA | B178: 22 | C178: 02 | D178: BELLAVISTA
A179: 2203:EL DORADO | B179: 22 | C179: 03 | D179: EL DORADO
A180: 2204:HUALLAGA | B180: 22 | C180: 04 | D180: HUALLAGA
A181: 2205:LAMAS | B181: 22 | C181: 05 | D181: LAMAS
A182: 2206:MARISCAL CACERES | B182: 22 | C182: 06 | D182: MARISCAL CACERES
A183: 2207:PICOTA | B183: 22 | C183: 07 | D183: PICOTA
A184: 2208:RIOJA | B184: 22 | C184: 08 | D184: RIOJA
A185: 2209:SAN MARTIN | B185: 22 | C185: 09 | D185: SAN MARTIN
A186: 2210:TOCACHE | B186: 22 | C186: 10 | D186: TOCACHE
A187: 2301:TACNA | B187: 23 | C187: 01 | D187: TACNA
A188: 2302:CANDARAVE | B188: 23 | C188: 02 | D188: CANDARAVE
A189: 2303:JORGE BASADRE | B189: 23 | C189: 03 | D189: JORGE BASADRE
A190: 2304:TARATA | B190: 23 | C190: 04 | D190: TARATA
A191: 2401:TUMBES | B191: 24 | C191: 01 | D191: TUMBES
A192: 2402:CONTRALMIRANTE VILLAR | B192: 24 | C192: 02 | D192: CONTRALMIRANTE VILLAR
A193: 2403:ZARUMILLA | B193: 24 | C193: 03 | D193: ZARUMILLA
A194: 2501:CORONEL PORTILLO | B194: 25 | C194: 01 | D194: CORONEL PORTILLO
A195: 2502:ATALAYA | B195: 25 | C195: 02 | D195: ATALAYA
A196: 2503:PADRE ABAD | B196: 25 | C196: 03 | D196: PADRE ABAD
A197: 2504:PURUS | B197: 25 | C197: 04 | D197: PURUS

Sheet ENTIDAD (hidden)
A1: ENTIDADES
A2: 010000 : GOBIERNO REGIONAL DE AMAZONAS
A3: 020000 : GOBIERNO REGIONAL DE ANCASH
A4: 030000 : GOBIERNO REGIONAL DE APURIMAC
A5: 040000 : GOBIERNO REGIONAL DE AREQUIPA
A6: 050000 : GOBIERNO REGIONAL DE AYACUCHO
A7: 060000 : GOBIERNO REGIONAL DE CAJAMARCA
A8: 070000 : GOBIERNO REGIONAL DEL CALLAO
A9: 080000 : GOBIERNO REGIONAL DE CUSCO
A10: 090000 : GOBIERNO REGIONAL DE HUANCAVELICA
A11: 100000 : GOBIERNO REGIONAL DE HUANUCO
A12: 110000 : GOBIERNO REGIONAL DE ICA
A13: 120000 : GOBIERNO REGIONAL DE JUNIN
A14: 130000 : GOBIERNO REGIONAL DE LA LIBERTAD
A15: 140000 : GOBIERNO REGIONAL DE LAMBAYEQUE
A16: 150000 : GOBIERNO REGIONAL DE LIMA
A17: 160000 : GOBIERNO REGIONAL DE LORETO
A18: 170000 : GOBIERNO REGIONAL DE MADRE DE DIOS
A19: 180000 : GOBIERNO REGIONAL DE MOQUEGUA
A20: 190000 : GOBIERNO REGIONAL DE PASCO
A21: 200000 : GOBIERNO REGIONAL DE PIURA
A22: 210000 : GOBIERNO REGIONAL DE PUNO
A23: 220000 : GOBIERNO REGIONAL DE SAN MARTIN
A24: 230000 : GOBIERNO REGIONAL DE TACNA
A25: 240000 : GOBIERNO REGIONAL DE TUMBES
A26: 250000 : GOBIERNO REGIONAL DE UCAYALI
A27: 260000 : REGION LIMA METROPOLITANA
A28: 010101 : MP DE CHACHAPOYAS
A29: 010102 : MD DE ASUNCION
A30: 010103 : MD DE BALSAS
A31: 010104 : MD DE CHETO
A32: 010105 : MD DE CHILIQUIN
A33: 010106 : MD DE CHUQUIBAMBA
A34: 010107 : MD DE GRANADA
A35: 010108 : MD DE HUANCAS
A36: 010109 : MD DE JALCA GRANDE
A37: 010110 : MD DE LEIMEBAMBA
A38: 010111 : MD DE LEVANTO
A39: 010112 : MD DE MAGDALENA
A40: 010113 : MD DE MARISCAL CASTILLA
A41: 010114 : MD DE MOLINOPAMPA
A42: 010115 : MD DE MONTEVIDEO
A43: 010116 : MD DE OLLEROS
A44: 010117 : MD DE QUINJALCA
A45: 010118 : MD DE SAN FRANCISCO DE DAGUAS
A46: 010119 : MD DE SAN ISIDRO DE MAYNO
A47: 010120 : MD DE SOLOCO
A48: 010121 : MD DE SONCHE
A49: 010201 : MP DE BAGUA - LA PECA
A50: 010202 : MD DE ARAMANGO
A51: 010203 : MD DE COPALLIN
A52: 010204 : MD DE EL PARCO
A53: 010205 : MD DE IMAZA
A54: 010206 : MD DE LA PECA
A55: 010301 : MP DE BONGARA - JUMBILLA
A56: 010302 : MD DE CHISQUILLA
A57: 010303 : MD DE CHURUJA
A58: 010304 : MD DE COROSHA
A59: 010305 : MD DE CUISPES
A60: 010306 : MD DE FLORIDA
A61: 010307 : MD DE JAZAN
A62: 010308 : MD DE RECTA
A63: 010309 : MD DE SAN CARLOS
A64: 010310 : MD DE SHIPASBAMBA
A65: 010311 : MD DE VALERA
A66: 010312 : MD DE YAMBRASBAMBA
A67: 010401 : MP DE CONDORCANQUI - NIEVA
A68: 010402 : MD DE EL CENEPA
A69: 010403 : MD DE RIO SANTIAGO
A70: 010501 : MP DE LUYA - LAMUD
A71: 010502 : MD DE CAMPORREDONDO
A72: 010503 : MD DE COCABAMBA
A73: 010504 : MD DE COLCAMAR
A74: 010505 : MD DE CONILA
A75: 010506 : MD DE INGUILPATA
A76: 010507 : MD DE LONGUITA
A77: 010508 : MD DE LONYA CHICO
A78: 010509 : MD DE LUYA
A79: 010510 : MD DE LUYA VIEJO
A80: 010511 : MD DE MARIA
A81: 010512 : MD DE OCALLI
A82: 010513 : MD DE OCUMAL
A83: 010514 : MD DE PIZUQUIA
A84: 010515 : MD DE PROVIDENCIA
A85: 010516 : MD DE SAN CRISTOBAL DE OLTO
A86: 010517 : MD DE SAN FRANCISCO DE YESO
A87: 010518 : MD DE SAN JERONIMO DE PACLAS
A88: 010519 : MD DE SAN JUAN DE LOPECANCHA
A89: 010520 : MD DE SANTA CATALINA
A90: 010521 : MD DE SANTO TOMAS
A91: 010522 : MD DE TINGO
A92: 010523 : MD DE TRITA
A93: 010601 : MP DE RODRIGUEZ DE MENDOZA - SAN NICOLAS
A94: 010602 : MD DE CHIRIMOTO
A95: 010603 : MD DE COCHAMAL
A96: 010604 : MD DE HUAMBO
A97: 010605 : MD DE LIMABAMBA
A98: 010606 : MD DE LONGAR
A99: 010607 : MD DE MARISCAL BENAVIDES
A100: 010608 : MD DE MILPUC
A101: 010609 : MD DE OMIA
A102: 010610 : MD DE SANTA ROSA
A103: 010611 : MD DE TOTORA
A104: 010612 : MD DE VISTA ALEGRE
A105: 010701 : MP DE UTCUBAMBA - BAGUA GRANDE
A106: 010702 : MD DE CAJARURO
A107: 010703 : MD DE CUMBA
A108: 010704 : MD DE EL MILAGRO
A109: 010705 : MD DE JAMALCA
A110: 010706 : MD DE LONYA GRANDE
A111: 010707 : MD DE YAMON
A112: 020101 : MP DE HUARAZ
A113: 020102 : MD DE COCHABAMBA
A114: 020103 : MD DE COLCABAMBA
A115: 020104 : MD DE HUANCHAY
A116: 020105 : MD DE INDEPENDENCIA
A117: 020106 : MD DE JANGAS
A118: 020107 : MD DE LA LIBERTAD
A119: 020108 : MD DE OLLEROS
A120: 020109 : MD DE PAMPAS
A121: 020110 : MD DE PARIACOTO
A122: 020111 : MD DE PIRA
A123: 020112 : MD DE TARICA
A124: 020201 : MP DE AIJA
A125: 020202 : MD DE CORIS
A126: 020203 : MD DE HUACLLAN
A127: 020204 : MD DE LA MERCED
A128: 020205 : MD DE SUCCHA
A129: 020301 : MP DE ANTONIO RAYMONDI - LLAMELLIN
A130: 020302 : MD DE ACSO
A131: 020303 : MD DE CHACCHO
A132: 020304 : MD DE CHINGAS
A133: 020305 : MD DE MIRGAS
A134: 020306 : MD DE SAN JUAN DE RONTOY
A135: 020401 : MP DE ASUNCION - CHACAS
A136: 020402 : MD DE ACOCHACA
A137: 020501 : MP DE BOLOGNESI - CHIQUIAN
A138: 020502 : MD DE ABELARDO PARDO LAZAMETA
A139: 020503 : MD DE ANTONIO RAYMONDI
A140: 020504 : MD DE AQUIA
A141: 020505 : MD DE CAJACAY
A142: 020506 : MD DE CANIS
A143: 020507 : MD DE COLQUIOC
A144: 020508 : MD DE HUALLANCA
A145: 020509 : MD DE HUASTA
A146: 020510 : MD DE HUAYLLACAYAN
A147: 020511 : MD DE LA PRIMAVERA
A148: 020512 : MD DE MANGAS
A149: 020513 : MD DE PACLLON
A150: 020514 : MD DE SAN MIGUEL DE CORPANQUI
A151: 020515 : MD DE TICLLOS
A152: 020601 : MP DE CARHUAZ
A153: 020602 : MD DE ACOPAMPA
A154: 020603 : MD DE AMASHCA
A155: 020604 : MD DE ANTA
A156: 020605 : MD DE ATAQUERO
A157: 020606 : MD DE MARCARA
A158: 020607 : MD DE PARIAHUANCA
A159: 020608 : MD DE SAN MIGUEL DE ACO
A160: 020609 : MD DE SHILLA
A161: 020610 : MD DE TINCO
A162: 020611 : MD DE YUNGAR
A163: 020701 : MP DE CARLOS FERMIN FITZCARRALD
A164: 020702 : MD DE SAN NICOLAS
A165: 020703 : MD DE YAUYA
A166: 020801 : MP DE CASMA
A167: 020802 : MD DE BUENA VISTA ALTA
A168: 020803 : MD DE COMANDANTE NOEL
A169: 020804 : MD DE YAUTAN
A170: 020901 : MP DE CORONGO
A171: 020902 : MD DE ACO
A172: 020903 : MD DE BAMBAS
A173: 020904 : MD DE CUSCA
A174: 020905 : MD DE LA PAMPA
A175: 020906 : MD DE YANAC
A176: 020907 : MD DE YUPAN
A177: 021001 : MP DE HUARI
A178: 021002 : MD DE ANRA
A179: 021003 : MD DE CAJAY
A180: 021004 : MD DE CHAVIN DE HUANTAR
A181: 021005 : MD DE HUACACHI
A182: 021006 : MD DE HUACCHIS
A183: 021007 : MD DE HUACHIS
A184: 021008 : MD DE HUANTAR
A185: 021009 : MD DE MASIN
A186: 021010 : MD DE PAUCAS
A187: 021011 : MD DE PONTO
A188: 021012 : MD DE RAHUAPAMPA
A189: 021013 : MD DE RAPAYAN
A190: 021014 : MD DE SAN MARCOS
A191: 021015 : MD DE SAN PEDRO DE CHANA
A192: 021016 : MD DE UCO
A193: 021101 : MP DE HUARMEY
A194: 021102 : MD DE COCHAPETI
A195: 021103 : MD DE CULEBRAS
A196: 021104 : MD DE HUAYAN
A197: 021105 : MD DE MALVAS
A198: 021201 : MP DE HUAYLAS - CARAZ
A199: 021202 : MD DE HUALLANCA
A200: 021203 : MD DE HUATA
... 1701 more rows

Sheet GRS (hidden)
A1: -----------------------------------------------
A2: 010000 : GOBIERNO REGIONAL DE AMAZONAS
A3: 020000 : GOBIERNO REGIONAL DE ANCASH
A4: 030000 : GOBIERNO REGIONAL DE APURIMAC
A5: 040000 : GOBIERNO REGIONAL DE AREQUIPA
A6: 050000 : GOBIERNO REGIONAL DE AYACUCHO
A7: 060000 : GOBIERNO REGIONAL DE CAJAMARCA
A8: 070000 : GOBIERNO REGIONAL DEL CALLAO
A9: 080000 : GOBIERNO REGIONAL DE CUSCO
A10: 090000 : GOBIERNO REGIONAL DE HUANCAVELICA
A11: 100000 : GOBIERNO REGIONAL DE HUANUCO
A12: 110000 : GOBIERNO REGIONAL DE ICA
A13: 120000 : GOBIERNO REGIONAL DE JUNIN
A14: 130000 : GOBIERNO REGIONAL DE LA LIBERTAD
A15: 140000 : GOBIERNO REGIONAL DE LAMBAYEQUE
A16: 150000 : GOBIERNO REGIONAL DE LIMA
A17: 160000 : GOBIERNO REGIONAL DE LORETO
A18: 170000 : GOBIERNO REGIONAL DE MADRE DE DIOS
A19: 180000 : GOBIERNO REGIONAL DE MOQUEGUA
A20: 190000 : GOBIERNO REGIONAL DE PASCO
A21: 200000 : GOBIERNO REGIONAL DE PIURA
A22: 210000 : GOBIERNO REGIONAL DE PUNO
A23: 220000 : GOBIERNO REGIONAL DE SAN MARTIN
A24: 230000 : GOBIERNO REGIONAL DE TACNA
A25: 240000 : GOBIERNO REGIONAL DE TUMBES
A26: 250000 : GOBIERNO REGIONAL DE UCAYALI
A27: 260000 : REGION LIMA METROPOLITANA

Sheet TIPOGOB (hidden)
A1: TIPOGOB
A2: Gobiernos Locales
A3: Gobiernos Regionales
A6: No Cumple
A7: Si Cumple
